Workbook

Sheet CoverPage
A5: 2023 Homekey Tribal
A6: Notice of Funding Availability (NOFA)
A9: 2023 Homekey Tribal Application
A29: State of California
A30: Governor Gavin Newsom
A32: Lourdes M. Castro Ramírez, Secretary
A33: Business, Consumer Services and Housing Agency
A35: Gustavo Velasquez, Director
A36: Department of Housing and Community Development
A39: 2020 West El Camino Avenue, Suite 150, Sacramento, CA 95833
A40: Telephone: (916) 263-2771
A41: Website: https://www.hcd.ca.gov/grants-and-funding/homekey
A42: Email: HKTribal@hcd.ca.gov
A47: 2023-07-31

Sheet Overview
A1: 2023 Homekey Tribal Project Overview | AJ1: 2023-08-10
A2: §401 Pre-Application Consultation Requirement
A3: Has the Eligible Applicant undertaken a preapplication meeting with HCD regarding the proposed Homekey Project? Please submit your meeting request and obtain the pre-application survey by emailing HKTribal@hcd.ca.gov. The meeting will be scheduled upon receipt of the completed survey.
A4: Instructions
A5: "Light blue" shaded cells are for Applicant input.
A6: "Red" shaded cells indicate Homekey requirement. Please provide an explanation in the Comment Section of the failed requirement.
A7: "Orange" shaded cells' indicate required attachments. The required electronic files may uploaded to the Portal and saved using the Electronic File Name referenced in the Application Upload Checklist."
A8: NOFA section references are made with "§" and the corresponding NOFA section number.
A10: Please contact HKTribal@hcd.ca.gov for program questions or assistance with this application.
A11: Homekey Tribal Summary (auto populated from Award and Match worksheet)
A12: Capital Baseline Award | H12: ='Award and Match'!$T$4 -> 0 | L12: Extraordinary Costs | S12: ='Award and Match'!$T$5 -> 0 | W12: Total Requested Capital Award | AI12: =SUM(H$12,S$12,S$13) -> 0
A13: Operating Subsidy | H13: ='Award and Match'!$U$10 -> 0 | L13: Relocation Costs | S13: ='Award and Match'!$U$9 -> 0 | W13: Total Requested Operating Subsidy | AI13: =$H$13 -> 0
A14: Predevelopment Funding | H14: ='Award and Match'!$U$6 -> 0 | L14: Acquisition Funding | S14: ='Award and Match'!$U$7 -> 0 | W14: Total Requested Homekey Award | AI14: =SUM($AI$12,$AI$13) -> 0
A15: Number of Units Proposed in the Project | K15: ='Unit Mix'!$B$15 -> 0 | M15: Number of At-Risk of Homelessness Units | W15: ='Unit Mix'!$O$15 -> 0 | Y15: Number of Transition-Aged Youth Units | AK15: ='Unit Mix'!P15 -> 0
A16: Number of Assisted Units | K16: ='Unit Mix'!$S$15 -> 0 | M16: Number of Homeless Units | W16: ='Unit Mix'!$Q$15 -> 0 | Y16: Number of Senior Units | AK16: ='Unit Mix'!R15 -> 0
A17: Number of Units accessible to persons with hearing or vision disabilities | S17: Number of Homeless Youth or Youth at Risk of Homelessness Units | AK17: ='Unit Mix'!$R$15 -> 0
A18: Number of Units accessible to persons with mobility disabilities
A19: Project Overview
A20: Project Name | AA20: Where is the Project located?
A21: Project Address | S21: Project City | AC21: State | AE21: CA | AH21: Zip
A22: Project County | L22: Is the Project in a Rural Area per H&S Code §50199.21? (use the TCAC Method for determining rural status)
A23: Project and unit amenities/features | I23: Number of parking spaces | S23: Number of elevators | AC23: No. of residential building
I24: Common area (sq. ft.) | S24: Land area (acres) | AC24: Total residential area (sq. ft.)
I25: Other (specify)
A26: Assessor Parcel Number(s) (APNs)
A28: Project Type | AC28: Type of Tax Credits
A30: What is/are the proposed Target Population? (check all that apply) | J30: At-Risk of Homelessness | Q30: Homeless | U30: Transition-Aged Youth | AA30: Homeless Youth or Youth at Risk of Homelessness | AM30: Senior Project
M31: =IF(I31="Senior Project","If Senior Project is selected, select age restrictions from dropdown =====>>>","") ->  | AA31: Other
A32: §201 Eligible Uses | S32: Requesting Relocation Costs? | AC32: Requesting Homekey Operating Subsidy?
A33: §203(B) Eligible Applicant acknowledges that for purposes of calculating Program grant amounts and for the purpose of determining compliance with Program requirements that a Rental Housing Development contain four or more Units, a single-family house is one Unit, and an apartment Unit in an apartment building is one Unit regardless of the number of bedrooms within the apartment Unit.
A34: §203(C) Eligible Applicant acknowledges that an Eligible Project must be located within the state of California.
A35: §203(D) Eligible Applicant acknowledges that substituting previously awarded Department funds is prohibited, except as provided below: 1. Applicants seeking to substitute previously awarded Homekey funds must request withdrawal of their prior award in writing and provide reasonable justification that the substitution is necessary to ensure project feasibility. Substitutions based solely upon Applicant preference or convenience will not be permitted. Applicants are encouraged to discuss available options during pre-application meetings. 2. Where the Applicant seeks to substitute funds previously awarded under a Homekey Tribal set-aside, the previously awarded funds will be disencumbered from the prior NOFA and added to funds available under the NOFA to ensure that no tribal funds are lost. Note: The provisions of this paragraph are only applicable to previous Homekey Program awards that have not been expended, or any portion thereof.
A36: Project Narrative
A38: Has the Eligible Applicant applied, plan to apply, or been awarded other HCD program funds (outside this Tribal Homekey NOFA) for this Project site?
A39: Other HCD Program(s) Name(s): | P39: Plan to Apply? | R39: Loan Amount | V39: Grant Amount | Z39: Awarded? | AC39: Award Date/Expected Award Date | AH39: HCD Contract Number
A43: §200 Eligible Applicants
A44: Applicant #1
A45: Applicant Name | AA45: Organization type | AM45: Federally Recognized Tribe
A46: Address | V46: City | AC46: State | AE46: CA | AH46: Zip | AM46: Non-Federally Recognized Tribe
A47: Auth Rep | M47: Title | V47: Email | AG47: Phone | AM47: Tribally Designated Housing Entity
A48: App. Contact | M48: Title | V48: Email | AG48: Phone
A49: Address | V49: City | AC49: State | AH49: Zip
A50: File Name | D50: App1 Cert & Legal | N50: Reference: Certifications & Legal worksheet. | AF50: Uploaded to HCD?
A51: File Name | D51: App1 Resolution | N51: Provide an authorizing resolution. Signature required | AF51: Uploaded to HCD?
A52: File Name | D52: =IF(AE45="Non-Federally Recognized Tribe","App1 Payee Data","App1 TIN") -> App1 TIN | N52: Provide a Payee Data Record or TIN Form | AF52: Uploaded to HCD?
A53: File Name | D53: App1 Signature Block | N53: Refer to Applicant Documents Tab | AF53: Uploaded to HCD?
A54: File Name | D54: App1 OrgDoc1, OrgDoc2, etc. | N54: Provide governing charter documents, ordinance, or bylaws (as applicable) | AF54: Uploaded to HCD?
A55: File Name | D55: App1 OrgChart | N55: Refer to Applicant Documents Tab | AF55: Uploaded to HCD?
A56: File Name | D56: App1 Cert of Good Standing | N56: Dated 30 days or less from the Application due date | AF56: Uploaded to HCD?
A57: File Name | D57: App1 Tax-Exempt Status | N57: Evidence of tax-exempt status from IRS and Franchise Tax Board, if applicable | AF57: Uploaded to HCD?
A58: File Name | D58: App1 Article of Org | N58: LLC | P58: Provide Articles of Organization | AF58: Uploaded to HCD?
A59: File Name | D59: App1 Cert of Amendment | P59: Certificate of Amendment (if applicable) | AF59: Uploaded to HCD?
A60: File Name | D60: App1 Stat of Information | P60: Provide Statement of Information | AF60: Uploaded to HCD?
A61: File Name | D61: App1 Cert of LP | N61: LP | P61: Provide Certificate of Limited Partnership | AF61: Uploaded to HCD?
A62: File Name | D62: App1 LP Agreement | P62: Limited Partnership Agreement | AF62: Uploaded to HCD?
A63: Tribally Controlled Legal Entity
A64: Applicant 1 Legal Entity Name | AA64: Organization type
A65: Address | V65: City | AC65: State | AH65: Zip | AM65: Nonprofit Corporation
A66: Auth Rep | M66: Title | V66: Email | AG66: Phone | AM66: For-profit Corporation
A67: Contact | M67: Title | V67: Email | AG67: Phone | AM67: Limited Partnership
A68: Address | V68: City | AC68: State | AH68: Zip | AM68: Limited Liability Company
A69: File Name | D69: App1 Legal Entity Cert & Legal | N69: Reference: Certifications & Legal worksheet. | AF69: Uploaded to HCD?
A70: File Name | D70: App1 Legal Entity Resolution | N70: Provide an authorizing resolution. Signature required | AF70: Uploaded to HCD?
A71: File Name | D71: App1 Legal Entity Payee Data or TIN | N71: Provide a Payee Data Record or TIN Form | AF71: Uploaded to HCD?
A72: File Name | D72: App1 Legal Entity Signature Block | N72: See Applicant Documents worksheet | AF72: Uploaded to HCD?
A73: File Name | D73: App1 Legal Entity OrgDoc1, OrgDoc2, etc. | N73: Provide governing charter documents, ordinance, or bylaws (as applicable) | AF73: Uploaded to HCD?
A74: File Name | D74: App1 Legal Entity OrgChart | N74: See Applicant Documents worksheet | AF74: Uploaded to HCD?
A75: File Name | D75: App1 Legal Entity Cert of Good Standing | N75: Dated 30 days or less from the Application due date | AF75: Uploaded to HCD?
A76: File Name | D76: App1 Legal Entity Tax-Exempt Status | N76: Evidence of tax-exempt status from IRS and Franchise Tax Board, if applicable | AF76: Uploaded to HCD?
A77: File Name | D77: App1 Legal Entity Article of Org | N77: LLC | P77: Provide Articles of Organization | AF77: Uploaded to HCD?
A78: File Name | D78: App1 Legal Entity Cert of Amendment | P78: Certificate of Amendment (if applicable) | AF78: Uploaded to HCD?
A79: File Name | D79: App1 Legal Entity Stat of Information | P79: Provide Statement of Information | AF79: Uploaded to HCD?
A80: File Name | D80: App1 Legal Entity Cert of LP | N80: LP | P80: Provide Certificate of Limited Partnership | AF80: Uploaded to HCD?
A81: File Name | D81: App1 Legal Entity LP Agreement | P81: Limited Partnership Agreement | AF81: Uploaded to HCD?
A82: Co-Applicant #1 (if applicable)
A83: Co-Applicant 1 Name | AA83: Organization type
A84: Address | V84: City | AC84: State | AH84: Zip
A85: Auth Rep | M85: Title | V85: Email | AG85: Phone
A86: Contact | M86: Title | V86: Email | AG86: Phone
A87: Address | V87: City | AC87: State | AH87: Zip
A88: File Name | D88: =IF($A$82="Co-Applicant #1 (if applicable)","App1 Cert & Legal","App1 Legal Entity Cert & Legal") -> App1 Cert & Legal | N88: Reference: Certifications & Legal worksheet. | AF88: Uploaded to HCD?
A89: File Name | D89: =IF($A$82="Co-Applicant #1 (if applicable)","App1 Resolution","App1 Legal Entity Resolution") -> App1 Resolution | N89: Provide an authorizing resolution. Signature required | AF89: Uploaded to HCD?
A90: File Name | D90: =IF($A$82="Co-Applicant #1 (if applicable)","App1 Payee Data or TIN","App1 Legal Entity Payee Data or TIN") -> App1 Payee Data or TIN | N90: Provide a Payee Data Record or TIN Form | AF90: Uploaded to HCD?
A91: File Name | D91: =IF($A$82="Co-Applicant #1 (if applicable)","App1 Signature Block","App1 Legal Entity Signature Block") -> App1 Signature Block | N91: Refer to Applicant Documents Tab | AF91: Uploaded to HCD?
A92: File Name | D92: =IF($A$82="Co-Applicant #1 (if applicable)","App1 OrgDoc1, OrgDoc2, etc.","App1 Legal Entity OrgDoc1, OrgDoc2, etc.") -> App1 OrgDoc1, OrgDoc2, etc. | N92: Provide governing charter documents, ordinance, or bylaws (as applicable) | AF92: Uploaded to HCD?
A93: File Name | D93: =IF($A$82="Co-Applicant #1 (if applicable)","App1 OrgChart","App1 Legal Entity OrgChart.") -> App1 OrgChart | N93: Refer to Applicant Documents Tab | AF93: Uploaded to HCD?
A94: File Name | D94: =IF($A$82="Co-Applicant #1 (if applicable)","App1 Cert of Good Standing","App1 Legal Entity Cert of Good Standing") -> App1 Cert of Good Standing | N94: Dated 30 days or less from the Application due date | AF94: Uploaded to HCD?
A95: File Name | D95: =IF($A$82="Co-Applicant #1 (if applicable)","App1 Tax-Exempt Status","App1 Legal Entity Tax-Exempt Status") -> App1 Tax-Exempt Status | N95: Evidence of tax-exempt status from IRS and Franchise Tax Board, if applicable | AF95: Uploaded to HCD?
A96: File Name | D96: =IF($A$82="Co-Applicant #1 (if applicable)","App1 Article of Org","App1 Legal Entity Article of Org") -> App1 Article of Org | N96: LLC | P96: Provide Articles of Organization | AF96: Uploaded to HCD?
A97: File Name | D97: =IF($A$82="Co-Applicant #1 (if applicable)","App1 Cert of Amendment","App1 Legal Entity Cert of Amendment") -> App1 Cert of Amendment | P97: Certificate of Amendment (if applicable) | AF97: Uploaded to HCD?
A98: File Name | D98: =IF($A$82="Co-Applicant #1 (if applicable)","App1 Stat of Information","App1 Legal Entity Stat of Information") -> App1 Stat of Information | P98: Provide Statement of Information | AF98: Uploaded to HCD?
A99: File Name | D99: =IF($A$82="Co-Applicant #1 (if applicable)","App1 Cert of LP","App1 Legal Entity Cert of LP") -> App1 Cert of LP | N99: LP | P99: Provide Certificate of Limited Partnership | AF99: Uploaded to HCD?
A100: File Name | D100: =IF($A$82="Co-Applicant #1 (if applicable)","App1 LP Agreement","App1 Legal Entity LP Agreement") -> App1 LP Agreement | P100: Limited Partnership Agreement | AF100: Uploaded to HCD?
A101: Co-Applicant #2 (if applicable)
A102: Co-Applicant 2 Name | AA102: Organization type
A103: Address | V103: City | AC103: State | AH103: Zip
A104: Auth Rep | M104: Title | V104: Email | AG104: Phone
A105: Contact | M105: Title | V105: Email | AG105: Phone
A106: Address | V106: City | AC106: State | AH106: Zip
A107: File Name | D107: =IF($A$101="Co-Applicant #2 (if applicable)","Co-App2 Cert & Legal","App1 Cert & Legal") -> Co-App2 Cert & Legal | N107: Reference: Certifications & Legal worksheet. | AF107: Uploaded to HCD?
A108: File Name | D108: =IF($A$101="Co-Applicant #2 (if applicable)","Co-App2 Resolution","App1 Resolution") -> Co-App2 Resolution | N108: Provide an authorizing resolution. Signature required | AF108: Uploaded to HCD?
A109: File Name | D109: =IF($A$101="Co-Applicant #2 (if applicable)","Co-App2 Payee Data or TIN","App1 Payee Data or TIN") -> Co-App2 Payee Data or TIN | N109: Provide a Payee Data Record or TIN Form | AF109: Uploaded to HCD?
A110: File Name | D110: =IF($A$101="Co-Applicant #2 (if applicable)","Co-App2 Signature Block","App1 Signature Block") -> Co-App2 Signature Block | N110: Refer to Applicant Documents Tab | AF110: Uploaded to HCD?
A111: File Name | D111: =IF($A$101="Co-Applicant #2 (if applicable)","Co-App2 OrgDoc1, OrgDoc2, etc.","App1 OrgDoc1, OrgDoc2, etc.") -> Co-App2 OrgDoc1, OrgDoc2, etc. | N111: Provide governing charter documents, ordinance, or bylaws (as applicable) | AF111: Uploaded to HCD?
A112: File Name | D112: =IF($A$101="Co-Applicant #2 (if applicable)","Co-App2 OrgChart","App1 OrgChart") -> Co-App2 OrgChart | N112: Refer to Applicant Documents Tab | AF112: Uploaded to HCD?
A113: File Name | D113: =IF($A$101="Co-Applicant #2 (if applicable)","Co-App2 Cert of Good Standing","App1 Cert of Good Standing") -> Co-App2 Cert of Good Standing | N113: Dated 30 days or less from the Application due date | AF113: Uploaded to HCD?
A114: File Name | D114: =IF($A$101="Co-Applicant #2 (if applicable)","Co-App2 Tax-Exempt Status","App1 Tax-Exempt Status") -> Co-App2 Tax-Exempt Status | N114: Evidence of tax-exempt status from IRS and Franchise Tax Board, if applicable | AF114: Uploaded to HCD?
A115: File Name | D115: =IF($A$101="Co-Applicant #2 (if applicable)","Co-App2 Article of Org","App1 Article of Org") -> Co-App2 Article of Org | N115: LLC | P115: Provide Articles of Organization | AF115: Uploaded to HCD?
A116: File Name | D116: =IF($A$101="Co-Applicant #2 (if applicable)","Co-App2 Cert of Amendment","App1 Cert of Amendment") -> Co-App2 Cert of Amendment | P116: Certificate of Amendment (if applicable) | AF116: Uploaded to HCD?
A117: File Name | D117: =IF($A$101="Co-Applicant #2 (if applicable)","Co-App2 Stat of Information","App1 Stat of Information") -> Co-App2 Stat of Information | P117: Provide Statement of Information | AF117: Uploaded to HCD?
A118: File Name | D118: =IF($A$101="Co-Applicant #2 (if applicable)","Co-App2 Cert of LP","App1 Cert of LP") -> Co-App2 Cert of LP | N118: LP | P118: Provide Certificate of Limited Partnership | AF118: Uploaded to HCD?
A119: File Name | D119: =IF($A$101="Co-Applicant #2 (if applicable)","Co-App2 LP Agreement","App1 LP Agreement") -> Co-App2 LP Agreement | P119: Limited Partnership Agreement | AF119: Uploaded to HCD?
A120: Development Team Contacts (provide information that is currently available)
A121: Property Management Company
A122: Legal Name | P122: Contact Name | AB122: Email
A123: Phone | H123: Address | V123: City | AD123: State | AH123: Zip
A124: Financial Consultant
A125: Legal Name | P125: Contact Name | AB125: Email
A126: Phone | H126: Address | V126: City | AD126: State | AH126: Zip
A127: Legal Counsel
A128: Legal Name | P128: Contact Name | AB128: Email
A129: Phone | H129: Address | V129: City | AD129: State | AH129: Zip
A130: General Contractor
A131: Legal Name | P131: Contact Name | AB131: Email
A132: Phone | H132: Address | V132: City | AD132: State | AH132: Zip
A133: Architect
A134: Legal Name | P134: Contact Name | AB134: Email
A135: Phone | H135: Address | V135: City | AD135: State | AH135: Zip
A136: Development/Operating Funding Source
A137: Legal Name | P137: Contact Name | AB137: Email
A138: Phone | H138: Address | V138: City | AD138: State | AH138: Zip
A139: Development/Operating Funding Source
A140: Legal Name | P140: Contact Name | AB140: Email
A141: Phone | H141: Address | V141: City | AD141: State | AH141: Zip
A142: §205 Program Deadlines
A143: A. Capital funds must be expended within eight months of the date of award. Eligible Applicants may request an extension of this deadline at time of application or at any time thereafter by providing a description of the circumstances, reason for extension and proposed length of extension requested. The Director shall have reasonable discretion to approve or deny such an extension upon conducting a full and good faith review of the Applicant's extension request
A144: Is the Eligible Applicant requesting for an expenditure deadline extension? If yes, please provide a description of the circumstance, reason for extension, and proposed length of extension request below: | AE144: If yes, how many months?

Sheet Threshold
A1: Threshold | AK1: =Overview!AJ1 -> 2023-08-10
A2: §300 Threshold Requirements
A3: To be eligible to receive funding, all Projects must meet the following requirements as they relate to the Eligible Applicant and the project types.
A4: 1. Eligible Applicant acknowledges that applications may be submitted independently by an Eligible Applicant, as described in §200 and defined in Article VII of the NOFA. Alternatively, each of the foregoing Eligible Applicants may apply jointly with a Co-Applicant.
A5: 2. Eligible Applicant agrees Eligible Project(s) must serve persons qualifying as members of the Target Population per Article VII(II) of the NOFA.
A6: 3. Eligible Applicant acknowledges that it must demonstrate sufficient experience and capacity to develop, own and operate affordable housing and will control the project during acquisition, development, and occupancy. Does Eligible Applicant have the capacity to develop, own, and operate the proposed Project? If Yes, provide details in the Development Team Staffing Chart below:
A7: Development Team Staffing Chart (Project Executive and key Project Staff)
A8: Staff type | D8: Employee / Consultant full name | R8: Position title | Z8: Full time / Part time | AE8: % of time dedicated to this project
A19: 4. Has Applicant developed, operated, or owned at least one affordable rental housing development of equivalent size, scale, and occupancy to the proposed Project? If Yes, provide details below:
A20: Project name and address | Q20: Who provides the experience | V20: Experience type | Z20: Housing type | AC20: Population served | AJ20: Latest date developed, owned, or operated
Z21: Affordable Rental | AM21: =IF(Overview!D45="","Applicant #1",Overview!D45) -> Applicant #1
A22: 4a. Eligible Applicant may satisfy this experience requirement by contracting or partnering with an entity that meets the requirements of this subdivision. At time of application submittal, does the Eligible Applicant have a contract or partnership agreement that was fully executed, and it must remain in effect until project completion or permanent loan closing and the issuance of any required tax forms? | AM22: =IF(Overview!E83="","",Overview!E83) -> 
A23: File Name | D23: Contract, Partnership Agreement | L23: Provide a fully executed contract or partnership agreement | AF23: Uploaded to HCD? | AM23: =IF(Overview!E102="","",Overview!E102) -> 
A24: 4b. Experience serving persons of the Target Population | N24: Property manager service years | S24: =SUM(AN28:AN32)/12 -> 0 | U24: Supportive Service Provider service years | AA24: =SUM(AN34:AN38)/12 -> 0
A25: Has a property manager been selected? | I25: If Yes, enter property manager name and complete experience chart below: | Z25: If No, Eligible Applicant certifies that this requirement will be reflected in future solicitation or memorandum of understanding?
A26: Has a supportive service provider been selected? | I26: If Yes, enter supportive service provider name and complete experience chart below: | Z26: If No, Eligible Applicant certifies that this requirement will be reflected in future solicitation or memorandum of understanding?
A27: Project name and address | U27: Experience provider | AA27: Housing type | AD27: Population Served | AK27: # of months serving
U28: Property Manager | AA28: Affordable Rental | AM28: =IF(AND(A28<>"",AD28<>""),1,0) -> 0 | AN28: =IF(AM28=1,AK28,0) -> 0
U29: Property Manager | AA29: Affordable Rental | AM29: =IF(AND(A29<>"",AD29<>""),1,0) -> 0 | AN29: =IF(AM29=1,AK29,0) -> 0
U30: Property Manager | AA30: Affordable Rental | AM30: 0 | AN30: 0
U31: Property Manager | AA31: Affordable Rental | AM31: 0 | AN31: =IF(AM31=1,AK31,0) -> 0
U32: Property Manager | AA32: Affordable Rental | AM32: 0 | AN32: =IF(AM32=1,AK32,0) -> 0
A33: Enter Supportive Service Provider name and complete experience chart below:
U34: Supportive Service Provider | AA34: Affordable Rental | AM34: =IF(AND(A34<>"",AD34<>""),1,0) -> 0 | AN34: 0
U35: Supportive Service Provider | AA35: Affordable Rental | AM35: 0 | AN35: 0
U36: Supportive Service Provider | AA36: Affordable Rental | AM36: 0 | AN36: 0
U37: Supportive Service Provider | AA37: Affordable Rental | AM37: 0 | AN37: 0
U38: Supportive Service Provider | AA38: Affordable Rental | AM38: 0 | AN38: 0
A39: 4c. Eligible Applicant acknowledges that it may satisfy this experience requirement by contracting with an experienced property management company and service provider that meets the requirements of this subdivision. A letter of intent or Memoranda of Understanding, signed by the provider(s) is required at time of application. Such contract(s) must be fully executed prior to occupancy of the completed project. For purposes of this subdivision, an entity has “capacity” if it has adequate staff, capital, assets, and other resources to efficiently meet the operational needs, maintain the fiscal integrity; and to satisfy all legal requirements and obligations in connection with the Rental Housing Development. Evidence of capacity must be reasonably acceptable to the Department in form and substance.
A40: File Name | D40: MOU or Letter of Intent | L40: Provide a letter of intent or MOU signed by the provider(s) | AF40: Uploaded to HCD?
A41: 5. Eligible Applicant acknowledges that all proposed uses of Program funds are eligible pursuant to Section 201 of the NOFA.
A42: 6. Eligible Applicant acknowledges that the Application is complete at time of submittal, including all required documents and third-party reports, or where outstanding documents and reports can be obtained within a reasonable time, as specified by the Department. Third party reports may include, but are not limited to appraisals, market study or similar market analysis, environmental reports and relocation plans.
A43: Eligible Applicant acknowledges that all Projects seeking funding for rehabilitation and new construction are required to submit a Phase I Environmental Site Assessment (ESA) which was prepared or updated no earlier than 12 months prior to the application due date.
A44: File Name | D44: Env. Report 1 | L44: Environmental Site Assessment Phase I (prepared or updated no earlier than 12 months prior to the application due date). | AF44: Uploaded to HCD?
A45: File Name | D45: Env. Report 2 | L45: If Environmental Site Assessment Phase I requires a Phase II study, submit a Phase II (prepared or updated no earlier than 12 months prior to the application due date). | AF45: Uploaded to HCD?
A46: File Name | D46: Env. Report 3 | L46: Rehab Only - Provide Lead Based Paint Report (for structures built prior to 1978)
A47: File Name | D47: Env. Report 4 | L47: Rehab Only - Provide Mold Report
A48: File Name | D48: Env. Report 5 | L48: Rehab Only - Provide Asbestos Report (for structures built prior to 1978)
A49: File Name | D49: PNA or CNA | L49: Provide PNA/CNA & cost estimate | AF49: Uploaded to HCD?
A50: 6a. Is the Project requesting grant funds to pay for necessary third-party reports, architectural, appraisal, engineering, legal costs and attorney fees and other consulting costs and fees? If yes, please provide a letter of intent to HCD. Note: The letter of intent shall include an itemized list of outstanding items and an estimate of costs consistent with the development budget. If this form of evidence is relied upon at the time of application, the Department shall impose additional milestones in the Standard Agreement, requiring submission of all required documents not more than three months following execution of the Standard Agreement.
A51: File Name | D51: Letter of Intent | L51: Provide a letter of intent that include an itemized list of outstanding items and an estimate of costs consistent with the development budget. | AF51: Uploaded to HCD?
A52: 6b. Eligible Applicant acknowledges that at time of application “complete” means that sufficient information and documentation is provided for staff to review and assess the feasibility of the proposed project. Throughout pre-application consultation and the application review process, Homekey staff will provide technical assistance to ensure that all necessary corrections are made prior to an award of funds
A53: 7. Eligible Applicant acknowledges that it shall provide a duly adopted Resolution or Ordinance of the governing board, Tribal Council, Tribal Leadership or other tribal governing body, in accordance with the governing laws, of the applicant or co-applicant authorizing the application and the execution of all Department and Program documents
A54: 8. Eligible Applicant certifies that the Project, as proposed in the application, is financially feasible as evidenced by documentation such as, but not limited to, Enforceable Funding Commitments, market study/market information, project proforma, sources and uses statement, or other feasibility documentation that is standard industry practice for the type of proposed housing development.
A55: 9. Eligible Applicant certifies that the Project will maintain Fiscal Integrity consistent with proposed Rents in the Assisted Units and is feasible pursuant to the underwriting standards in UMR Section 8310.
A56: 10. Eligible Applicant certifies that it has funding commitments or other reasonable assurance to cover operations and service costs with specific funding sources (government/philanthropic/private) for the proposed Project and a budget which covers operations and services costs through year 15 from the recordation of the covenants.
A57: 11. Eligible Applicant acknowledges that applications must include an initial plan for providing supportive services based on the anticipated needs of the Target Population and any proposed sub-populations to be served by the Project. The initial plan shall be reasonably detailed and comprehensive, as determined by the Department in its sole and absolute discretion. The supportive services plan shall provide a description of the services that will be available at the housing site including but not limited to case management, behavioral health services, physical health services, assistance obtaining benefits and essential documentation, and education and employment services. The plan shall include a description of the on-site staffing plan proposed to deliver these services. Also, the plan shall describe the approach to securing and/or connecting residents to off-site services including primary care and other needed physical health and behavioral health services as well as other tenancy supports.
A58: 12. Eligible Applicant agrees to provide a development plan that supports acquisition of a site and grant liquidation no later than June 30, 2025 and demonstrates evidence of strong organizational and financial capacity to develop the Project? Note: Eligible Applicants are encouraged to discuss the project timeline and statutory authorities during the pre-application meetings.
A59: File Name: | D59: Development Plan | L59: Provide a development plan that supports acquisition of a site and grant liquidation before all program deadlines and demonstrates evidence of strong organizational and financial capacity to develop the Project. | AF59: Uploaded to HCD?
A60: 13. For projects proposed outside of Indian lands, for the benefit of the general community population (i.e. occupied by non-tribal members), Eligible Applicant acknowledges the requirement to submit a Racial Demographic Data Worksheet (reports Continuum of Care (CoC) outcomes by race/ethnicity)? Note: For projects proposed on Indian lands to be occupied solely by tribal members, the Racial Demographic Data Worksheet and CoC reporting is not required.
A61: File Name | D61: Racial Demographics | L61: Racial Demographic Data Worksheet, which reports CoC outcomes by race and ethnicity. The worksheet on the Homekey webpage | AF61: Uploaded to HCD?
A62: 14. Eligible Applicant acknowledges that site control shall be required at time of application, or may be attained within a reasonable period, as determined by the Department. Does Applicant have site control? If Yes, enter site control information for each site and most recent execution date. Describe site control special circumstances below.
A63: APN | F63: Address | O63: Type of Site Control | AA63: Current owner | AG63: Execution date | AJ63: Expiration date
A64: =Overview!A27 -> 0
A65: =Overview!F27 -> 0
A66: =Overview!L27 -> 0
A67: =Overview!R27 -> 0
A68: =Overview!X27 -> 0
A69: =Overview!AC27 -> 0
A70: =Overview!AH27 -> 0
A71: Provide details below for unusual site control special circumstances or "Other forms of site control"
A73: File Name: | D73: Site Control1, Site Control2, etc. | L73: Provide documentation of the type of site control for each site above | AF73: Uploaded to HCD?
A74: File Name: | D74: Prelim1, Prelim2, etc. | K74: Provide a current preliminary report | L74: Provide current preliminary title report for each site above | AE74: On USB? | AF74: Uploaded to HCD?
A75: File Name: | D75: Certified TSR | L75: Provide a certified Title Status Report | AF75: Uploaded to HCD?
A76: File Name: | D76: Letter of Intent | L76: Provide letter of intent. See §300(15)(f) | AF76: Uploaded to HCD?
A77: File Name: | D77: Comps | L77: If submitting LOI pursuant to §300(15)(f) or similar, provide information on comparable sales in the area | AF77: Uploaded to HCD?
A78: 16. Eligible Applicant acknowledges that if the proposing sites will require a use change for permanent housing, Eligible Applicant must submit a commitment and plan to facilitate or expedite those processes, so as to not delay expenditure and occupancy requirements.
A79: File Name: | D79: Use Change | L79: For Applicants proposing sites that will require a use change for permanent housing, there should be a commitment and plan to facilitate or expedite those processes, so as to not delay expenditure and occupancy requirements | AF79: Uploaded to HCD?
A80: 17. Eligible Applicant acknowledges that Assisted Units in Homekey Tribal Projects located outside the boundaries of Indian Country, as defined in the NOFA, must meet all applicable state, or local requirements, as applicable, to rental housing, including but not limited to requirements for minimum square footage, building standards and requirements related to maintaining the project in a safe and sanitary condition.
A81: 18. Eligible Applicant acknowledges all Applicants and Co-Applicants must be in good standing with the State of California and all agencies and departments thereof? By way of example and not limitation, an Applicant and Co-Applicant must be qualified to do business in the State of California and must be in good standing with the California Secretary of State and the California Franchise Tax Board. Applicants that are delinquent in meeting the material requirements of previous Department awards may, in the Department’s reasonable discretion, fail threshold review.
A82: File Name | D82: Certificate of Good Standing | L82: Provide a certificate of good standing from the California Secretary of State and/or the California Franchise Tax Board | AF82: Uploaded to HCD?
A83: 19. Eligible Applicant acknowledges the requirement to submit a concise, sufficiently detailed narrative to demonstrate its consideration of, and early engagement with, applicable relocation assistance laws and requirements. At a minimum, relocation assistance narrative shall include: a. A description of the proposed site including location, existing improvements (e.g., buildings, parking lots, billboards) or a statement that the land is vacant. b. A description of persons, businesses or farm operations that will or may be displaced. c. If any permanent or temporary relocation will be required, include an estimate of total relocation costs, and describe the methodology used to calculate these costs. d. An identification of the Applicant’s relocation consultant and/or relocation services provider in connection with the project site. Applicant shall also submit copies of its services contract or letter of intent with or to the relocation consultant and/or relocation services provider. Note: This relocation assistance narrative does not take the place of the relocation plan, or the Certification Regarding Non-Application of Relocation Benefits and Indemnification Agreement, that the Grantee shall submit as a condition of funding.
A84: File Name: | D84: Relocation Assistance Narrative | L84: Relocation Assistance Narrative for displacement or no displacement | AF84: Uploaded to HCD?
A85: §300(A)(20) Appraisal Requirements
A86: 20a. Eligible Applicant acknowledges the requirement to submit an appraisal when land cost or value of a land donation is included in the development budget? The appraisal must be in compliance with the Homekey requirements outlined in the Homekey Appraisal Guidance document on the Homekey website: Homekey 3.0 Appraisal Guidance.
A87: 20b. Eligible Applicant agrees that if an appraisal is required, the appraisal may be submitted at time of application, prior to award, or prior to distribution of Homekey funds for acquisition or construction, as specified in the Standard Agreement. Applicant should discuss appraisal requirements and timing during preapplication meetings.
A88: 20c. Eligible Applicant acknowledges that the appraisal must support the land cost or value stated in the development budget and that (d) it was prepared by a qualified independent third-party or firm which has the appropriate license and the knowledge and experience necessary to competently appraise low-income residential rental property.
A89: 20e. Eligible Applicant acknowledges that if the proposed project will be on fee land located within the boundaries of a reservation or rancheria and comparable land sales are not available, the Applicant should discuss proposed method for valuation, which approval shall be at the sole and absolute discretion of the Department.
A90: File Name: | D90: Appraisal | L90: If land costs will be included in the Development Budget, attach an appraisal | AF90: Uploaded to HCD?
A91: §300(A)(21) Market Study and Market Analysis Requirements
A92: 21a. Eligible Applicant acknowledges that for projects where occupancy is restricted solely to tribal members, the Eligible Applicant shall provide a Tribe-specific Market Analysis prepared by an individual or firm which: (1) Has the knowledge and experience necessary to conduct a competent analysis of tribal demographics (including employment, income, homeless population, family size and seniors) and housing needs for the proposed affordable rental project; (2) Is aware of, understands, and can competently describe the methodology used in performing the analysis; and (3) includes a description of the preparer’s qualifications.
A93: File Name: | D93: Market Analysis | L93: Provide a Tribe-specific Market Analysis dated within 12 months from Application submission | AF93: Uploaded to HCD?
A94: 21b. Eligible Applicant acknowledges that for projects proposed outside the boundaries of Indian Country which are not restricted solely to tribal members, the market study shall conform to the market study guidelines adopted by TCAC. and be prepared by an individual or firm which: (1) Has the knowledge and experience necessary to conduct a competent market study for low-income residential rental property; (2) Is aware of, understands, and correctly employs those recognized methods and techniques that are necessary to produce a credible market study; (3) In reporting the results of the market study, communicates each analysis, opinion and conclusion in a manner that is not misleading as to the true market needs for low-income residential property; (4) Is an independent third party having no identity of interest with the Sponsor, the partners of the Sponsor, the intended partners of the Sponsor, or with the general contractor; and (5) includes supplemental information related to tribal demographics, housing needs and demand analysis.
A95: File Name: | D95: Market Study | L95: Provide a Market Study dated within the 12 months from Application submission | AF95: Uploaded to HCD?
A96: §301 Other Requirements
A97: A. Eligible Applicant acknowledges units serving the Target Population and meeting the AMI are eligible for funding
A98: B. Eligible Applicant acknowledges that Homekey may fund all units in a proposed Project or a portion of the units. If seeking Homekey funding for only a portion of the units in a Project, Eligible Applicants must identify committed sources for the non-Homekey units. The non-Homekey units are not required to serve the Homekey Target Population.
A99: C. If at time of acquisition, an existing tenant’s household income is at or below the Extremely Low Income (ELI) limit, but the tenant does not qualify as a member of the Target Population, the tenant may remain in place and the unit may still be funded by Homekey. When, in the course of normal tenant turnover, the ineligible household moves from the unit, the Eligible Applicant acknowledges that the unit shall thereafter be occupied by the Target Population? Note: There should be no more than 49 percent of the Assisted Units that do not meet the Target Population. An existing household who meets the Target Population definition or was a member of the Target Population at the time they moved into the property will not be counted towards the 49 percent cap. Evidence confirming that existing tenants qualify as the Target Population will be required of the Applicant.
A100: D. Eligible Applicant acknowledges that at year 15 from the recordation of the use restriction, in circumstances where the Grantee has exhausted available operating funding and demonstrated to the Department that the Project is no longer feasible, the Department may approve an increase in income levels, to the minimum extent required for fiscal integrity, in five percent increments of Assisted Units up to 60 percent AMI?
A101: E. Eligible Applicant acknowledges that the Department reserves the right to set restrictions on the unit mix, rent levels, and other factors deemed necessary. To the maximum extent possible, these changes shall minimize the impact on the lowest income Project residents and shall be phased in as gradually as possible. If, following any increase in rents and income limits, or modification of Target Population occupancy requirements, new resources become available, or market demand changes, allowing reversion to the former income and rent limits or Target Population occupancy requirements, the Department may re- impose these income limits and rent limits or Target Population occupancy requirements, in whole or in part, subject to an analysis of Project feasibility.
A102: Article V Other Program Requirements
A103: §500 Article XXXIV
A104: Eligible Applicant acknowledges per HSC §37001, subdivision (h)(2), article XXXIV, section 1 of the California Constitution (Article XXXIV) is not applicable to a development that consists of the acquisition, rehabilitation, reconstruction, alterations work, new construction, or any combination thereof, of lodging facilities or dwelling units using moneys received from the CSFRF established by the federal American Rescue Plan Act of 2021 (ARPA) (Public Law 117-2). As such, Article XXXIV is not applicable to Homekey- funded development.
A105: §501 Housing First
A106: A. Eligible Applicant acknowledges that to the extent possible the Eligible Applicant's shall employ the core components of Housing First, as set forth at Welfare and Institutions Code section 8255, in its property management and tenant selection practices?
A107: B. Eligible Applicant acknowledges that the foregoing notwithstanding, Federally Recognized Tribes (Tribe) are exempt from application of the Housing First Core Components where a Tribe has established written policies, consistent with NAHASDA/IHBG federal laws, which have been adopted by the Tribe regulating the tenant selection and operation of Tribal affordable rental housing, which may include the Tribal Admissions and Occupancy Standards (TAOS) formally adopted by a Tribe.
A108: §502 Tenant Selection
A109: A. Eligible Applicant acknowledges that referrals to Homekey Assisted Units shall be made through the local Coordinated Entry System (CES). Where a CES is not available, or the Grantee is a Federally Recognized Tribe, another comparable prioritization system, based on the greatest need shall be used. If referrals will be made using a prioritization system other than CES, the Applicant must describe the plan for tenant selection, and it shall be reasonably detailed and comprehensive, as determined by the Department in its sole and absolute discretion.
A110: File Name | D110: Tenant Selection Plan | L110: If referrals will be made using a prioritization system other than CES, provide a plan for tenant selection, and it shall be reasonably detailed and comprehensive | AF110: Uploaded to HCD?
A111: B. Eligible Applicant acknowledges that Federally Recognized Tribes may use their own “Tribal Admissions and Occupancy Standards” or other comparable priority system, which has been adopted through the Tribe’s Tribal Resolution or ordinance that allows for Tribal preferences.
A112: File Name | D112: TAOS | L112: Provide Tribal Admissions and Occupancy Standards | AF112: Uploaded to HCD?
A113: File Name | D113: Resolution | L113: Provide Tribal Resolution or ordinance adopting the TAOS | AF113: Uploaded to HCD?
A114: §503 Data Collection Systems
A115: Eligible Applicant acknowledges that Homekey Grantees shall support Continuum of Care (CoC) participation in the statewide Homeless Data Integration System (HDIS), and in accordance with state and federal law (including all applicable privacy law), disclose relevant data to the local Homeless Management Information System (HMIS).
A116: Eligible Applicant acknowledges that the foregoing notwithstanding, Federally Recognized Tribe’s use of another comparable data collection system is permissible. The Tribe may use its own data integration and management information systems, provided that such systems have been adopted and implemented by Tribe prior to receiving and award of grant funds.
A117: File Name | D117: Integration and Management Information Systems | L117: Provide data integration and management information systems, which has been adopted and implemented by Tribe | AF117: Uploaded to HCD?
A118: §504 Relocation
A119: Eligible Applicant acknowledges that in addition to the Relocation Assistance Narrative required in §300(xix) submitted at time of application, before the Homekey award will be disbursed, Grantee must submit either: 1. A Department-approved relocation plan; or 2. For projects where relocation is not required, a Department issued Certification Regarding Non-Application of Relocation Benefits and Indemnification Agreement, which has been duly executed and approved by the Department. Note: Homekey Grantees must comply with all applicable federal, state, and local relocation law. Grantees must have a Department approved relocation plan prior to proceeding with any phase of a Project or other activity that will result in the displacement of persons, businesses, or farm operations.
A120: File Name: | D120: Relocation Plan | L120: Provide a complete relocation plan | AE120: Uploaded to HCD?
A121: §505 Accessibility and Non-Discrimination
A122: If the Project is located on Fee Land, Applicants acknowledges all developments shall adhere to the accessibility requirements set forth in California Building Code Chapter 11A and 11B and the Americans with Disabilities Act, Title II?
A123: If the Project is located on Fee Land, Grantees shall adopt a written non-discrimination policy requiring that no person shall, on the grounds of race, color, religion, sex, gender, gender identity, gender expression, sexual orientation, marital status, national origin, ancestry, familial status, source of income, disability, age, medical condition, genetic information, citizenship, primary language, immigration status (except where explicitly prohibited by federal law), arbitrary characteristics, and all other classes of individuals protected from discrimination under federal or state fair housing laws, individuals perceived to be a member of any of the preceding classes, or any individual or person associated with any of the preceding classes be excluded from participation in, be denied the benefits of, or be subjected to discrimination under, any program or activity funded in whole or in part with Program funds made available pursuant to the NOFA.
A124: File Name: | D124: Non-Discrimination Policy | L124: Provide a non-discrimination policy | AF124: Uploaded to HCD?
A125: If the Project is located on Fee Land, Grantees shall comply with the requirements of the Americans with Disabilities Act of 1990, the Fair Housing Amendments Act, the California Fair Employment and Housing Act, the Unruh Civil Rights Act, Government Code Section 11135, Section 504 of the Rehabilitation Act of 1973, and all regulations promulgated pursuant to those statutes, including 24 C.F.R. Part 100, 24 C.F.R. Part 8, and 28 C.F.R. Part 35.
A126: §506 Prevailing Wage
A127: Eligible Applicant acknowledges that the Native American Housing Assistance and Self Determination Act of 1996 (NAHASDA) applies Federal Davis Bacon Act (DBA) to public work projects including federally assisted projects (loans and grants) and requires that Federally Recognized Tribes that do not have their own Tribal Wage Determination (TDW) pay prevailing wage rates as determined by the Secretary of Labor. NAHASDA exemption: Federally Recognized Tribes using their Indian Housing Block Grant allocation for an affordable housing project, may determine and apply their own prevailing wage rates, known as TDW, in their contracts and agreements for the development and operation of affordable housing in place of DBA. For a TDW to be substituted in over the DBA and HUD wage determination, a Tribe must do two things: (1) pass a Tribal law, ordinance, or resolution, for a tribal wage determination, and (2) ensure that the TDW requires the payment of not less than those wage rates the Tribe determines to be prevailing. If the Tribe passes a lawful TWD, then the Tribe is exempt from compliance with DBA and Housing and Urban Development (HUD) wage determined rates in their contract or agreements.
A128: File Name: | D128: Tribally Determined Wage | L128: Provide a Tribally Determined Wage (if applicable) | AF128: Uploaded to HCD?
A129: Eligible Applicant acknowledges that there are two prevailing wage laws that govern minimum labor standards for public works, Federal Davis Bacon Act (DBA) and the California Prevailing Wage Law (PWL). Where both DBA and PWL apply, the higher of the wage standards is generally required. Eligible Applicant is urged to discuss prevailing wage requirements during pre-application meetings and to seek professional legal advice about the law's requirements. Prior to disbursing the Homekey funds, the Department will require a certification of compliance with California's prevailing wage law, as well as all applicable federal prevailing wage law. The certification must verify that prevailing wages have been or will be paid, and that labor records will be maintained and made available to any enforcement agency upon request. The certification must be signed by the general contractor(s) and the Grantee.
A130: File Name: | D130: Prevailing Wage Certificate | L130: Provide a prevailing wage certification (if applicable) Note: Not required at time of application, but required prior to disbursements | AF130: Uploaded to HCD?
A131: §507 Environmental Clearances
A132: Eligible Applicant acknowledges Awarded Projects, including phased projects, that satisfy the requirements HSC 50675.1.4, shall be exempt from CEQA, pursuant to Section 50675.1.3, as applicable. Eligible Applicant also acknowledges that the California Environmental Quality Act (CEQA) requirements do not apply to Indian Country, or on fee lands located within the boundaries of a rancheria or reservation that are owned by the tribe, tribally designated housing entities (TDHE) or tribal member.
A133: File Name | D133: CEQA | L133: Copy of CEQA Determination Documents (if applicable) | AE133: Uploaded to HCD?
A134: Eligible Applicant acknowledges that for Projects receiving federal funds subject to review under the NEPA, a copy of the Project’s Authority to Use Grant funds must be provided prior to the start of construction. It is not necessary to have the Authority to Use Grant Funds at time of application.
A135: Eligible Applicant acknowledges that the Department does not determine which projects will require NEPA clearance. Applicant must provide the Department a status of any required NEPA review prior to fund disbursements.
A136: For more information, visit the HUD Exchange, | L136: review HCD's CDBG-DR Environmental Review guidance, | Y136: or contact HCD's Environmental Service Team at NEPA@hcd.ca.gov
A137: File Name | D137: NEPA Authority to Use Grant Funds (if applicable) | L137: NEPA Authority to Use Grant Funds issued by the Responsible Entity if the project is proposing use of federal funds Note: Not required at time of application, but required prior to disbursements | AE137: Uploaded to HCD?
A138: §604 Sales, Transfers, and Encumbrances
A139: Eligible Applicant acknowledges that Homekey Grantee(s) shall not, for the duration of this Agreement, sell, assign, transfer, or convey the awarded Project, or any interest therein or portion thereof, without the express prior written approval of the Department, which may be granted, delayed, or withheld in the Department’s reasonable discretion.
A140: §800 Insurance Requirements
A141: Applicant acknowledges that it shall provide documentation of its ability to obtain the insurance coverages outlined in Article VIII of the NOFA.
A142: File Name: | D142: Liability Insurance | K142: Provide a current preliminary report | L142: Proof of General Liability Insurance that meets the requirements in §800(A) | AE142: Uploaded to HCD?
A143: File Name: | D143: Automobile Insurance | K143: Provide a current preliminary report | L143: Proof of Automobile Liability Insurance that meets the requirements in §800(B) | AE143: Uploaded to HCD?
A144: File Name: | D144: Property-Hazard Insurance | K144: Provide a current preliminary report | L144: Proof of Property Insurance that meets the requirements in §800(E) | AE144: Uploaded to HCD?
A146: Applicant Comments

Sheet Unit Mix
A1: Unit Mix | AG1: =Overview!AJ1 -> 2023-08-10
A2: ="Proposed Units for "&Overview!I28& " Project" -> Proposed Units for Project | S2: Maximum Capital Award (Baseline and Additional Contribution)
A3: =IF(Overview!$E$22="","",Overview!$E$22) ->  | F3: Monthly Unit Rent | J3: Rental Subsidy Program #1 Name | L3: Rental Subsidy Program #2 Name | N3: Target Population - Homekey Assisted Units (Article VII)
A4: Bdrm size | B4: Number of Units Proposed | C4: Unit Size (Square Feet) | D4: Restrict. % of AMI | E4: Manager Units | F4: Restricted | G4: 2Proposed Tenant Rent for Restricted Units | H4: Unrestricted | I4: 1Monthly Utility Allowance | J4: Subsidy Units | K4: Monthly Rent Subsidy Amount | L4: Subsidy Units | M4: Monthly Rent Subsidy Amount | N4: At-Risk of Homelessness Units | O4: Homeless Units | P4: Transition-Aged Youth | Q4: Homeless Youth or Youth at Risk of Homelessness Units | R4: 3Senior Units | S4: Total Assisted Units | T4: Base Grant Limit per Unit | U4: Base Grant Limit per Manager Unit | V4: Maximum Baseline Award based on Proposed Project | W4: Unit's Project Cost Based on Total Budgeted Development Costs | X4: Non-Assisted Units Project Costs (Applicant must fund) | Y4: Project Cost Assisted Units + Manager Units | Z4: Adjusted Award lesser of Assisted Unit Project Cost and Baseline | AA4: Funding Gap on Assisted Units | AB4: Per Unit Funding Gap | AC4: Per Unit Local Match (Lesser of Per Unit Funding Gap and $100,000) | AD4: Additional Per Unit Award (Equal to Local Match) | AE4: Maximum Match (Proposed Assisted Units x Per Unit Amount | AF4: Maximum Additional Award (Equal to Maximum Local Match) | AG4: Maximum Capital Award | AH4: Total Restricted Units | AI4: Total Unrestricted Units | AJ4: Total Net Monthly Restricted Rent | AK4: Total Net Monthly Proposed Rent | AL4: Total Monthly Unrestricted Rent | AM4: ="Mo. Subsidy Revenue "&J3 -> Mo. Subsidy Revenue Rental Subsidy Program #1 Name | AN4: ="Mo. Subsidy Revenue "&L3 -> Mo. Subsidy Revenue Rental Subsidy Program #2 Name | AO4: Look up field | AP4: Total Unit Square Feet | AQ4: % of Total Unit Square Feet | AR4: At Risk | AS4: Homeless | AT4: Transition-Aged Youth | AU4: Youth Units | AV4: Senior Units | AW4: Row | AX4: Bedrooms | AY4: Restricted Bedrooms | AZ4: Manager unit | BB4: 0 | BC4: 1 | BD4: 2 | BE4: 3 | BF4: 4+
F5: =IF(Overview!$S$28="Other-please describe below:",0,IFERROR(INDEX('Rent Limits'!$A$1:$O$1045,MATCH(AO5,'Rent Limits'!$A$1:$A$1045,0),MATCH(A5,'Rent Limits'!$A$1:$O$1,0)),0)) -> 0 | S5: =IF(AND(D5<="80% AMI",D5<>"None",D5<>""),SUM(N5:R5),0) -> 0 | T5: =IFERROR(HLOOKUP(AX5,$BB$4:$BF$14,AW5,FALSE)*S5,0) -> 0 | U5: =IFERROR(HLOOKUP(AX5,$BB$4:$BF$14,AW5,FALSE)*D5,0) -> 0 | V5: =T5+U5 -> 0 | W5: =IFERROR(B5*($AG$16/(SUM($B$5:$B$14))),0) -> 0 | X5: =W5-Y5 -> 0 | Y5: =IFERROR((S5+E5)/B5*W5,0) -> 0 | Z5: =MIN(V5,Y5) -> 0 | AA5: =Y5-Z5 -> 0 | AB5: =IFERROR(AA5/(D5+S5),0) -> 0 | AC5: =MIN(AB5/2,100000) -> 0 | AD5: =AD5 -> 0 | AE5: =AD5*(D5+S5) -> 0 | AF5: =AD5 -> 0 | AG5: =V5 -> 0 | AH5: =IF(OR(D5="",D5="none"),0,B5) -> 0 | AI5: =IF(OR(D5="",D5="none"),B5,0) -> 0 | AJ5: =(F5-I5)*AH5 -> 0 | AK5: =(G5-I5)*AH5 -> 0 | AL5: =H5*AI5 -> 0 | AM5: =K5*J5 -> 0 | AN5: =M5*L5 -> 0 | AO5: =CONCATENATE($A$3,D5) ->  | AP5: =B5*D5 -> 0 | AQ5: =IFERROR(AP5/$AP$15,0) -> 0 | AR5: =IF(D5="15% AMI",N5,IF(D5="20% AMI",N5,IF(D5="25% AMI",N5,IF(D5="30% AMI",N5,IF(D5="35% AMI",N5,IF(D5="40% AMI",N5,IF(D5="45% AMI",N5,IF(D5="50% AMI",N5,IF(D5="55% AMI",N5,IF(D5="60% AMI",N5,IF(D5="65% AMI",0,IF(D5="70% AMI",0,IF(D5="75% AMI",0,IF(D5="80% AMI",0,IF(D5="75% AMI",0,IF(D5="Manager",0,IF(D5="Market",0,IF(D5="",0)))))))))))))))))) -> 0 | AS5: =IF(D5="15% AMI",O5,IF(D5="20% AMI",O5,IF(D5="25% AMI",O5,IF(D5="30% AMI",O5,IF(D5="35% AMI",O5,IF(D5="40% AMI",O5,IF(D5="45% AMI",O5,IF(D5="50% AMI",O5,IF(D5="55% AMI",O5,IF(D5="60% AMI",O5,IF(D5="65% AMI",0,IF(D5="70% AMI",0,IF(D5="75% AMI",0,IF(D5="80% AMI",0,IF(D5="Manager",0,IF(D5="Market",0,IF(D5="",0))))))))))))))))) -> 0 | AT5: =IF(D5="15% AMI",P5,IF(D5="20% AMI",P5,IF(D5="25% AMI",P5,IF(D5="30% AMI",P5,IF(D5="35% AMI",P5,IF(D5="40% AMI",P5,IF(D5="45% AMI",P5,IF(D5="50% AMI",P5,IF(D5="55% AMI",P5,IF(D5="60% AMI",P5,IF(D5="65% AMI",0,IF(D5="70% AMI",0,IF(D5="75% AMI",0,IF(D5="Manager",0,IF(D5="Market",0,IF(D5="",0)))))))))))))))) -> 0 | AU5: =IF(D5="15% AMI",Q5,IF(D5="20% AMI",Q5,IF(D5="25% AMI",Q5,IF(D5="30% AMI",Q5,IF(D5="35% AMI",Q5,IF(D5="40% AMI",Q5,IF(D5="45% AMI",Q5,IF(D5="50% AMI",Q5,IF(D5="55% AMI",Q5,IF(D5="60% AMI",Q5,IF(D5="65% AMI",0,IF(D5="70% AMI",0,IF(D5="75% AMI",0,IF(D5="80% AMI",0,IF(D5="Manager",0,IF(D5="Market",0,IF(D5="",0))))))))))))))))) -> 0 | AV5: =IF(D5="15% AMI",R5,IF(D5="20% AMI",R5,IF(D5="25% AMI",R5,IF(D5="30% AMI",R5,IF(D5="35% AMI",R5,IF(D5="40% AMI",R5,IF(D5="45% AMI",R5,IF(D5="50% AMI",R5,IF(D5="55% AMI",R5,IF(D5="60% AMI",R5,IF(D5="65% AMI",0,IF(D5="70% AMI",0,IF(D5="75% AMI",0,IF(D5="80% AMI",0,IF(D5="Manager",0,IF(D5="Market",0,IF(D5="",0))))))))))))))))) -> 0 | AW5: 2 | AX5: =IF(A5>=4,"4+",A5) -> 0 | AY5: =IF(OR(D5="80% AMI",D5="70% AMI",D5="Manager",D5="Market"),0,IF(D5>"",AX5,0)) -> 0 | AZ5: =IF(D5="Manager","60%",LEFT(D5,3)) ->  | BA5: =CONCATENATE($A$3,AZ5) ->  | BB5: =VLOOKUP($BA5,'MHP 9% SH & Large Family Loan'!$A$7:$F$643,2,) ->  | BC5: =VLOOKUP($BA5,'MHP 9% SH & Large Family Loan'!$A$7:$F$643,3,) ->  | BD5: =VLOOKUP($BA5,'MHP 9% SH & Large Family Loan'!$A$7:$F$643,4,) ->  | BE5: =VLOOKUP($BA5,'MHP 9% SH & Large Family Loan'!$A$7:$F$643,5,) ->  | BF5: =VLOOKUP($BA5,'MHP 9% SH & Large Family Loan'!$A$7:$F$643,6,) -> 
F6: =IF(Overview!$S$28="Other-please describe below:",0,IFERROR(INDEX('Rent Limits'!$A$1:$O$1045,MATCH(AO6,'Rent Limits'!$A$1:$A$1045,0),MATCH(A6,'Rent Limits'!$A$1:$O$1,0)),0)) -> 0 | S6: =IF(AND(D6<="80% AMI",D6<>"None",D6<>""),SUM(N6:R6),0) -> 0 | T6: =IFERROR(HLOOKUP(AX6,$BB$4:$BF$14,AW6,FALSE)*S6,0) -> 0 | U6: =IFERROR(HLOOKUP(AX6,$BB$4:$BF$14,AW6,FALSE)*E6,0) -> 0 | V6: 0 | W6: 0 | X6: =W6-Y6 -> 0 | Y6: 0 | Z6: =MIN(V6,Y6) -> 0 | AA6: =Y6-Z6 -> 0 | AB6: =IFERROR(AA6/(E6+S6),0) -> 0 | AC6: =MIN(AB6/2,100000) -> 0 | AD6: =AC6 -> 0 | AE6: =AC6*(E6+S6) -> 0 | AF6: =AE6 -> 0 | AG6: =V6 -> 0 | AH6: 0 | AI6: 0 | AJ6: 0 | AK6: 0 | AL6: 0 | AM6: 0 | AN6: 0 | AP6: =B6*C6 -> 0 | AQ6: 0 | AR6: =IF(D6="15% AMI",N6,IF(D6="20% AMI",N6,IF(D6="25% AMI",N6,IF(D6="30% AMI",N6,IF(D6="35% AMI",N6,IF(D6="40% AMI",N6,IF(D6="45% AMI",N6,IF(D6="50% AMI",N6,IF(D6="55% AMI",N6,IF(D6="60% AMI",N6,IF(D6="65% AMI",0,IF(D6="70% AMI",0,IF(D6="75% AMI",0,IF(D6="80% AMI",0,IF(D6="75% AMI",0,IF(D6="Manager",0,IF(D6="Market",0,IF(D6="",0)))))))))))))))))) -> 0 | AS6: =IF(D6="15% AMI",O6,IF(D6="20% AMI",O6,IF(D6="25% AMI",O6,IF(D6="30% AMI",O6,IF(D6="35% AMI",O6,IF(D6="40% AMI",O6,IF(D6="45% AMI",O6,IF(D6="50% AMI",O6,IF(D6="55% AMI",O6,IF(D6="60% AMI",O6,IF(D6="65% AMI",0,IF(D6="70% AMI",0,IF(D6="75% AMI",0,IF(D6="80% AMI",0,IF(D6="Manager",0,IF(D6="Market",0,IF(D6="",0))))))))))))))))) -> 0 | AT6: =IF(D6="15% AMI",P6,IF(D6="20% AMI",P6,IF(D6="25% AMI",P6,IF(D6="30% AMI",P6,IF(D6="35% AMI",P6,IF(D6="40% AMI",P6,IF(D6="45% AMI",P6,IF(D6="50% AMI",P6,IF(D6="55% AMI",P6,IF(D6="60% AMI",P6,IF(D6="65% AMI",0,IF(D6="70% AMI",0,IF(D6="75% AMI",0,IF(D6="Manager",0,IF(D6="Market",0,IF(D6="",0)))))))))))))))) -> 0 | AU6: =IF(D6="15% AMI",Q6,IF(D6="20% AMI",Q6,IF(D6="25% AMI",Q6,IF(D6="30% AMI",Q6,IF(D6="35% AMI",Q6,IF(D6="40% AMI",Q6,IF(D6="45% AMI",Q6,IF(D6="50% AMI",Q6,IF(D6="55% AMI",Q6,IF(D6="60% AMI",Q6,IF(D6="65% AMI",0,IF(D6="70% AMI",0,IF(D6="75% AMI",0,IF(D6="80% AMI",0,IF(D6="Manager",0,IF(D6="Market",0,IF(D6="",0))))))))))))))))) -> 0 | AV6: =IF(D6="15% AMI",R6,IF(D6="20% AMI",R6,IF(D6="25% AMI",R6,IF(D6="30% AMI",R6,IF(D6="35% AMI",R6,IF(D6="40% AMI",R6,IF(D6="45% AMI",R6,IF(D6="50% AMI",R6,IF(D6="55% AMI",R6,IF(D6="60% AMI",R6,IF(D6="65% AMI",0,IF(D6="70% AMI",0,IF(D6="75% AMI",0,IF(D6="80% AMI",0,IF(D6="Manager",0,IF(D6="Market",0,IF(D6="",0))))))))))))))))) -> 0 | AW6: 3 | AX6: 0 | AY6: 0 | BA6: =CONCATENATE($A$3,AZ6) ->  | BB6: =VLOOKUP($BA6,'MHP 9% SH & Large Family Loan'!$A$7:$F$643,2,) ->  | BC6: =VLOOKUP($BA6,'MHP 9% SH & Large Family Loan'!$A$7:$F$643,3,) ->  | BD6: =VLOOKUP($BA6,'MHP 9% SH & Large Family Loan'!$A$7:$F$643,4,) ->  | BE6: =VLOOKUP($BA6,'MHP 9% SH & Large Family Loan'!$A$7:$F$643,5,) ->  | BF6: =VLOOKUP($BA6,'MHP 9% SH & Large Family Loan'!$A$7:$F$643,6,) -> 
F7: =IF(Overview!$S$28="Other-please describe below:",0,IFERROR(INDEX('Rent Limits'!$A$1:$O$1045,MATCH(AO7,'Rent Limits'!$A$1:$A$1045,0),MATCH(A7,'Rent Limits'!$A$1:$O$1,0)),0)) -> 0 | S7: 0 | T7: 0 | U7: 0 | V7: 0 | W7: 0 | X7: 0 | Y7: 0 | Z7: 0 | AA7: 0 | AB7: 0 | AC7: 0 | AD7: 0 | AE7: 0 | AF7: 0 | AG7: 0 | AH7: 0 | AI7: 0 | AJ7: 0 | AK7: 0 | AL7: 0 | AM7: 0 | AN7: 0 | AP7: 0 | AQ7: 0 | AR7: 0 | AS7: 0 | AT7: 0 | AU7: 0 | AV7: 0 | AW7: 4 | AX7: 0 | AY7: 0 | BB7: =VLOOKUP($BA7,'MHP 9% SH & Large Family Loan'!$A$7:$F$643,2,) ->  | BC7: =VLOOKUP($BA7,'MHP 9% SH & Large Family Loan'!$A$7:$F$643,3,) ->  | BD7: =VLOOKUP($BA7,'MHP 9% SH & Large Family Loan'!$A$7:$F$643,4,) ->  | BE7: =VLOOKUP($BA7,'MHP 9% SH & Large Family Loan'!$A$7:$F$643,5,) ->  | BF7: =VLOOKUP($BA7,'MHP 9% SH & Large Family Loan'!$A$7:$F$643,6,) -> 
F8: =IF(Overview!$S$28="Other-please describe below:",0,IFERROR(INDEX('Rent Limits'!$A$1:$O$1045,MATCH(AO8,'Rent Limits'!$A$1:$A$1045,0),MATCH(A8,'Rent Limits'!$A$1:$O$1,0)),0)) -> 0 | S8: 0 | T8: 0 | U8: 0 | V8: 0 | W8: 0 | X8: 0 | Y8: 0 | Z8: 0 | AA8: 0 | AB8: 0 | AC8: 0 | AD8: 0 | AE8: 0 | AF8: 0 | AG8: 0 | AH8: 0 | AI8: 0 | AJ8: 0 | AK8: 0 | AL8: 0 | AM8: 0 | AN8: 0 | AP8: 0 | AQ8: 0 | AR8: 0 | AS8: 0 | AT8: 0 | AU8: 0 | AV8: 0 | AW8: 5 | AX8: 0 | AY8: 0 | BB8: =VLOOKUP($BA8,'MHP 9% SH & Large Family Loan'!$A$7:$F$643,2,) ->  | BC8: =VLOOKUP($BA8,'MHP 9% SH & Large Family Loan'!$A$7:$F$643,3,) ->  | BD8: =VLOOKUP($BA8,'MHP 9% SH & Large Family Loan'!$A$7:$F$643,4,) ->  | BE8: =VLOOKUP($BA8,'MHP 9% SH & Large Family Loan'!$A$7:$F$643,5,) ->  | BF8: =VLOOKUP($BA8,'MHP 9% SH & Large Family Loan'!$A$7:$F$643,6,) -> 
F9: =IF(Overview!$S$28="Other-please describe below:",0,IFERROR(INDEX('Rent Limits'!$A$1:$O$1045,MATCH(AO9,'Rent Limits'!$A$1:$A$1045,0),MATCH(A9,'Rent Limits'!$A$1:$O$1,0)),0)) -> 0 | S9: 0 | T9: 0 | U9: 0 | V9: 0 | W9: 0 | X9: =W9-Y9 -> 0 | Y9: 0 | Z9: 0 | AA9: 0 | AB9: 0 | AC9: 0 | AD9: 0 | AE9: 0 | AF9: 0 | AG9: 0 | AH9: 0 | AI9: 0 | AJ9: 0 | AK9: 0 | AL9: 0 | AM9: 0 | AN9: 0 | AP9: 0 | AQ9: 0 | AR9: 0 | AS9: 0 | AT9: 0 | AU9: 0 | AV9: 0 | AW9: 6 | AX9: 0 | AY9: 0 | BB9: =VLOOKUP($BA9,'MHP 9% SH & Large Family Loan'!$A$7:$F$643,2,) ->  | BC9: =VLOOKUP($BA9,'MHP 9% SH & Large Family Loan'!$A$7:$F$643,3,) ->  | BD9: =VLOOKUP($BA9,'MHP 9% SH & Large Family Loan'!$A$7:$F$643,4,) ->  | BE9: =VLOOKUP($BA9,'MHP 9% SH & Large Family Loan'!$A$7:$F$643,5,) ->  | BF9: =VLOOKUP($BA9,'MHP 9% SH & Large Family Loan'!$A$7:$F$643,6,) -> 
F10: =IF(Overview!$S$28="Other-please describe below:",0,IFERROR(INDEX('Rent Limits'!$A$1:$O$1045,MATCH(AO10,'Rent Limits'!$A$1:$A$1045,0),MATCH(A10,'Rent Limits'!$A$1:$O$1,0)),0)) -> 0 | S10: 0 | T10: 0 | U10: 0 | V10: 0 | W10: 0 | X10: 0 | Y10: 0 | Z10: 0 | AA10: 0 | AB10: 0 | AC10: 0 | AD10: 0 | AE10: 0 | AF10: 0 | AG10: 0 | AH10: 0 | AI10: 0 | AJ10: 0 | AK10: 0 | AL10: 0 | AM10: 0 | AN10: 0 | AP10: 0 | AQ10: 0 | AR10: 0 | AS10: 0 | AT10: 0 | AU10: 0 | AV10: 0 | AW10: 7 | AX10: 0 | AY10: 0 | BB10: =VLOOKUP($BA10,'MHP 9% SH & Large Family Loan'!$A$7:$F$643,2,) ->  | BC10: =VLOOKUP($BA10,'MHP 9% SH & Large Family Loan'!$A$7:$F$643,3,) ->  | BD10: =VLOOKUP($BA10,'MHP 9% SH & Large Family Loan'!$A$7:$F$643,4,) ->  | BE10: =VLOOKUP($BA10,'MHP 9% SH & Large Family Loan'!$A$7:$F$643,5,) ->  | BF10: =VLOOKUP($BA10,'MHP 9% SH & Large Family Loan'!$A$7:$F$643,6,) -> 
F11: =IF(Overview!$S$28="Other-please describe below:",0,IFERROR(INDEX('Rent Limits'!$A$1:$O$1045,MATCH(AO11,'Rent Limits'!$A$1:$A$1045,0),MATCH(A11,'Rent Limits'!$A$1:$O$1,0)),0)) -> 0 | S11: 0 | T11: 0 | U11: 0 | V11: 0 | W11: 0 | X11: 0 | Y11: 0 | Z11: 0 | AA11: 0 | AB11: 0 | AC11: 0 | AD11: 0 | AE11: 0 | AF11: 0 | AG11: 0 | AH11: 0 | AI11: 0 | AJ11: 0 | AK11: 0 | AL11: 0 | AM11: 0 | AN11: 0 | AP11: 0 | AQ11: 0 | AR11: 0 | AS11: 0 | AT11: 0 | AU11: 0 | AV11: 0 | AW11: 8 | AX11: 0 | AY11: 0 | BB11: =VLOOKUP($BA11,'MHP 9% SH & Large Family Loan'!$A$7:$F$643,2,) ->  | BC11: =VLOOKUP($BA11,'MHP 9% SH & Large Family Loan'!$A$7:$F$643,3,) ->  | BD11: =VLOOKUP($BA11,'MHP 9% SH & Large Family Loan'!$A$7:$F$643,4,) ->  | BE11: =VLOOKUP($BA11,'MHP 9% SH & Large Family Loan'!$A$7:$F$643,5,) ->  | BF11: =VLOOKUP($BA11,'MHP 9% SH & Large Family Loan'!$A$7:$F$643,6,) -> 
F12: =IF(Overview!$S$28="Other-please describe below:",0,IFERROR(INDEX('Rent Limits'!$A$1:$O$1045,MATCH(AO12,'Rent Limits'!$A$1:$A$1045,0),MATCH(A12,'Rent Limits'!$A$1:$O$1,0)),0)) -> 0 | S12: 0 | T12: 0 | U12: 0 | V12: 0 | W12: 0 | X12: 0 | Y12: 0 | Z12: 0 | AA12: 0 | AB12: 0 | AC12: 0 | AD12: 0 | AE12: 0 | AF12: 0 | AG12: 0 | AH12: 0 | AI12: 0 | AJ12: 0 | AK12: 0 | AL12: 0 | AM12: 0 | AN12: 0 | AP12: 0 | AQ12: 0 | AR12: 0 | AS12: 0 | AT12: 0 | AU12: 0 | AV12: 0 | AW12: 9 | AX12: 0 | AY12: 0 | BB12: =VLOOKUP($BA12,'MHP 9% SH & Large Family Loan'!$A$7:$F$643,2,) ->  | BC12: =VLOOKUP($BA12,'MHP 9% SH & Large Family Loan'!$A$7:$F$643,3,) ->  | BD12: =VLOOKUP($BA12,'MHP 9% SH & Large Family Loan'!$A$7:$F$643,4,) ->  | BE12: =VLOOKUP($BA12,'MHP 9% SH & Large Family Loan'!$A$7:$F$643,5,) ->  | BF12: =VLOOKUP($BA12,'MHP 9% SH & Large Family Loan'!$A$7:$F$643,6,) -> 
F13: =IF(Overview!$S$28="Other-please describe below:",0,IFERROR(INDEX('Rent Limits'!$A$1:$O$1045,MATCH(AO13,'Rent Limits'!$A$1:$A$1045,0),MATCH(A13,'Rent Limits'!$A$1:$O$1,0)),0)) -> 0 | S13: 0 | T13: 0 | U13: 0 | V13: 0 | W13: 0 | X13: 0 | Y13: 0 | Z13: 0 | AA13: 0 | AB13: 0 | AC13: 0 | AD13: 0 | AE13: 0 | AF13: 0 | AG13: 0 | AH13: 0 | AI13: 0 | AJ13: 0 | AK13: 0 | AL13: 0 | AM13: 0 | AN13: 0 | AP13: 0 | AQ13: 0 | AR13: 0 | AS13: 0 | AT13: 0 | AU13: 0 | AV13: 0 | AW13: 10 | AX13: 0 | AY13: 0 | BB13: =VLOOKUP($BA13,'MHP 9% SH & Large Family Loan'!$A$7:$F$643,2,) ->  | BC13: =VLOOKUP($BA13,'MHP 9% SH & Large Family Loan'!$A$7:$F$643,3,) ->  | BD13: =VLOOKUP($BA13,'MHP 9% SH & Large Family Loan'!$A$7:$F$643,4,) ->  | BE13: =VLOOKUP($BA13,'MHP 9% SH & Large Family Loan'!$A$7:$F$643,5,) ->  | BF13: =VLOOKUP($BA13,'MHP 9% SH & Large Family Loan'!$A$7:$F$643,6,) -> 
F14: =IF(Overview!$S$28="Other-please describe below:",0,IFERROR(INDEX('Rent Limits'!$A$1:$O$1045,MATCH(AO14,'Rent Limits'!$A$1:$A$1045,0),MATCH(A14,'Rent Limits'!$A$1:$O$1,0)),0)) -> 0 | S14: 0 | T14: 0 | U14: 0 | V14: 0 | W14: 0 | X14: 0 | Y14: 0 | Z14: 0 | AA14: 0 | AB14: 0 | AC14: 0 | AD14: 0 | AE14: 0 | AF14: 0 | AG14: 0 | AH14: 0 | AI14: 0 | AJ14: 0 | AK14: 0 | AL14: 0 | AM14: 0 | AN14: 0 | AP14: 0 | AQ14: 0 | AR14: 0 | AS14: 0 | AT14: 0 | AU14: 0 | AV14: 0 | AW14: 11 | AX14: 0 | AY14: 0 | BB14: =VLOOKUP($BA14,'MHP 9% SH & Large Family Loan'!$A$7:$F$643,2,) ->  | BC14: =VLOOKUP($BA14,'MHP 9% SH & Large Family Loan'!$A$7:$F$643,3,) ->  | BD14: =VLOOKUP($BA14,'MHP 9% SH & Large Family Loan'!$A$7:$F$643,4,) ->  | BE14: =VLOOKUP($BA14,'MHP 9% SH & Large Family Loan'!$A$7:$F$643,5,) ->  | BF14: =VLOOKUP($BA14,'MHP 9% SH & Large Family Loan'!$A$7:$F$643,6,) -> 
B15: =SUM(B5:B14) -> 0 | E15: =SUM(D5:E14) -> 0 | J15: =SUM(J5:J14) -> 0 | L15: =SUM(L5:L14) -> 0 | N15: =SUM(N5:N14) -> 0 | O15: 0 | P15: 0 | Q15: 0 | R15: 0 | S15: 0 | T15: =SUM(T5:T14) -> 0 | U15: 0 | V15: 0 | W15: 0 | X15: 0 | Y15: 0 | Z15: 0 | AA15: 0 | AE15: =SUM(AD5:AE14) -> 0 | AF15: =ROUNDDOWN(SUM(AF5:AF14),0) -> 0 | AG15: =ROUNDDOWN(MIN(10000000,(SUM(AG5:AG14))),0) -> 0 | AH15: =SUM(AH5:AH14) -> 0 | AI15: 0 | AJ15: 0 | AK15: 0 | AL15: 0 | AM15: 0 | AN15: 0 | AP15: =SUM(AP5:AP14) -> 0 | AQ15: =SUM(AQ5:AQ14) -> 0
B16: Annual Net Rents | F16: =12*AJ15 -> 0 | G16: =12*AK15 -> 0 | H16: =12*AL15 -> 0 | I16: Annual Subsidy Revenue | K16: =AM15*12 -> 0 | M16: =AN15*12 -> 0 | N16: =IFERROR(N15/$S$15,0) -> 0 | O16: 0 | P16: 0 | Q16: 0 | R16: 0 | S16: 0 | T16: Total Budgeted Development costs from 'Dev Budget' worksheet cell T125 | AG16: ='Dev Budget'!$T$125 -> 0 | AR16: =SUM(AR5:AR15) -> 0 | AS16: =SUM(AS5:AS15) -> 0 | AT16: =SUM(AT5:AT15) -> 0 | AU16: =SUM(AU5:AU15) -> 0 | AV16: =SUM(AV5:AV15) -> 0
A18: 2If other than county rent limits were used, please provide explanation and supporting documents below:
A20: File Name: | C20: Income & Rent Limits | G20: 2If other than county limits, please provide explanation and supporting documents | P20: Uploaded to HCD?
A21: File Name: | C21: Utility Allowance | G21: 1Local housing authority document showing current utility allowance chart, with relevant components circled. | P21: Uploaded to HCD?
A22: File Name: | C22: Legal Opinion | G22: 3Provide legal opinion regarding Senior Housing pursuant to the California Civil Code, section 51.3 | P22: Uploaded to HCD?
A23: File Name: | C23: =J3 -> Rental Subsidy Program #1 Name | G23: Provide commitment of this non-Homekey rental subsidy that will be used to maintain the ongoing affordability of the Project. | P23: Uploaded to HCD?
A24: File Name: | C24: =L3 -> Rental Subsidy Program #2 Name | G24: Provide commitment of this non-Homekey rental subsidy that will be used to maintain the ongoing affordability of the Project. | P24: Uploaded to HCD?
E27: Proposed Project Units by Bedroom Size | J27: Assisted Units by Bedroom Size
E28: Total 0 bedroom units | G28: =SUMIF($A$5:$A$14,0,$B$5:$B$14) -> 0 | H28: =IFERROR(G28/$G$34,0) -> 0 | J28: Total 0 bedroom units | L28: =SUMIF($A$5:$A$14,0,$S$5:$S$14) -> 0 | M28: =IFERROR(L28/$L$34,0) -> 0
E29: Total 1 bedroom units | G29: =SUMIF($A$5:$A$14,1,$B$5:$B$14) -> 0 | H29: 0 | J29: Total 1 bedroom units | L29: =SUMIF($A$5:$A$14,1,$S$5:$S$14) -> 0 | M29: =IFERROR(L29/$L$34,0) -> 0
E30: Total 2 bedroom units | G30: =SUMIF($A$5:$A$14,2,$B$5:$B$14) -> 0 | H30: 0 | J30: Total 2 bedroom units | L30: =SUMIF($A$5:$A$14,2,$S$5:$S$14) -> 0 | M30: 0
E31: Total 3 bedroom units | G31: =SUMIF($A$5:$A$14,3,$B$5:$B$14) -> 0 | H31: 0 | J31: Total 3 bedroom units | L31: =SUMIF($A$5:$A$14,3,$S$5:$S$14) -> 0 | M31: 0
E32: Total 4 bedroom units | G32: =SUMIF($A$5:$A$14,4,$B$5:$B$14) -> 0 | H32: 0 | J32: Total 4 bedroom units | L32: =SUMIF($A$5:$A$14,4,$S$5:$S$14) -> 0 | M32: 0
E33: Total 5 Bedroom units | G33: =SUMIF($A$5:$A$14,5,$B$5:$B$14) -> 0 | H33: 0 | J33: Total 5 Bedroom units | L33: =SUMIF($A$5:$A$14,5,$S$5:$S$14) -> 0 | M33: 0
E34: Total proposed units | G34: =SUM(G28:G33) -> 0 | H34: 0 | J34: Total Assisted units | L34: =SUM(L28:L33) -> 0 | M34: =IFERROR(L34/$G$34,0) -> 0
A39: Applicant Comments

Sheet Dev Budget
A1: =Overview!AJ1 -> 2023-08-10 | B1: Sources/Uses of Funds
A2: USES OF FUNDS | B2: Homekey Award | C2: ='Dev Sources'!$C$30 -> 0 | D2: ='Dev Sources'!$C$31 -> 0 | E2: ='Dev Sources'!$C$32 -> 0 | F2: ='Dev Sources'!$C$33 -> 0 | G2: ='Dev Sources'!$C$34 -> 0 | H2: ='Dev Sources'!$C$35 -> 0 | I2: ='Dev Sources'!$C$36 -> 0 | J2: ='Dev Sources'!$C$37 -> 0 | K2: ='Dev Sources'!$C$38 -> 0 | L2: ='Dev Sources'!$C$39 -> 0 | M2: ='Dev Sources'!$C$40 -> 0 | N2: ='Dev Sources'!$C$41 -> 0 | O2: ='Dev Sources'!$C$42 -> 0 | P2: ='Dev Sources'!$C$43 -> 0 | Q2: ='Dev Sources'!$C$44 -> Private Mortgage Financing | R2: =IF('Dev Sources'!$C$45="","","Deferred Costs") -> Deferred Costs | S2: =IF('Dev Sources'!$D$46="","",'Dev Sources'!$D$46) ->  | T2: Total Sources/Costs
A4: Project Development Costs
A5: LAND COST/ACQUISITION
A6: Land Cost or Value | T6: =SUM(B6:S6) -> 0
A7: Demolition | T7: =SUM(B7:S7) -> 0
A8: Legal | T8: =SUM(B8:S8) -> 0
A9: Land Lease Rent Prepayment | T9: =SUM(B9:S9) -> 0
A10: Total Land Cost or Value | B10: =SUM(B6:B9) -> 0 | C10: 0 | D10: 0 | E10: 0 | F10: 0 | G10: 0 | H10: 0 | I10: 0 | J10: 0 | K10: 0 | L10: 0 | M10: 0 | N10: 0 | O10: 0 | P10: 0 | Q10: 0 | R10: 0 | S10: 0 | T10: =SUM(T6:T9) -> 0
A11: Existing Improvements Cost or Value | T11: =SUM(B11:S11) -> 0
A12: Off-Site Improvements | T12: =SUM(B12:S12) -> 0
A13: Total Acquisition Cost | B13: =SUM(B11:B12) -> 0 | C13: 0 | D13: 0 | E13: 0 | F13: 0 | G13: 0 | H13: 0 | I13: =SUM(I11:I12) -> 0 | J13: 0 | K13: 0 | L13: 0 | M13: 0 | N13: 0 | O13: 0 | P13: 0 | Q13: 0 | R13: =SUM(R11:R12) -> 0 | S13: 0 | T13: =SUM(T11:T12) -> 0
A14: Total Land Cost / Acquisition Cost | B14: =SUM(B10+B13) -> 0 | C14: =SUM(C10+C13) -> 0 | D14: 0 | E14: 0 | F14: 0 | G14: 0 | H14: 0 | I14: =SUM(I10+I13) -> 0 | J14: 0 | K14: 0 | L14: 0 | M14: 0 | N14: 0 | O14: 0 | P14: 0 | Q14: 0 | R14: =SUM(R10+R13) -> 0 | S14: 0 | T14: =SUM(T10+T13) -> 0
A15: Predevelopment Interest/Holding Cost | T15: =SUM(B15:S15) -> 0
A16: Assumed, Accrued Interest on Existing Debt (Rehab/Acq) | T16: =SUM(B16:S16) -> 0
A17: Excess Purchase Price Over Appraisal | T17: =SUM(B17:S17) -> 0
A18: REHABILITATION
A19: Site Work | T19: =SUM(B19:S19) -> 0
A20: Structures | T20: =SUM(B20:S20) -> 0
A21: General Requirements | T21: 0
A22: Contractor Overhead | T22: 0
A23: Contractor Profit | T23: 0
A24: Prevailing Wages | T24: 0
A25: General Liability Insurance | T25: =SUM(B25:S25) -> 0
A26: Urban Greening | T26: 0
A27: Environmental Remediation | T27: =SUM(B27:S27) -> 0
A28: Other Rehabilitation: (Specify) | T28: 0
A29: Other Rehabilitation: (Specify) | T29: 0
A30: Total Rehabilitation Costs | B30: =SUM(B19:B29) -> 0 | C30: =SUM(C19:C29) -> 0 | D30: 0 | E30: 0 | F30: 0 | G30: 0 | H30: 0 | I30: 0 | J30: 0 | K30: =SUM(K19:K29) -> 0 | L30: 0 | M30: 0 | N30: 0 | O30: 0 | P30: 0 | Q30: 0 | R30: 0 | S30: 0 | T30: =SUM(T19:T29) -> 0
A31: Total Relocation Expenses | T31: =SUM(B31:S31) -> 0
A32: NEW CONSTRUCTION
A33: Site Work | T33: =SUM(B33:S33) -> 0
A34: Structures | T34: 0
A35: General Requirements | T35: 0
A36: Contractor Overhead | T36: 0
A37: Contractor Profit | T37: 0
A38: Prevailing Wages | T38: 0
A39: General Liability Insurance | T39: 0
A40: Urban Greening | T40: 0
A41: Other New Construction: (Specify) | T41: 0
A42: Other New Construction: (Specify) | T42: 0
A43: Other New Construction: (Specify) | T43: 0
A44: Other New Construction: (Specify) | T44: 0
A45: Other New Construction: (Specify) | T45: 0
A46: Other New Construction: (Specify) | T46: 0
A47: Total New Construction Costs | B47: =SUM(B33:B46) -> 0 | C47: =SUM(C33:C46) -> 0 | D47: =SUM(D33:D46) -> 0 | E47: 0 | F47: 0 | G47: 0 | H47: 0 | I47: 0 | J47: 0 | K47: 0 | L47: 0 | M47: 0 | N47: 0 | O47: 0 | P47: 0 | Q47: 0 | R47: 0 | S47: 0 | T47: 0
A48: ARCHITECTURAL FEES
A49: Design | T49: =SUM(B49:S49) -> 0
A50: Supervision | T50: =SUM(B50:S50) -> 0
A51: Total Architectural Costs | B51: =SUM(B48:B50) -> 0 | C51: =SUM(C48:C50) -> 0 | D51: =SUM(D48:D50) -> 0 | E51: 0 | F51: 0 | G51: 0 | H51: 0 | I51: 0 | J51: 0 | K51: 0 | L51: 0 | M51: 0 | N51: 0 | O51: 0 | P51: 0 | Q51: 0 | R51: 0 | S51: 0 | T51: 0
A52: Total Survey & Engineering | T52: =SUM(B52:S52) -> 0
A53: CONSTRUCTION INTEREST & FEES
A54: Construction Loan Interest | T54: =SUM(B54:S54) -> 0
A55: Origination Fee | T55: 0
A56: Credit Enhancement/Application Fee | T56: 0
A57: Bond Premium | T57: 0
A58: Cost of Issuance | T58: 0
A59: Title & Recording | T59: 0
A60: Taxes | T60: 0
A61: Insurance | T61: 0
A62: Employment Reporting | T62: 0
A63: Other Construction Int. & Fees: (Specify) | T63: 0
A64: Other Construction Int. & Fees: (Specify) | T64: 0
A65: Other Construction Int. & Fees: (Specify) | T65: 0
A66: Other Construction Int. & Fees: (Specify) | T66: 0
A67: Total Construction Interest & Fees | B67: =SUM(B54:B66) -> 0 | C67: =SUM(C54:C66) -> 0 | D67: =SUM(D54:D66) -> 0 | E67: 0 | F67: 0 | G67: 0 | H67: 0 | I67: 0 | J67: 0 | K67: 0 | L67: 0 | M67: 0 | N67: 0 | O67: 0 | P67: 0 | Q67: 0 | R67: 0 | S67: 0 | T67: 0
A68: PERMANENT FINANCING
A69: Loan Origination Fee | T69: =SUM(B69:S69) -> 0
A70: Credit Enhancement/Application Fee | T70: 0
A71: Title & Recording | T71: 0
A72: Taxes | T72: 0
A73: Insurance | T73: 0
A74: Other Perm. Financing Costs: (Specify) | T74: 0
A75: Other Perm. Financing Costs: (Specify) | T75: 0
A76: Other Perm. Financing Costs: (Specify) | T76: 0
A77: Other Perm. Financing Costs: (Specify) | T77: 0
A78: Total Permanent Financing Costs | B78: =SUM(B69:B77) -> 0 | C78: 0 | D78: 0 | E78: 0 | F78: 0 | G78: 0 | H78: 0 | I78: =SUM(I69:I77) -> 0 | J78: 0 | K78: 0 | L78: 0 | M78: 0 | N78: 0 | O78: 0 | P78: 0 | Q78: 0 | R78: =SUM(R69:R77) -> 0 | S78: 0 | T78: 0
A79: Subtotals Forward | B79: =SUM(B10+B13+B15+B16+B17+B30+B31+B47+B51+B52+B67+B78) -> 0 | C79: =SUM(C10+C13+C15+C16+C17+C30+C31+C47+C51+C52+C67+C78) -> 0 | D79: 0 | E79: 0 | F79: 0 | G79: 0 | H79: 0 | I79: =SUM(I10+I13+I15+I16+I17+I30+I31+I47+I51+I52+I67+I78) -> 0 | J79: 0 | K79: 0 | L79: 0 | M79: 0 | N79: 0 | O79: 0 | P79: 0 | Q79: 0 | R79: =SUM(R10+R13+R15+R16+R17+R30+R31+R47+R51+R52+R67+R78) -> 0 | S79: 0 | T79: 0
A80: LEGAL FEES
A81: Legal Paid by Applicant | T81: =SUM(B81:S81) -> 0
A82: Other Attorney Costs: (Specify) | T82: =SUM(B82:S82) -> 0
A83: Other Attorney Costs: (Specify) | T83: =SUM(B83:S83) -> 0
A84: Other Attorney Costs: (Specify) | T84: =SUM(B84:S84) -> 0
A85: Total Attorney Costs | B85: =SUM(B80:B84) -> 0 | C85: =SUM(C80:C84) -> 0 | D85: =SUM(D80:D84) -> 0 | E85: 0 | F85: 0 | G85: 0 | H85: 0 | I85: 0 | J85: 0 | K85: 0 | L85: 0 | M85: 0 | N85: 0 | O85: 0 | P85: 0 | Q85: 0 | R85: 0 | S85: 0 | T85: 0
A86: RESERVES
A87: Operating Reserve | T87: =SUM(B87:S87) -> 0
A88: Replacement Reserve | T88: 0
A89: Rent Reserve | T89: 0
A90: Other Reserve Costs: (Specify) | T90: 0
A91: Other Reserve Costs: (Specify) | T91: 0
A92: Other Reserve Costs: (Specify) | T92: 0
A93: Total Reserve Costs | B93: =SUM(B87:B92) -> 0 | C93: 0 | D93: 0 | E93: 0 | F93: 0 | G93: 0 | H93: 0 | I93: 0 | J93: 0 | K93: 0 | L93: 0 | M93: 0 | N93: 0 | O93: 0 | P93: 0 | Q93: 0 | R93: 0 | S93: =SUM(S87:S92) -> 0 | T93: =SUM(T87:T92) -> 0
A94: CONTINGENCY COSTS
A95: Construction Hard Cost Contingency | T95: =SUM(B95:S95) -> 0
A96: Soft Cost Contingency | T96: =SUM(B96:S96) -> 0
A97: Total Contingency Costs | B97: =SUM(B95:B96) -> 0 | C97: 0 | D97: 0 | E97: 0 | F97: 0 | G97: 0 | H97: 0 | I97: 0 | J97: 0 | K97: 0 | L97: 0 | M97: 0 | N97: 0 | O97: 0 | P97: 0 | Q97: 0 | R97: 0 | S97: 0 | T97: 0
A98: OTHER PROJECT COSTS
A99: TCAC App/Allocation/Monitoring Fees | T99: =SUM(B99:S99) -> 0
A100: Environmental Reports | T100: 0
A101: Local Development Impact Fees | T101: 0
A102: Permit Processing Fees | T102: 0
A103: Capital Fees | T103: 0
A104: Marketing | T104: 0
A105: Furnishings | T105: 0
A106: Market Study | T106: 0
A107: Accounting/Reimbursable | T107: 0
A108: Appraisal Costs | T108: 0
A109: Other Costs: (Specify) | T109: 0
A110: Other Costs: (Specify) | T110: 0
A111: Other Costs: (Specify) | T111: 0
A112: Other Costs: (Specify) | T112: 0
A113: Other Costs: (Specify) | T113: 0
A114: Other Costs: (Specify) | T114: 0
A115: Total Other Costs | B115: =SUM(B99:B114) -> 0 | C115: =SUM(C99:C114) -> 0 | D115: =SUM(D99:D114) -> 0 | E115: 0 | F115: 0 | G115: 0 | H115: 0 | I115: =SUM(I99:I114) -> 0 | J115: 0 | K115: 0 | L115: 0 | M115: 0 | N115: 0 | O115: 0 | P115: 0 | Q115: 0 | R115: =SUM(R99:R114) -> 0 | S115: 0 | T115: 0
A116: SUBTOTAL PROJECT COST | B116: =SUM(B79+B85+B93+B97+B115) -> 0 | C116: 0 | D116: 0 | E116: 0 | F116: 0 | G116: 0 | H116: 0 | I116: =SUM(I79+I85+I93+I97+I115) -> 0 | J116: 0 | K116: 0 | L116: 0 | M116: 0 | N116: 0 | O116: 0 | P116: 0 | Q116: 0 | R116: =SUM(R79+R85+R93+R97+R115) -> 0 | S116: =SUM(S79+S85+S93+S97+S115) -> 0 | T116: =SUM(T79+T85+T93+T97+T115) -> 0
A117: DEVELOPER COSTS
A118: Developer Overhead/Profit | T118: =SUM(B118:S118) -> 0
A119: Consultant/Processing Agent | T119: 0
A120: Project Administration | T120: 0
A121: Broker Fees Paid to a Related Party | T121: 0
A122: Construction Oversight by Developer | T122: 0
A123: Other Developer Costs: (Specify) | T123: =SUM(B123:S123) -> 0
A124: Total Developer Costs | B124: =SUM(B118:B123) -> 0 | C124: 0 | D124: 0 | E124: 0 | F124: 0 | G124: 0 | H124: 0 | I124: =SUM(I118:I123) -> 0 | J124: 0 | K124: 0 | L124: 0 | M124: 0 | N124: 0 | O124: 0 | P124: 0 | Q124: 0 | R124: =SUM(R118:R123) -> 0 | S124: 0 | T124: =SUM(T118:T123) -> 0
A125: Total Project Costs | B125: =ROUNDDOWN(SUM($B$116+$B$124),0) -> 0 | C125: =ROUNDDOWN(SUM($C$116+$C$124),0) -> 0 | D125: =ROUNDDOWN(SUM($D$116+$D$124),0) -> 0 | E125: =ROUNDDOWN(SUM($E$116+$E$124),0) -> 0 | F125: =ROUNDDOWN(SUM($F$116+$F$124),0) -> 0 | G125: =ROUNDDOWN(SUM($G$116+$G$124),0) -> 0 | H125: =ROUNDDOWN(SUM($H$116+$H$124),0) -> 0 | I125: =ROUNDDOWN(SUM(I$116+I$124),0) -> 0 | J125: =ROUNDDOWN(SUM(J$116+J$124),0) -> 0 | K125: 0 | L125: 0 | M125: 0 | N125: 0 | O125: 0 | P125: 0 | Q125: 0 | R125: 0 | S125: 0 | T125: =SUM(T116+T124) -> 0
A127: Applicant Comments

Sheet Dev Sources
A1: Development Sources
A2: Construction Period Sources of Funds
A3: Funding Committed by Application Due Date? | C3: Source Name (listed in order of lien priority) | F3: Source Type | G3: Lien No. | H3: Funding Amount | I3: Interest Rate | J3: Required Payment | K3: Loan Term (months) | L3: *Detail of Deferred Costs
L4: Amount | M4: Description
A5: Construction | B5: Committed? | C5: Total Homekey Tribal Award from 'Award and Match, cell U8 | E5: ='Award and Match'!$U$8 -> 0 | F5: State-HCD
A6: =IF(B6>"0","Construction","") -> 
C20: Cost deferred to Permanent Conversion
C21: *Deferred Costs (detail at right) | H21: =L23 -> 0
C22: Equity Investor
A23: Total funds committed > | C23: =SUMPRODUCT(($B$6:$B$22="Yes")*($H$6:$H$22)) -> 0 | D23: Total Construction Sources | H23: =SUM($H$5:$H$22) -> 0 | K23: =SUM(K5:K22) -> 0 | L23: =SUM(L5:L22) -> 0
A24: % funds committed > | C24: =IF($H$23=0,0,$C$23/($H$23-$H$21)) -> 0 | D24: Total Development Costs from Dev Budget | H24: ='Dev Budget'!$T$125 -> 0
A26: Permanent Sources of Funds
A27: Funding Committed by Application Due Date? | C27: Source Name (listed in order of lien priority) | F27: Source Type | G27: Lien No. | H27: Funding Amount | I27: Interest Rate | K27: Repayment Terms | M27: Required Debt Service Amount
I28: Type | J28: Rate | K28: Type | L28: Due in (yrs)
A29: Permanent | B29: Committed? | C29: Total Homekey Tribal Award from 'Award and Match, cell U8 | E29: ='Award and Match'!$U$8 -> 0 | F29: State-HCD
A30: =IF(B30>"0","Permanent","") -> 
C44: Private Mortgage Financing
C45: Deferred Costs
C46: Equity Investor
A47: Total funds committed > | C47: =SUMPRODUCT(($B$30:$B$46="Yes")*($H$30:$H$46)) -> 0 | D47: Total Permanent Sources | H47: =SUM($H$29:$H$46) -> 0 | M47: =SUM(M29:M46) -> 0
A48: % funds committed > | C48: =IF($H$47=0,0,$C$47/$H$47) -> 0 | D48: Total Development Costs from Dev Budget | H48: ='Dev Budget'!$T$125 -> 0
A49: File Name: | C49: EFC1, EFC2, EFC3, etc. | E49: Documentation for the executed funding commitments (see below) | K49: Uploaded to HCD?
A50: "Article VII(K) "Enforceable Funding Commitment” means a letter or other document, in form and substance satisfactory to the Department, which evidences an enforceable commitment of funds or a reservation of funds by a Project funding source, and which contains the following: a. The name of the Applicant or Grantee; b. The Project name; c. The Project site address, assessor’s parcel number, or legal description; and d. The amount, interest rate (if any), and terms of the funding source. The Enforceable Funding Commitment may be conditioned on certain standard underwriting criteria, such as appraisals, but may not be generally conditional. Examples of unacceptable general conditions include phrases such as “subject to senior management approval,” or a statement that omits the word “commitment,” but instead indicates the lender’s “willingness to process an application” or indicates that financing is subject to loan committee approval of the Project. Contingencies in commitment documents based upon the receipt of tax-exempt bonds or low-income housing tax credits will not disqualify a source from being counted as committed.
A51: Applicant comments: Include a description of balloon payments and unusual or extraordinary circumstances that have resulted in higher than expected Project costs and provide a justification as to why these costs are reasonable.

Sheet Award and Match
A1: §206 Maximum Program Award and Operating Subsidy | U1: =Overview!AJ1 -> 2023-08-10 | AI1: Feedback/Comments
A2: Homekey Award including Capital, Operating Subsidy, and Relocation
A3: §206 Maximum Grant Amounts, Extraordinary Cost, Predevelopment, and Acquisition Funding | S3: HCD Amount | T3: Requested Amount | U3: Actual Amount
A4: 1. Maximum Homekey Capital Award based on proposed population and proposed bedroom size | S4: =MIN(10000000,('Unit Mix'!$V$15)) -> 0 | T4: 0 | U4: =MIN($S$4,$T$4) -> 0
A5: 2. Extraordinary cost request (must be approved by the Department prior final award determination) | S5: =ROUNDDOWN(SUM('Unit Mix'!AG16-'Unit Mix'!AG15)-SUM('Dev Sources'!H30:H46),0) -> 0 | T5: 0 | U5: =MIN($S$5,$T$5) -> 0
A6: 3. Predevelopment funding (shall not exceed 10 percent of total development costs) - if applicable | S6: ='Unit Mix'!AG16*10% -> 0 | T6: 0 | U6: =MIN($S$6,$T$6) -> 0
A7: 4. Acquisition funding (including land cost and related acquisition costs, is available only for Eligible Applicants which demonstrate a lack of alternate funding and that the Project is infeasible without Homekey Tribal funds) | T7: 0 | U7: =T7 -> 0
A8: A. Total Maximum Homekey Capital Award (1 + 2) | S8: =SUM(S4:S5)+S9 -> 0 | T8: =SUM($T$4:$T$5)+T9 -> 0 | U8: =ROUNDDOWN(SUM($U$4:$U$5),0)+U9 -> 0
A9: Relocation Costs | K9: if requested on 'Overview' worksheet cell S31 ('Dev Budget' worksheet cell L31) | Q9: =IF(Overview!$AA$32="","",IF(Overview!$AA$32="No","No","Yes")) ->  | S9: =IF($Q$9="No",0,'Dev Budget'!$T$31) -> 0 | T9: 0 | U9: =MIN($S$9,$T$9) -> 0
A10: B. Homekey Operating Subsidy (lesser of Need Analysis and Max Homekey Amount) | K10: if requested in 'Overview' worksheet cell AC31 | Q10: =IF(Overview!$AK$32="","",IF(Overview!$AK$32="No","No","Yes")) ->  | S10: =IF($Q$10="",0,MIN(MAX($S$22,$S$20),S30)) -> 0 | T10: 0 | U10: =MIN($S$10,$T$10) -> 0
A11: Maximum Homekey Program Award (A + B) | S11: =$S$8+$S$10 -> 0 | T11: =$T$8+$T$10 -> 0 | U11: =$U$8+$U$10 -> 0
A12: Capital Award based on how many Assisted Units from Unit Mix cell Y21 | K12: ='Unit Mix'!S15 -> 0 | L12: Total proposed Project units from Unit Mix cell E21 | Q12: ='Unit Mix'!$B$15 -> 0
A14: §207 Operating Subsidies and Match Note: Assisted Units restricted above 60 percent AMI shall not be eligible to receive operating subsidies. | S14: Monthly Amount
A15: A(2). Assisted Units reserved for Transition-Aged Youth, Homeless Youth, or for Youth at Risk of Homelessness | K15: ='Unit Mix'!$AU$16+'Unit Mix'!$AT$16 -> 0 | L15: Monthly amount per unit | R15: 1400 | S15: =K15*R15 -> 0
A16: A(3). All other Assisted Units | K16: ='Unit Mix'!$AR$16+'Unit Mix'!$AS$16+'Unit Mix'!$AV$16 -> 0 | L16: Monthly amount per unit | R16: 1000 | S16: =K16*R16 -> 0
A17: Total qualifying monthly amount per unit | S17: =$S$15+$S$16 -> 0
A18: Operating Subsidy: Maximum Homekey Amount | V18: OP #1 | W18: OP #2 | X18: OP #1 | Y18: OP #2
A19: B. The total duration of the operating subsidy (as described in A. above) is tied to the amount of the Applicant’s matching funds, and is limited as follows: 1. If Applicants can demonstrate a commitment of three years of non-Homekey operating funds for Assisted Units, the Department will provide an operating subsidy sized for two years. 2. If Applicants can demonstrate a commitment of four or more years of non-Homekey operating funds for Assisted Units, the Department will provide an operating subsidy sized for three years. If applicable, from rows 20-28 below, please enter operating subsidy source, funds commitment status, operating subsidy term, operating subsidy amount (Y1 -Y15), and operating subsidy status. | S19: Maximum Homekey Operating Amt. | V19: Applicant must have | W19: Applicant must have | X19: Applicant must have | Y19: Applicant must have
A20: Operating Subsidy Source: | G20: Funds Committed | J20: Operating Subsidy term (in years) | P20: Qualifying Homekey subsidy years | R20: =IF($O$20>3,3,IF($O$20>2,2,0)) -> 0 | S20: =$R$20*12*$S$17 -> 0 | V20: =$O$20*12*$S$17 -> 0 | W20: =$O$22*12*$S$17 -> 0 | X20: =#REF!*12*$S$17 ->  | Y20: =#REF!*12*$S$17 -> 
J21: Assisted Units receiving Operating Subsidy
A22: Operating Subsidy Source: | G22: Funds Committed | J22: Operating Subsidy term (in years) | R22: =IF($O$22>3,3,IF($O$22>2,2,0)) -> 0 | S22: =$R$22*12*$S$17 -> 0 | W22: Y1 | X22: Y2 | Y22: Y3 | Z22: Y4 | AA22: Y5
J23: Assisted Units receiving Operating Subsidy | K23: Assisted Units receiving Operating Subsidy | V23: =SUM($W$23:$AA$23) ->  | W23: =IF(AND($D$25<>"",#REF!="Operating Subsidy Enforceable Funding Commitment (EFC)"),1,0) ->  | X23: =IF(AND($E$25<>"",#REF!="Operating Subsidy Enforceable Funding Commitment (EFC)"),1,0) ->  | Y23: =IF(AND($F$25<>"",#REF!="Operating Subsidy Enforceable Funding Commitment (EFC)"),1,0) ->  | Z23: =IF(AND($G$25<>"",#REF!="Operating Subsidy Enforceable Funding Commitment (EFC)"),1,0) ->  | AA23: =IF(AND($H$25<>"",#REF!="Operating Subsidy Enforceable Funding Commitment (EFC)"),1,0) -> 
A24: Operating subsidy source (rolls to 'Cash Flow' worksheet, rows 11-12) | D24: Year 1 | E24: Year 2 | F24: Year 3 | G24: Year 4 | H24: Year 5 | I24: Year 6 | J24: Year 7 | K24: Year 8 | L24: Year 9 | M24: Year 10 | N24: Year 11 | O24: Year 12 | P24: Year 13 | Q24: Year 14 | R24: Year 15 | S24: Total Applicant's Operating Subsidy
A25: =IF(Overview!$S$28="Interim Housing",'Unit Mix'!$J$3,'Award and Match'!$C$20) -> 0 | S25: =SUM($D$25:$R$25) -> 0 | V25: =SUM($W$25:$AF$25) ->  | W25: =IF(AND($I$25<>"",#REF!="Operating Subsidy Enforceable Funding Commitment (EFC)"),1,0) ->  | X25: =IF(AND($J$25<>"",#REF!="Operating Subsidy Enforceable Funding Commitment (EFC)"),1,0) ->  | Y25: =IF(AND($K$25<>"",#REF!="Operating Subsidy Enforceable Funding Commitment (EFC)"),1,0) ->  | Z25: =IF(AND($L$25<>"",#REF!="Operating Subsidy Enforceable Funding Commitment (EFC)"),1,0) ->  | AA25: =IF(AND($M$25<>"",#REF!="Operating Subsidy Enforceable Funding Commitment (EFC)"),1,0) ->  | AB25: =IF(AND($N$25<>"",#REF!="Operating Subsidy Enforceable Funding Commitment (EFC)"),1,0) ->  | AC25: =IF(AND($O$25<>"",#REF!="Operating Subsidy Enforceable Funding Commitment (EFC)"),1,0) ->  | AD25: =IF(AND($P$25<>"",#REF!="Operating Subsidy Enforceable Funding Commitment (EFC)"),1,0) ->  | AE25: =IF(AND($Q$25<>"",#REF!="Operating Subsidy Enforceable Funding Commitment (EFC)"),1,0) ->  | AF25: =IF(AND($R$25<>"",#REF!="Operating Subsidy Enforceable Funding Commitment (EFC)"),1,0) -> 
A26: =IF(Overview!$S$28="Interim Housing",'Unit Mix'!$L$3,'Award and Match'!$C$22) -> 0 | S26: =SUM($D$26:$R$26) -> 0 | V26: =SUM($W$26:$AF$26) -> 0 | W26: =IF(AND($I$26<>"",$M$27="Operating Subsidy Enforceable Funding Commitment (EFC)"),1,0) -> 0 | X26: =IF(AND($J$26<>"",$M$27="Operating Subsidy Enforceable Funding Commitment (EFC)"),1,0) -> 0 | Y26: =IF(AND($K$26<>"",$M$27="Operating Subsidy Enforceable Funding Commitment (EFC)"),1,0) -> 0 | Z26: =IF(AND($L$26<>"",$M$27="Operating Subsidy Enforceable Funding Commitment (EFC)"),1,0) -> 0 | AA26: =IF(AND($M$26<>"",$M$27="Operating Subsidy Enforceable Funding Commitment (EFC)"),1,0) -> 0 | AB26: =IF(AND($N$26<>"",$M$27="Operating Subsidy Enforceable Funding Commitment (EFC)"),1,0) -> 0 | AC26: =IF(AND($O$26<>"",$M$27="Operating Subsidy Enforceable Funding Commitment (EFC)"),1,0) -> 0 | AD26: =IF(AND($P$26<>"",$M$27="Operating Subsidy Enforceable Funding Commitment (EFC)"),1,0) -> 0 | AE26: =IF(AND($Q$26<>"",$M$27="Operating Subsidy Enforceable Funding Commitment (EFC)"),1,0) -> 0 | AF26: =IF(AND($R$26<>"",$M$27="Operating Subsidy Enforceable Funding Commitment (EFC)"),1,0) -> 0
A27: File Name: | C27: =IF($C$20="","",$C$20) ->  | G27: Provide commitment of this non-HK operating subsidy that will be used to maintain the ongoing affordability of the Project. | P27: Uploaded to HCD? | V27: =IF(#REF!="Operating Subsidy Enforceable Funding Commitment (EFC)",1,2) -> 
A28: File Name: | C28: =IF($C$22="","",$C$22) ->  | G28: Provide commitment of this non-HK operating subsidy that will be used to maintain the ongoing affordability of the Project. | P28: Uploaded to HCD? | V28: =IF(M27="Operating Subsidy Enforceable Funding Commitment (EFC)",1,2) -> 2
A29: Operating Subsidy: Need Analysis | D29: Year 1 | G29: Year 2 | J29: Year 3 | M29: Year 4 | P29: Year 5 | S29: Five Year Total
A30: 'Cash Flow' worksheet | D30: =IF('Cash Flow'!$D$42+'Cash Flow'!$D$36+'Cash Flow'!$D$37<0,-('Cash Flow'!$D$42+'Cash Flow'!$D$36+'Cash Flow'!$D$37),0) -> 0 | G30: =IF('Cash Flow'!$E$42+'Cash Flow'!$E$36+'Cash Flow'!$E$37<0,-('Cash Flow'!$E$42+'Cash Flow'!$E$36+'Cash Flow'!$E$37),0) -> 0 | J30: =IF('Cash Flow'!$F$42+'Cash Flow'!$F$36+'Cash Flow'!$F$37<0,-('Cash Flow'!$F$42+'Cash Flow'!$F$36+'Cash Flow'!$F$37),0) -> 0 | M30: =IF('Cash Flow'!$G$42+'Cash Flow'!$G$36+'Cash Flow'!$G$37<0,-('Cash Flow'!$G$42+'Cash Flow'!$G$36+'Cash Flow'!$G$37),0) -> 0 | P30: =IF('Cash Flow'!$H$42+'Cash Flow'!$H$36+'Cash Flow'!$H$37<0,-('Cash Flow'!$H$42+'Cash Flow'!$H$36+'Cash Flow'!$H$37),0) -> 0 | S30: =ROUNDDOWN(SUM($D$30:$R$30),0) -> 0
A31: C. Applicant acknowledges that operating awards may pay for a Project’s necessary, recurring Operating Expenses in an amount approved by the Department. Qualifying expenses include utilities, maintenance, management fees, taxes, licenses, and Supportive Services costs, but not debt service or required reserve account deposits. Operating Expenses should be included in the Project’s submitted budget?
A32: D. If requesting an operating subsidy, upload a letter a letter of support from the appropriate tribal authority (i.e., the Tribe’s Housing and Community Development Board, or similar) or Housing Authority confirming the need for an operating subsidy and evidencing that other operating funding, such as rental subsidies, were sought for the Project, but the funding isn’t available for this use. A letter template and a list of potential Homekey complementary funding can be found on the Homekey Tribal Program website.
A33: File Name: | C33: Tribal Authority Support for Homekey Operating Subsidy | H33: Provide a letter of support from the appropriate tribal authority (i.e., the Tribe’s Housing and Community Development Board, or similar) or Housing Authority confirming the need for an operating subsidy and evidencing that other operating funding, such as rental subsidies, were sought for the Project, but the funding isn’t available for this use. | P33: Uploaded to HCD?
A34: E. Applicants acknowledges the Homekey-funded portion of the operating subsidy must be expended by the Grantee within five years following the execution of the Standard Agreement unless otherwise stated in the Standard Agreement, with the Grantee establishing a capitalized operating subsidy reserve and disbursing the funds as outlined in the NOFA.
A36: Applicant Comments

Sheet MTSP 50% Income Limits (hidden)
A1: 2022 HOME & NHTF | B1: lim50_21p1 | C1: lim50_21p2 | D1: lim50_21p3 | E1: lim50_21p4 | F1: lim50_21p5 | G1: lim50_21p6 | H1: lim50_21p7 | I1: lim50_21p8
A2: Alameda | B2: 51800 | C2: 59200 | D2: 66680 | E2: 73950 | F2: 79900 | G2: 85800 | H2: 91700 | I2: 97650
A3: Alpine | B3: 33650 | C3: 38450 | D3: 43250 | E3: 48050 | F3: 51900 | G3: 55750 | H3: 59600 | I3: 63450
A4: Amador | B4: 32100 | C4: 36700 | D4: 41300 | E4: 45850 | F4: 49550 | G4: 53200 | H4: 56900 | I4: 60550
A5: Butte | B5: 28900 | C5: 33000 | D5: 37150 | E5: 41250 | F5: 44550 | G5: 47850 | H5: 51150 | I5: 54450
A6: Calaveras | B6: 33400 | C6: 38150 | D6: 42900 | E6: 47650 | F6: 51500 | G6: 55300 | H6: 59100 | I6: 62900
A7: Colusa | B7: 28900 | C7: 33000 | D7: 37150 | E7: 41250 | F7: 44550 | G7: 47850 | H7: 51150 | I7: 54450
A8: Contra Costa | B8: 51800 | C8: 59200 | D8: 66600 | E8: 73950 | F8: 79900 | G8: 85800 | H8: 91700 | I8: 97650
A9: Del Norte | B9: 28900 | C9: 33000 | D9: 37150 | E9: 41250 | F9: 44550 | G9: 47850 | H9: 51150 | I9: 54450
A10: El Dorado | B10: 37550 | C10: 42900 | D10: 48250 | E10: 53600 | F10: 57900 | G10: 62200 | H10: 66500 | I10: 70800
A11: Fresno | B11: 28900 | C11: 33000 | D11: 37150 | E11: 41250 | F11: 44550 | G11: 47850 | H11: 51150 | I11: 54450
A12: Glenn | B12: 28900 | C12: 33000 | D12: 37150 | E12: 41250 | F12: 44550 | G12: 47850 | H12: 51150 | I12: 54450
A13: Humboldt | B13: 28900 | C13: 33000 | D13: 37150 | E13: 41250 | F13: 44550 | G13: 47850 | H13: 51150 | I13: 54450
A14: Imperial | B14: 28900 | C14: 33000 | D14: 37150 | E14: 41250 | F14: 44550 | G14: 47850 | H14: 51150 | I14: 54450
A15: Inyo | B15: 29900 | C15: 34200 | D15: 38450 | E15: 42700 | F15: 46150 | G15: 49550 | H15: 52950 | I15: 56400
A16: Kern | B16: 28900 | C16: 33000 | D16: 37150 | E16: 41250 | F16: 44550 | G16: 47850 | H16: 51150 | I16: 54450
A17: Kings | B17: 28900 | C17: 33000 | D17: 37150 | E17: 41250 | F17: 44550 | G17: 47850 | H17: 51150 | I17: 54450
A18: Lake | B18: 26010 | C18: 29700 | D18: 33435 | E18: 37125 | F18: 40095 | G18: 43065 | H18: 46035 | I18: 49005
A19: Lassen | B19: 29350 | C19: 33550 | D19: 37750 | E19: 41900 | F19: 45300 | G19: 48650 | H19: 52000 | I19: 55350
A20: Los Angeles | B20: 44150 | C20: 50450 | D20: 56750 | E20: 63050 | F20: 68100 | G20: 73150 | H20: 78200 | I20: 83250
A21: Madera | B21: 28900 | C21: 33000 | D21: 37150 | E21: 41250 | F21: 44550 | G21: 47850 | H21: 51150 | I21: 54450
A22: Marin | B22: 65050 | C22: 74350 | D22: 83650 | E22: 92900 | F22: 100350 | G22: 107800 | H22: 115200 | I22: 122650
A23: Mariposa | B23: 28900 | C23: 33000 | D23: 37150 | E23: 41250 | F23: 44550 | G23: 47850 | H23: 51150 | I23: 54450
A24: Mendocino | B24: 29750 | C24: 34000 | D24: 38250 | E24: 42500 | F24: 45900 | G24: 49300 | H24: 52700 | I24: 56100
A25: Merced | B25: 28900 | C25: 33000 | D25: 37150 | E25: 41250 | F25: 44550 | G25: 47850 | H25: 51150 | I25: 54450
A26: Modoc | B26: 28900 | C26: 33000 | D26: 37150 | E26: 41250 | F26: 44550 | G26: 47850 | H26: 51150 | I26: 54450
A27: Mono | B27: 29750 | C27: 34000 | D27: 38250 | E27: 42500 | F27: 45900 | G27: 49300 | H27: 52700 | I27: 56100
A28: Monterey | B28: 42150 | C28: 48200 | D28: 54200 | E28: 60200 | F28: 65050 | G28: 69850 | H28: 74650 | I28: 79500
A29: Napa | B29: 46750 | C29: 53400 | D29: 60100 | E29: 66750 | F29: 72100 | G29: 77450 | H29: 82800 | I29: 88150
A30: Nevada | B30: 36500 | C30: 41700 | D30: 46900 | E30: 52100 | F30: 56300 | G30: 60450 | H30: 64650 | I30: 68800
A31: Orange | B31: 50250 | C31: 57400 | D31: 64600 | E31: 71750 | F31: 77500 | G31: 83250 | H31: 89000 | I31: 94750
A32: Placer | B32: 37550 | C32: 42900 | D32: 48250 | E32: 53600 | F32: 57900 | G32: 62200 | H32: 66500 | I32: 70800
A33: Plumas | B33: 29350 | C33: 33550 | D33: 37750 | E33: 41900 | F33: 45300 | G33: 48650 | H33: 52000 | I33: 55350
A34: Riverside | B34: 32650 | C34: 37300 | D34: 41950 | E34: 46600 | F34: 50350 | G34: 54100 | H34: 57800 | I34: 61550
A35: Sacramento | B35: 37550 | C35: 42900 | D35: 48250 | E35: 53600 | F35: 57900 | G35: 62200 | H35: 66500 | I35: 70800
A36: San Benito | B36: 39000 | C36: 44550 | D36: 50100 | E36: 55650 | F36: 60150 | G36: 64600 | H36: 69050 | I36: 73500
A37: San Bernardino | B37: 32650 | C37: 37300 | D37: 41950 | E37: 46600 | F37: 50350 | G37: 54100 | H37: 57800 | I37: 61550
A38: San Diego | B38: 48250 | C38: 55150 | D38: 62050 | E38: 68900 | F38: 74450 | G38: 79950 | H38: 85450 | I38: 90950
A39: San Francisco | B39: 65050 | C39: 74350 | D39: 83650 | E39: 92900 | F39: 100350 | G39: 107800 | H39: 115200 | I39: 122650
A40: San Joaquin | B40: 30700 | C40: 35100 | D40: 39500 | E40: 43850 | F40: 47400 | G40: 50900 | H40: 54400 | I40: 57900
A41: San Luis Obispo | B41: 40550 | C41: 46350 | D41: 52150 | E41: 57900 | F41: 62550 | G41: 67200 | H41: 71800 | I41: 76450
A42: San Mateo | B42: 65050 | C42: 74350 | D42: 83650 | E42: 92900 | F42: 100350 | G42: 107800 | H42: 115200 | I42: 122650
A43: Santa Barbara | B43: 51800 | C43: 59200 | D43: 66600 | E43: 73950 | F43: 79900 | G43: 85800 | H43: 91700 | I43: 97650
A44: Santa Clara | B44: 62450 | C44: 71400 | D44: 80300 | E44: 89200 | F44: 96350 | G44: 103500 | H44: 110650 | I44: 117750
A45: Santa Cruz | B45: 57650 | C45: 65900 | D45: 74150 | E45: 82350 | F45: 88950 | G45: 95550 | H45: 102150 | I45: 108750
A46: Shasta | B46: 29400 | C46: 33600 | D46: 37800 | E46: 42000 | F46: 45400 | G46: 48750 | H46: 52100 | I46: 55450
A47: Sierra | B47: 29950 | C47: 34200 | D47: 38500 | E47: 42750 | F47: 46200 | G47: 49600 | H47: 53050 | I47: 56450
A48: Siskiyou | B48: 28900 | C48: 33000 | D48: 37150 | E48: 41250 | F48: 44550 | G48: 47850 | H48: 51150 | I48: 54450
A49: Solano | B49: 40050 | C49: 45800 | D49: 51500 | E49: 57200 | F49: 61800 | G49: 66400 | H49: 70950 | I49: 75550
A50: Sonoma | B50: 44050 | C50: 50350 | D50: 56650 | E50: 62900 | F50: 67950 | G50: 73000 | H50: 78000 | I50: 83050
A51: Stanislaus | B51: 29550 | C51: 33800 | D51: 38000 | E51: 42200 | F51: 45600 | G51: 49000 | H51: 52350 | I51: 55750
A52: Sutter | B52: 28900 | C52: 33000 | D52: 37150 | E52: 41250 | F52: 44550 | G52: 47850 | H52: 51150 | I52: 54450
A53: Tehama | B53: 28900 | C53: 33000 | D53: 37150 | E53: 41250 | F53: 44550 | G53: 47850 | H53: 51150 | I53: 54450
A54: Trinity | B54: 28900 | C54: 33000 | D54: 37150 | E54: 41250 | F54: 44550 | G54: 47850 | H54: 51150 | I54: 54450
A55: Tulare | B55: 28900 | C55: 33000 | D55: 37150 | E55: 41250 | F55: 44550 | G55: 47850 | H55: 51150 | I55: 54450
A56: Tuolumne | B56: 30850 | C56: 35250 | D56: 39650 | E56: 44050 | F56: 47600 | G56: 51100 | H56: 54650 | I56: 58150
A57: Ventura | B57: 46500 | C57: 53150 | D57: 59800 | E57: 66400 | F57: 71750 | G57: 77050 | H57: 82350 | I57: 87650
A58: Yolo | B58: 36750 | C58: 42000 | D58: 47250 | E58: 52450 | F58: 56650 | G58: 60850 | H58: 65050 | I58: 69250
A59: Yuba | B59: 28900 | C59: 33000 | D59: 37150 | E59: 41250 | F59: 44550 | G59: 47850 | H59: 51150 | I59: 54450

Sheet Rent Limits (hidden)
A1: County | B1: 1 Person | C1: 2 Person | D1: 3 Person | E1: 4 Person | F1: 5 Person | G1: 6 Person | H1: 7 Person | I1: 8 Person | J1: 0 | K1: 1 | L1: 2 | M1: 3 | N1: 4 | O1: 5 | U1: A | V1: B | W1: C | X1: D | Y1: E | Z1: F
A2: Alameda15% AMI | B2: =B9*2*0.15 -> 15540 | C2: =C9*2*0.15 -> 17760 | D2: =D9*2*0.15 -> 20004 | E2: =E9*2*0.15 -> 22185 | F2: =F9*2*0.15 -> 23970 | G2: =G9*2*0.15 -> 25740 | H2: 27510 | I2: 29295 | J2: =TRUNC(B2/12*0.3) -> 388 | K2: =TRUNC((B2+C2)/2/12*0.3) -> 416 | L2: =TRUNC((D2)/12*0.3) -> 500 | M2: =TRUNC(((E2+F2)/2)/12*0.3) -> 576 | N2: =TRUNC(G2/12*0.3) -> 643 | O2: =TRUNC(((H2+I2)/2)/12*0.3) -> 710
A3: Alameda20% AMI | B3: =B9*2*0.2 -> 20720 | C3: =C9*2*0.2 -> 23680 | D3: 26672 | E3: 29580 | F3: 31960 | G3: 34320 | H3: 36680 | I3: 39060 | J3: =TRUNC(B3/12*0.3) -> 518 | K3: 555 | L3: 666 | M3: 769 | N3: 858 | O3: =TRUNC(((H3+I3)/2)/12*0.3) -> 946
A4: Alameda25% AMI | B4: =B9*2*0.25 -> 25900 | C4: =C9*2*0.25 -> 29600 | D4: 33340 | E4: 36975 | F4: 39950 | G4: 42900 | H4: 45850 | I4: 48825 | J4: 647 | K4: 693 | L4: 833 | M4: 961 | N4: 1072 | O4: 1183
A5: Alameda30% AMI | B5: =B9*2*0.3 -> 31080 | C5: =C9*2*0.3 -> 35520 | D5: 40008 | E5: 44370 | F5: 47940 | G5: 51480 | H5: 55020 | I5: 58590 | J5: 777 | K5: 832 | L5: 1000 | M5: 1153 | N5: 1287 | O5: 1420
A6: Alameda35% AMI | B6: =B9*2*0.35 -> 36260 | C6: =C9*2*0.35 -> 41440 | D6: 46676 | E6: 51765 | F6: 55930 | G6: 60060 | H6: 64190 | I6: 68355 | J6: 906 | K6: 971 | L6: 1166 | M6: 1346 | N6: 1501 | O6: 1656
A7: Alameda40% AMI | B7: =B9*2*0.4 -> 41440 | C7: =C9*2*0.4 -> 47360 | D7: 53344 | E7: 59160 | F7: 63920 | G7: 68640 | H7: 73360 | I7: 78120 | J7: 1036 | K7: 1110 | L7: 1333 | M7: 1538 | N7: 1716 | O7: 1893
A8: Alameda45% AMI | B8: =B9*2*0.45 -> 46620 | C8: =C9*2*0.45 -> 53280 | D8: 60012 | E8: 66555 | F8: 71910 | G8: 77220 | H8: 82530 | I8: 87885 | J8: =TRUNC(B8/12*0.3) -> 1165 | K8: 1248 | L8: 1500 | M8: 1730 | N8: 1930 | O8: 2130
A9: Alameda50% AMI | B9: ='MTSP 50% Income Limits '!B2 -> 51800 | C9: ='MTSP 50% Income Limits '!C2 -> 59200 | D9: ='MTSP 50% Income Limits '!D2 -> 66680 | E9: ='MTSP 50% Income Limits '!E2 -> 73950 | F9: ='MTSP 50% Income Limits '!F2 -> 79900 | G9: ='MTSP 50% Income Limits '!G2 -> 85800 | H9: ='MTSP 50% Income Limits '!H2 -> 91700 | I9: ='MTSP 50% Income Limits '!I2 -> 97650 | J9: =TRUNC(B9/12*0.3) -> 1295 | K9: =TRUNC((B9+C9)/2/12*0.3) -> 1387 | L9: =TRUNC((D9)/12*0.3) -> 1667 | M9: =TRUNC(((E9+F9)/2)/12*0.3) -> 1923 | N9: =TRUNC(G9/12*0.3) -> 2145 | O9: =TRUNC(((H9+I9)/2)/12*0.3) -> 2366
A10: Alameda55% AMI | B10: =B9*2*0.55 -> 56980 | C10: =C9*2*0.55 -> 65120 | D10: 73348 | E10: 81345 | F10: 87890 | G10: 94380 | H10: 100870 | I10: 107415 | J10: =TRUNC(B10/12*0.3) -> 1424 | K10: =TRUNC((B10+C10)/2/12*0.3) -> 1526 | L10: =TRUNC((D10)/12*0.3) -> 1833 | M10: =TRUNC(((E10+F10)/2)/12*0.3) -> 2115 | N10: =TRUNC(G10/12*0.3) -> 2359 | O10: =TRUNC(((H10+I10)/2)/12*0.3) -> 2603
A11: Alameda60% AMI | B11: =B9*2*0.6 -> 62160 | C11: =C9*2*0.6 -> 71040 | D11: 80016 | E11: 88740 | F11: 95880 | G11: 102960 | H11: 110040 | I11: 117180 | J11: 1554 | K11: 1665 | L11: 2000 | M11: 2307 | N11: 2574 | O11: 2840
A12: Alameda65% AMI | B12: =B9*2*0.65 -> 67340 | C12: =C9*2*0.65 -> 76960 | D12: 86684 | E12: 96135 | F12: 103870 | G12: 111540 | H12: 119210 | I12: 126945 | J12: 1683 | K12: 1803 | L12: 2167 | M12: 2500 | N12: 2788 | O12: 3076
A13: Alameda70% AMI | B13: =B9*2*0.7 -> 72520 | C13: =C9*2*0.7 -> 82880 | D13: 93352 | E13: 103530 | F13: 111860 | G13: 120120 | H13: 128380 | I13: 136710 | J13: 1813 | K13: 1942 | L13: 2333 | M13: 2692 | N13: 3003 | O13: 3313
A14: Alameda75% AMI | B14: =B9*2*0.75 -> 77700 | C14: =C9*2*0.75 -> 88800 | D14: 100020 | E14: 110925 | F14: 119850 | G14: 128700 | H14: 137550 | I14: 146475 | J14: 1942 | K14: 2081 | L14: 2500 | M14: 2884 | N14: 3217 | O14: 3550
A15: Alameda80% AMI | B15: =B9*2*0.8 -> 82880 | C15: =C9*2*0.8 -> 94720 | D15: 106688 | E15: 118320 | F15: 127840 | G15: 137280 | H15: 146720 | I15: 156240 | J15: 2072 | K15: 2220 | L15: 2667 | M15: 3077 | N15: 3432 | O15: 3787
A16: Alameda90% AMI | B16: =B9*2*0.9 -> 93240 | C16: =C9*2*0.9 -> 106560 | D16: 120024 | E16: 133110 | F16: 143820 | G16: 154440 | H16: 165060 | I16: 175770 | J16: 2331 | K16: 2497 | L16: 3000 | M16: 3461 | N16: 3861 | O16: 4260
A17: Alameda100% AMI | B17: =B9*2 -> 103600 | C17: =C9*2 -> 118400 | D17: 133360 | E17: 147900 | F17: 159800 | G17: 171600 | H17: 183400 | I17: 195300 | J17: =J9*2 -> 2590 | K17: =K9*2 -> 2774 | L17: 3334 | M17: 3846 | N17: 4290 | O17: 4732
A18: Alameda110% AMI | B18: =B9*2*1.1 -> 113960 | C18: =C9*2*1.1 -> 130240 | D18: 146696 | E18: 162690 | F18: 175780 | G18: 188760 | H18: 201740 | I18: 214830 | J18: 2849 | K18: 3052 | L18: 3667 | M18: 4230 | N18: 4719 | O18: 5207
A19: Alameda120% AMI | B19: =B9*2*1.2 -> 124320 | C19: =C9*2*1.2 -> 142080 | D19: 160032 | E19: 177480 | F19: 191760 | G19: 205920 | H19: 220080 | I19: 234360 | J19: 3108 | K19: 3330 | L19: 4000 | M19: 4615 | N19: 5148 | O19: 5680
A20: Alpine15% AMI | B20: =B27*2*0.15 -> 10095 | C20: =C27*2*0.15 -> 11535 | D20: =D27*2*0.15 -> 12975 | E20: =E27*2*0.15 -> 14415 | F20: =F27*2*0.15 -> 15570 | G20: =G27*2*0.15 -> 16725 | H20: 17880 | I20: 19035 | J20: 252 | K20: 270 | L20: 324 | M20: 374 | N20: 418 | O20: 461
A21: Alpine20% AMI | B21: =B27*2*0.2 -> 13460 | C21: =C27*2*0.2 -> 15380 | D21: 17300 | E21: 19220 | F21: 20760 | G21: 22300 | H21: 23840 | I21: 25380 | J21: 336 | K21: 360 | L21: 432 | M21: 499 | N21: 557 | O21: 615
A22: Alpine25% AMI | B22: =B27*2*0.25 -> 16825 | C22: =C27*2*0.25 -> 19225 | D22: 21625 | E22: 24025 | F22: 25950 | G22: 27875 | H22: 29800 | I22: 31725 | J22: 420 | K22: 450 | L22: 540 | M22: 624 | N22: 696 | O22: 769
A23: Alpine30% AMI | B23: =B27*2*0.3 -> 20190 | C23: =C27*2*0.3 -> 23070 | D23: 25950 | E23: 28830 | F23: 31140 | G23: 33450 | H23: 35760 | I23: 38070 | J23: 504 | K23: 540 | L23: 648 | M23: 749 | N23: 836 | O23: 922
A24: Alpine35% AMI | B24: =B27*2*0.35 -> 23555 | C24: =C27*2*0.35 -> 26915 | D24: 30275 | E24: 33635 | F24: 36330 | G24: 39025 | H24: 41720 | I24: 44415 | J24: 588 | K24: 630 | L24: 756 | M24: 874 | N24: 975 | O24: 1076
A25: Alpine40% AMI | B25: =B27*2*0.4 -> 26920 | C25: =C27*2*0.4 -> 30760 | D25: 34600 | E25: 38440 | F25: 41520 | G25: 44600 | H25: 47680 | I25: 50760 | J25: 673 | K25: 721 | L25: 865 | M25: 999 | N25: 1115 | O25: 1230
A26: Alpine45% AMI | B26: =B27*2*0.45 -> 30285 | C26: =C27*2*0.45 -> 34605 | D26: 38925 | E26: 43245 | F26: 46710 | G26: 50175 | H26: 53640 | I26: 57105 | J26: 757 | K26: 811 | L26: 973 | M26: 1124 | N26: 1254 | O26: 1384
A27: Alpine50% AMI | B27: ='MTSP 50% Income Limits '!B3 -> 33650 | C27: ='MTSP 50% Income Limits '!C3 -> 38450 | D27: ='MTSP 50% Income Limits '!D3 -> 43250 | E27: ='MTSP 50% Income Limits '!E3 -> 48050 | F27: ='MTSP 50% Income Limits '!F3 -> 51900 | G27: ='MTSP 50% Income Limits '!G3 -> 55750 | H27: ='MTSP 50% Income Limits '!H3 -> 59600 | I27: ='MTSP 50% Income Limits '!I3 -> 63450 | J27: =TRUNC(B27/12*0.3) -> 841 | K27: =TRUNC((B27+C27)/2/12*0.3) -> 901 | L27: =TRUNC((D27)/12*0.3) -> 1081 | M27: =TRUNC(((E27+F27)/2)/12*0.3) -> 1249 | N27: =TRUNC(G27/12*0.3) -> 1393 | O27: =TRUNC(((H27+I27)/2)/12*0.3) -> 1538
A28: Alpine55% AMI | B28: =B27*2*0.55 -> 37015 | C28: =C27*2*0.55 -> 42295 | D28: 47575 | E28: 52855 | F28: 57090 | G28: 61325 | H28: 65560 | I28: 69795 | J28: =TRUNC(B28/12*0.3) -> 925 | K28: =TRUNC((B28+C28)/2/12*0.3) -> 991 | L28: =TRUNC((D28)/12*0.3) -> 1189 | M28: =TRUNC(((E28+F28)/2)/12*0.3) -> 1374 | N28: =TRUNC(G28/12*0.3) -> 1533 | O28: =TRUNC(((H28+I28)/2)/12*0.3) -> 1691
A29: Alpine60% AMI | B29: =B27*2*0.6 -> 40380 | C29: =C27*2*0.6 -> 46140 | D29: 51900 | E29: 57660 | F29: 62280 | G29: 66900 | H29: 71520 | I29: 76140 | J29: 1009 | K29: 1081 | L29: 1297 | M29: 1499 | N29: 1672 | O29: 1845
A30: Alpine65% AMI | B30: =B27*2*0.65 -> 43745 | C30: =C27*2*0.65 -> 49985 | D30: 56225 | E30: 62465 | F30: 67470 | G30: 72475 | H30: 77480 | I30: 82485 | J30: 1093 | K30: 1171 | L30: 1405 | M30: 1624 | N30: 1811 | O30: 1999
A31: Alpine70% AMI | B31: =B27*2*0.7 -> 47110 | C31: =C27*2*0.7 -> 53830 | D31: 60550 | E31: 67270 | F31: 72660 | G31: 78050 | H31: 83440 | I31: 88830 | J31: 1177 | K31: 1261 | L31: 1513 | M31: 1749 | N31: 1951 | O31: 2153
A32: Alpine75% AMI | B32: =B27*2*0.75 -> 50475 | C32: =C27*2*0.75 -> 57675 | D32: 64875 | E32: 72075 | F32: 77850 | G32: 83625 | H32: 89400 | I32: 95175 | J32: 1261 | K32: 1351 | L32: 1621 | M32: 1874 | N32: 2090 | O32: 2307
A33: Alpine80% AMI | B33: =B27*2*0.8 -> 53840 | C33: =C27*2*0.8 -> 61520 | D33: 69200 | E33: 76880 | F33: 83040 | G33: 89200 | H33: 95360 | I33: 101520 | J33: 1346 | K33: 1442 | L33: 1730 | M33: 1999 | N33: 2230 | O33: 2461
A34: Alpine90% AMI | B34: =B27*2*0.9 -> 60570 | C34: =C27*2*0.9 -> 69210 | D34: 77850 | E34: 86490 | F34: 93420 | G34: 100350 | H34: 107280 | I34: 114210 | J34: 1514 | K34: 1622 | L34: 1946 | M34: 2248 | N34: 2508 | O34: 2768
A35: Alpine100% AMI | B35: =B27*2 -> 67300 | C35: =C27*2 -> 76900 | D35: 86500 | E35: 96100 | F35: 103800 | G35: 111500 | H35: 119200 | I35: 126900 | J35: =J27*2 -> 1682 | K35: =K27*2 -> 1802 | L35: 2162 | M35: 2498 | N35: 2786 | O35: 3076
A36: Alpine110% AMI | B36: =B27*2*1.1 -> 74030 | C36: =C27*2*1.1 -> 84590 | D36: 95150 | E36: 105710 | F36: 114180 | G36: 122650 | H36: 131120 | I36: 139590 | J36: =TRUNC(B36/12*0.3) -> 1850 | K36: =TRUNC((B36+C36)/2/12*0.3) -> 1982 | L36: =TRUNC((D36)/12*0.3) -> 2378 | M36: =TRUNC(((E36+F36)/2)/12*0.3) -> 2748 | N36: =TRUNC(G36/12*0.3) -> 3066 | O36: =TRUNC(((H36+I36)/2)/12*0.3) -> 3383
A37: Alpine120% AMI | B37: =B27*2*1.2 -> 80760 | C37: =C27*2*1.2 -> 92280 | D37: 103800 | E37: 115320 | F37: 124560 | G37: 133800 | H37: 143040 | I37: 152280 | J37: 2019 | K37: 2163 | L37: 2595 | M37: 2998 | N37: 3345 | O37: 3691
A38: Amador15% AMI | B38: =B45*2*0.15 -> 9630 | C38: =C45*2*0.15 -> 11010 | D38: =D45*2*0.15 -> 12390 | E38: =E45*2*0.15 -> 13755 | F38: =F45*2*0.15 -> 14865 | G38: =G45*2*0.15 -> 15960 | H38: 17070 | I38: 18165 | J38: 240 | K38: 258 | L38: 309 | M38: 357 | N38: 399 | O38: 440
A39: Amador20% AMI | B39: =B45*2*0.2 -> 12840 | C39: =C45*2*0.2 -> 14680 | D39: 16520 | E39: 18340 | F39: 19820 | G39: 21280 | H39: 22760 | I39: 24220 | J39: 321 | K39: 344 | L39: 413 | M39: 477 | N39: 532 | O39: 587
A40: Amador25% AMI | B40: =B45*2*0.25 -> 16050 | C40: =C45*2*0.25 -> 18350 | D40: 20650 | E40: 22925 | F40: 24775 | G40: 26600 | H40: 28450 | I40: 30275 | J40: 401 | K40: 430 | L40: 516 | M40: 596 | N40: 665 | O40: 734
A41: Amador30% AMI | B41: =B45*2*0.3 -> 19260 | C41: =C45*2*0.3 -> 22020 | D41: 24780 | E41: 27510 | F41: 29730 | G41: 31920 | H41: 34140 | I41: 36330 | J41: 481 | K41: 516 | L41: 619 | M41: 715 | N41: 798 | O41: 880
A42: Amador35% AMI | B42: =B45*2*0.35 -> 22470 | C42: =C45*2*0.35 -> 25690 | D42: 28910 | E42: 32095 | F42: 34685 | G42: 37240 | H42: 39830 | I42: 42385 | J42: 561 | K42: 602 | L42: 722 | M42: 834 | N42: 931 | O42: 1027
A43: Amador40% AMI | B43: =B45*2*0.4 -> 25680 | C43: =C45*2*0.4 -> 29360 | D43: 33040 | E43: 36680 | F43: 39640 | G43: 42560 | H43: 45520 | I43: 48440 | J43: 642 | K43: 688 | L43: 826 | M43: 954 | N43: 1064 | O43: 1174
A44: Amador45% AMI | B44: =B45*2*0.45 -> 28890 | C44: =C45*2*0.45 -> 33030 | D44: 37170 | E44: 41265 | F44: 44595 | G44: 47880 | H44: 51210 | I44: 54495 | J44: 722 | K44: 774 | L44: 929 | M44: 1073 | N44: 1197 | O44: 1321
A45: Amador50% AMI | B45: ='MTSP 50% Income Limits '!B4 -> 32100 | C45: ='MTSP 50% Income Limits '!C4 -> 36700 | D45: ='MTSP 50% Income Limits '!D4 -> 41300 | E45: ='MTSP 50% Income Limits '!E4 -> 45850 | F45: ='MTSP 50% Income Limits '!F4 -> 49550 | G45: ='MTSP 50% Income Limits '!G4 -> 53200 | H45: ='MTSP 50% Income Limits '!H4 -> 56900 | I45: ='MTSP 50% Income Limits '!I4 -> 60550 | J45: =TRUNC(B45/12*0.3) -> 802 | K45: =TRUNC((B45+C45)/2/12*0.3) -> 860 | L45: =TRUNC((D45)/12*0.3) -> 1032 | M45: =TRUNC(((E45+F45)/2)/12*0.3) -> 1192 | N45: =TRUNC(G45/12*0.3) -> 1330 | O45: =TRUNC(((H45+I45)/2)/12*0.3) -> 1468
A46: Amador55% AMI | B46: =B45*2*0.55 -> 35310 | C46: =C45*2*0.55 -> 40370 | D46: 45430 | E46: 50435 | F46: 54505 | G46: 58520 | H46: 62590 | I46: 66605 | J46: =TRUNC(B46/12*0.3) -> 882 | K46: =TRUNC((B46+C46)/2/12*0.3) -> 946 | L46: =TRUNC((D46)/12*0.3) -> 1135 | M46: =TRUNC(((E46+F46)/2)/12*0.3) -> 1311 | N46: =TRUNC(G46/12*0.3) -> 1463 | O46: =TRUNC(((H46+I46)/2)/12*0.3) -> 1614
A47: Amador60% AMI | B47: =B45*2*0.6 -> 38520 | C47: =C45*2*0.6 -> 44040 | D47: 49560 | E47: 55020 | F47: 59460 | G47: 63840 | H47: 68280 | I47: 72660 | J47: 963 | K47: 1032 | L47: 1239 | M47: 1431 | N47: 1596 | O47: 1761
A48: Amador65% AMI | B48: =B45*2*0.65 -> 41730 | C48: =C45*2*0.65 -> 47710 | D48: 53690 | E48: 59605 | F48: 64415 | G48: 69160 | H48: 73970 | I48: 78715 | J48: 1043 | K48: 1118 | L48: 1342 | M48: 1550 | N48: 1729 | O48: 1908
A49: Amador70% AMI | B49: =B45*2*0.7 -> 44940 | C49: =C45*2*0.7 -> 51380 | D49: 57820 | E49: 64190 | F49: 69370 | G49: 74480 | H49: 79660 | I49: 84770 | J49: 1123 | K49: 1204 | L49: 1445 | M49: 1669 | N49: 1862 | O49: 2055
A50: Amador75% AMI | B50: =B45*2*0.75 -> 48150 | C50: =C45*2*0.75 -> 55050 | D50: 61950 | E50: 68775 | F50: 74325 | G50: 79800 | H50: 85350 | I50: 90825 | J50: 1203 | K50: 1290 | L50: 1548 | M50: 1788 | N50: 1995 | O50: 2202
A51: Amador80% AMI | B51: =B45*2*0.8 -> 51360 | C51: =C45*2*0.8 -> 58720 | D51: 66080 | E51: 73360 | F51: 79280 | G51: 85120 | H51: 91040 | I51: 96880 | J51: 1284 | K51: 1376 | L51: 1652 | M51: 1908 | N51: 2128 | O51: 2349
A52: Amador90% AMI | B52: =B45*2*0.9 -> 57780 | C52: =C45*2*0.9 -> 66060 | D52: 74340 | E52: 82530 | F52: 89190 | G52: 95760 | H52: 102420 | I52: 108990 | J52: 1444 | K52: 1548 | L52: 1858 | M52: 2146 | N52: 2394 | O52: 2642
A53: Amador100% AMI | B53: =B45*2 -> 64200 | C53: =C45*2 -> 73400 | D53: 82600 | E53: 91700 | F53: 99100 | G53: 106400 | H53: 113800 | I53: 121100 | J53: =J45*2 -> 1604 | K53: =K45*2 -> 1720 | L53: 2064 | M53: 2384 | N53: 2660 | O53: 2936
A54: Amador110% AMI | B54: =B45*2*1.1 -> 70620 | C54: =C45*2*1.1 -> 80740 | D54: 90860 | E54: 100870 | F54: 109010 | G54: 117040 | H54: 125180 | I54: 133210 | J54: =TRUNC(B54/12*0.3) -> 1765 | K54: =TRUNC((B54+C54)/2/12*0.3) -> 1892 | L54: =TRUNC((D54)/12*0.3) -> 2271 | M54: =TRUNC(((E54+F54)/2)/12*0.3) -> 2623 | N54: =TRUNC(G54/12*0.3) -> 2926 | O54: =TRUNC(((H54+I54)/2)/12*0.3) -> 3229
A55: Amador120% AMI | B55: =B45*2*1.2 -> 77040 | C55: =C45*2*1.2 -> 88080 | D55: 99120 | E55: 110040 | F55: 118920 | G55: 127680 | H55: 136560 | I55: 145320 | J55: 1926 | K55: 2064 | L55: 2478 | M55: 2862 | N55: 3192 | O55: 3523
A56: Butte15% AMI | B56: =B63*2*0.15 -> 8670 | C56: =C63*2*0.15 -> 9900 | D56: =D63*2*0.15 -> 11145 | E56: =E63*2*0.15 -> 12375 | F56: =F63*2*0.15 -> 13365 | G56: =G63*2*0.15 -> 14355 | H56: 15345 | I56: 16335 | J56: 216 | K56: 232 | L56: 278 | M56: 321 | N56: 358 | O56: 396
A57: Butte20% AMI | B57: =B63*2*0.2 -> 11560 | C57: =C63*2*0.2 -> 13200 | D57: 14860 | E57: 16500 | F57: 17820 | G57: 19140 | H57: 20460 | I57: 21780 | J57: 289 | K57: 309 | L57: 371 | M57: 429 | N57: 478 | O57: 528
A58: Butte25% AMI | B58: =B63*2*0.25 -> 14450 | C58: =C63*2*0.25 -> 16500 | D58: 18575 | E58: 20625 | F58: 22275 | G58: 23925 | H58: 25575 | I58: 27225 | J58: 361 | K58: 386 | L58: 464 | M58: 536 | N58: 598 | O58: 660
A59: Butte30% AMI | B59: =B63*2*0.3 -> 17340 | C59: =C63*2*0.3 -> 19800 | D59: 22290 | E59: 24750 | F59: 26730 | G59: 28710 | H59: 30690 | I59: 32670 | J59: 433 | K59: 464 | L59: 557 | M59: 643 | N59: 717 | O59: 792
A60: Butte35% AMI | B60: =B63*2*0.35 -> 20230 | C60: =C63*2*0.35 -> 23100 | D60: 26005 | E60: 28875 | F60: 31185 | G60: 33495 | H60: 35805 | I60: 38115 | J60: 505 | K60: 541 | L60: 650 | M60: 750 | N60: 837 | O60: 924
A61: Butte40% AMI | B61: =B63*2*0.4 -> 23120 | C61: =C63*2*0.4 -> 26400 | D61: 29720 | E61: 33000 | F61: 35640 | G61: 38280 | H61: 40920 | I61: 43560 | J61: 578 | K61: 619 | L61: 743 | M61: 858 | N61: 957 | O61: 1056
A62: Butte45% AMI | B62: =B63*2*0.45 -> 26010 | C62: =C63*2*0.45 -> 29700 | D62: 33435 | E62: 37125 | F62: 40095 | G62: 43065 | H62: 46035 | I62: 49005 | J62: 650 | K62: 696 | L62: 835 | M62: 965 | N62: 1076 | O62: 1188
A63: Butte50% AMI | B63: ='MTSP 50% Income Limits '!B5 -> 28900 | C63: ='MTSP 50% Income Limits '!C5 -> 33000 | D63: ='MTSP 50% Income Limits '!D5 -> 37150 | E63: ='MTSP 50% Income Limits '!E5 -> 41250 | F63: ='MTSP 50% Income Limits '!F5 -> 44550 | G63: ='MTSP 50% Income Limits '!G5 -> 47850 | H63: ='MTSP 50% Income Limits '!H5 -> 51150 | I63: ='MTSP 50% Income Limits '!I5 -> 54450 | J63: =TRUNC(B63/12*0.3) -> 722 | K63: =TRUNC((B63+C63)/2/12*0.3) -> 773 | L63: =TRUNC((D63)/12*0.3) -> 928 | M63: =TRUNC(((E63+F63)/2)/12*0.3) -> 1072 | N63: =TRUNC(G63/12*0.3) -> 1196 | O63: =TRUNC(((H63+I63)/2)/12*0.3) -> 1320
A64: Butte55% AMI | B64: =B63*2*0.55 -> 31790 | C64: =C63*2*0.55 -> 36300 | D64: 40865 | E64: 45375 | F64: 49005 | G64: 52635 | H64: 56265 | I64: 59895 | J64: =TRUNC(B64/12*0.3) -> 794 | K64: =TRUNC((B64+C64)/2/12*0.3) -> 851 | L64: =TRUNC((D64)/12*0.3) -> 1021 | M64: =TRUNC(((E64+F64)/2)/12*0.3) -> 1179 | N64: =TRUNC(G64/12*0.3) -> 1315 | O64: =TRUNC(((H64+I64)/2)/12*0.3) -> 1452
A65: Butte60% AMI | B65: =B63*2*0.6 -> 34680 | C65: =C63*2*0.6 -> 39600 | D65: 44580 | E65: 49500 | F65: 53460 | G65: 57420 | H65: 61380 | I65: 65340 | J65: 867 | K65: 928 | L65: 1114 | M65: 1287 | N65: 1435 | O65: 1584
A66: Butte65% AMI | B66: =B63*2*0.65 -> 37570 | C66: =C63*2*0.65 -> 42900 | D66: 48295 | E66: 53625 | F66: 57915 | G66: 62205 | H66: 66495 | I66: 70785 | J66: 939 | K66: 1005 | L66: 1207 | M66: 1394 | N66: 1555 | O66: 1716
A67: Butte70% AMI | B67: =B63*2*0.7 -> 40460 | C67: =C63*2*0.7 -> 46200 | D67: 52010 | E67: 57750 | F67: 62370 | G67: 66990 | H67: 71610 | I67: 76230 | J67: 1011 | K67: 1083 | L67: 1300 | M67: 1501 | N67: 1674 | O67: 1848
A68: Butte75% AMI | B68: =B63*2*0.75 -> 43350 | C68: =C63*2*0.75 -> 49500 | D68: 55725 | E68: 61875 | F68: 66825 | G68: 71775 | H68: 76725 | I68: 81675 | J68: 1083 | K68: 1160 | L68: 1393 | M68: 1608 | N68: 1794 | O68: 1980
A69: Butte80% AMI | B69: =B63*2*0.8 -> 46240 | C69: =C63*2*0.8 -> 52800 | D69: 59440 | E69: 66000 | F69: 71280 | G69: 76560 | H69: 81840 | I69: 87120 | J69: 1156 | K69: 1238 | L69: 1486 | M69: 1716 | N69: 1914 | O69: 2112
A70: Butte90% AMI | B70: =B63*2*0.9 -> 52020 | C70: =C63*2*0.9 -> 59400 | D70: 66870 | E70: 74250 | F70: 80190 | G70: 86130 | H70: 92070 | I70: 98010 | J70: 1300 | K70: 1392 | L70: 1671 | M70: 1930 | N70: 2153 | O70: 2376
A71: Butte100% AMI | B71: =B63*2 -> 57800 | C71: =C63*2 -> 66000 | D71: 74300 | E71: 82500 | F71: 89100 | G71: 95700 | H71: 102300 | I71: 108900 | J71: =J63*2 -> 1444 | K71: =K63*2 -> 1546 | L71: 1856 | M71: 2144 | N71: 2392 | O71: 2640
A72: Butte110% AMI | B72: =B63*2*1.1 -> 63580 | C72: =C63*2*1.1 -> 72600 | D72: 81730 | E72: 90750 | F72: 98010 | G72: 105270 | H72: 112530 | I72: 119790 | J72: =TRUNC(B72/12*0.3) -> 1589 | K72: =TRUNC((B72+C72)/2/12*0.3) -> 1702 | L72: =TRUNC((D72)/12*0.3) -> 2043 | M72: =TRUNC(((E72+F72)/2)/12*0.3) -> 2359 | N72: =TRUNC(G72/12*0.3) -> 2631 | O72: =TRUNC(((H72+I72)/2)/12*0.3) -> 2904
A73: Butte120% AMI | B73: =B63*2*1.2 -> 69360 | C73: =C63*2*1.2 -> 79200 | D73: 89160 | E73: 99000 | F73: 106920 | G73: 114840 | H73: 122760 | I73: 130680 | J73: 1734 | K73: 1857 | L73: 2229 | M73: 2574 | N73: 2871 | O73: 3168
A74: Calaveras15% AMI | B74: =B81*2*0.15 -> 10020 | C74: =C81*2*0.15 -> 11445 | D74: =D81*2*0.15 -> 12870 | E74: =E81*2*0.15 -> 14295 | F74: =F81*2*0.15 -> 15450 | G74: =G81*2*0.15 -> 16590 | H74: 17730 | I74: 18870 | J74: 250 | K74: 268 | L74: 321 | M74: 371 | N74: 414 | O74: 457
A75: Calaveras20% AMI | B75: =B81*2*0.2 -> 13360 | C75: =C81*2*0.2 -> 15260 | D75: 17160 | E75: 19060 | F75: 20600 | G75: 22120 | H75: 23640 | I75: 25160 | J75: 334 | K75: 357 | L75: 429 | M75: 495 | N75: 553 | O75: 610
A76: Calaveras25% AMI | B76: =B81*2*0.25 -> 16700 | C76: =C81*2*0.25 -> 19075 | D76: 21450 | E76: 23825 | F76: 25750 | G76: 27650 | H76: 29550 | I76: 31450 | J76: 417 | K76: 447 | L76: 536 | M76: 619 | N76: 691 | O76: 762
A77: Calaveras30% AMI | B77: =B81*2*0.3 -> 20040 | C77: =C81*2*0.3 -> 22890 | D77: 25740 | E77: 28590 | F77: 30900 | G77: 33180 | H77: 35460 | I77: 37740 | J77: 501 | K77: 536 | L77: 643 | M77: 743 | N77: 829 | O77: 915
A78: Calaveras35% AMI | B78: =B81*2*0.35 -> 23380 | C78: =C81*2*0.35 -> 26705 | D78: 30030 | E78: 33355 | F78: 36050 | G78: 38710 | H78: 41370 | I78: 44030 | J78: 584 | K78: 626 | L78: 750 | M78: 867 | N78: 967 | O78: 1067
A79: Calaveras40% AMI | B79: =B81*2*0.4 -> 26720 | C79: =C81*2*0.4 -> 30520 | D79: 34320 | E79: 38120 | F79: 41200 | G79: 44240 | H79: 47280 | I79: 50320 | J79: 668 | K79: 715 | L79: 858 | M79: 991 | N79: 1106 | O79: 1220
A80: Calaveras45% AMI | B80: =B81*2*0.45 -> 30060 | C80: =C81*2*0.45 -> 34335 | D80: 38610 | E80: 42885 | F80: 46350 | G80: 49770 | H80: 53190 | I80: 56610 | J80: 751 | K80: 804 | L80: 965 | M80: 1115 | N80: 1244 | O80: 1372
A81: Calaveras50% AMI | B81: ='MTSP 50% Income Limits '!B6 -> 33400 | C81: ='MTSP 50% Income Limits '!C6 -> 38150 | D81: ='MTSP 50% Income Limits '!D6 -> 42900 | E81: ='MTSP 50% Income Limits '!E6 -> 47650 | F81: ='MTSP 50% Income Limits '!F6 -> 51500 | G81: ='MTSP 50% Income Limits '!G6 -> 55300 | H81: ='MTSP 50% Income Limits '!H6 -> 59100 | I81: ='MTSP 50% Income Limits '!I6 -> 62900 | J81: =TRUNC(B81/12*0.3) -> 835 | K81: =TRUNC((B81+C81)/2/12*0.3) -> 894 | L81: =TRUNC((D81)/12*0.3) -> 1072 | M81: =TRUNC(((E81+F81)/2)/12*0.3) -> 1239 | N81: =TRUNC(G81/12*0.3) -> 1382 | O81: =TRUNC(((H81+I81)/2)/12*0.3) -> 1525
A82: Calaveras55% AMI | B82: =B81*2*0.55 -> 36740 | C82: =C81*2*0.55 -> 41965 | D82: 47190 | E82: 52415 | F82: 56650 | G82: 60830 | H82: 65010 | I82: 69190 | J82: =TRUNC(B82/12*0.3) -> 918 | K82: =TRUNC((B82+C82)/2/12*0.3) -> 983 | L82: =TRUNC((D82)/12*0.3) -> 1179 | M82: =TRUNC(((E82+F82)/2)/12*0.3) -> 1363 | N82: =TRUNC(G82/12*0.3) -> 1520 | O82: =TRUNC(((H82+I82)/2)/12*0.3) -> 1677
A83: Calaveras60% AMI | B83: =B81*2*0.6 -> 40080 | C83: =C81*2*0.6 -> 45780 | D83: 51480 | E83: 57180 | F83: 61800 | G83: 66360 | H83: 70920 | I83: 75480 | J83: 1002 | K83: 1073 | L83: 1287 | M83: 1487 | N83: 1659 | O83: 1830
A84: Calaveras65% AMI | B84: =B81*2*0.65 -> 43420 | C84: =C81*2*0.65 -> 49595 | D84: 55770 | E84: 61945 | F84: 66950 | G84: 71890 | H84: 76830 | I84: 81770 | J84: 1085 | K84: 1162 | L84: 1394 | M84: 1611 | N84: 1797 | O84: 1982
A85: Calaveras70% AMI | B85: =B81*2*0.7 -> 46760 | C85: =C81*2*0.7 -> 53410 | D85: 60060 | E85: 66710 | F85: 72100 | G85: 77420 | H85: 82740 | I85: 88060 | J85: 1169 | K85: 1252 | L85: 1501 | M85: 1735 | N85: 1935 | O85: 2135
A86: Calaveras75% AMI | B86: =B81*2*0.75 -> 50100 | C86: =C81*2*0.75 -> 57225 | D86: 64350 | E86: 71475 | F86: 77250 | G86: 82950 | H86: 88650 | I86: 94350 | J86: 1252 | K86: 1341 | L86: 1608 | M86: 1859 | N86: 2073 | O86: 2287
A87: Calaveras80% AMI | B87: =B81*2*0.8 -> 53440 | C87: =C81*2*0.8 -> 61040 | D87: 68640 | E87: 76240 | F87: 82400 | G87: 88480 | H87: 94560 | I87: 100640 | J87: 1336 | K87: 1431 | L87: 1716 | M87: 1983 | N87: 2212 | O87: 2440
A88: Calaveras90% AMI | B88: =B81*2*0.9 -> 60120 | C88: =C81*2*0.9 -> 68670 | D88: 77220 | E88: 85770 | F88: 92700 | G88: 99540 | H88: 106380 | I88: 113220 | J88: 1503 | K88: 1609 | L88: 1930 | M88: 2230 | N88: 2488 | O88: 2745
A89: Calaveras100% AMI | B89: =B81*2 -> 66800 | C89: =C81*2 -> 76300 | D89: 85800 | E89: 95300 | F89: 103000 | G89: 110600 | H89: 118200 | I89: 125800 | J89: =J81*2 -> 1670 | K89: =K81*2 -> 1788 | L89: 2144 | M89: 2478 | N89: 2764 | O89: 3050
A90: Calaveras110% AMI | B90: =B81*2*1.1 -> 73480 | C90: =C81*2*1.1 -> 83930 | D90: 94380 | E90: 104830 | F90: 113300 | G90: 121660 | H90: 130020 | I90: 138380 | J90: =TRUNC(B90/12*0.3) -> 1837 | K90: =TRUNC((B90+C90)/2/12*0.3) -> 1967 | L90: =TRUNC((D90)/12*0.3) -> 2359 | M90: =TRUNC(((E90+F90)/2)/12*0.3) -> 2726 | N90: =TRUNC(G90/12*0.3) -> 3041 | O90: =TRUNC(((H90+I90)/2)/12*0.3) -> 3355
A91: Calaveras120% AMI | B91: =B81*2*1.2 -> 80160 | C91: =C81*2*1.2 -> 91560 | D91: 102960 | E91: 114360 | F91: 123600 | G91: 132720 | H91: 141840 | I91: 150960 | J91: 2004 | K91: 2146 | L91: 2574 | M91: 2974 | N91: 3318 | O91: 3660
A92: Colusa15% AMI | B92: =B99*2*0.15 -> 8670 | C92: =C99*2*0.15 -> 9900 | D92: =D99*2*0.15 -> 11145 | E92: =E99*2*0.15 -> 12375 | F92: =F99*2*0.15 -> 13365 | G92: =G99*2*0.15 -> 14355 | H92: 15345 | I92: 16335 | J92: 216 | K92: 232 | L92: 278 | M92: 321 | N92: 358 | O92: 396
A93: Colusa20% AMI | B93: =B99*2*0.2 -> 11560 | C93: =C99*2*0.2 -> 13200 | D93: 14860 | E93: 16500 | F93: 17820 | G93: 19140 | H93: 20460 | I93: 21780 | J93: 289 | K93: 309 | L93: 371 | M93: 429 | N93: 478 | O93: 528
A94: Colusa25% AMI | B94: =B99*2*0.25 -> 14450 | C94: =C99*2*0.25 -> 16500 | D94: 18575 | E94: 20625 | F94: 22275 | G94: 23925 | H94: 25575 | I94: 27225 | J94: 361 | K94: 386 | L94: 464 | M94: 536 | N94: 598 | O94: 660
A95: Colusa30% AMI | B95: =B99*2*0.3 -> 17340 | C95: =C99*2*0.3 -> 19800 | D95: 22290 | E95: 24750 | F95: 26730 | G95: 28710 | H95: 30690 | I95: 32670 | J95: 433 | K95: 464 | L95: 557 | M95: 643 | N95: 717 | O95: 792
A96: Colusa35% AMI | B96: =B99*2*0.35 -> 20230 | C96: =C99*2*0.35 -> 23100 | D96: 26005 | E96: 28875 | F96: 31185 | G96: 33495 | H96: 35805 | I96: 38115 | J96: 505 | K96: 541 | L96: 650 | M96: 750 | N96: 837 | O96: 924
A97: Colusa40% AMI | B97: =B99*2*0.4 -> 23120 | C97: =C99*2*0.4 -> 26400 | D97: 29720 | E97: 33000 | F97: 35640 | G97: 38280 | H97: 40920 | I97: 43560 | J97: 578 | K97: 619 | L97: 743 | M97: 858 | N97: 957 | O97: 1056
A98: Colusa45% AMI | B98: =B99*2*0.45 -> 26010 | C98: =C99*2*0.45 -> 29700 | D98: 33435 | E98: 37125 | F98: 40095 | G98: 43065 | H98: 46035 | I98: 49005 | J98: 650 | K98: 696 | L98: 835 | M98: 965 | N98: 1076 | O98: 1188
A99: Colusa50% AMI | B99: ='MTSP 50% Income Limits '!B7 -> 28900 | C99: ='MTSP 50% Income Limits '!C7 -> 33000 | D99: ='MTSP 50% Income Limits '!D7 -> 37150 | E99: ='MTSP 50% Income Limits '!E7 -> 41250 | F99: ='MTSP 50% Income Limits '!F7 -> 44550 | G99: ='MTSP 50% Income Limits '!G7 -> 47850 | H99: ='MTSP 50% Income Limits '!H7 -> 51150 | I99: ='MTSP 50% Income Limits '!I7 -> 54450 | J99: =TRUNC(B99/12*0.3) -> 722 | K99: =TRUNC((B99+C99)/2/12*0.3) -> 773 | L99: =TRUNC((D99)/12*0.3) -> 928 | M99: =TRUNC(((E99+F99)/2)/12*0.3) -> 1072 | N99: =TRUNC(G99/12*0.3) -> 1196 | O99: =TRUNC(((H99+I99)/2)/12*0.3) -> 1320
A100: Colusa55% AMI | B100: =B99*2*0.55 -> 31790 | C100: =C99*2*0.55 -> 36300 | D100: 40865 | E100: 45375 | F100: 49005 | G100: 52635 | H100: 56265 | I100: 59895 | J100: =TRUNC(B100/12*0.3) -> 794 | K100: =TRUNC((B100+C100)/2/12*0.3) -> 851 | L100: =TRUNC((D100)/12*0.3) -> 1021 | M100: =TRUNC(((E100+F100)/2)/12*0.3) -> 1179 | N100: =TRUNC(G100/12*0.3) -> 1315 | O100: =TRUNC(((H100+I100)/2)/12*0.3) -> 1452
A101: Colusa60% AMI | B101: =B99*2*0.6 -> 34680 | C101: =C99*2*0.6 -> 39600 | D101: 44580 | E101: 49500 | F101: 53460 | G101: 57420 | H101: 61380 | I101: 65340 | J101: 867 | K101: 928 | L101: 1114 | M101: 1287 | N101: 1435 | O101: 1584
A102: Colusa65% AMI | B102: =B99*2*0.65 -> 37570 | C102: =C99*2*0.65 -> 42900 | D102: 48295 | E102: 53625 | F102: 57915 | G102: 62205 | H102: 66495 | I102: 70785 | J102: 939 | K102: 1005 | L102: 1207 | M102: 1394 | N102: 1555 | O102: 1716
A103: Colusa70% AMI | B103: =B99*2*0.7 -> 40460 | C103: =C99*2*0.7 -> 46200 | D103: 52010 | E103: 57750 | F103: 62370 | G103: 66990 | H103: 71610 | I103: 76230 | J103: 1011 | K103: 1083 | L103: 1300 | M103: 1501 | N103: 1674 | O103: 1848
A104: Colusa75% AMI | B104: =B99*2*0.75 -> 43350 | C104: =C99*2*0.75 -> 49500 | D104: 55725 | E104: 61875 | F104: 66825 | G104: 71775 | H104: 76725 | I104: 81675 | J104: 1083 | K104: 1160 | L104: 1393 | M104: 1608 | N104: 1794 | O104: 1980
A105: Colusa80% AMI | B105: =B99*2*0.8 -> 46240 | C105: =C99*2*0.8 -> 52800 | D105: 59440 | E105: 66000 | F105: 71280 | G105: 76560 | H105: 81840 | I105: 87120 | J105: 1156 | K105: 1238 | L105: 1486 | M105: 1716 | N105: 1914 | O105: 2112
A106: Colusa90% AMI | B106: =B99*2*0.9 -> 52020 | C106: =C99*2*0.9 -> 59400 | D106: 66870 | E106: 74250 | F106: 80190 | G106: 86130 | H106: 92070 | I106: 98010 | J106: 1300 | K106: 1392 | L106: 1671 | M106: 1930 | N106: 2153 | O106: 2376
A107: Colusa100% AMI | B107: =B99*2 -> 57800 | C107: =C99*2 -> 66000 | D107: 74300 | E107: 82500 | F107: 89100 | G107: 95700 | H107: 102300 | I107: 108900 | J107: =J99*2 -> 1444 | K107: =K99*2 -> 1546 | L107: 1856 | M107: 2144 | N107: 2392 | O107: 2640
A108: Colusa110% AMI | B108: =B99*2*1.1 -> 63580 | C108: =C99*2*1.1 -> 72600 | D108: 81730 | E108: 90750 | F108: 98010 | G108: 105270 | H108: 112530 | I108: 119790 | J108: =TRUNC(B108/12*0.3) -> 1589 | K108: =TRUNC((B108+C108)/2/12*0.3) -> 1702 | L108: =TRUNC((D108)/12*0.3) -> 2043 | M108: =TRUNC(((E108+F108)/2)/12*0.3) -> 2359 | N108: =TRUNC(G108/12*0.3) -> 2631 | O108: =TRUNC(((H108+I108)/2)/12*0.3) -> 2904
A109: Colusa120% AMI | B109: =B99*2*1.2 -> 69360 | C109: =C99*2*1.2 -> 79200 | D109: 89160 | E109: 99000 | F109: 106920 | G109: 114840 | H109: 122760 | I109: 130680 | J109: 1734 | K109: 1857 | L109: 2229 | M109: 2574 | N109: 2871 | O109: 3168
A110: Contra Costa15% AMI | B110: =B117*2*0.15 -> 15540 | C110: =C117*2*0.15 -> 17760 | D110: =D117*2*0.15 -> 19980 | E110: =E117*2*0.15 -> 22185 | F110: =F117*2*0.15 -> 23970 | G110: =G117*2*0.15 -> 25740 | H110: 27510 | I110: 29295 | J110: 388 | K110: 416 | L110: 499 | M110: 576 | N110: 643 | O110: 710
A111: Contra Costa20% AMI | B111: =B117*2*0.2 -> 20720 | C111: =C117*2*0.2 -> 23680 | D111: 26640 | E111: 29580 | F111: 31960 | G111: 34320 | H111: 36680 | I111: 39060 | J111: 518 | K111: 555 | L111: 666 | M111: 769 | N111: 858 | O111: 946
A112: Contra Costa25% AMI | B112: =B117*2*0.25 -> 25900 | C112: =C117*2*0.25 -> 29600 | D112: 33300 | E112: 36975 | F112: 39950 | G112: 42900 | H112: 45850 | I112: 48825 | J112: 647 | K112: 693 | L112: 832 | M112: 961 | N112: 1072 | O112: 1183
A113: Contra Costa30% AMI | B113: =B117*2*0.3 -> 31080 | C113: =C117*2*0.3 -> 35520 | D113: 39960 | E113: 44370 | F113: 47940 | G113: 51480 | H113: 55020 | I113: 58590 | J113: 777 | K113: 832 | L113: 999 | M113: 1153 | N113: 1287 | O113: 1420
A114: Contra Costa35% AMI | B114: =B117*2*0.35 -> 36260 | C114: =C117*2*0.35 -> 41440 | D114: 46620 | E114: 51765 | F114: 55930 | G114: 60060 | H114: 64190 | I114: 68355 | J114: 906 | K114: 971 | L114: 1165 | M114: 1346 | N114: 1501 | O114: 1656
A115: Contra Costa40% AMI | B115: =B117*2*0.4 -> 41440 | C115: =C117*2*0.4 -> 47360 | D115: 53280 | E115: 59160 | F115: 63920 | G115: 68640 | H115: 73360 | I115: 78120 | J115: 1036 | K115: 1110 | L115: 1332 | M115: 1538 | N115: 1716 | O115: 1893
A116: Contra Costa45% AMI | B116: =B117*2*0.45 -> 46620 | C116: =C117*2*0.45 -> 53280 | D116: 59940 | E116: 66555 | F116: 71910 | G116: 77220 | H116: 82530 | I116: 87885 | J116: 1165 | K116: 1248 | L116: 1498 | M116: 1730 | N116: 1930 | O116: 2130
A117: Contra Costa50% AMI | B117: ='MTSP 50% Income Limits '!B8 -> 51800 | C117: ='MTSP 50% Income Limits '!C8 -> 59200 | D117: ='MTSP 50% Income Limits '!D8 -> 66600 | E117: ='MTSP 50% Income Limits '!E8 -> 73950 | F117: ='MTSP 50% Income Limits '!F8 -> 79900 | G117: ='MTSP 50% Income Limits '!G8 -> 85800 | H117: ='MTSP 50% Income Limits '!H8 -> 91700 | I117: ='MTSP 50% Income Limits '!I8 -> 97650 | J117: =TRUNC(B117/12*0.3) -> 1295 | K117: =TRUNC((B117+C117)/2/12*0.3) -> 1387 | L117: =TRUNC((D117)/12*0.3) -> 1665 | M117: =TRUNC(((E117+F117)/2)/12*0.3) -> 1923 | N117: =TRUNC(G117/12*0.3) -> 2145 | O117: =TRUNC(((H117+I117)/2)/12*0.3) -> 2366
A118: Contra Costa55% AMI | B118: =B117*2*0.55 -> 56980 | C118: =C117*2*0.55 -> 65120 | D118: 73260 | E118: 81345 | F118: 87890 | G118: 94380 | H118: 100870 | I118: 107415 | J118: =TRUNC(B118/12*0.3) -> 1424 | K118: =TRUNC((B118+C118)/2/12*0.3) -> 1526 | L118: =TRUNC((D118)/12*0.3) -> 1831 | M118: =TRUNC(((E118+F118)/2)/12*0.3) -> 2115 | N118: =TRUNC(G118/12*0.3) -> 2359 | O118: =TRUNC(((H118+I118)/2)/12*0.3) -> 2603
A119: Contra Costa60% AMI | B119: =B117*2*0.6 -> 62160 | C119: =C117*2*0.6 -> 71040 | D119: 79920 | E119: 88740 | F119: 95880 | G119: 102960 | H119: 110040 | I119: 117180 | J119: 1554 | K119: 1665 | L119: 1998 | M119: 2307 | N119: 2574 | O119: 2840
A120: Contra Costa65% AMI | B120: =B117*2*0.65 -> 67340 | C120: =C117*2*0.65 -> 76960 | D120: 86580 | E120: 96135 | F120: 103870 | G120: 111540 | H120: 119210 | I120: 126945 | J120: 1683 | K120: 1803 | L120: 2164 | M120: 2500 | N120: 2788 | O120: 3076
A121: Contra Costa70% AMI | B121: =B117*2*0.7 -> 72520 | C121: =C117*2*0.7 -> 82880 | D121: 93240 | E121: 103530 | F121: 111860 | G121: 120120 | H121: 128380 | I121: 136710 | J121: 1813 | K121: 1942 | L121: 2331 | M121: 2692 | N121: 3003 | O121: 3313
A122: Contra Costa75% AMI | B122: =B117*2*0.75 -> 77700 | C122: =C117*2*0.75 -> 88800 | D122: 99900 | E122: 110925 | F122: 119850 | G122: 128700 | H122: 137550 | I122: 146475 | J122: 1942 | K122: 2081 | L122: 2497 | M122: 2884 | N122: 3217 | O122: 3550
A123: Contra Costa80% AMI | B123: =B117*2*0.8 -> 82880 | C123: =C117*2*0.8 -> 94720 | D123: 106560 | E123: 118320 | F123: 127840 | G123: 137280 | H123: 146720 | I123: 156240 | J123: 2072 | K123: 2220 | L123: 2664 | M123: 3077 | N123: 3432 | O123: 3787
A124: Contra Costa90% AMI | B124: =B117*2*0.9 -> 93240 | C124: =C117*2*0.9 -> 106560 | D124: 119880 | E124: 133110 | F124: 143820 | G124: 154440 | H124: 165060 | I124: 175770 | J124: 2331 | K124: 2497 | L124: 2997 | M124: 3461 | N124: 3861 | O124: 4260
A125: Contra Costa100% AMI | B125: =B117*2 -> 103600 | C125: =C117*2 -> 118400 | D125: 133200 | E125: 147900 | F125: 159800 | G125: 171600 | H125: 183400 | I125: 195300 | J125: =J117*2 -> 2590 | K125: =K117*2 -> 2774 | L125: 3330 | M125: 3846 | N125: 4290 | O125: 4732
A126: Contra Costa110% AMI | B126: =B117*2*1.1 -> 113960 | C126: =C117*2*1.1 -> 130240 | D126: 146520 | E126: 162690 | F126: 175780 | G126: 188760 | H126: 201740 | I126: 214830 | J126: =TRUNC(B126/12*0.3) -> 2849 | K126: =TRUNC((B126+C126)/2/12*0.3) -> 3052 | L126: =TRUNC((D126)/12*0.3) -> 3663 | M126: =TRUNC(((E126+F126)/2)/12*0.3) -> 4230 | N126: =TRUNC(G126/12*0.3) -> 4719 | O126: =TRUNC(((H126+I126)/2)/12*0.3) -> 5207
A127: Contra Costa120% AMI | B127: =B117*2*1.2 -> 124320 | C127: =C117*2*1.2 -> 142080 | D127: 159840 | E127: 177480 | F127: 191760 | G127: 205920 | H127: 220080 | I127: 234360 | J127: 3108 | K127: 3330 | L127: 3996 | M127: 4615 | N127: 5148 | O127: 5680
A128: Del Norte15% AMI | B128: =B135*2*0.15 -> 8670 | C128: =C135*2*0.15 -> 9900 | D128: =D135*2*0.15 -> 11145 | E128: =E135*2*0.15 -> 12375 | F128: =F135*2*0.15 -> 13365 | G128: =G135*2*0.15 -> 14355 | H128: 15345 | I128: 16335 | J128: 216 | K128: 232 | L128: 278 | M128: 321 | N128: 358 | O128: 396
A129: Del Norte20% AMI | B129: =B135*2*0.2 -> 11560 | C129: =C135*2*0.2 -> 13200 | D129: 14860 | E129: 16500 | F129: 17820 | G129: 19140 | H129: 20460 | I129: 21780 | J129: 289 | K129: 309 | L129: 371 | M129: 429 | N129: 478 | O129: 528
A130: Del Norte25% AMI | B130: =B135*2*0.25 -> 14450 | C130: =C135*2*0.25 -> 16500 | D130: 18575 | E130: 20625 | F130: 22275 | G130: 23925 | H130: 25575 | I130: 27225 | J130: 361 | K130: 386 | L130: 464 | M130: 536 | N130: 598 | O130: 660
A131: Del Norte30% AMI | B131: =B135*2*0.3 -> 17340 | C131: =C135*2*0.3 -> 19800 | D131: 22290 | E131: 24750 | F131: 26730 | G131: 28710 | H131: 30690 | I131: 32670 | J131: 433 | K131: 464 | L131: 557 | M131: 643 | N131: 717 | O131: 792
A132: Del Norte35% AMI | B132: =B135*2*0.35 -> 20230 | C132: =C135*2*0.35 -> 23100 | D132: 26005 | E132: 28875 | F132: 31185 | G132: 33495 | H132: 35805 | I132: 38115 | J132: 505 | K132: 541 | L132: 650 | M132: 750 | N132: 837 | O132: 924
A133: Del Norte40% AMI | B133: =B135*2*0.4 -> 23120 | C133: =C135*2*0.4 -> 26400 | D133: 29720 | E133: 33000 | F133: 35640 | G133: 38280 | H133: 40920 | I133: 43560 | J133: 578 | K133: 619 | L133: 743 | M133: 858 | N133: 957 | O133: 1056
A134: Del Norte45% AMI | B134: =B135*2*0.45 -> 26010 | C134: =C135*2*0.45 -> 29700 | D134: 33435 | E134: 37125 | F134: 40095 | G134: 43065 | H134: 46035 | I134: 49005 | J134: 650 | K134: 696 | L134: 835 | M134: 965 | N134: 1076 | O134: 1188
A135: Del Norte50% AMI | B135: ='MTSP 50% Income Limits '!B9 -> 28900 | C135: ='MTSP 50% Income Limits '!C9 -> 33000 | D135: ='MTSP 50% Income Limits '!D9 -> 37150 | E135: ='MTSP 50% Income Limits '!E9 -> 41250 | F135: ='MTSP 50% Income Limits '!F9 -> 44550 | G135: ='MTSP 50% Income Limits '!G9 -> 47850 | H135: ='MTSP 50% Income Limits '!H9 -> 51150 | I135: ='MTSP 50% Income Limits '!I9 -> 54450 | J135: =TRUNC(B135/12*0.3) -> 722 | K135: =TRUNC((B135+C135)/2/12*0.3) -> 773 | L135: =TRUNC((D135)/12*0.3) -> 928 | M135: =TRUNC(((E135+F135)/2)/12*0.3) -> 1072 | N135: =TRUNC(G135/12*0.3) -> 1196 | O135: =TRUNC(((H135+I135)/2)/12*0.3) -> 1320
A136: Del Norte55% AMI | B136: =B135*2*0.55 -> 31790 | C136: =C135*2*0.55 -> 36300 | D136: 40865 | E136: 45375 | F136: 49005 | G136: 52635 | H136: 56265 | I136: 59895 | J136: =TRUNC(B136/12*0.3) -> 794 | K136: =TRUNC((B136+C136)/2/12*0.3) -> 851 | L136: =TRUNC((D136)/12*0.3) -> 1021 | M136: =TRUNC(((E136+F136)/2)/12*0.3) -> 1179 | N136: =TRUNC(G136/12*0.3) -> 1315 | O136: =TRUNC(((H136+I136)/2)/12*0.3) -> 1452
A137: Del Norte60% AMI | B137: =B135*2*0.6 -> 34680 | C137: =C135*2*0.6 -> 39600 | D137: 44580 | E137: 49500 | F137: 53460 | G137: 57420 | H137: 61380 | I137: 65340 | J137: 867 | K137: 928 | L137: 1114 | M137: 1287 | N137: 1435 | O137: 1584
A138: Del Norte65% AMI | B138: =B135*2*0.65 -> 37570 | C138: =C135*2*0.65 -> 42900 | D138: 48295 | E138: 53625 | F138: 57915 | G138: 62205 | H138: 66495 | I138: 70785 | J138: 939 | K138: 1005 | L138: 1207 | M138: 1394 | N138: 1555 | O138: 1716
A139: Del Norte70% AMI | B139: =B135*2*0.7 -> 40460 | C139: =C135*2*0.7 -> 46200 | D139: 52010 | E139: 57750 | F139: 62370 | G139: 66990 | H139: 71610 | I139: 76230 | J139: 1011 | K139: 1083 | L139: 1300 | M139: 1501 | N139: 1674 | O139: 1848
A140: Del Norte75% AMI | B140: =B135*2*0.75 -> 43350 | C140: =C135*2*0.75 -> 49500 | D140: 55725 | E140: 61875 | F140: 66825 | G140: 71775 | H140: 76725 | I140: 81675 | J140: 1083 | K140: 1160 | L140: 1393 | M140: 1608 | N140: 1794 | O140: 1980
A141: Del Norte80% AMI | B141: =B135*2*0.8 -> 46240 | C141: =C135*2*0.8 -> 52800 | D141: 59440 | E141: 66000 | F141: 71280 | G141: 76560 | H141: 81840 | I141: 87120 | J141: 1156 | K141: 1238 | L141: 1486 | M141: 1716 | N141: 1914 | O141: 2112
A142: Del Norte90% AMI | B142: =B135*2*0.9 -> 52020 | C142: =C135*2*0.9 -> 59400 | D142: 66870 | E142: 74250 | F142: 80190 | G142: 86130 | H142: 92070 | I142: 98010 | J142: 1300 | K142: 1392 | L142: 1671 | M142: 1930 | N142: 2153 | O142: 2376
A143: Del Norte100% AMI | B143: =B135*2 -> 57800 | C143: =C135*2 -> 66000 | D143: 74300 | E143: 82500 | F143: 89100 | G143: 95700 | H143: 102300 | I143: 108900 | J143: =J135*2 -> 1444 | K143: =K135*2 -> 1546 | L143: 1856 | M143: 2144 | N143: 2392 | O143: 2640
A144: Del Norte110% AMI | B144: =B135*2*1.1 -> 63580 | C144: =C135*2*1.1 -> 72600 | D144: 81730 | E144: 90750 | F144: 98010 | G144: 105270 | H144: 112530 | I144: 119790 | J144: =TRUNC(B144/12*0.3) -> 1589 | K144: =TRUNC((B144+C144)/2/12*0.3) -> 1702 | L144: =TRUNC((D144)/12*0.3) -> 2043 | M144: =TRUNC(((E144+F144)/2)/12*0.3) -> 2359 | N144: =TRUNC(G144/12*0.3) -> 2631 | O144: =TRUNC(((H144+I144)/2)/12*0.3) -> 2904
A145: Del Norte120% AMI | B145: =B135*2*1.2 -> 69360 | C145: =C135*2*1.2 -> 79200 | D145: 89160 | E145: 99000 | F145: 106920 | G145: 114840 | H145: 122760 | I145: 130680 | J145: 1734 | K145: 1857 | L145: 2229 | M145: 2574 | N145: 2871 | O145: 3168
A146: El Dorado15% AMI | B146: =B153*2*0.15 -> 11265 | C146: =C153*2*0.15 -> 12870 | D146: =D153*2*0.15 -> 14475 | E146: =E153*2*0.15 -> 16080 | F146: =F153*2*0.15 -> 17370 | G146: =G153*2*0.15 -> 18660 | H146: 19950 | I146: 21240 | J146: 281 | K146: 301 | L146: 361 | M146: 418 | N146: 466 | O146: 514
A147: El Dorado20% AMI | B147: =B153*2*0.2 -> 15020 | C147: =C153*2*0.2 -> 17160 | D147: 19300 | E147: 21440 | F147: 23160 | G147: 24880 | H147: 26600 | I147: 28320 | J147: 375 | K147: 402 | L147: 482 | M147: 557 | N147: 622 | O147: 686
A148: El Dorado25% AMI | B148: =B153*2*0.25 -> 18775 | C148: =C153*2*0.25 -> 21450 | D148: 24125 | E148: 26800 | F148: 28950 | G148: 31100 | H148: 33250 | I148: 35400 | J148: 469 | K148: 502 | L148: 603 | M148: 696 | N148: 777 | O148: 858
A149: El Dorado30% AMI | B149: =B153*2*0.3 -> 22530 | C149: =C153*2*0.3 -> 25740 | D149: 28950 | E149: 32160 | F149: 34740 | G149: 37320 | H149: 39900 | I149: 42480 | J149: 563 | K149: 603 | L149: 723 | M149: 836 | N149: 933 | O149: 1029
A150: El Dorado35% AMI | B150: =B153*2*0.35 -> 26285 | C150: =C153*2*0.35 -> 30030 | D150: 33775 | E150: 37520 | F150: 40530 | G150: 43540 | H150: 46550 | I150: 49560 | J150: 657 | K150: 703 | L150: 844 | M150: 975 | N150: 1088 | O150: 1201
A151: El Dorado40% AMI | B151: =B153*2*0.4 -> 30040 | C151: =C153*2*0.4 -> 34320 | D151: 38600 | E151: 42880 | F151: 46320 | G151: 49760 | H151: 53200 | I151: 56640 | J151: 751 | K151: 804 | L151: 965 | M151: 1115 | N151: 1244 | O151: 1373
A152: El Dorado45% AMI | B152: =B153*2*0.45 -> 33795 | C152: =C153*2*0.45 -> 38610 | D152: 43425 | E152: 48240 | F152: 52110 | G152: 55980 | H152: 59850 | I152: 63720 | J152: 844 | K152: 905 | L152: 1085 | M152: 1254 | N152: 1399 | O152: 1544
A153: El Dorado50% AMI | B153: ='MTSP 50% Income Limits '!B10 -> 37550 | C153: ='MTSP 50% Income Limits '!C10 -> 42900 | D153: ='MTSP 50% Income Limits '!D10 -> 48250 | E153: ='MTSP 50% Income Limits '!E10 -> 53600 | F153: ='MTSP 50% Income Limits '!F10 -> 57900 | G153: ='MTSP 50% Income Limits '!G10 -> 62200 | H153: ='MTSP 50% Income Limits '!H10 -> 66500 | I153: ='MTSP 50% Income Limits '!I10 -> 70800 | J153: =TRUNC(B153/12*0.3) -> 938 | K153: =TRUNC((B153+C153)/2/12*0.3) -> 1005 | L153: =TRUNC((D153)/12*0.3) -> 1206 | M153: =TRUNC(((E153+F153)/2)/12*0.3) -> 1393 | N153: =TRUNC(G153/12*0.3) -> 1555 | O153: =TRUNC(((H153+I153)/2)/12*0.3) -> 1716
A154: El Dorado55% AMI | B154: =B153*2*0.55 -> 41305 | C154: =C153*2*0.55 -> 47190 | D154: 53075 | E154: 58960 | F154: 63690 | G154: 68420 | H154: 73150 | I154: 77880 | J154: =TRUNC(B154/12*0.3) -> 1032 | K154: =TRUNC((B154+C154)/2/12*0.3) -> 1106 | L154: =TRUNC((D154)/12*0.3) -> 1326 | M154: =TRUNC(((E154+F154)/2)/12*0.3) -> 1533 | N154: =TRUNC(G154/12*0.3) -> 1710 | O154: =TRUNC(((H154+I154)/2)/12*0.3) -> 1887
A155: El Dorado60% AMI | B155: =B153*2*0.6 -> 45060 | C155: =C153*2*0.6 -> 51480 | D155: 57900 | E155: 64320 | F155: 69480 | G155: 74640 | H155: 79800 | I155: 84960 | J155: 1126 | K155: 1206 | L155: 1447 | M155: 1672 | N155: 1866 | O155: 2059
A156: El Dorado65% AMI | B156: =B153*2*0.65 -> 48815 | C156: =C153*2*0.65 -> 55770 | D156: 62725 | E156: 69680 | F156: 75270 | G156: 80860 | H156: 86450 | I156: 92040 | J156: 1220 | K156: 1307 | L156: 1568 | M156: 1811 | N156: 2021 | O156: 2231
A157: El Dorado70% AMI | B157: =B153*2*0.7 -> 52570 | C157: =C153*2*0.7 -> 60060 | D157: 67550 | E157: 75040 | F157: 81060 | G157: 87080 | H157: 93100 | I157: 99120 | J157: 1314 | K157: 1407 | L157: 1688 | M157: 1951 | N157: 2177 | O157: 2402
A158: El Dorado75% AMI | B158: =B153*2*0.75 -> 56325 | C158: =C153*2*0.75 -> 64350 | D158: 72375 | E158: 80400 | F158: 86850 | G158: 93300 | H158: 99750 | I158: 106200 | J158: 1408 | K158: 1508 | L158: 1809 | M158: 2090 | N158: 2332 | O158: 2574
A159: El Dorado80% AMI | B159: =B153*2*0.8 -> 60080 | C159: =C153*2*0.8 -> 68640 | D159: 77200 | E159: 85760 | F159: 92640 | G159: 99520 | H159: 106400 | I159: 113280 | J159: 1502 | K159: 1609 | L159: 1930 | M159: 2230 | N159: 2488 | O159: 2746
A160: El Dorado90% AMI | B160: =B153*2*0.9 -> 67590 | C160: =C153*2*0.9 -> 77220 | D160: 86850 | E160: 96480 | F160: 104220 | G160: 111960 | H160: 119700 | I160: 127440 | J160: 1689 | K160: 1810 | L160: 2171 | M160: 2508 | N160: 2799 | O160: 3089
A161: El Dorado100% AMI | B161: =B153*2 -> 75100 | C161: =C153*2 -> 85800 | D161: 96500 | E161: 107200 | F161: 115800 | G161: 124400 | H161: 133000 | I161: 141600 | J161: =J153*2 -> 1876 | K161: =K153*2 -> 2010 | L161: 2412 | M161: 2786 | N161: 3110 | O161: 3432
A162: El Dorado110% AMI | B162: =B153*2*1.1 -> 82610 | C162: =C153*2*1.1 -> 94380 | D162: 106150 | E162: 117920 | F162: 127380 | G162: 136840 | H162: 146300 | I162: 155760 | J162: =TRUNC(B162/12*0.3) -> 2065 | K162: =TRUNC((B162+C162)/2/12*0.3) -> 2212 | L162: =TRUNC((D162)/12*0.3) -> 2653 | M162: =TRUNC(((E162+F162)/2)/12*0.3) -> 3066 | N162: =TRUNC(G162/12*0.3) -> 3421 | O162: =TRUNC(((H162+I162)/2)/12*0.3) -> 3775
A163: El Dorado120% AMI | B163: =B153*2*1.2 -> 90120 | C163: =C153*2*1.2 -> 102960 | D163: 115800 | E163: 128640 | F163: 138960 | G163: 149280 | H163: 159600 | I163: 169920 | J163: 2253 | K163: 2413 | L163: 2895 | M163: 3345 | N163: 3732 | O163: 4119
A164: Fresno15% AMI | B164: =B171*2*0.15 -> 8670 | C164: =C171*2*0.15 -> 9900 | D164: =D171*2*0.15 -> 11145 | E164: =E171*2*0.15 -> 12375 | F164: =F171*2*0.15 -> 13365 | G164: =G171*2*0.15 -> 14355 | H164: 15345 | I164: 16335 | J164: 216 | K164: 232 | L164: 278 | M164: 321 | N164: 358 | O164: 396
A165: Fresno20% AMI | B165: =B171*2*0.2 -> 11560 | C165: =C171*2*0.2 -> 13200 | D165: 14860 | E165: 16500 | F165: 17820 | G165: 19140 | H165: 20460 | I165: 21780 | J165: 289 | K165: 309 | L165: 371 | M165: 429 | N165: 478 | O165: 528
A166: Fresno25% AMI | B166: =B171*2*0.25 -> 14450 | C166: =C171*2*0.25 -> 16500 | D166: 18575 | E166: 20625 | F166: 22275 | G166: 23925 | H166: 25575 | I166: 27225 | J166: 361 | K166: 386 | L166: 464 | M166: 536 | N166: 598 | O166: 660
A167: Fresno30% AMI | B167: =B171*2*0.3 -> 17340 | C167: =C171*2*0.3 -> 19800 | D167: 22290 | E167: 24750 | F167: 26730 | G167: 28710 | H167: 30690 | I167: 32670 | J167: 433 | K167: 464 | L167: 557 | M167: 643 | N167: 717 | O167: 792
A168: Fresno35% AMI | B168: =B171*2*0.35 -> 20230 | C168: =C171*2*0.35 -> 23100 | D168: 26005 | E168: 28875 | F168: 31185 | G168: 33495 | H168: 35805 | I168: 38115 | J168: 505 | K168: 541 | L168: 650 | M168: 750 | N168: 837 | O168: 924
A169: Fresno40% AMI | B169: =B171*2*0.4 -> 23120 | C169: =C171*2*0.4 -> 26400 | D169: 29720 | E169: 33000 | F169: 35640 | G169: 38280 | H169: 40920 | I169: 43560 | J169: 578 | K169: 619 | L169: 743 | M169: 858 | N169: 957 | O169: 1056
A170: Fresno45% AMI | B170: =B171*2*0.45 -> 26010 | C170: =C171*2*0.45 -> 29700 | D170: 33435 | E170: 37125 | F170: 40095 | G170: 43065 | H170: 46035 | I170: 49005 | J170: 650 | K170: 696 | L170: 835 | M170: 965 | N170: 1076 | O170: 1188
A171: Fresno50% AMI | B171: ='MTSP 50% Income Limits '!B11 -> 28900 | C171: ='MTSP 50% Income Limits '!C11 -> 33000 | D171: ='MTSP 50% Income Limits '!D11 -> 37150 | E171: ='MTSP 50% Income Limits '!E11 -> 41250 | F171: ='MTSP 50% Income Limits '!F11 -> 44550 | G171: ='MTSP 50% Income Limits '!G11 -> 47850 | H171: ='MTSP 50% Income Limits '!H11 -> 51150 | I171: ='MTSP 50% Income Limits '!I11 -> 54450 | J171: =TRUNC(B171/12*0.3) -> 722 | K171: =TRUNC((B171+C171)/2/12*0.3) -> 773 | L171: =TRUNC((D171)/12*0.3) -> 928 | M171: =TRUNC(((E171+F171)/2)/12*0.3) -> 1072 | N171: =TRUNC(G171/12*0.3) -> 1196 | O171: =TRUNC(((H171+I171)/2)/12*0.3) -> 1320
A172: Fresno55% AMI | B172: =B171*2*0.55 -> 31790 | C172: =C171*2*0.55 -> 36300 | D172: 40865 | E172: 45375 | F172: 49005 | G172: 52635 | H172: 56265 | I172: 59895 | J172: =TRUNC(B172/12*0.3) -> 794 | K172: =TRUNC((B172+C172)/2/12*0.3) -> 851 | L172: =TRUNC((D172)/12*0.3) -> 1021 | M172: =TRUNC(((E172+F172)/2)/12*0.3) -> 1179 | N172: =TRUNC(G172/12*0.3) -> 1315 | O172: =TRUNC(((H172+I172)/2)/12*0.3) -> 1452
A173: Fresno60% AMI | B173: =B171*2*0.6 -> 34680 | C173: =C171*2*0.6 -> 39600 | D173: 44580 | E173: 49500 | F173: 53460 | G173: 57420 | H173: 61380 | I173: 65340 | J173: 867 | K173: 928 | L173: 1114 | M173: 1287 | N173: 1435 | O173: 1584
A174: Fresno65% AMI | B174: =B171*2*0.65 -> 37570 | C174: =C171*2*0.65 -> 42900 | D174: 48295 | E174: 53625 | F174: 57915 | G174: 62205 | H174: 66495 | I174: 70785 | J174: 939 | K174: 1005 | L174: 1207 | M174: 1394 | N174: 1555 | O174: 1716
A175: Fresno70% AMI | B175: =B171*2*0.7 -> 40460 | C175: =C171*2*0.7 -> 46200 | D175: 52010 | E175: 57750 | F175: 62370 | G175: 66990 | H175: 71610 | I175: 76230 | J175: 1011 | K175: 1083 | L175: 1300 | M175: 1501 | N175: 1674 | O175: 1848
A176: Fresno75% AMI | B176: =B171*2*0.75 -> 43350 | C176: =C171*2*0.75 -> 49500 | D176: 55725 | E176: 61875 | F176: 66825 | G176: 71775 | H176: 76725 | I176: 81675 | J176: 1083 | K176: 1160 | L176: 1393 | M176: 1608 | N176: 1794 | O176: 1980
A177: Fresno80% AMI | B177: =B171*2*0.8 -> 46240 | C177: =C171*2*0.8 -> 52800 | D177: 59440 | E177: 66000 | F177: 71280 | G177: 76560 | H177: 81840 | I177: 87120 | J177: 1156 | K177: 1238 | L177: 1486 | M177: 1716 | N177: 1914 | O177: 2112
A178: Fresno90% AMI | B178: =B171*2*0.9 -> 52020 | C178: =C171*2*0.9 -> 59400 | D178: 66870 | E178: 74250 | F178: 80190 | G178: 86130 | H178: 92070 | I178: 98010 | J178: 1300 | K178: 1392 | L178: 1671 | M178: 1930 | N178: 2153 | O178: 2376
A179: Fresno100% AMI | B179: =B171*2 -> 57800 | C179: =C171*2 -> 66000 | D179: 74300 | E179: 82500 | F179: 89100 | G179: 95700 | H179: 102300 | I179: 108900 | J179: =J171*2 -> 1444 | K179: =K171*2 -> 1546 | L179: 1856 | M179: 2144 | N179: 2392 | O179: 2640
A180: Fresno110% AMI | B180: =B171*2*1.1 -> 63580 | C180: =C171*2*1.1 -> 72600 | D180: 81730 | E180: 90750 | F180: 98010 | G180: 105270 | H180: 112530 | I180: 119790 | J180: =TRUNC(B180/12*0.3) -> 1589 | K180: =TRUNC((B180+C180)/2/12*0.3) -> 1702 | L180: =TRUNC((D180)/12*0.3) -> 2043 | M180: =TRUNC(((E180+F180)/2)/12*0.3) -> 2359 | N180: =TRUNC(G180/12*0.3) -> 2631 | O180: =TRUNC(((H180+I180)/2)/12*0.3) -> 2904
A181: Fresno120% AMI | B181: =B171*2*1.2 -> 69360 | C181: =C171*2*1.2 -> 79200 | D181: 89160 | E181: 99000 | F181: 106920 | G181: 114840 | H181: 122760 | I181: 130680 | J181: 1734 | K181: 1857 | L181: 2229 | M181: 2574 | N181: 2871 | O181: 3168
A182: Glenn15% AMI | B182: =B189*2*0.15 -> 8670 | C182: =C189*2*0.15 -> 9900 | D182: =D189*2*0.15 -> 11145 | E182: =E189*2*0.15 -> 12375 | F182: =F189*2*0.15 -> 13365 | G182: =G189*2*0.15 -> 14355 | H182: 15345 | I182: 16335 | J182: 216 | K182: 232 | L182: 278 | M182: 321 | N182: 358 | O182: 396
A183: Glenn20% AMI | B183: =B189*2*0.2 -> 11560 | C183: =C189*2*0.2 -> 13200 | D183: 14860 | E183: 16500 | F183: 17820 | G183: 19140 | H183: 20460 | I183: 21780 | J183: 289 | K183: 309 | L183: 371 | M183: 429 | N183: 478 | O183: 528
A184: Glenn25% AMI | B184: =B189*2*0.25 -> 14450 | C184: =C189*2*0.25 -> 16500 | D184: 18575 | E184: 20625 | F184: 22275 | G184: 23925 | H184: 25575 | I184: 27225 | J184: 361 | K184: 386 | L184: 464 | M184: 536 | N184: 598 | O184: 660
A185: Glenn30% AMI | B185: =B189*2*0.3 -> 17340 | C185: =C189*2*0.3 -> 19800 | D185: 22290 | E185: 24750 | F185: 26730 | G185: 28710 | H185: 30690 | I185: 32670 | J185: 433 | K185: 464 | L185: 557 | M185: 643 | N185: 717 | O185: 792
A186: Glenn35% AMI | B186: =B189*2*0.35 -> 20230 | C186: =C189*2*0.35 -> 23100 | D186: 26005 | E186: 28875 | F186: 31185 | G186: 33495 | H186: 35805 | I186: 38115 | J186: 505 | K186: 541 | L186: 650 | M186: 750 | N186: 837 | O186: 924
A187: Glenn40% AMI | B187: =B189*2*0.4 -> 23120 | C187: =C189*2*0.4 -> 26400 | D187: 29720 | E187: 33000 | F187: 35640 | G187: 38280 | H187: 40920 | I187: 43560 | J187: 578 | K187: 619 | L187: 743 | M187: 858 | N187: 957 | O187: 1056
A188: Glenn45% AMI | B188: =B189*2*0.45 -> 26010 | C188: =C189*2*0.45 -> 29700 | D188: 33435 | E188: 37125 | F188: 40095 | G188: 43065 | H188: 46035 | I188: 49005 | J188: 650 | K188: 696 | L188: 835 | M188: 965 | N188: 1076 | O188: 1188
A189: Glenn50% AMI | B189: ='MTSP 50% Income Limits '!B12 -> 28900 | C189: ='MTSP 50% Income Limits '!C12 -> 33000 | D189: ='MTSP 50% Income Limits '!D12 -> 37150 | E189: ='MTSP 50% Income Limits '!E12 -> 41250 | F189: ='MTSP 50% Income Limits '!F12 -> 44550 | G189: ='MTSP 50% Income Limits '!G12 -> 47850 | H189: ='MTSP 50% Income Limits '!H12 -> 51150 | I189: ='MTSP 50% Income Limits '!I12 -> 54450 | J189: =TRUNC(B189/12*0.3) -> 722 | K189: =TRUNC((B189+C189)/2/12*0.3) -> 773 | L189: =TRUNC((D189)/12*0.3) -> 928 | M189: =TRUNC(((E189+F189)/2)/12*0.3) -> 1072 | N189: =TRUNC(G189/12*0.3) -> 1196 | O189: =TRUNC(((H189+I189)/2)/12*0.3) -> 1320
A190: Glenn55% AMI | B190: =B189*2*0.55 -> 31790 | C190: =C189*2*0.55 -> 36300 | D190: 40865 | E190: 45375 | F190: 49005 | G190: 52635 | H190: 56265 | I190: 59895 | J190: =TRUNC(B190/12*0.3) -> 794 | K190: =TRUNC((B190+C190)/2/12*0.3) -> 851 | L190: =TRUNC((D190)/12*0.3) -> 1021 | M190: =TRUNC(((E190+F190)/2)/12*0.3) -> 1179 | N190: =TRUNC(G190/12*0.3) -> 1315 | O190: =TRUNC(((H190+I190)/2)/12*0.3) -> 1452
A191: Glenn60% AMI | B191: =B189*2*0.6 -> 34680 | C191: =C189*2*0.6 -> 39600 | D191: 44580 | E191: 49500 | F191: 53460 | G191: 57420 | H191: 61380 | I191: 65340 | J191: 867 | K191: 928 | L191: 1114 | M191: 1287 | N191: 1435 | O191: 1584
A192: Glenn65% AMI | B192: =B189*2*0.65 -> 37570 | C192: =C189*2*0.65 -> 42900 | D192: 48295 | E192: 53625 | F192: 57915 | G192: 62205 | H192: 66495 | I192: 70785 | J192: 939 | K192: 1005 | L192: 1207 | M192: 1394 | N192: 1555 | O192: 1716
A193: Glenn70% AMI | B193: =B189*2*0.7 -> 40460 | C193: =C189*2*0.7 -> 46200 | D193: 52010 | E193: 57750 | F193: 62370 | G193: 66990 | H193: 71610 | I193: 76230 | J193: 1011 | K193: 1083 | L193: 1300 | M193: 1501 | N193: 1674 | O193: 1848
A194: Glenn75% AMI | B194: =B189*2*0.75 -> 43350 | C194: =C189*2*0.75 -> 49500 | D194: 55725 | E194: 61875 | F194: 66825 | G194: 71775 | H194: 76725 | I194: 81675 | J194: 1083 | K194: 1160 | L194: 1393 | M194: 1608 | N194: 1794 | O194: 1980
A195: Glenn80% AMI | B195: =B189*2*0.8 -> 46240 | C195: =C189*2*0.8 -> 52800 | D195: 59440 | E195: 66000 | F195: 71280 | G195: 76560 | H195: 81840 | I195: 87120 | J195: 1156 | K195: 1238 | L195: 1486 | M195: 1716 | N195: 1914 | O195: 2112
A196: Glenn90% AMI | B196: =B189*2*0.9 -> 52020 | C196: =C189*2*0.9 -> 59400 | D196: 66870 | E196: 74250 | F196: 80190 | G196: 86130 | H196: 92070 | I196: 98010 | J196: 1300 | K196: 1392 | L196: 1671 | M196: 1930 | N196: 2153 | O196: 2376
A197: Glenn100% AMI | B197: =B189*2 -> 57800 | C197: =C189*2 -> 66000 | D197: 74300 | E197: 82500 | F197: 89100 | G197: 95700 | H197: 102300 | I197: 108900 | J197: =J189*2 -> 1444 | K197: =K189*2 -> 1546 | L197: 1856 | M197: 2144 | N197: 2392 | O197: 2640
A198: Glenn110% AMI | B198: =B189*2*1.1 -> 63580 | C198: =C189*2*1.1 -> 72600 | D198: 81730 | E198: 90750 | F198: 98010 | G198: 105270 | H198: 112530 | I198: 119790 | J198: =TRUNC(B198/12*0.3) -> 1589 | K198: =TRUNC((B198+C198)/2/12*0.3) -> 1702 | L198: =TRUNC((D198)/12*0.3) -> 2043 | M198: =TRUNC(((E198+F198)/2)/12*0.3) -> 2359 | N198: =TRUNC(G198/12*0.3) -> 2631 | O198: =TRUNC(((H198+I198)/2)/12*0.3) -> 2904
A199: Glenn120% AMI | B199: =B189*2*1.2 -> 69360 | C199: =C189*2*1.2 -> 79200 | D199: 89160 | E199: 99000 | F199: 106920 | G199: 114840 | H199: 122760 | I199: 130680 | J199: 1734 | K199: 1857 | L199: 2229 | M199: 2574 | N199: 2871 | O199: 3168
A200: Humboldt15% AMI | B200: =B207*2*0.15 -> 8670 | C200: =C207*2*0.15 -> 9900 | D200: =D207*2*0.15 -> 11145 | E200: =E207*2*0.15 -> 12375 | F200: =F207*2*0.15 -> 13365 | G200: =G207*2*0.15 -> 14355 | H200: 15345 | I200: 16335 | J200: 216 | K200: 232 | L200: 278 | M200: 321 | N200: 358 | O200: 396
... 845 more rows

Sheet MHP 9% SH & Large Family Loan (hidden)
A1: Multifamily Housing Program (MHP) 2021 Per Unit Loan Limits - Projects with 9% Tax Credits (Supportive Housing units & Restricted units in a Large Family new construction project located in a “High Resource” or “Highest Resource” area on the TCAC/HCD Opportunity Map)
A2: Base Amount: | B2: 300000 | C2: Southern CA | D2: 300000
A3: Assume: | B3: DSCR | C3: 0.06 | D3: 360 | E3: 1.1
A4: Base Amount + Reduction in Amount Financeable due to Rent Limitations below 60% AMI | B4: vacancy rate | E4: 0.05
A5: County | B5: 0 | C5: 1 | D5: 2 | E5: 3 | F5: 4
A6: ALAMEDA
A7: ALAMEDA60% | B7: 300000 | C7: 304000 | D7: 308000 | E7: 312000 | F7: 316000 | H7: 300000 | I7: 302000 | J7: 304000 | K7: 306000 | L7: 308000
A8: ALAMEDA55% | B8: =+$B$2+PV($C$3/12,$D$3,-(('Rent Limits'!$J$11-'Rent Limits'!J10)*(1-$E$4))/$E$3) -> 318726.1494 | C8: =+$B$2+PV($C$3/12,$D$3,-(('Rent Limits'!$K$11-'Rent Limits'!K10)*(1-$E$4))/$E$3) -> 320022.5752 | D8: =+$B$2+PV($C$3/12,$D$3,-(('Rent Limits'!L11-'Rent Limits'!L10)*(1-$E$4))/$E$3) -> 324055.8997 | E8: =+$B$2+PV($C$3/12,$D$3,-(('Rent Limits'!M11-'Rent Limits'!M10)*(1-$E$4))/$E$3) -> 327657.0822 | F8: =+$B$2+PV($C$3/12,$D$3,-(('Rent Limits'!N11-'Rent Limits'!N10)*(1-$E$4))/$E$3) -> 330970.1702
A9: ALAMEDA50% | B9: =+$B$2+PV($C$3/12,$D$3,-(('Rent Limits'!$J$11-'Rent Limits'!J9)*(1-$E$4))/$E$3) -> 337308.2516 | C9: =+$B$2+PV($C$3/12,$D$3,-(('Rent Limits'!$K$11-'Rent Limits'!K9)*(1-$E$4))/$E$3) -> 340045.1503 | D9: =+$B$2+PV($C$3/12,$D$3,-(('Rent Limits'!L11-'Rent Limits'!L9)*(1-$E$4))/$E$3) -> 347967.752 | E9: =+$B$2+PV($C$3/12,$D$3,-(('Rent Limits'!M11-'Rent Limits'!M9)*(1-$E$4))/$E$3) -> 355314.1645 | F9: =+$B$2+PV($C$3/12,$D$3,-(('Rent Limits'!N11-'Rent Limits'!N9)*(1-$E$4))/$E$3) -> 361796.2931 | H9: 300000 | I9: 303000 | J9: 306000 | K9: 309000 | L9: 312000
A10: ALAMEDA45% | B10: =+$B$2+PV($C$3/12,$D$3,-(('Rent Limits'!$J$11-'Rent Limits'!J8)*(1-$E$4))/$E$3) -> 356034.401 | C10: =+$B$2+PV($C$3/12,$D$3,-(('Rent Limits'!$K$11-'Rent Limits'!K8)*(1-$E$4))/$E$3) -> 360067.7255 | D10: =+$B$2+PV($C$3/12,$D$3,-(('Rent Limits'!L11-'Rent Limits'!L8)*(1-$E$4))/$E$3) -> 372023.6517 | E10: =+$B$2+PV($C$3/12,$D$3,-(('Rent Limits'!M11-'Rent Limits'!M8)*(1-$E$4))/$E$3) -> 383115.294 | F10: =+$B$2+PV($C$3/12,$D$3,-(('Rent Limits'!N11-'Rent Limits'!N8)*(1-$E$4))/$E$3) -> 392766.4634
A11: ALAMEDA40% | B11: =+$B$2+PV($C$3/12,$D$3,-(('Rent Limits'!$J$11-'Rent Limits'!J7)*(1-$E$4))/$E$3) -> 374616.5031 | C11: =+$B$2+PV($C$3/12,$D$3,-(('Rent Limits'!$K$11-'Rent Limits'!K7)*(1-$E$4))/$E$3) -> 379946.2534 | D11: =+$B$2+PV($C$3/12,$D$3,-(('Rent Limits'!L11-'Rent Limits'!L7)*(1-$E$4))/$E$3) -> 396079.5513 | E11: =+$B$2+PV($C$3/12,$D$3,-(('Rent Limits'!M11-'Rent Limits'!M7)*(1-$E$4))/$E$3) -> 410772.3763 | F11: =+$B$2+PV($C$3/12,$D$3,-(('Rent Limits'!N11-'Rent Limits'!N7)*(1-$E$4))/$E$3) -> 423592.5863 | H11: 300000 | I11: 304000 | J11: 308000 | K11: 312000 | L11: 316000
A12: ALAMEDA35% | B12: =+$B$2+PV($C$3/12,$D$3,-(('Rent Limits'!$J$11-'Rent Limits'!J6)*(1-$E$4))/$E$3) -> 393342.6526 | C12: =+$B$2+PV($C$3/12,$D$3,-(('Rent Limits'!$K$11-'Rent Limits'!K6)*(1-$E$4))/$E$3) -> 399968.8285 | D12: =+$B$2+PV($C$3/12,$D$3,-(('Rent Limits'!L11-'Rent Limits'!L6)*(1-$E$4))/$E$3) -> 420135.451 | E12: =+$B$2+PV($C$3/12,$D$3,-(('Rent Limits'!M11-'Rent Limits'!M6)*(1-$E$4))/$E$3) -> 438429.4585 | F12: =+$B$2+PV($C$3/12,$D$3,-(('Rent Limits'!N11-'Rent Limits'!N6)*(1-$E$4))/$E$3) -> 454562.7565
A13: ALAMEDA30% | B13: =+$B$2+PV($C$3/12,$D$3,-(('Rent Limits'!$J$11-'Rent Limits'!J5)*(1-$E$4))/$E$3) -> 411924.7547 | C13: =+$B$2+PV($C$3/12,$D$3,-(('Rent Limits'!$K$11-'Rent Limits'!K5)*(1-$E$4))/$E$3) -> 419991.4037 | D13: =+$B$2+PV($C$3/12,$D$3,-(('Rent Limits'!L11-'Rent Limits'!L5)*(1-$E$4))/$E$3) -> 444047.3033 | E13: =+$B$2+PV($C$3/12,$D$3,-(('Rent Limits'!M11-'Rent Limits'!M5)*(1-$E$4))/$E$3) -> 466230.5881 | F13: =+$B$2+PV($C$3/12,$D$3,-(('Rent Limits'!N11-'Rent Limits'!N5)*(1-$E$4))/$E$3) -> 485388.8794 | H13: 300000 | I13: 305000 | J13: 310000 | K13: 315000 | L13: 320000
A14: ALAMEDA25% | B14: =+$B$2+PV($C$3/12,$D$3,-(('Rent Limits'!$J$11-'Rent Limits'!J4)*(1-$E$4))/$E$3) -> 430650.9041 | C14: =+$B$2+PV($C$3/12,$D$3,-(('Rent Limits'!$K$11-'Rent Limits'!K4)*(1-$E$4))/$E$3) -> 440013.9788 | D14: =+$B$2+PV($C$3/12,$D$3,-(('Rent Limits'!L11-'Rent Limits'!L4)*(1-$E$4))/$E$3) -> 468103.203 | E14: =+$B$2+PV($C$3/12,$D$3,-(('Rent Limits'!M11-'Rent Limits'!M4)*(1-$E$4))/$E$3) -> 493887.6703 | F14: =+$B$2+PV($C$3/12,$D$3,-(('Rent Limits'!N11-'Rent Limits'!N4)*(1-$E$4))/$E$3) -> 516359.0496
A15: ALAMEDA20% | B15: =+$B$2+PV($C$3/12,$D$3,-(('Rent Limits'!$J$11-'Rent Limits'!J3)*(1-$E$4))/$E$3) -> 449233.0063 | C15: =+$B$2+PV($C$3/12,$D$3,-(('Rent Limits'!$K$11-'Rent Limits'!K3)*(1-$E$4))/$E$3) -> 459892.5067 | D15: =+$B$2+PV($C$3/12,$D$3,-(('Rent Limits'!L11-'Rent Limits'!L3)*(1-$E$4))/$E$3) -> 492159.1027 | E15: =+$B$2+PV($C$3/12,$D$3,-(('Rent Limits'!M11-'Rent Limits'!M3)*(1-$E$4))/$E$3) -> 521544.7525 | F15: =+$B$2+PV($C$3/12,$D$3,-(('Rent Limits'!N11-'Rent Limits'!N3)*(1-$E$4))/$E$3) -> 547185.1725
A16: ALAMEDA15% | B16: =+$B$2+PV($C$3/12,$D$3,-(('Rent Limits'!$J$11-'Rent Limits'!J2)*(1-$E$4))/$E$3) -> 467959.1557 | C16: =+$B$2+PV($C$3/12,$D$3,-(('Rent Limits'!$K$11-'Rent Limits'!K2)*(1-$E$4))/$E$3) -> 479915.0819 | D16: =+$B$2+PV($C$3/12,$D$3,-(('Rent Limits'!L11-'Rent Limits'!L2)*(1-$E$4))/$E$3) -> 516070.955 | E16: =+$B$2+PV($C$3/12,$D$3,-(('Rent Limits'!M11-'Rent Limits'!M2)*(1-$E$4))/$E$3) -> 549345.8821 | F16: =+$B$2+PV($C$3/12,$D$3,-(('Rent Limits'!N11-'Rent Limits'!N2)*(1-$E$4))/$E$3) -> 578155.3427
A17: ALPINE
A18: ALPINE60% | B18: 300000 | C18: 302000 | D18: 304000 | E18: 306000 | F18: 308000
A19: ALPINE55% | B19: =+$B$2+PV($C$3/12,$D$3,-(('Rent Limits'!J29-'Rent Limits'!J28)*(1-$E$4))/$E$3) -> 312099.9735 | C19: =+$B$2+PV($C$3/12,$D$3,-(('Rent Limits'!K29-'Rent Limits'!K28)*(1-$E$4))/$E$3) -> 312964.2573 | D19: =+$B$2+PV($C$3/12,$D$3,-(('Rent Limits'!L29-'Rent Limits'!L28)*(1-$E$4))/$E$3) -> 315557.1088 | E19: =+$B$2+PV($C$3/12,$D$3,-(('Rent Limits'!M29-'Rent Limits'!M28)*(1-$E$4))/$E$3) -> 318005.9129 | F19: =+$B$2+PV($C$3/12,$D$3,-(('Rent Limits'!N29-'Rent Limits'!N28)*(1-$E$4))/$E$3) -> 320022.5752
A20: ALPINE50% | B20: =+$B$2+PV($C$3/12,$D$3,-(('Rent Limits'!J29-'Rent Limits'!J27)*(1-$E$4))/$E$3) -> 324199.947 | C20: =+$B$2+PV($C$3/12,$D$3,-(('Rent Limits'!K29-'Rent Limits'!K27)*(1-$E$4))/$E$3) -> 325928.5146 | D20: =+$B$2+PV($C$3/12,$D$3,-(('Rent Limits'!L29-'Rent Limits'!L27)*(1-$E$4))/$E$3) -> 331114.2175 | E20: =+$B$2+PV($C$3/12,$D$3,-(('Rent Limits'!M29-'Rent Limits'!M27)*(1-$E$4))/$E$3) -> 336011.8258 | F20: =+$B$2+PV($C$3/12,$D$3,-(('Rent Limits'!N29-'Rent Limits'!N27)*(1-$E$4))/$E$3) -> 340189.1976
A21: ALPINE45% | B21: =+$B$2+PV($C$3/12,$D$3,-(('Rent Limits'!J29-'Rent Limits'!J26)*(1-$E$4))/$E$3) -> 336299.9204 | C21: =+$B$2+PV($C$3/12,$D$3,-(('Rent Limits'!K29-'Rent Limits'!K26)*(1-$E$4))/$E$3) -> 338892.7719 | D21: =+$B$2+PV($C$3/12,$D$3,-(('Rent Limits'!L29-'Rent Limits'!L26)*(1-$E$4))/$E$3) -> 346671.3263 | E21: =+$B$2+PV($C$3/12,$D$3,-(('Rent Limits'!M29-'Rent Limits'!M26)*(1-$E$4))/$E$3) -> 354017.7388 | F21: =+$B$2+PV($C$3/12,$D$3,-(('Rent Limits'!N29-'Rent Limits'!N26)*(1-$E$4))/$E$3) -> 360211.7728
A22: ALPINE40% | B22: =+$B$2+PV($C$3/12,$D$3,-(('Rent Limits'!J29-'Rent Limits'!J25)*(1-$E$4))/$E$3) -> 348399.8939 | C22: =+$B$2+PV($C$3/12,$D$3,-(('Rent Limits'!K29-'Rent Limits'!K25)*(1-$E$4))/$E$3) -> 351857.0292 | D22: =+$B$2+PV($C$3/12,$D$3,-(('Rent Limits'!L29-'Rent Limits'!L25)*(1-$E$4))/$E$3) -> 362228.435 | E22: =+$B$2+PV($C$3/12,$D$3,-(('Rent Limits'!M29-'Rent Limits'!M25)*(1-$E$4))/$E$3) -> 372023.6517 | F22: =+$B$2+PV($C$3/12,$D$3,-(('Rent Limits'!N29-'Rent Limits'!N25)*(1-$E$4))/$E$3) -> 380234.348
A23: ALPINE35% | B23: =+$B$2+PV($C$3/12,$D$3,-(('Rent Limits'!J29-'Rent Limits'!J24)*(1-$E$4))/$E$3) -> 360643.9147 | C23: =+$B$2+PV($C$3/12,$D$3,-(('Rent Limits'!K29-'Rent Limits'!K24)*(1-$E$4))/$E$3) -> 364965.3338 | D23: =+$B$2+PV($C$3/12,$D$3,-(('Rent Limits'!L29-'Rent Limits'!L24)*(1-$E$4))/$E$3) -> 377929.5911 | E23: =+$B$2+PV($C$3/12,$D$3,-(('Rent Limits'!M29-'Rent Limits'!M24)*(1-$E$4))/$E$3) -> 390029.5646 | F23: =+$B$2+PV($C$3/12,$D$3,-(('Rent Limits'!N29-'Rent Limits'!N24)*(1-$E$4))/$E$3) -> 400400.9704
A24: ALPINE30% | B24: =+$B$2+PV($C$3/12,$D$3,-(('Rent Limits'!J29-'Rent Limits'!J23)*(1-$E$4))/$E$3) -> 372743.8882 | C24: =+$B$2+PV($C$3/12,$D$3,-(('Rent Limits'!K29-'Rent Limits'!K23)*(1-$E$4))/$E$3) -> 377929.5911 | D24: =+$B$2+PV($C$3/12,$D$3,-(('Rent Limits'!L29-'Rent Limits'!L23)*(1-$E$4))/$E$3) -> 393486.6999 | E24: =+$B$2+PV($C$3/12,$D$3,-(('Rent Limits'!M29-'Rent Limits'!M23)*(1-$E$4))/$E$3) -> 408035.4775 | F24: =+$B$2+PV($C$3/12,$D$3,-(('Rent Limits'!N29-'Rent Limits'!N23)*(1-$E$4))/$E$3) -> 420423.5456
A25: ALPINE25% | B25: =+$B$2+PV($C$3/12,$D$3,-(('Rent Limits'!J29-'Rent Limits'!J22)*(1-$E$4))/$E$3) -> 384843.8617 | C25: =+$B$2+PV($C$3/12,$D$3,-(('Rent Limits'!K29-'Rent Limits'!K22)*(1-$E$4))/$E$3) -> 390893.8484 | D25: =+$B$2+PV($C$3/12,$D$3,-(('Rent Limits'!L29-'Rent Limits'!L22)*(1-$E$4))/$E$3) -> 409043.8086 | E25: =+$B$2+PV($C$3/12,$D$3,-(('Rent Limits'!M29-'Rent Limits'!M22)*(1-$E$4))/$E$3) -> 426041.3904 | F25: =+$B$2+PV($C$3/12,$D$3,-(('Rent Limits'!N29-'Rent Limits'!N22)*(1-$E$4))/$E$3) -> 440590.1681
A26: ALPINE20% | B26: =+$B$2+PV($C$3/12,$D$3,-(('Rent Limits'!J29-'Rent Limits'!J21)*(1-$E$4))/$E$3) -> 396943.8351 | C26: =+$B$2+PV($C$3/12,$D$3,-(('Rent Limits'!K29-'Rent Limits'!K21)*(1-$E$4))/$E$3) -> 403858.1057 | D26: =+$B$2+PV($C$3/12,$D$3,-(('Rent Limits'!L29-'Rent Limits'!L21)*(1-$E$4))/$E$3) -> 424600.9174 | E26: =+$B$2+PV($C$3/12,$D$3,-(('Rent Limits'!M29-'Rent Limits'!M21)*(1-$E$4))/$E$3) -> 444047.3033 | F26: =+$B$2+PV($C$3/12,$D$3,-(('Rent Limits'!N29-'Rent Limits'!N21)*(1-$E$4))/$E$3) -> 460612.7432
A27: ALPINE15% | B27: =+$B$2+PV($C$3/12,$D$3,-(('Rent Limits'!J29-'Rent Limits'!J20)*(1-$E$4))/$E$3) -> 409043.8086 | C27: =+$B$2+PV($C$3/12,$D$3,-(('Rent Limits'!K29-'Rent Limits'!K20)*(1-$E$4))/$E$3) -> 416822.363 | D27: =+$B$2+PV($C$3/12,$D$3,-(('Rent Limits'!L29-'Rent Limits'!L20)*(1-$E$4))/$E$3) -> 440158.0261 | E27: =+$B$2+PV($C$3/12,$D$3,-(('Rent Limits'!M29-'Rent Limits'!M20)*(1-$E$4))/$E$3) -> 462053.2163 | F27: =+$B$2+PV($C$3/12,$D$3,-(('Rent Limits'!N29-'Rent Limits'!N20)*(1-$E$4))/$E$3) -> 480635.3184
A28: AMADOR
A29: AMADOR60% | B29: 300000 | C29: 302000 | D29: 304000 | E29: 306000 | F29: 308000
A30: AMADOR55% | B30: =+$B$2+PV($C$3/12,$D$3,-(('Rent Limits'!J47-'Rent Limits'!J46)*(1-$E$4))/$E$3) -> 311667.8316 | C30: =+$B$2+PV($C$3/12,$D$3,-(('Rent Limits'!K47-'Rent Limits'!K46)*(1-$E$4))/$E$3) -> 312388.0681 | D30: =+$B$2+PV($C$3/12,$D$3,-(('Rent Limits'!L47-'Rent Limits'!L46)*(1-$E$4))/$E$3) -> 314980.9195 | E30: =+$B$2+PV($C$3/12,$D$3,-(('Rent Limits'!M47-'Rent Limits'!M46)*(1-$E$4))/$E$3) -> 317285.6764 | F30: =+$B$2+PV($C$3/12,$D$3,-(('Rent Limits'!N47-'Rent Limits'!N46)*(1-$E$4))/$E$3) -> 319158.2913
A31: AMADOR50% | B31: =+$B$2+PV($C$3/12,$D$3,-(('Rent Limits'!J47-'Rent Limits'!J45)*(1-$E$4))/$E$3) -> 323191.6158 | C31: =+$B$2+PV($C$3/12,$D$3,-(('Rent Limits'!K47-'Rent Limits'!K45)*(1-$E$4))/$E$3) -> 324776.1362 | D31: =+$B$2+PV($C$3/12,$D$3,-(('Rent Limits'!L47-'Rent Limits'!L45)*(1-$E$4))/$E$3) -> 329817.7918 | E31: =+$B$2+PV($C$3/12,$D$3,-(('Rent Limits'!M47-'Rent Limits'!M45)*(1-$E$4))/$E$3) -> 334427.3055 | F31: =+$B$2+PV($C$3/12,$D$3,-(('Rent Limits'!N47-'Rent Limits'!N45)*(1-$E$4))/$E$3) -> 338316.5827
A32: AMADOR45% | B32: =+$B$2+PV($C$3/12,$D$3,-(('Rent Limits'!J47-'Rent Limits'!J44)*(1-$E$4))/$E$3) -> 334715.4001 | C32: =+$B$2+PV($C$3/12,$D$3,-(('Rent Limits'!K47-'Rent Limits'!K44)*(1-$E$4))/$E$3) -> 337164.2043 | D32: =+$B$2+PV($C$3/12,$D$3,-(('Rent Limits'!L47-'Rent Limits'!L44)*(1-$E$4))/$E$3) -> 344654.664 | E32: =+$B$2+PV($C$3/12,$D$3,-(('Rent Limits'!M47-'Rent Limits'!M44)*(1-$E$4))/$E$3) -> 351568.9346 | F32: =+$B$2+PV($C$3/12,$D$3,-(('Rent Limits'!N47-'Rent Limits'!N44)*(1-$E$4))/$E$3) -> 357474.874
A33: AMADOR40% | B33: =+$B$2+PV($C$3/12,$D$3,-(('Rent Limits'!J47-'Rent Limits'!J43)*(1-$E$4))/$E$3) -> 346239.1844 | C33: =+$B$2+PV($C$3/12,$D$3,-(('Rent Limits'!K47-'Rent Limits'!K43)*(1-$E$4))/$E$3) -> 349552.2723 | D33: =+$B$2+PV($C$3/12,$D$3,-(('Rent Limits'!L47-'Rent Limits'!L43)*(1-$E$4))/$E$3) -> 359491.5363 | E33: =+$B$2+PV($C$3/12,$D$3,-(('Rent Limits'!M47-'Rent Limits'!M43)*(1-$E$4))/$E$3) -> 368710.5637 | F33: =+$B$2+PV($C$3/12,$D$3,-(('Rent Limits'!N47-'Rent Limits'!N43)*(1-$E$4))/$E$3) -> 376633.1654
A34: AMADOR35% | B34: =+$B$2+PV($C$3/12,$D$3,-(('Rent Limits'!J47-'Rent Limits'!J42)*(1-$E$4))/$E$3) -> 357907.0159 | C34: =+$B$2+PV($C$3/12,$D$3,-(('Rent Limits'!K47-'Rent Limits'!K42)*(1-$E$4))/$E$3) -> 361940.3404 | D34: =+$B$2+PV($C$3/12,$D$3,-(('Rent Limits'!L47-'Rent Limits'!L42)*(1-$E$4))/$E$3) -> 374472.4558 | E34: =+$B$2+PV($C$3/12,$D$3,-(('Rent Limits'!M47-'Rent Limits'!M42)*(1-$E$4))/$E$3) -> 385996.2401 | F34: =+$B$2+PV($C$3/12,$D$3,-(('Rent Limits'!N47-'Rent Limits'!N42)*(1-$E$4))/$E$3) -> 395791.4567
A35: AMADOR30% | B35: =+$B$2+PV($C$3/12,$D$3,-(('Rent Limits'!J47-'Rent Limits'!J41)*(1-$E$4))/$E$3) -> 369430.8002 | C35: =+$B$2+PV($C$3/12,$D$3,-(('Rent Limits'!K47-'Rent Limits'!K41)*(1-$E$4))/$E$3) -> 374328.4085 | D35: =+$B$2+PV($C$3/12,$D$3,-(('Rent Limits'!L47-'Rent Limits'!L41)*(1-$E$4))/$E$3) -> 389309.3281 | E35: =+$B$2+PV($C$3/12,$D$3,-(('Rent Limits'!M47-'Rent Limits'!M41)*(1-$E$4))/$E$3) -> 403137.8692 | F35: =+$B$2+PV($C$3/12,$D$3,-(('Rent Limits'!N47-'Rent Limits'!N41)*(1-$E$4))/$E$3) -> 414949.7481
A36: AMADOR25% | B36: =+$B$2+PV($C$3/12,$D$3,-(('Rent Limits'!J47-'Rent Limits'!J40)*(1-$E$4))/$E$3) -> 380954.5845 | C36: =+$B$2+PV($C$3/12,$D$3,-(('Rent Limits'!K47-'Rent Limits'!K40)*(1-$E$4))/$E$3) -> 386716.4766 | D36: =+$B$2+PV($C$3/12,$D$3,-(('Rent Limits'!L47-'Rent Limits'!L40)*(1-$E$4))/$E$3) -> 404146.2003 | E36: =+$B$2+PV($C$3/12,$D$3,-(('Rent Limits'!M47-'Rent Limits'!M40)*(1-$E$4))/$E$3) -> 420279.4983 | F36: =+$B$2+PV($C$3/12,$D$3,-(('Rent Limits'!N47-'Rent Limits'!N40)*(1-$E$4))/$E$3) -> 434108.0394
A37: AMADOR20% | B37: =+$B$2+PV($C$3/12,$D$3,-(('Rent Limits'!J47-'Rent Limits'!J39)*(1-$E$4))/$E$3) -> 392478.3687 | C37: =+$B$2+PV($C$3/12,$D$3,-(('Rent Limits'!K47-'Rent Limits'!K39)*(1-$E$4))/$E$3) -> 399104.5447 | D37: =+$B$2+PV($C$3/12,$D$3,-(('Rent Limits'!L47-'Rent Limits'!L39)*(1-$E$4))/$E$3) -> 418983.0726 | E37: =+$B$2+PV($C$3/12,$D$3,-(('Rent Limits'!M47-'Rent Limits'!M39)*(1-$E$4))/$E$3) -> 437421.1274 | F37: =+$B$2+PV($C$3/12,$D$3,-(('Rent Limits'!N47-'Rent Limits'!N39)*(1-$E$4))/$E$3) -> 453266.3308
A38: AMADOR15% | B38: =+$B$2+PV($C$3/12,$D$3,-(('Rent Limits'!J47-'Rent Limits'!J38)*(1-$E$4))/$E$3) -> 404146.2003 | C38: =+$B$2+PV($C$3/12,$D$3,-(('Rent Limits'!K47-'Rent Limits'!K38)*(1-$E$4))/$E$3) -> 411492.6128 | D38: =+$B$2+PV($C$3/12,$D$3,-(('Rent Limits'!L47-'Rent Limits'!L38)*(1-$E$4))/$E$3) -> 433963.9921 | E38: =+$B$2+PV($C$3/12,$D$3,-(('Rent Limits'!M47-'Rent Limits'!M38)*(1-$E$4))/$E$3) -> 454706.8038 | F38: =+$B$2+PV($C$3/12,$D$3,-(('Rent Limits'!N47-'Rent Limits'!N38)*(1-$E$4))/$E$3) -> 472424.6221
A39: BUTTE
A40: BUTTE60% | B40: 300000 | C40: 302000 | D40: 304000 | E40: 306000 | F40: 308000
A41: BUTTE55% | B41: =+$B$2+PV($C$3/12,$D$3,-(('Rent Limits'!J65-'Rent Limits'!J64)*(1-$E$4))/$E$3) -> 310515.4531 | C41: =+$B$2+PV($C$3/12,$D$3,-(('Rent Limits'!K65-'Rent Limits'!K64)*(1-$E$4))/$E$3) -> 311091.6424 | D41: =+$B$2+PV($C$3/12,$D$3,-(('Rent Limits'!L65-'Rent Limits'!L64)*(1-$E$4))/$E$3) -> 313396.3992 | E41: =+$B$2+PV($C$3/12,$D$3,-(('Rent Limits'!M65-'Rent Limits'!M64)*(1-$E$4))/$E$3) -> 315557.1088 | F41: =+$B$2+PV($C$3/12,$D$3,-(('Rent Limits'!N65-'Rent Limits'!N64)*(1-$E$4))/$E$3) -> 317285.6764
A42: BUTTE50% | B42: =+$B$2+PV($C$3/12,$D$3,-(('Rent Limits'!J65-'Rent Limits'!J63)*(1-$E$4))/$E$3) -> 320886.859 | C42: =+$B$2+PV($C$3/12,$D$3,-(('Rent Limits'!K65-'Rent Limits'!K63)*(1-$E$4))/$E$3) -> 322327.332 | D42: =+$B$2+PV($C$3/12,$D$3,-(('Rent Limits'!L65-'Rent Limits'!L63)*(1-$E$4))/$E$3) -> 326792.7984 | E42: =+$B$2+PV($C$3/12,$D$3,-(('Rent Limits'!M65-'Rent Limits'!M63)*(1-$E$4))/$E$3) -> 330970.1702 | F42: =+$B$2+PV($C$3/12,$D$3,-(('Rent Limits'!N65-'Rent Limits'!N63)*(1-$E$4))/$E$3) -> 334427.3055
A43: BUTTE45% | B43: =+$B$2+PV($C$3/12,$D$3,-(('Rent Limits'!J65-'Rent Limits'!J62)*(1-$E$4))/$E$3) -> 331258.2648 | C43: =+$B$2+PV($C$3/12,$D$3,-(('Rent Limits'!K65-'Rent Limits'!K62)*(1-$E$4))/$E$3) -> 333418.9744 | D43: =+$B$2+PV($C$3/12,$D$3,-(('Rent Limits'!L65-'Rent Limits'!L62)*(1-$E$4))/$E$3) -> 340189.1976 | E43: =+$B$2+PV($C$3/12,$D$3,-(('Rent Limits'!M65-'Rent Limits'!M62)*(1-$E$4))/$E$3) -> 346383.2317 | F43: =+$B$2+PV($C$3/12,$D$3,-(('Rent Limits'!N65-'Rent Limits'!N62)*(1-$E$4))/$E$3) -> 351712.9819
A44: BUTTE40% | B44: =+$B$2+PV($C$3/12,$D$3,-(('Rent Limits'!J65-'Rent Limits'!J61)*(1-$E$4))/$E$3) -> 341629.6707 | C44: =+$B$2+PV($C$3/12,$D$3,-(('Rent Limits'!K65-'Rent Limits'!K61)*(1-$E$4))/$E$3) -> 344510.6167 | D44: =+$B$2+PV($C$3/12,$D$3,-(('Rent Limits'!L65-'Rent Limits'!L61)*(1-$E$4))/$E$3) -> 353441.5495 | E44: =+$B$2+PV($C$3/12,$D$3,-(('Rent Limits'!M65-'Rent Limits'!M61)*(1-$E$4))/$E$3) -> 361796.2931 | F44: =+$B$2+PV($C$3/12,$D$3,-(('Rent Limits'!N65-'Rent Limits'!N61)*(1-$E$4))/$E$3) -> 368854.611
A45: BUTTE35% | B45: =+$B$2+PV($C$3/12,$D$3,-(('Rent Limits'!J65-'Rent Limits'!J60)*(1-$E$4))/$E$3) -> 352145.1238 | C45: =+$B$2+PV($C$3/12,$D$3,-(('Rent Limits'!K65-'Rent Limits'!K60)*(1-$E$4))/$E$3) -> 355746.3064 | D45: =+$B$2+PV($C$3/12,$D$3,-(('Rent Limits'!L65-'Rent Limits'!L60)*(1-$E$4))/$E$3) -> 366837.9487 | E45: =+$B$2+PV($C$3/12,$D$3,-(('Rent Limits'!M65-'Rent Limits'!M60)*(1-$E$4))/$E$3) -> 377353.4019 | F45: =+$B$2+PV($C$3/12,$D$3,-(('Rent Limits'!N65-'Rent Limits'!N60)*(1-$E$4))/$E$3) -> 386140.2874
A46: BUTTE30% | B46: =+$B$2+PV($C$3/12,$D$3,-(('Rent Limits'!J65-'Rent Limits'!J59)*(1-$E$4))/$E$3) -> 362516.5296 | C46: =+$B$2+PV($C$3/12,$D$3,-(('Rent Limits'!K65-'Rent Limits'!K59)*(1-$E$4))/$E$3) -> 366837.9487 | D46: =+$B$2+PV($C$3/12,$D$3,-(('Rent Limits'!L65-'Rent Limits'!L59)*(1-$E$4))/$E$3) -> 380234.348 | E46: =+$B$2+PV($C$3/12,$D$3,-(('Rent Limits'!M65-'Rent Limits'!M59)*(1-$E$4))/$E$3) -> 392766.4634 | F46: =+$B$2+PV($C$3/12,$D$3,-(('Rent Limits'!N65-'Rent Limits'!N59)*(1-$E$4))/$E$3) -> 403425.9638
A47: BUTTE25% | B47: =+$B$2+PV($C$3/12,$D$3,-(('Rent Limits'!J65-'Rent Limits'!J58)*(1-$E$4))/$E$3) -> 372887.9355 | C47: =+$B$2+PV($C$3/12,$D$3,-(('Rent Limits'!K65-'Rent Limits'!K58)*(1-$E$4))/$E$3) -> 378073.6384 | D47: =+$B$2+PV($C$3/12,$D$3,-(('Rent Limits'!L65-'Rent Limits'!L58)*(1-$E$4))/$E$3) -> 393630.7472 | E47: =+$B$2+PV($C$3/12,$D$3,-(('Rent Limits'!M65-'Rent Limits'!M58)*(1-$E$4))/$E$3) -> 408179.5248 | F47: =+$B$2+PV($C$3/12,$D$3,-(('Rent Limits'!N65-'Rent Limits'!N58)*(1-$E$4))/$E$3) -> 420567.5929
A48: BUTTE20% | B48: =+$B$2+PV($C$3/12,$D$3,-(('Rent Limits'!J65-'Rent Limits'!J57)*(1-$E$4))/$E$3) -> 383259.3413 | C48: =+$B$2+PV($C$3/12,$D$3,-(('Rent Limits'!K65-'Rent Limits'!K57)*(1-$E$4))/$E$3) -> 389165.2808 | D48: =+$B$2+PV($C$3/12,$D$3,-(('Rent Limits'!L65-'Rent Limits'!L57)*(1-$E$4))/$E$3) -> 407027.1464 | E48: =+$B$2+PV($C$3/12,$D$3,-(('Rent Limits'!M65-'Rent Limits'!M57)*(1-$E$4))/$E$3) -> 423592.5863 | F48: =+$B$2+PV($C$3/12,$D$3,-(('Rent Limits'!N65-'Rent Limits'!N57)*(1-$E$4))/$E$3) -> 437853.2693
A49: BUTTE15% | B49: =+$B$2+PV($C$3/12,$D$3,-(('Rent Limits'!J65-'Rent Limits'!J56)*(1-$E$4))/$E$3) -> 393774.7945 | C49: =+$B$2+PV($C$3/12,$D$3,-(('Rent Limits'!K65-'Rent Limits'!K56)*(1-$E$4))/$E$3) -> 400256.9231 | D49: =+$B$2+PV($C$3/12,$D$3,-(('Rent Limits'!L65-'Rent Limits'!L56)*(1-$E$4))/$E$3) -> 420423.5456 | E49: =+$B$2+PV($C$3/12,$D$3,-(('Rent Limits'!M65-'Rent Limits'!M56)*(1-$E$4))/$E$3) -> 439149.695 | F49: =+$B$2+PV($C$3/12,$D$3,-(('Rent Limits'!N65-'Rent Limits'!N56)*(1-$E$4))/$E$3) -> 455138.9457
A50: CALAVERAS
A51: CALAVERAS60% | B51: 300000 | C51: 302000 | D51: 304000 | E51: 306000 | F51: 308000
A52: CALAVERAS55% | B52: =+$B$2+PV($C$3/12,$D$3,-(('Rent Limits'!J83-'Rent Limits'!J82)*(1-$E$4))/$E$3) -> 312099.9735 | C52: =+$B$2+PV($C$3/12,$D$3,-(('Rent Limits'!K83-'Rent Limits'!K82)*(1-$E$4))/$E$3) -> 312964.2573 | D52: =+$B$2+PV($C$3/12,$D$3,-(('Rent Limits'!L83-'Rent Limits'!L82)*(1-$E$4))/$E$3) -> 315557.1088 | E52: =+$B$2+PV($C$3/12,$D$3,-(('Rent Limits'!M83-'Rent Limits'!M82)*(1-$E$4))/$E$3) -> 317861.8656 | F52: =+$B$2+PV($C$3/12,$D$3,-(('Rent Limits'!N83-'Rent Limits'!N82)*(1-$E$4))/$E$3) -> 320022.5752
A53: CALAVERAS50% | B53: =+$B$2+PV($C$3/12,$D$3,-(('Rent Limits'!J83-'Rent Limits'!J81)*(1-$E$4))/$E$3) -> 324055.8997 | C53: =+$B$2+PV($C$3/12,$D$3,-(('Rent Limits'!K83-'Rent Limits'!K81)*(1-$E$4))/$E$3) -> 325784.4673 | D53: =+$B$2+PV($C$3/12,$D$3,-(('Rent Limits'!L83-'Rent Limits'!L81)*(1-$E$4))/$E$3) -> 330970.1702 | E53: =+$B$2+PV($C$3/12,$D$3,-(('Rent Limits'!M83-'Rent Limits'!M81)*(1-$E$4))/$E$3) -> 335723.7312 | F53: =+$B$2+PV($C$3/12,$D$3,-(('Rent Limits'!N83-'Rent Limits'!N81)*(1-$E$4))/$E$3) -> 339901.103
A54: CALAVERAS45% | B54: =+$B$2+PV($C$3/12,$D$3,-(('Rent Limits'!J83-'Rent Limits'!J80)*(1-$E$4))/$E$3) -> 336155.8731 | C54: =+$B$2+PV($C$3/12,$D$3,-(('Rent Limits'!K83-'Rent Limits'!K80)*(1-$E$4))/$E$3) -> 338748.7246 | D54: =+$B$2+PV($C$3/12,$D$3,-(('Rent Limits'!L83-'Rent Limits'!L80)*(1-$E$4))/$E$3) -> 346383.2317 | E54: =+$B$2+PV($C$3/12,$D$3,-(('Rent Limits'!M83-'Rent Limits'!M80)*(1-$E$4))/$E$3) -> 353585.5968 | F54: =+$B$2+PV($C$3/12,$D$3,-(('Rent Limits'!N83-'Rent Limits'!N80)*(1-$E$4))/$E$3) -> 359779.6309
A55: CALAVERAS40% | B55: =+$B$2+PV($C$3/12,$D$3,-(('Rent Limits'!J83-'Rent Limits'!J79)*(1-$E$4))/$E$3) -> 348111.7993 | C55: =+$B$2+PV($C$3/12,$D$3,-(('Rent Limits'!K83-'Rent Limits'!K79)*(1-$E$4))/$E$3) -> 351568.9346 | D55: =+$B$2+PV($C$3/12,$D$3,-(('Rent Limits'!L83-'Rent Limits'!L79)*(1-$E$4))/$E$3) -> 361796.2931 | E55: =+$B$2+PV($C$3/12,$D$3,-(('Rent Limits'!M83-'Rent Limits'!M79)*(1-$E$4))/$E$3) -> 371447.4625 | F55: =+$B$2+PV($C$3/12,$D$3,-(('Rent Limits'!N83-'Rent Limits'!N79)*(1-$E$4))/$E$3) -> 379658.1587
A56: CALAVERAS35% | B56: =+$B$2+PV($C$3/12,$D$3,-(('Rent Limits'!J83-'Rent Limits'!J78)*(1-$E$4))/$E$3) -> 360211.7728 | C56: =+$B$2+PV($C$3/12,$D$3,-(('Rent Limits'!K83-'Rent Limits'!K78)*(1-$E$4))/$E$3) -> 364389.1446 | D56: =+$B$2+PV($C$3/12,$D$3,-(('Rent Limits'!L83-'Rent Limits'!L78)*(1-$E$4))/$E$3) -> 377353.4019 | E56: =+$B$2+PV($C$3/12,$D$3,-(('Rent Limits'!M83-'Rent Limits'!M78)*(1-$E$4))/$E$3) -> 389309.3281 | F56: =+$B$2+PV($C$3/12,$D$3,-(('Rent Limits'!N83-'Rent Limits'!N78)*(1-$E$4))/$E$3) -> 399680.7339
A57: CALAVERAS30% | B57: =+$B$2+PV($C$3/12,$D$3,-(('Rent Limits'!J83-'Rent Limits'!J77)*(1-$E$4))/$E$3) -> 372167.699 | C57: =+$B$2+PV($C$3/12,$D$3,-(('Rent Limits'!K83-'Rent Limits'!K77)*(1-$E$4))/$E$3) -> 377353.4019 | D57: =+$B$2+PV($C$3/12,$D$3,-(('Rent Limits'!L83-'Rent Limits'!L77)*(1-$E$4))/$E$3) -> 392766.4634 | E57: =+$B$2+PV($C$3/12,$D$3,-(('Rent Limits'!M83-'Rent Limits'!M77)*(1-$E$4))/$E$3) -> 407171.1937 | F57: =+$B$2+PV($C$3/12,$D$3,-(('Rent Limits'!N83-'Rent Limits'!N77)*(1-$E$4))/$E$3) -> 419559.2618
A58: CALAVERAS25% | B58: =+$B$2+PV($C$3/12,$D$3,-(('Rent Limits'!J83-'Rent Limits'!J76)*(1-$E$4))/$E$3) -> 384267.6725 | C58: =+$B$2+PV($C$3/12,$D$3,-(('Rent Limits'!K83-'Rent Limits'!K76)*(1-$E$4))/$E$3) -> 390173.6119 | D58: =+$B$2+PV($C$3/12,$D$3,-(('Rent Limits'!L83-'Rent Limits'!L76)*(1-$E$4))/$E$3) -> 408179.5248 | E58: =+$B$2+PV($C$3/12,$D$3,-(('Rent Limits'!M83-'Rent Limits'!M76)*(1-$E$4))/$E$3) -> 425033.0593 | F58: =+$B$2+PV($C$3/12,$D$3,-(('Rent Limits'!N83-'Rent Limits'!N76)*(1-$E$4))/$E$3) -> 439437.7896
A59: CALAVERAS20% | B59: =+$B$2+PV($C$3/12,$D$3,-(('Rent Limits'!J83-'Rent Limits'!J75)*(1-$E$4))/$E$3) -> 396223.5986 | C59: =+$B$2+PV($C$3/12,$D$3,-(('Rent Limits'!K83-'Rent Limits'!K75)*(1-$E$4))/$E$3) -> 403137.8692 | D59: =+$B$2+PV($C$3/12,$D$3,-(('Rent Limits'!L83-'Rent Limits'!L75)*(1-$E$4))/$E$3) -> 423592.5863 | E59: =+$B$2+PV($C$3/12,$D$3,-(('Rent Limits'!M83-'Rent Limits'!M75)*(1-$E$4))/$E$3) -> 442894.9249 | F59: =+$B$2+PV($C$3/12,$D$3,-(('Rent Limits'!N83-'Rent Limits'!N75)*(1-$E$4))/$E$3) -> 459316.3175
A60: CALAVERAS15% | B60: =+$B$2+PV($C$3/12,$D$3,-(('Rent Limits'!J83-'Rent Limits'!J74)*(1-$E$4))/$E$3) -> 408323.5721 | C60: =+$B$2+PV($C$3/12,$D$3,-(('Rent Limits'!K83-'Rent Limits'!K74)*(1-$E$4))/$E$3) -> 415958.0792 | D60: =+$B$2+PV($C$3/12,$D$3,-(('Rent Limits'!L83-'Rent Limits'!L74)*(1-$E$4))/$E$3) -> 439149.695 | E60: =+$B$2+PV($C$3/12,$D$3,-(('Rent Limits'!M83-'Rent Limits'!M74)*(1-$E$4))/$E$3) -> 460756.7905 | F60: =+$B$2+PV($C$3/12,$D$3,-(('Rent Limits'!N83-'Rent Limits'!N74)*(1-$E$4))/$E$3) -> 479338.8927
A61: COLUSA
A62: COLUSA60% | B62: 300000 | C62: 302000 | D62: 304000 | E62: 306000 | F62: 308000
A63: COLUSA55% | B63: =+$B$2+PV($C$3/12,$D$3,-(('Rent Limits'!J101-'Rent Limits'!J100)*(1-$E$4))/$E$3) -> 310515.4531 | C63: =+$B$2+PV($C$3/12,$D$3,-(('Rent Limits'!K101-'Rent Limits'!K100)*(1-$E$4))/$E$3) -> 311091.6424 | D63: =+$B$2+PV($C$3/12,$D$3,-(('Rent Limits'!L101-'Rent Limits'!L100)*(1-$E$4))/$E$3) -> 313396.3992 | E63: =+$B$2+PV($C$3/12,$D$3,-(('Rent Limits'!M101-'Rent Limits'!M100)*(1-$E$4))/$E$3) -> 315557.1088 | F63: =+$B$2+PV($C$3/12,$D$3,-(('Rent Limits'!N101-'Rent Limits'!N100)*(1-$E$4))/$E$3) -> 317285.6764
A64: COLUSA50% | B64: =+$B$2+PV($C$3/12,$D$3,-(('Rent Limits'!J101-'Rent Limits'!J99)*(1-$E$4))/$E$3) -> 320886.859 | C64: =+$B$2+PV($C$3/12,$D$3,-(('Rent Limits'!K101-'Rent Limits'!K99)*(1-$E$4))/$E$3) -> 322327.332 | D64: =+$B$2+PV($C$3/12,$D$3,-(('Rent Limits'!L101-'Rent Limits'!L99)*(1-$E$4))/$E$3) -> 326792.7984 | E64: =+$B$2+PV($C$3/12,$D$3,-(('Rent Limits'!M101-'Rent Limits'!M99)*(1-$E$4))/$E$3) -> 330970.1702 | F64: =+$B$2+PV($C$3/12,$D$3,-(('Rent Limits'!N101-'Rent Limits'!N99)*(1-$E$4))/$E$3) -> 334427.3055
A65: COLUSA45% | B65: =+$B$2+PV($C$3/12,$D$3,-(('Rent Limits'!J101-'Rent Limits'!J98)*(1-$E$4))/$E$3) -> 331258.2648 | C65: =+$B$2+PV($C$3/12,$D$3,-(('Rent Limits'!K101-'Rent Limits'!K98)*(1-$E$4))/$E$3) -> 333418.9744 | D65: =+$B$2+PV($C$3/12,$D$3,-(('Rent Limits'!L101-'Rent Limits'!L98)*(1-$E$4))/$E$3) -> 340189.1976 | E65: =+$B$2+PV($C$3/12,$D$3,-(('Rent Limits'!M101-'Rent Limits'!M98)*(1-$E$4))/$E$3) -> 346383.2317 | F65: =+$B$2+PV($C$3/12,$D$3,-(('Rent Limits'!N101-'Rent Limits'!N98)*(1-$E$4))/$E$3) -> 351712.9819
A66: COLUSA40% | B66: =+$B$2+PV($C$3/12,$D$3,-(('Rent Limits'!J101-'Rent Limits'!J97)*(1-$E$4))/$E$3) -> 341629.6707 | C66: =+$B$2+PV($C$3/12,$D$3,-(('Rent Limits'!K101-'Rent Limits'!K97)*(1-$E$4))/$E$3) -> 344510.6167 | D66: =+$B$2+PV($C$3/12,$D$3,-(('Rent Limits'!L101-'Rent Limits'!L97)*(1-$E$4))/$E$3) -> 353441.5495 | E66: =+$B$2+PV($C$3/12,$D$3,-(('Rent Limits'!M101-'Rent Limits'!M97)*(1-$E$4))/$E$3) -> 361796.2931 | F66: =+$B$2+PV($C$3/12,$D$3,-(('Rent Limits'!N101-'Rent Limits'!N97)*(1-$E$4))/$E$3) -> 368854.611
A67: COLUSA35% | B67: =+$B$2+PV($C$3/12,$D$3,-(('Rent Limits'!J101-'Rent Limits'!J96)*(1-$E$4))/$E$3) -> 352145.1238 | C67: =+$B$2+PV($C$3/12,$D$3,-(('Rent Limits'!K101-'Rent Limits'!K96)*(1-$E$4))/$E$3) -> 355746.3064 | D67: =+$B$2+PV($C$3/12,$D$3,-(('Rent Limits'!L101-'Rent Limits'!L96)*(1-$E$4))/$E$3) -> 366837.9487 | E67: =+$B$2+PV($C$3/12,$D$3,-(('Rent Limits'!M101-'Rent Limits'!M96)*(1-$E$4))/$E$3) -> 377353.4019 | F67: =+$B$2+PV($C$3/12,$D$3,-(('Rent Limits'!N101-'Rent Limits'!N96)*(1-$E$4))/$E$3) -> 386140.2874
A68: COLUSA30% | B68: =+$B$2+PV($C$3/12,$D$3,-(('Rent Limits'!J101-'Rent Limits'!J95)*(1-$E$4))/$E$3) -> 362516.5296 | C68: =+$B$2+PV($C$3/12,$D$3,-(('Rent Limits'!K101-'Rent Limits'!K95)*(1-$E$4))/$E$3) -> 366837.9487 | D68: =+$B$2+PV($C$3/12,$D$3,-(('Rent Limits'!L101-'Rent Limits'!L95)*(1-$E$4))/$E$3) -> 380234.348 | E68: =+$B$2+PV($C$3/12,$D$3,-(('Rent Limits'!M101-'Rent Limits'!M95)*(1-$E$4))/$E$3) -> 392766.4634 | F68: =+$B$2+PV($C$3/12,$D$3,-(('Rent Limits'!N101-'Rent Limits'!N95)*(1-$E$4))/$E$3) -> 403425.9638
A69: COLUSA25% | B69: =+$B$2+PV($C$3/12,$D$3,-(('Rent Limits'!J101-'Rent Limits'!J94)*(1-$E$4))/$E$3) -> 372887.9355 | C69: =+$B$2+PV($C$3/12,$D$3,-(('Rent Limits'!K101-'Rent Limits'!K94)*(1-$E$4))/$E$3) -> 378073.6384 | D69: =+$B$2+PV($C$3/12,$D$3,-(('Rent Limits'!L101-'Rent Limits'!L94)*(1-$E$4))/$E$3) -> 393630.7472 | E69: =+$B$2+PV($C$3/12,$D$3,-(('Rent Limits'!M101-'Rent Limits'!M94)*(1-$E$4))/$E$3) -> 408179.5248 | F69: =+$B$2+PV($C$3/12,$D$3,-(('Rent Limits'!N101-'Rent Limits'!N94)*(1-$E$4))/$E$3) -> 420567.5929
A70: COLUSA20% | B70: =+$B$2+PV($C$3/12,$D$3,-(('Rent Limits'!J101-'Rent Limits'!J93)*(1-$E$4))/$E$3) -> 383259.3413 | C70: =+$B$2+PV($C$3/12,$D$3,-(('Rent Limits'!K101-'Rent Limits'!K93)*(1-$E$4))/$E$3) -> 389165.2808 | D70: =+$B$2+PV($C$3/12,$D$3,-(('Rent Limits'!L101-'Rent Limits'!L93)*(1-$E$4))/$E$3) -> 407027.1464 | E70: =+$B$2+PV($C$3/12,$D$3,-(('Rent Limits'!M101-'Rent Limits'!M93)*(1-$E$4))/$E$3) -> 423592.5863 | F70: =+$B$2+PV($C$3/12,$D$3,-(('Rent Limits'!N101-'Rent Limits'!N93)*(1-$E$4))/$E$3) -> 437853.2693
A71: COLUSA15% | B71: =+$B$2+PV($C$3/12,$D$3,-(('Rent Limits'!J101-'Rent Limits'!J92)*(1-$E$4))/$E$3) -> 393774.7945 | C71: =+$B$2+PV($C$3/12,$D$3,-(('Rent Limits'!K101-'Rent Limits'!K92)*(1-$E$4))/$E$3) -> 400256.9231 | D71: =+$B$2+PV($C$3/12,$D$3,-(('Rent Limits'!L101-'Rent Limits'!L92)*(1-$E$4))/$E$3) -> 420423.5456 | E71: =+$B$2+PV($C$3/12,$D$3,-(('Rent Limits'!M101-'Rent Limits'!M92)*(1-$E$4))/$E$3) -> 439149.695 | F71: =+$B$2+PV($C$3/12,$D$3,-(('Rent Limits'!N101-'Rent Limits'!N92)*(1-$E$4))/$E$3) -> 455138.9457
A72: CONTRA COSTA
A73: CONTRA COSTA60% | B73: 300000 | C73: 304000 | D73: 308000 | E73: 312000 | F73: 316000
A74: CONTRA COSTA55% | B74: =+$B$2+PV($C$3/12,$D$3,-(('Rent Limits'!J119-'Rent Limits'!J118)*(1-$E$4))/$E$3) -> 318726.1494 | C74: =+$B$2+PV($C$3/12,$D$3,-(('Rent Limits'!K119-'Rent Limits'!K118)*(1-$E$4))/$E$3) -> 320022.5752 | D74: =+$B$2+PV($C$3/12,$D$3,-(('Rent Limits'!L119-'Rent Limits'!L118)*(1-$E$4))/$E$3) -> 324055.8997 | E74: =+$B$2+PV($C$3/12,$D$3,-(('Rent Limits'!M119-'Rent Limits'!M118)*(1-$E$4))/$E$3) -> 327657.0822 | F74: =+$B$2+PV($C$3/12,$D$3,-(('Rent Limits'!N119-'Rent Limits'!N118)*(1-$E$4))/$E$3) -> 330970.1702
A75: CONTRA COSTA50% | B75: =+$B$2+PV($C$3/12,$D$3,-(('Rent Limits'!J119-'Rent Limits'!J117)*(1-$E$4))/$E$3) -> 337308.2516 | C75: =+$B$2+PV($C$3/12,$D$3,-(('Rent Limits'!K119-'Rent Limits'!K117)*(1-$E$4))/$E$3) -> 340045.1503 | D75: =+$B$2+PV($C$3/12,$D$3,-(('Rent Limits'!L119-'Rent Limits'!L117)*(1-$E$4))/$E$3) -> 347967.752 | E75: =+$B$2+PV($C$3/12,$D$3,-(('Rent Limits'!M119-'Rent Limits'!M117)*(1-$E$4))/$E$3) -> 355314.1645 | F75: =+$B$2+PV($C$3/12,$D$3,-(('Rent Limits'!N119-'Rent Limits'!N117)*(1-$E$4))/$E$3) -> 361796.2931
A76: CONTRA COSTA45% | B76: =+$B$2+PV($C$3/12,$D$3,-(('Rent Limits'!J119-'Rent Limits'!J116)*(1-$E$4))/$E$3) -> 356034.401 | C76: =+$B$2+PV($C$3/12,$D$3,-(('Rent Limits'!K119-'Rent Limits'!K116)*(1-$E$4))/$E$3) -> 360067.7255 | D76: =+$B$2+PV($C$3/12,$D$3,-(('Rent Limits'!L119-'Rent Limits'!L116)*(1-$E$4))/$E$3) -> 372023.6517 | E76: =+$B$2+PV($C$3/12,$D$3,-(('Rent Limits'!M119-'Rent Limits'!M116)*(1-$E$4))/$E$3) -> 383115.294 | F76: =+$B$2+PV($C$3/12,$D$3,-(('Rent Limits'!N119-'Rent Limits'!N116)*(1-$E$4))/$E$3) -> 392766.4634
A77: CONTRA COSTA40% | B77: =+$B$2+PV($C$3/12,$D$3,-(('Rent Limits'!J119-'Rent Limits'!J115)*(1-$E$4))/$E$3) -> 374616.5031 | C77: =+$B$2+PV($C$3/12,$D$3,-(('Rent Limits'!K119-'Rent Limits'!K115)*(1-$E$4))/$E$3) -> 379946.2534 | D77: =+$B$2+PV($C$3/12,$D$3,-(('Rent Limits'!L119-'Rent Limits'!L115)*(1-$E$4))/$E$3) -> 395935.504 | E77: =+$B$2+PV($C$3/12,$D$3,-(('Rent Limits'!M119-'Rent Limits'!M115)*(1-$E$4))/$E$3) -> 410772.3763 | F77: =+$B$2+PV($C$3/12,$D$3,-(('Rent Limits'!N119-'Rent Limits'!N115)*(1-$E$4))/$E$3) -> 423592.5863
A78: CONTRA COSTA35% | B78: =+$B$2+PV($C$3/12,$D$3,-(('Rent Limits'!J119-'Rent Limits'!J114)*(1-$E$4))/$E$3) -> 393342.6526 | C78: =+$B$2+PV($C$3/12,$D$3,-(('Rent Limits'!K119-'Rent Limits'!K114)*(1-$E$4))/$E$3) -> 399968.8285 | D78: =+$B$2+PV($C$3/12,$D$3,-(('Rent Limits'!L119-'Rent Limits'!L114)*(1-$E$4))/$E$3) -> 419991.4037 | E78: =+$B$2+PV($C$3/12,$D$3,-(('Rent Limits'!M119-'Rent Limits'!M114)*(1-$E$4))/$E$3) -> 438429.4585 | F78: =+$B$2+PV($C$3/12,$D$3,-(('Rent Limits'!N119-'Rent Limits'!N114)*(1-$E$4))/$E$3) -> 454562.7565
A79: CONTRA COSTA30% | B79: =+$B$2+PV($C$3/12,$D$3,-(('Rent Limits'!J119-'Rent Limits'!J113)*(1-$E$4))/$E$3) -> 411924.7547 | C79: =+$B$2+PV($C$3/12,$D$3,-(('Rent Limits'!K119-'Rent Limits'!K113)*(1-$E$4))/$E$3) -> 419991.4037 | D79: =+$B$2+PV($C$3/12,$D$3,-(('Rent Limits'!L119-'Rent Limits'!L113)*(1-$E$4))/$E$3) -> 443903.256 | E79: =+$B$2+PV($C$3/12,$D$3,-(('Rent Limits'!M119-'Rent Limits'!M113)*(1-$E$4))/$E$3) -> 466230.5881 | F79: =+$B$2+PV($C$3/12,$D$3,-(('Rent Limits'!N119-'Rent Limits'!N113)*(1-$E$4))/$E$3) -> 485388.8794
A80: CONTRA COSTA25% | B80: =+$B$2+PV($C$3/12,$D$3,-(('Rent Limits'!J119-'Rent Limits'!J112)*(1-$E$4))/$E$3) -> 430650.9041 | C80: =+$B$2+PV($C$3/12,$D$3,-(('Rent Limits'!K119-'Rent Limits'!K112)*(1-$E$4))/$E$3) -> 440013.9788 | D80: =+$B$2+PV($C$3/12,$D$3,-(('Rent Limits'!L119-'Rent Limits'!L112)*(1-$E$4))/$E$3) -> 467959.1557 | E80: =+$B$2+PV($C$3/12,$D$3,-(('Rent Limits'!M119-'Rent Limits'!M112)*(1-$E$4))/$E$3) -> 493887.6703 | F80: =+$B$2+PV($C$3/12,$D$3,-(('Rent Limits'!N119-'Rent Limits'!N112)*(1-$E$4))/$E$3) -> 516359.0496
A81: CONTRA COSTA20% | B81: =+$B$2+PV($C$3/12,$D$3,-(('Rent Limits'!J119-'Rent Limits'!J111)*(1-$E$4))/$E$3) -> 449233.0063 | C81: =+$B$2+PV($C$3/12,$D$3,-(('Rent Limits'!K119-'Rent Limits'!K111)*(1-$E$4))/$E$3) -> 459892.5067 | D81: =+$B$2+PV($C$3/12,$D$3,-(('Rent Limits'!L119-'Rent Limits'!L111)*(1-$E$4))/$E$3) -> 491871.008 | E81: =+$B$2+PV($C$3/12,$D$3,-(('Rent Limits'!M119-'Rent Limits'!M111)*(1-$E$4))/$E$3) -> 521544.7525 | F81: =+$B$2+PV($C$3/12,$D$3,-(('Rent Limits'!N119-'Rent Limits'!N111)*(1-$E$4))/$E$3) -> 547185.1725
A82: CONTRA COSTA15% | B82: =+$B$2+PV($C$3/12,$D$3,-(('Rent Limits'!J119-'Rent Limits'!J110)*(1-$E$4))/$E$3) -> 467959.1557 | C82: =+$B$2+PV($C$3/12,$D$3,-(('Rent Limits'!K119-'Rent Limits'!K110)*(1-$E$4))/$E$3) -> 479915.0819 | D82: =+$B$2+PV($C$3/12,$D$3,-(('Rent Limits'!L119-'Rent Limits'!L110)*(1-$E$4))/$E$3) -> 515926.9077 | E82: =+$B$2+PV($C$3/12,$D$3,-(('Rent Limits'!M119-'Rent Limits'!M110)*(1-$E$4))/$E$3) -> 549345.8821 | F82: =+$B$2+PV($C$3/12,$D$3,-(('Rent Limits'!N119-'Rent Limits'!N110)*(1-$E$4))/$E$3) -> 578155.3427
A83: DEL NORTE
A84: DEL NORTE60% | B84: 300000 | C84: 302000 | D84: 304000 | E84: 306000 | F84: 308000
A85: DEL NORTE55% | B85: =+$B$2+PV($C$3/12,$D$3,-(('Rent Limits'!J137-'Rent Limits'!J136)*(1-$E$4))/$E$3) -> 310515.4531 | C85: =+$B$2+PV($C$3/12,$D$3,-(('Rent Limits'!K137-'Rent Limits'!K136)*(1-$E$4))/$E$3) -> 311091.6424 | D85: =+$B$2+PV($C$3/12,$D$3,-(('Rent Limits'!L137-'Rent Limits'!L136)*(1-$E$4))/$E$3) -> 313396.3992 | E85: =+$B$2+PV($C$3/12,$D$3,-(('Rent Limits'!M137-'Rent Limits'!M136)*(1-$E$4))/$E$3) -> 315557.1088 | F85: =+$B$2+PV($C$3/12,$D$3,-(('Rent Limits'!N137-'Rent Limits'!N136)*(1-$E$4))/$E$3) -> 317285.6764
A86: DEL NORTE50% | B86: =+$B$2+PV($C$3/12,$D$3,-(('Rent Limits'!J137-'Rent Limits'!J135)*(1-$E$4))/$E$3) -> 320886.859 | C86: =+$B$2+PV($C$3/12,$D$3,-(('Rent Limits'!K137-'Rent Limits'!K135)*(1-$E$4))/$E$3) -> 322327.332 | D86: =+$B$2+PV($C$3/12,$D$3,-(('Rent Limits'!L137-'Rent Limits'!L135)*(1-$E$4))/$E$3) -> 326792.7984 | E86: =+$B$2+PV($C$3/12,$D$3,-(('Rent Limits'!M137-'Rent Limits'!M135)*(1-$E$4))/$E$3) -> 330970.1702 | F86: =+$B$2+PV($C$3/12,$D$3,-(('Rent Limits'!N137-'Rent Limits'!N135)*(1-$E$4))/$E$3) -> 334427.3055
A87: DEL NORTE45% | B87: =+$B$2+PV($C$3/12,$D$3,-(('Rent Limits'!J137-'Rent Limits'!J134)*(1-$E$4))/$E$3) -> 331258.2648 | C87: =+$B$2+PV($C$3/12,$D$3,-(('Rent Limits'!K137-'Rent Limits'!K134)*(1-$E$4))/$E$3) -> 333418.9744 | D87: =+$B$2+PV($C$3/12,$D$3,-(('Rent Limits'!L137-'Rent Limits'!L134)*(1-$E$4))/$E$3) -> 340189.1976 | E87: =+$B$2+PV($C$3/12,$D$3,-(('Rent Limits'!M137-'Rent Limits'!M134)*(1-$E$4))/$E$3) -> 346383.2317 | F87: =+$B$2+PV($C$3/12,$D$3,-(('Rent Limits'!N137-'Rent Limits'!N134)*(1-$E$4))/$E$3) -> 351712.9819
A88: DEL NORTE40% | B88: =+$B$2+PV($C$3/12,$D$3,-(('Rent Limits'!J137-'Rent Limits'!J133)*(1-$E$4))/$E$3) -> 341629.6707 | C88: =+$B$2+PV($C$3/12,$D$3,-(('Rent Limits'!K137-'Rent Limits'!K133)*(1-$E$4))/$E$3) -> 344510.6167 | D88: =+$B$2+PV($C$3/12,$D$3,-(('Rent Limits'!L137-'Rent Limits'!L133)*(1-$E$4))/$E$3) -> 353441.5495 | E88: =+$B$2+PV($C$3/12,$D$3,-(('Rent Limits'!M137-'Rent Limits'!M133)*(1-$E$4))/$E$3) -> 361796.2931 | F88: =+$B$2+PV($C$3/12,$D$3,-(('Rent Limits'!N137-'Rent Limits'!N133)*(1-$E$4))/$E$3) -> 368854.611
A89: DEL NORTE35% | B89: =+$B$2+PV($C$3/12,$D$3,-(('Rent Limits'!J137-'Rent Limits'!J132)*(1-$E$4))/$E$3) -> 352145.1238 | C89: =+$B$2+PV($C$3/12,$D$3,-(('Rent Limits'!K137-'Rent Limits'!K132)*(1-$E$4))/$E$3) -> 355746.3064 | D89: =+$B$2+PV($C$3/12,$D$3,-(('Rent Limits'!L137-'Rent Limits'!L132)*(1-$E$4))/$E$3) -> 366837.9487 | E89: =+$B$2+PV($C$3/12,$D$3,-(('Rent Limits'!M137-'Rent Limits'!M132)*(1-$E$4))/$E$3) -> 377353.4019 | F89: =+$B$2+PV($C$3/12,$D$3,-(('Rent Limits'!N137-'Rent Limits'!N132)*(1-$E$4))/$E$3) -> 386140.2874
A90: DEL NORTE30% | B90: =+$B$2+PV($C$3/12,$D$3,-(('Rent Limits'!J137-'Rent Limits'!J131)*(1-$E$4))/$E$3) -> 362516.5296 | C90: =+$B$2+PV($C$3/12,$D$3,-(('Rent Limits'!K137-'Rent Limits'!K131)*(1-$E$4))/$E$3) -> 366837.9487 | D90: =+$B$2+PV($C$3/12,$D$3,-(('Rent Limits'!L137-'Rent Limits'!L131)*(1-$E$4))/$E$3) -> 380234.348 | E90: =+$B$2+PV($C$3/12,$D$3,-(('Rent Limits'!M137-'Rent Limits'!M131)*(1-$E$4))/$E$3) -> 392766.4634 | F90: =+$B$2+PV($C$3/12,$D$3,-(('Rent Limits'!N137-'Rent Limits'!N131)*(1-$E$4))/$E$3) -> 403425.9638
A91: DEL NORTE25% | B91: =+$B$2+PV($C$3/12,$D$3,-(('Rent Limits'!J137-'Rent Limits'!J130)*(1-$E$4))/$E$3) -> 372887.9355 | C91: =+$B$2+PV($C$3/12,$D$3,-(('Rent Limits'!K137-'Rent Limits'!K130)*(1-$E$4))/$E$3) -> 378073.6384 | D91: =+$B$2+PV($C$3/12,$D$3,-(('Rent Limits'!L137-'Rent Limits'!L130)*(1-$E$4))/$E$3) -> 393630.7472 | E91: =+$B$2+PV($C$3/12,$D$3,-(('Rent Limits'!M137-'Rent Limits'!M130)*(1-$E$4))/$E$3) -> 408179.5248 | F91: =+$B$2+PV($C$3/12,$D$3,-(('Rent Limits'!N137-'Rent Limits'!N130)*(1-$E$4))/$E$3) -> 420567.5929
A92: DEL NORTE20% | B92: =+$B$2+PV($C$3/12,$D$3,-(('Rent Limits'!J137-'Rent Limits'!J129)*(1-$E$4))/$E$3) -> 383259.3413 | C92: =+$B$2+PV($C$3/12,$D$3,-(('Rent Limits'!K137-'Rent Limits'!K129)*(1-$E$4))/$E$3) -> 389165.2808 | D92: =+$B$2+PV($C$3/12,$D$3,-(('Rent Limits'!L137-'Rent Limits'!L129)*(1-$E$4))/$E$3) -> 407027.1464 | E92: =+$B$2+PV($C$3/12,$D$3,-(('Rent Limits'!M137-'Rent Limits'!M129)*(1-$E$4))/$E$3) -> 423592.5863 | F92: =+$B$2+PV($C$3/12,$D$3,-(('Rent Limits'!N137-'Rent Limits'!N129)*(1-$E$4))/$E$3) -> 437853.2693
A93: DEL NORTE15% | B93: =+$B$2+PV($C$3/12,$D$3,-(('Rent Limits'!J137-'Rent Limits'!J128)*(1-$E$4))/$E$3) -> 393774.7945 | C93: =+$B$2+PV($C$3/12,$D$3,-(('Rent Limits'!K137-'Rent Limits'!K128)*(1-$E$4))/$E$3) -> 400256.9231 | D93: =+$B$2+PV($C$3/12,$D$3,-(('Rent Limits'!L137-'Rent Limits'!L128)*(1-$E$4))/$E$3) -> 420423.5456 | E93: =+$B$2+PV($C$3/12,$D$3,-(('Rent Limits'!M137-'Rent Limits'!M128)*(1-$E$4))/$E$3) -> 439149.695 | F93: =+$B$2+PV($C$3/12,$D$3,-(('Rent Limits'!N137-'Rent Limits'!N128)*(1-$E$4))/$E$3) -> 455138.9457
A94: EL DORADO
A95: EL DORADO60% | B95: 300000 | C95: 302000 | D95: 304000 | E95: 306000 | F95: 308000
A96: EL DORADO55% | B96: =+$B$2+PV($C$3/12,$D$3,-(('Rent Limits'!J155-'Rent Limits'!J154)*(1-$E$4))/$E$3) -> 313540.4465 | C96: =+$B$2+PV($C$3/12,$D$3,-(('Rent Limits'!K155-'Rent Limits'!K154)*(1-$E$4))/$E$3) -> 314404.7303 | D96: =+$B$2+PV($C$3/12,$D$3,-(('Rent Limits'!L155-'Rent Limits'!L154)*(1-$E$4))/$E$3) -> 317429.7237 | E96: =+$B$2+PV($C$3/12,$D$3,-(('Rent Limits'!M155-'Rent Limits'!M154)*(1-$E$4))/$E$3) -> 320022.5752 | F96: =+$B$2+PV($C$3/12,$D$3,-(('Rent Limits'!N155-'Rent Limits'!N154)*(1-$E$4))/$E$3) -> 322471.3793
A97: EL DORADO50% | B97: =+$B$2+PV($C$3/12,$D$3,-(('Rent Limits'!J155-'Rent Limits'!J153)*(1-$E$4))/$E$3) -> 327080.893 | C97: =+$B$2+PV($C$3/12,$D$3,-(('Rent Limits'!K155-'Rent Limits'!K153)*(1-$E$4))/$E$3) -> 328953.508 | D97: =+$B$2+PV($C$3/12,$D$3,-(('Rent Limits'!L155-'Rent Limits'!L153)*(1-$E$4))/$E$3) -> 334715.4001 | E97: =+$B$2+PV($C$3/12,$D$3,-(('Rent Limits'!M155-'Rent Limits'!M153)*(1-$E$4))/$E$3) -> 340189.1976 | F97: =+$B$2+PV($C$3/12,$D$3,-(('Rent Limits'!N155-'Rent Limits'!N153)*(1-$E$4))/$E$3) -> 344798.7113
A98: EL DORADO45% | B98: =+$B$2+PV($C$3/12,$D$3,-(('Rent Limits'!J155-'Rent Limits'!J152)*(1-$E$4))/$E$3) -> 340621.3395 | C98: =+$B$2+PV($C$3/12,$D$3,-(('Rent Limits'!K155-'Rent Limits'!K152)*(1-$E$4))/$E$3) -> 343358.2383 | D98: =+$B$2+PV($C$3/12,$D$3,-(('Rent Limits'!L155-'Rent Limits'!L152)*(1-$E$4))/$E$3) -> 352145.1238 | E98: =+$B$2+PV($C$3/12,$D$3,-(('Rent Limits'!M155-'Rent Limits'!M152)*(1-$E$4))/$E$3) -> 360211.7728 | F98: =+$B$2+PV($C$3/12,$D$3,-(('Rent Limits'!N155-'Rent Limits'!N152)*(1-$E$4))/$E$3) -> 367270.0907
A99: EL DORADO40% | B99: =+$B$2+PV($C$3/12,$D$3,-(('Rent Limits'!J155-'Rent Limits'!J151)*(1-$E$4))/$E$3) -> 354017.7388 | C99: =+$B$2+PV($C$3/12,$D$3,-(('Rent Limits'!K155-'Rent Limits'!K151)*(1-$E$4))/$E$3) -> 357907.0159 | D99: =+$B$2+PV($C$3/12,$D$3,-(('Rent Limits'!L155-'Rent Limits'!L151)*(1-$E$4))/$E$3) -> 369430.8002 | E99: =+$B$2+PV($C$3/12,$D$3,-(('Rent Limits'!M155-'Rent Limits'!M151)*(1-$E$4))/$E$3) -> 380234.348 | F99: =+$B$2+PV($C$3/12,$D$3,-(('Rent Limits'!N155-'Rent Limits'!N151)*(1-$E$4))/$E$3) -> 389597.4227
A100: EL DORADO35% | B100: =+$B$2+PV($C$3/12,$D$3,-(('Rent Limits'!J155-'Rent Limits'!J150)*(1-$E$4))/$E$3) -> 367558.1853 | C100: =+$B$2+PV($C$3/12,$D$3,-(('Rent Limits'!K155-'Rent Limits'!K150)*(1-$E$4))/$E$3) -> 372455.7936 | D100: =+$B$2+PV($C$3/12,$D$3,-(('Rent Limits'!L155-'Rent Limits'!L150)*(1-$E$4))/$E$3) -> 386860.5239 | E100: =+$B$2+PV($C$3/12,$D$3,-(('Rent Limits'!M155-'Rent Limits'!M150)*(1-$E$4))/$E$3) -> 400400.9704 | F100: =+$B$2+PV($C$3/12,$D$3,-(('Rent Limits'!N155-'Rent Limits'!N150)*(1-$E$4))/$E$3) -> 412068.802
A101: EL DORADO30% | B101: =+$B$2+PV($C$3/12,$D$3,-(('Rent Limits'!J155-'Rent Limits'!J149)*(1-$E$4))/$E$3) -> 381098.6318 | C101: =+$B$2+PV($C$3/12,$D$3,-(('Rent Limits'!K155-'Rent Limits'!K149)*(1-$E$4))/$E$3) -> 386860.5239 | D101: =+$B$2+PV($C$3/12,$D$3,-(('Rent Limits'!L155-'Rent Limits'!L149)*(1-$E$4))/$E$3) -> 404290.2476 | E101: =+$B$2+PV($C$3/12,$D$3,-(('Rent Limits'!M155-'Rent Limits'!M149)*(1-$E$4))/$E$3) -> 420423.5456 | F101: =+$B$2+PV($C$3/12,$D$3,-(('Rent Limits'!N155-'Rent Limits'!N149)*(1-$E$4))/$E$3) -> 434396.134
A102: EL DORADO25% | B102: =+$B$2+PV($C$3/12,$D$3,-(('Rent Limits'!J155-'Rent Limits'!J148)*(1-$E$4))/$E$3) -> 394639.0783 | C102: =+$B$2+PV($C$3/12,$D$3,-(('Rent Limits'!K155-'Rent Limits'!K148)*(1-$E$4))/$E$3) -> 401409.3016 | D102: =+$B$2+PV($C$3/12,$D$3,-(('Rent Limits'!L155-'Rent Limits'!L148)*(1-$E$4))/$E$3) -> 421575.924 | E102: =+$B$2+PV($C$3/12,$D$3,-(('Rent Limits'!M155-'Rent Limits'!M148)*(1-$E$4))/$E$3) -> 440590.1681 | F102: =+$B$2+PV($C$3/12,$D$3,-(('Rent Limits'!N155-'Rent Limits'!N148)*(1-$E$4))/$E$3) -> 456867.5133
A103: EL DORADO20% | B103: =+$B$2+PV($C$3/12,$D$3,-(('Rent Limits'!J155-'Rent Limits'!J147)*(1-$E$4))/$E$3) -> 408179.5248 | C103: =+$B$2+PV($C$3/12,$D$3,-(('Rent Limits'!K155-'Rent Limits'!K147)*(1-$E$4))/$E$3) -> 415814.0319 | D103: =+$B$2+PV($C$3/12,$D$3,-(('Rent Limits'!L155-'Rent Limits'!L147)*(1-$E$4))/$E$3) -> 439005.6477 | E103: =+$B$2+PV($C$3/12,$D$3,-(('Rent Limits'!M155-'Rent Limits'!M147)*(1-$E$4))/$E$3) -> 460612.7432 | F103: =+$B$2+PV($C$3/12,$D$3,-(('Rent Limits'!N155-'Rent Limits'!N147)*(1-$E$4))/$E$3) -> 479194.8454
A104: EL DORADO15% | B104: =+$B$2+PV($C$3/12,$D$3,-(('Rent Limits'!J155-'Rent Limits'!J146)*(1-$E$4))/$E$3) -> 421719.9713 | C104: =+$B$2+PV($C$3/12,$D$3,-(('Rent Limits'!K155-'Rent Limits'!K146)*(1-$E$4))/$E$3) -> 430362.8095 | D104: =+$B$2+PV($C$3/12,$D$3,-(('Rent Limits'!L155-'Rent Limits'!L146)*(1-$E$4))/$E$3) -> 456435.3714 | E104: =+$B$2+PV($C$3/12,$D$3,-(('Rent Limits'!M155-'Rent Limits'!M146)*(1-$E$4))/$E$3) -> 480635.3184 | F104: =+$B$2+PV($C$3/12,$D$3,-(('Rent Limits'!N155-'Rent Limits'!N146)*(1-$E$4))/$E$3) -> 501666.2247
A105: FRESNO
A106: FRESNO60% | B106: 300000 | C106: 302000 | D106: 304000 | E106: 306000 | F106: 308000
A107: FRESNO55% | B107: =+$D$2+PV($C$3/12,$D$3,-(('Rent Limits'!J173-'Rent Limits'!J172)*(1-$E$4))/$E$3) -> 310515.4531 | C107: =+$D$2+PV($C$3/12,$D$3,-(('Rent Limits'!K173-'Rent Limits'!K172)*(1-$E$4))/$E$3) -> 311091.6424 | D107: =+$D$2+PV($C$3/12,$D$3,-(('Rent Limits'!L173-'Rent Limits'!L172)*(1-$E$4))/$E$3) -> 313396.3992 | E107: =+$D$2+PV($C$3/12,$D$3,-(('Rent Limits'!M173-'Rent Limits'!M172)*(1-$E$4))/$E$3) -> 315557.1088 | F107: =+$D$2+PV($C$3/12,$D$3,-(('Rent Limits'!N173-'Rent Limits'!N172)*(1-$E$4))/$E$3) -> 317285.6764
A108: FRESNO50% | B108: =+$D$2+PV($C$3/12,$D$3,-(('Rent Limits'!J173-'Rent Limits'!J171)*(1-$E$4))/$E$3) -> 320886.859 | C108: =+$D$2+PV($C$3/12,$D$3,-(('Rent Limits'!K173-'Rent Limits'!K171)*(1-$E$4))/$E$3) -> 322327.332 | D108: =+$D$2+PV($C$3/12,$D$3,-(('Rent Limits'!L173-'Rent Limits'!L171)*(1-$E$4))/$E$3) -> 326792.7984 | E108: =+$D$2+PV($C$3/12,$D$3,-(('Rent Limits'!M173-'Rent Limits'!M171)*(1-$E$4))/$E$3) -> 330970.1702 | F108: =+$D$2+PV($C$3/12,$D$3,-(('Rent Limits'!N173-'Rent Limits'!N171)*(1-$E$4))/$E$3) -> 334427.3055
A109: FRESNO45% | B109: =+$D$2+PV($C$3/12,$D$3,-(('Rent Limits'!J173-'Rent Limits'!J170)*(1-$E$4))/$E$3) -> 331258.2648 | C109: =+$D$2+PV($C$3/12,$D$3,-(('Rent Limits'!K173-'Rent Limits'!K170)*(1-$E$4))/$E$3) -> 333418.9744 | D109: =+$D$2+PV($C$3/12,$D$3,-(('Rent Limits'!L173-'Rent Limits'!L170)*(1-$E$4))/$E$3) -> 340189.1976 | E109: =+$D$2+PV($C$3/12,$D$3,-(('Rent Limits'!M173-'Rent Limits'!M170)*(1-$E$4))/$E$3) -> 346383.2317 | F109: =+$D$2+PV($C$3/12,$D$3,-(('Rent Limits'!N173-'Rent Limits'!N170)*(1-$E$4))/$E$3) -> 351712.9819
A110: FRESNO40% | B110: =+$D$2+PV($C$3/12,$D$3,-(('Rent Limits'!J173-'Rent Limits'!J169)*(1-$E$4))/$E$3) -> 341629.6707 | C110: =+$D$2+PV($C$3/12,$D$3,-(('Rent Limits'!K173-'Rent Limits'!K169)*(1-$E$4))/$E$3) -> 344510.6167 | D110: =+$D$2+PV($C$3/12,$D$3,-(('Rent Limits'!L173-'Rent Limits'!L169)*(1-$E$4))/$E$3) -> 353441.5495 | E110: =+$D$2+PV($C$3/12,$D$3,-(('Rent Limits'!M173-'Rent Limits'!M169)*(1-$E$4))/$E$3) -> 361796.2931 | F110: =+$D$2+PV($C$3/12,$D$3,-(('Rent Limits'!N173-'Rent Limits'!N169)*(1-$E$4))/$E$3) -> 368854.611
A111: FRESNO35% | B111: =+$D$2+PV($C$3/12,$D$3,-(('Rent Limits'!J173-'Rent Limits'!J168)*(1-$E$4))/$E$3) -> 352145.1238 | C111: =+$D$2+PV($C$3/12,$D$3,-(('Rent Limits'!K173-'Rent Limits'!K168)*(1-$E$4))/$E$3) -> 355746.3064 | D111: =+$D$2+PV($C$3/12,$D$3,-(('Rent Limits'!L173-'Rent Limits'!L168)*(1-$E$4))/$E$3) -> 366837.9487 | E111: =+$D$2+PV($C$3/12,$D$3,-(('Rent Limits'!M173-'Rent Limits'!M168)*(1-$E$4))/$E$3) -> 377353.4019 | F111: =+$D$2+PV($C$3/12,$D$3,-(('Rent Limits'!N173-'Rent Limits'!N168)*(1-$E$4))/$E$3) -> 386140.2874
A112: FRESNO30% | B112: =+$D$2+PV($C$3/12,$D$3,-(('Rent Limits'!J173-'Rent Limits'!J167)*(1-$E$4))/$E$3) -> 362516.5296 | C112: =+$D$2+PV($C$3/12,$D$3,-(('Rent Limits'!K173-'Rent Limits'!K167)*(1-$E$4))/$E$3) -> 366837.9487 | D112: =+$D$2+PV($C$3/12,$D$3,-(('Rent Limits'!L173-'Rent Limits'!L167)*(1-$E$4))/$E$3) -> 380234.348 | E112: =+$D$2+PV($C$3/12,$D$3,-(('Rent Limits'!M173-'Rent Limits'!M167)*(1-$E$4))/$E$3) -> 392766.4634 | F112: =+$D$2+PV($C$3/12,$D$3,-(('Rent Limits'!N173-'Rent Limits'!N167)*(1-$E$4))/$E$3) -> 403425.9638
A113: FRESNO25% | B113: =+$D$2+PV($C$3/12,$D$3,-(('Rent Limits'!J173-'Rent Limits'!J166)*(1-$E$4))/$E$3) -> 372887.9355 | C113: =+$D$2+PV($C$3/12,$D$3,-(('Rent Limits'!K173-'Rent Limits'!K166)*(1-$E$4))/$E$3) -> 378073.6384 | D113: =+$D$2+PV($C$3/12,$D$3,-(('Rent Limits'!L173-'Rent Limits'!L166)*(1-$E$4))/$E$3) -> 393630.7472 | E113: =+$D$2+PV($C$3/12,$D$3,-(('Rent Limits'!M173-'Rent Limits'!M166)*(1-$E$4))/$E$3) -> 408179.5248 | F113: =+$D$2+PV($C$3/12,$D$3,-(('Rent Limits'!N173-'Rent Limits'!N166)*(1-$E$4))/$E$3) -> 420567.5929
A114: FRESNO20% | B114: =+$D$2+PV($C$3/12,$D$3,-(('Rent Limits'!J173-'Rent Limits'!J165)*(1-$E$4))/$E$3) -> 383259.3413 | C114: =+$D$2+PV($C$3/12,$D$3,-(('Rent Limits'!K173-'Rent Limits'!K165)*(1-$E$4))/$E$3) -> 389165.2808 | D114: =+$D$2+PV($C$3/12,$D$3,-(('Rent Limits'!L173-'Rent Limits'!L165)*(1-$E$4))/$E$3) -> 407027.1464 | E114: =+$D$2+PV($C$3/12,$D$3,-(('Rent Limits'!M173-'Rent Limits'!M165)*(1-$E$4))/$E$3) -> 423592.5863 | F114: =+$D$2+PV($C$3/12,$D$3,-(('Rent Limits'!N173-'Rent Limits'!N165)*(1-$E$4))/$E$3) -> 437853.2693
A115: FRESNO15% | B115: =+$D$2+PV($C$3/12,$D$3,-(('Rent Limits'!J173-'Rent Limits'!J164)*(1-$E$4))/$E$3) -> 393774.7945 | C115: =+$D$2+PV($C$3/12,$D$3,-(('Rent Limits'!K173-'Rent Limits'!K164)*(1-$E$4))/$E$3) -> 400256.9231 | D115: =+$D$2+PV($C$3/12,$D$3,-(('Rent Limits'!L173-'Rent Limits'!L164)*(1-$E$4))/$E$3) -> 420423.5456 | E115: =+$D$2+PV($C$3/12,$D$3,-(('Rent Limits'!M173-'Rent Limits'!M164)*(1-$E$4))/$E$3) -> 439149.695 | F115: =+$D$2+PV($C$3/12,$D$3,-(('Rent Limits'!N173-'Rent Limits'!N164)*(1-$E$4))/$E$3) -> 455138.9457
A116: GLENN
A117: GLENN60% | B117: 300000 | C117: 302000 | D117: 304000 | E117: 306000 | F117: 308000
A118: GLENN55% | B118: =+$B$2+PV($C$3/12,$D$3,-(('Rent Limits'!J191-'Rent Limits'!J190)*(1-$E$4))/$E$3) -> 310515.4531 | C118: =+$B$2+PV($C$3/12,$D$3,-(('Rent Limits'!K191-'Rent Limits'!K190)*(1-$E$4))/$E$3) -> 311091.6424 | D118: =+$B$2+PV($C$3/12,$D$3,-(('Rent Limits'!L191-'Rent Limits'!L190)*(1-$E$4))/$E$3) -> 313396.3992 | E118: =+$B$2+PV($C$3/12,$D$3,-(('Rent Limits'!M191-'Rent Limits'!M190)*(1-$E$4))/$E$3) -> 315557.1088 | F118: =+$B$2+PV($C$3/12,$D$3,-(('Rent Limits'!N191-'Rent Limits'!N190)*(1-$E$4))/$E$3) -> 317285.6764
A119: GLENN50% | B119: =+$B$2+PV($C$3/12,$D$3,-(('Rent Limits'!J191-'Rent Limits'!J189)*(1-$E$4))/$E$3) -> 320886.859 | C119: =+$B$2+PV($C$3/12,$D$3,-(('Rent Limits'!K191-'Rent Limits'!K189)*(1-$E$4))/$E$3) -> 322327.332 | D119: =+$B$2+PV($C$3/12,$D$3,-(('Rent Limits'!L191-'Rent Limits'!L189)*(1-$E$4))/$E$3) -> 326792.7984 | E119: =+$B$2+PV($C$3/12,$D$3,-(('Rent Limits'!M191-'Rent Limits'!M189)*(1-$E$4))/$E$3) -> 330970.1702 | F119: =+$B$2+PV($C$3/12,$D$3,-(('Rent Limits'!N191-'Rent Limits'!N189)*(1-$E$4))/$E$3) -> 334427.3055
A120: GLENN45% | B120: =+$B$2+PV($C$3/12,$D$3,-(('Rent Limits'!J191-'Rent Limits'!J188)*(1-$E$4))/$E$3) -> 331258.2648 | C120: =+$B$2+PV($C$3/12,$D$3,-(('Rent Limits'!K191-'Rent Limits'!K188)*(1-$E$4))/$E$3) -> 333418.9744 | D120: =+$B$2+PV($C$3/12,$D$3,-(('Rent Limits'!L191-'Rent Limits'!L188)*(1-$E$4))/$E$3) -> 340189.1976 | E120: =+$B$2+PV($C$3/12,$D$3,-(('Rent Limits'!M191-'Rent Limits'!M188)*(1-$E$4))/$E$3) -> 346383.2317 | F120: =+$B$2+PV($C$3/12,$D$3,-(('Rent Limits'!N191-'Rent Limits'!N188)*(1-$E$4))/$E$3) -> 351712.9819
A121: GLENN40% | B121: =+$B$2+PV($C$3/12,$D$3,-(('Rent Limits'!J191-'Rent Limits'!J187)*(1-$E$4))/$E$3) -> 341629.6707 | C121: =+$B$2+PV($C$3/12,$D$3,-(('Rent Limits'!K191-'Rent Limits'!K187)*(1-$E$4))/$E$3) -> 344510.6167 | D121: =+$B$2+PV($C$3/12,$D$3,-(('Rent Limits'!L191-'Rent Limits'!L187)*(1-$E$4))/$E$3) -> 353441.5495 | E121: =+$B$2+PV($C$3/12,$D$3,-(('Rent Limits'!M191-'Rent Limits'!M187)*(1-$E$4))/$E$3) -> 361796.2931 | F121: =+$B$2+PV($C$3/12,$D$3,-(('Rent Limits'!N191-'Rent Limits'!N187)*(1-$E$4))/$E$3) -> 368854.611
A122: GLENN35% | B122: =+$B$2+PV($C$3/12,$D$3,-(('Rent Limits'!J191-'Rent Limits'!J186)*(1-$E$4))/$E$3) -> 352145.1238 | C122: =+$B$2+PV($C$3/12,$D$3,-(('Rent Limits'!K191-'Rent Limits'!K186)*(1-$E$4))/$E$3) -> 355746.3064 | D122: =+$B$2+PV($C$3/12,$D$3,-(('Rent Limits'!L191-'Rent Limits'!L186)*(1-$E$4))/$E$3) -> 366837.9487 | E122: =+$B$2+PV($C$3/12,$D$3,-(('Rent Limits'!M191-'Rent Limits'!M186)*(1-$E$4))/$E$3) -> 377353.4019 | F122: =+$B$2+PV($C$3/12,$D$3,-(('Rent Limits'!N191-'Rent Limits'!N186)*(1-$E$4))/$E$3) -> 386140.2874
A123: GLENN30% | B123: =+$B$2+PV($C$3/12,$D$3,-(('Rent Limits'!J191-'Rent Limits'!J185)*(1-$E$4))/$E$3) -> 362516.5296 | C123: =+$B$2+PV($C$3/12,$D$3,-(('Rent Limits'!K191-'Rent Limits'!K185)*(1-$E$4))/$E$3) -> 366837.9487 | D123: =+$B$2+PV($C$3/12,$D$3,-(('Rent Limits'!L191-'Rent Limits'!L185)*(1-$E$4))/$E$3) -> 380234.348 | E123: =+$B$2+PV($C$3/12,$D$3,-(('Rent Limits'!M191-'Rent Limits'!M185)*(1-$E$4))/$E$3) -> 392766.4634 | F123: =+$B$2+PV($C$3/12,$D$3,-(('Rent Limits'!N191-'Rent Limits'!N185)*(1-$E$4))/$E$3) -> 403425.9638
A124: GLENN25% | B124: =+$B$2+PV($C$3/12,$D$3,-(('Rent Limits'!J191-'Rent Limits'!J184)*(1-$E$4))/$E$3) -> 372887.9355 | C124: =+$B$2+PV($C$3/12,$D$3,-(('Rent Limits'!K191-'Rent Limits'!K184)*(1-$E$4))/$E$3) -> 378073.6384 | D124: =+$B$2+PV($C$3/12,$D$3,-(('Rent Limits'!L191-'Rent Limits'!L184)*(1-$E$4))/$E$3) -> 393630.7472 | E124: =+$B$2+PV($C$3/12,$D$3,-(('Rent Limits'!M191-'Rent Limits'!M184)*(1-$E$4))/$E$3) -> 408179.5248 | F124: =+$B$2+PV($C$3/12,$D$3,-(('Rent Limits'!N191-'Rent Limits'!N184)*(1-$E$4))/$E$3) -> 420567.5929
A125: GLENN20% | B125: =+$B$2+PV($C$3/12,$D$3,-(('Rent Limits'!J191-'Rent Limits'!J183)*(1-$E$4))/$E$3) -> 383259.3413 | C125: =+$B$2+PV($C$3/12,$D$3,-(('Rent Limits'!K191-'Rent Limits'!K183)*(1-$E$4))/$E$3) -> 389165.2808 | D125: =+$B$2+PV($C$3/12,$D$3,-(('Rent Limits'!L191-'Rent Limits'!L183)*(1-$E$4))/$E$3) -> 407027.1464 | E125: =+$B$2+PV($C$3/12,$D$3,-(('Rent Limits'!M191-'Rent Limits'!M183)*(1-$E$4))/$E$3) -> 423592.5863 | F125: =+$B$2+PV($C$3/12,$D$3,-(('Rent Limits'!N191-'Rent Limits'!N183)*(1-$E$4))/$E$3) -> 437853.2693
A126: GLENN15% | B126: =+$B$2+PV($C$3/12,$D$3,-(('Rent Limits'!J191-'Rent Limits'!J182)*(1-$E$4))/$E$3) -> 393774.7945 | C126: =+$B$2+PV($C$3/12,$D$3,-(('Rent Limits'!K191-'Rent Limits'!K182)*(1-$E$4))/$E$3) -> 400256.9231 | D126: =+$B$2+PV($C$3/12,$D$3,-(('Rent Limits'!L191-'Rent Limits'!L182)*(1-$E$4))/$E$3) -> 420423.5456 | E126: =+$B$2+PV($C$3/12,$D$3,-(('Rent Limits'!M191-'Rent Limits'!M182)*(1-$E$4))/$E$3) -> 439149.695 | F126: =+$B$2+PV($C$3/12,$D$3,-(('Rent Limits'!N191-'Rent Limits'!N182)*(1-$E$4))/$E$3) -> 455138.9457
A127: HUMBOLDT
A128: HUMBOLDT60% | B128: 300000 | C128: 302000 | D128: 304000 | E128: 306000 | F128: 308000
A129: HUMBOLDT55% | B129: =+$B$2+PV($C$3/12,$D$3,-(('Rent Limits'!J209-'Rent Limits'!J208)*(1-$E$4))/$E$3) -> 310515.4531 | C129: =+$B$2+PV($C$3/12,$D$3,-(('Rent Limits'!K209-'Rent Limits'!K208)*(1-$E$4))/$E$3) -> 311091.6424 | D129: =+$B$2+PV($C$3/12,$D$3,-(('Rent Limits'!L209-'Rent Limits'!L208)*(1-$E$4))/$E$3) -> 313396.3992 | E129: =+$B$2+PV($C$3/12,$D$3,-(('Rent Limits'!M209-'Rent Limits'!M208)*(1-$E$4))/$E$3) -> 315557.1088 | F129: =+$B$2+PV($C$3/12,$D$3,-(('Rent Limits'!N209-'Rent Limits'!N208)*(1-$E$4))/$E$3) -> 317285.6764
A130: HUMBOLDT50% | B130: =+$B$2+PV($C$3/12,$D$3,-(('Rent Limits'!J209-'Rent Limits'!J207)*(1-$E$4))/$E$3) -> 320886.859 | C130: =+$B$2+PV($C$3/12,$D$3,-(('Rent Limits'!K209-'Rent Limits'!K207)*(1-$E$4))/$E$3) -> 322327.332 | D130: =+$B$2+PV($C$3/12,$D$3,-(('Rent Limits'!L209-'Rent Limits'!L207)*(1-$E$4))/$E$3) -> 326792.7984 | E130: =+$B$2+PV($C$3/12,$D$3,-(('Rent Limits'!M209-'Rent Limits'!M207)*(1-$E$4))/$E$3) -> 330970.1702 | F130: =+$B$2+PV($C$3/12,$D$3,-(('Rent Limits'!N209-'Rent Limits'!N207)*(1-$E$4))/$E$3) -> 334427.3055
A131: HUMBOLDT45% | B131: =+$B$2+PV($C$3/12,$D$3,-(('Rent Limits'!J209-'Rent Limits'!J206)*(1-$E$4))/$E$3) -> 331258.2648 | C131: =+$B$2+PV($C$3/12,$D$3,-(('Rent Limits'!K209-'Rent Limits'!K206)*(1-$E$4))/$E$3) -> 333418.9744 | D131: =+$B$2+PV($C$3/12,$D$3,-(('Rent Limits'!L209-'Rent Limits'!L206)*(1-$E$4))/$E$3) -> 340189.1976 | E131: =+$B$2+PV($C$3/12,$D$3,-(('Rent Limits'!M209-'Rent Limits'!M206)*(1-$E$4))/$E$3) -> 346383.2317 | F131: =+$B$2+PV($C$3/12,$D$3,-(('Rent Limits'!N209-'Rent Limits'!N206)*(1-$E$4))/$E$3) -> 351712.9819
A132: HUMBOLDT40% | B132: =+$B$2+PV($C$3/12,$D$3,-(('Rent Limits'!J209-'Rent Limits'!J205)*(1-$E$4))/$E$3) -> 341629.6707 | C132: =+$B$2+PV($C$3/12,$D$3,-(('Rent Limits'!K209-'Rent Limits'!K205)*(1-$E$4))/$E$3) -> 344510.6167 | D132: =+$B$2+PV($C$3/12,$D$3,-(('Rent Limits'!L209-'Rent Limits'!L205)*(1-$E$4))/$E$3) -> 353441.5495 | E132: =+$B$2+PV($C$3/12,$D$3,-(('Rent Limits'!M209-'Rent Limits'!M205)*(1-$E$4))/$E$3) -> 361796.2931 | F132: =+$B$2+PV($C$3/12,$D$3,-(('Rent Limits'!N209-'Rent Limits'!N205)*(1-$E$4))/$E$3) -> 368854.611
A133: HUMBOLDT35% | B133: =+$B$2+PV($C$3/12,$D$3,-(('Rent Limits'!J209-'Rent Limits'!J204)*(1-$E$4))/$E$3) -> 352145.1238 | C133: =+$B$2+PV($C$3/12,$D$3,-(('Rent Limits'!K209-'Rent Limits'!K204)*(1-$E$4))/$E$3) -> 355746.3064 | D133: =+$B$2+PV($C$3/12,$D$3,-(('Rent Limits'!L209-'Rent Limits'!L204)*(1-$E$4))/$E$3) -> 366837.9487 | E133: =+$B$2+PV($C$3/12,$D$3,-(('Rent Limits'!M209-'Rent Limits'!M204)*(1-$E$4))/$E$3) -> 377353.4019 | F133: =+$B$2+PV($C$3/12,$D$3,-(('Rent Limits'!N209-'Rent Limits'!N204)*(1-$E$4))/$E$3) -> 386140.2874
A134: HUMBOLDT30% | B134: =+$B$2+PV($C$3/12,$D$3,-(('Rent Limits'!J209-'Rent Limits'!J203)*(1-$E$4))/$E$3) -> 362516.5296 | C134: =+$B$2+PV($C$3/12,$D$3,-(('Rent Limits'!K209-'Rent Limits'!K203)*(1-$E$4))/$E$3) -> 366837.9487 | D134: =+$B$2+PV($C$3/12,$D$3,-(('Rent Limits'!L209-'Rent Limits'!L203)*(1-$E$4))/$E$3) -> 380234.348 | E134: =+$B$2+PV($C$3/12,$D$3,-(('Rent Limits'!M209-'Rent Limits'!M203)*(1-$E$4))/$E$3) -> 392766.4634 | F134: =+$B$2+PV($C$3/12,$D$3,-(('Rent Limits'!N209-'Rent Limits'!N203)*(1-$E$4))/$E$3) -> 403425.9638
A135: HUMBOLDT25% | B135: =+$B$2+PV($C$3/12,$D$3,-(('Rent Limits'!J209-'Rent Limits'!J202)*(1-$E$4))/$E$3) -> 372887.9355 | C135: =+$B$2+PV($C$3/12,$D$3,-(('Rent Limits'!K209-'Rent Limits'!K202)*(1-$E$4))/$E$3) -> 378073.6384 | D135: =+$B$2+PV($C$3/12,$D$3,-(('Rent Limits'!L209-'Rent Limits'!L202)*(1-$E$4))/$E$3) -> 393630.7472 | E135: =+$B$2+PV($C$3/12,$D$3,-(('Rent Limits'!M209-'Rent Limits'!M202)*(1-$E$4))/$E$3) -> 408179.5248 | F135: =+$B$2+PV($C$3/12,$D$3,-(('Rent Limits'!N209-'Rent Limits'!N202)*(1-$E$4))/$E$3) -> 420567.5929
A136: HUMBOLDT20% | B136: =+$B$2+PV($C$3/12,$D$3,-(('Rent Limits'!J209-'Rent Limits'!J201)*(1-$E$4))/$E$3) -> 383259.3413 | C136: =+$B$2+PV($C$3/12,$D$3,-(('Rent Limits'!K209-'Rent Limits'!K201)*(1-$E$4))/$E$3) -> 389165.2808 | D136: =+$B$2+PV($C$3/12,$D$3,-(('Rent Limits'!L209-'Rent Limits'!L201)*(1-$E$4))/$E$3) -> 407027.1464 | E136: =+$B$2+PV($C$3/12,$D$3,-(('Rent Limits'!M209-'Rent Limits'!M201)*(1-$E$4))/$E$3) -> 423592.5863 | F136: =+$B$2+PV($C$3/12,$D$3,-(('Rent Limits'!N209-'Rent Limits'!N201)*(1-$E$4))/$E$3) -> 437853.2693
A137: HUMBOLDT15% | B137: =+$B$2+PV($C$3/12,$D$3,-(('Rent Limits'!J209-'Rent Limits'!J200)*(1-$E$4))/$E$3) -> 393774.7945 | C137: =+$B$2+PV($C$3/12,$D$3,-(('Rent Limits'!K209-'Rent Limits'!K200)*(1-$E$4))/$E$3) -> 400256.9231 | D137: =+$B$2+PV($C$3/12,$D$3,-(('Rent Limits'!L209-'Rent Limits'!L200)*(1-$E$4))/$E$3) -> 420423.5456 | E137: =+$B$2+PV($C$3/12,$D$3,-(('Rent Limits'!M209-'Rent Limits'!M200)*(1-$E$4))/$E$3) -> 439149.695 | F137: =+$B$2+PV($C$3/12,$D$3,-(('Rent Limits'!N209-'Rent Limits'!N200)*(1-$E$4))/$E$3) -> 455138.9457
A138: IMPERIAL
A139: IMPERIAL60% | B139: 300000 | C139: 302000 | D139: 304000 | E139: 306000 | F139: 308000
A140: IMPERIAL55% | B140: =+$D$2+PV($C$3/12,$D$3,-(('Rent Limits'!J227-'Rent Limits'!J226)*(1-$E$4))/$E$3) -> 310515.4531 | C140: =+$D$2+PV($C$3/12,$D$3,-(('Rent Limits'!K227-'Rent Limits'!K226)*(1-$E$4))/$E$3) -> 311091.6424 | D140: =+$D$2+PV($C$3/12,$D$3,-(('Rent Limits'!L227-'Rent Limits'!L226)*(1-$E$4))/$E$3) -> 313396.3992 | E140: =+$D$2+PV($C$3/12,$D$3,-(('Rent Limits'!M227-'Rent Limits'!M226)*(1-$E$4))/$E$3) -> 315557.1088 | F140: =+$D$2+PV($C$3/12,$D$3,-(('Rent Limits'!N227-'Rent Limits'!N226)*(1-$E$4))/$E$3) -> 317285.6764
A141: IMPERIAL50% | B141: =+$D$2+PV($C$3/12,$D$3,-(('Rent Limits'!J227-'Rent Limits'!J225)*(1-$E$4))/$E$3) -> 320886.859 | C141: =+$D$2+PV($C$3/12,$D$3,-(('Rent Limits'!K227-'Rent Limits'!K225)*(1-$E$4))/$E$3) -> 322327.332 | D141: =+$D$2+PV($C$3/12,$D$3,-(('Rent Limits'!L227-'Rent Limits'!L225)*(1-$E$4))/$E$3) -> 326792.7984 | E141: =+$D$2+PV($C$3/12,$D$3,-(('Rent Limits'!M227-'Rent Limits'!M225)*(1-$E$4))/$E$3) -> 330970.1702 | F141: =+$D$2+PV($C$3/12,$D$3,-(('Rent Limits'!N227-'Rent Limits'!N225)*(1-$E$4))/$E$3) -> 334427.3055
A142: IMPERIAL45% | B142: =+$D$2+PV($C$3/12,$D$3,-(('Rent Limits'!J227-'Rent Limits'!J224)*(1-$E$4))/$E$3) -> 331258.2648 | C142: =+$D$2+PV($C$3/12,$D$3,-(('Rent Limits'!K227-'Rent Limits'!K224)*(1-$E$4))/$E$3) -> 333418.9744 | D142: =+$D$2+PV($C$3/12,$D$3,-(('Rent Limits'!L227-'Rent Limits'!L224)*(1-$E$4))/$E$3) -> 340189.1976 | E142: =+$D$2+PV($C$3/12,$D$3,-(('Rent Limits'!M227-'Rent Limits'!M224)*(1-$E$4))/$E$3) -> 346383.2317 | F142: =+$D$2+PV($C$3/12,$D$3,-(('Rent Limits'!N227-'Rent Limits'!N224)*(1-$E$4))/$E$3) -> 351712.9819
A143: IMPERIAL40% | B143: =+$D$2+PV($C$3/12,$D$3,-(('Rent Limits'!J227-'Rent Limits'!J223)*(1-$E$4))/$E$3) -> 341629.6707 | C143: =+$D$2+PV($C$3/12,$D$3,-(('Rent Limits'!K227-'Rent Limits'!K223)*(1-$E$4))/$E$3) -> 344510.6167 | D143: =+$D$2+PV($C$3/12,$D$3,-(('Rent Limits'!L227-'Rent Limits'!L223)*(1-$E$4))/$E$3) -> 353441.5495 | E143: =+$D$2+PV($C$3/12,$D$3,-(('Rent Limits'!M227-'Rent Limits'!M223)*(1-$E$4))/$E$3) -> 361796.2931 | F143: =+$D$2+PV($C$3/12,$D$3,-(('Rent Limits'!N227-'Rent Limits'!N223)*(1-$E$4))/$E$3) -> 368854.611
A144: IMPERIAL35% | B144: =+$D$2+PV($C$3/12,$D$3,-(('Rent Limits'!J227-'Rent Limits'!J222)*(1-$E$4))/$E$3) -> 352145.1238 | C144: =+$D$2+PV($C$3/12,$D$3,-(('Rent Limits'!K227-'Rent Limits'!K222)*(1-$E$4))/$E$3) -> 355746.3064 | D144: =+$D$2+PV($C$3/12,$D$3,-(('Rent Limits'!L227-'Rent Limits'!L222)*(1-$E$4))/$E$3) -> 366837.9487 | E144: =+$D$2+PV($C$3/12,$D$3,-(('Rent Limits'!M227-'Rent Limits'!M222)*(1-$E$4))/$E$3) -> 377353.4019 | F144: =+$D$2+PV($C$3/12,$D$3,-(('Rent Limits'!N227-'Rent Limits'!N222)*(1-$E$4))/$E$3) -> 386140.2874
A145: IMPERIAL30% | B145: =+$D$2+PV($C$3/12,$D$3,-(('Rent Limits'!J227-'Rent Limits'!J221)*(1-$E$4))/$E$3) -> 362516.5296 | C145: =+$D$2+PV($C$3/12,$D$3,-(('Rent Limits'!K227-'Rent Limits'!K221)*(1-$E$4))/$E$3) -> 366837.9487 | D145: =+$D$2+PV($C$3/12,$D$3,-(('Rent Limits'!L227-'Rent Limits'!L221)*(1-$E$4))/$E$3) -> 380234.348 | E145: =+$D$2+PV($C$3/12,$D$3,-(('Rent Limits'!M227-'Rent Limits'!M221)*(1-$E$4))/$E$3) -> 392766.4634 | F145: =+$D$2+PV($C$3/12,$D$3,-(('Rent Limits'!N227-'Rent Limits'!N221)*(1-$E$4))/$E$3) -> 403425.9638
A146: IMPERIAL25% | B146: =+$D$2+PV($C$3/12,$D$3,-(('Rent Limits'!J227-'Rent Limits'!J220)*(1-$E$4))/$E$3) -> 372887.9355 | C146: =+$D$2+PV($C$3/12,$D$3,-(('Rent Limits'!K227-'Rent Limits'!K220)*(1-$E$4))/$E$3) -> 378073.6384 | D146: =+$D$2+PV($C$3/12,$D$3,-(('Rent Limits'!L227-'Rent Limits'!L220)*(1-$E$4))/$E$3) -> 393630.7472 | E146: =+$D$2+PV($C$3/12,$D$3,-(('Rent Limits'!M227-'Rent Limits'!M220)*(1-$E$4))/$E$3) -> 408179.5248 | F146: =+$D$2+PV($C$3/12,$D$3,-(('Rent Limits'!N227-'Rent Limits'!N220)*(1-$E$4))/$E$3) -> 420567.5929
A147: IMPERIAL20% | B147: =+$D$2+PV($C$3/12,$D$3,-(('Rent Limits'!J227-'Rent Limits'!J219)*(1-$E$4))/$E$3) -> 383259.3413 | C147: =+$D$2+PV($C$3/12,$D$3,-(('Rent Limits'!K227-'Rent Limits'!K219)*(1-$E$4))/$E$3) -> 389165.2808 | D147: =+$D$2+PV($C$3/12,$D$3,-(('Rent Limits'!L227-'Rent Limits'!L219)*(1-$E$4))/$E$3) -> 407027.1464 | E147: =+$D$2+PV($C$3/12,$D$3,-(('Rent Limits'!M227-'Rent Limits'!M219)*(1-$E$4))/$E$3) -> 423592.5863 | F147: =+$D$2+PV($C$3/12,$D$3,-(('Rent Limits'!N227-'Rent Limits'!N219)*(1-$E$4))/$E$3) -> 437853.2693
A148: IMPERIAL15% | B148: =+$D$2+PV($C$3/12,$D$3,-(('Rent Limits'!J227-'Rent Limits'!J218)*(1-$E$4))/$E$3) -> 393774.7945 | C148: =+$D$2+PV($C$3/12,$D$3,-(('Rent Limits'!K227-'Rent Limits'!K218)*(1-$E$4))/$E$3) -> 400256.9231 | D148: =+$D$2+PV($C$3/12,$D$3,-(('Rent Limits'!L227-'Rent Limits'!L218)*(1-$E$4))/$E$3) -> 420423.5456 | E148: =+$D$2+PV($C$3/12,$D$3,-(('Rent Limits'!M227-'Rent Limits'!M218)*(1-$E$4))/$E$3) -> 439149.695 | F148: =+$D$2+PV($C$3/12,$D$3,-(('Rent Limits'!N227-'Rent Limits'!N218)*(1-$E$4))/$E$3) -> 455138.9457
A149: INYO
A150: INYO60% | B150: 300000 | C150: 302000 | D150: 304000 | E150: 306000 | F150: 308000
A151: INYO55% | B151: =+$B$2+PV($C$3/12,$D$3,-(('Rent Limits'!J245-'Rent Limits'!J244)*(1-$E$4))/$E$3) -> 310803.5478 | C151: =+$B$2+PV($C$3/12,$D$3,-(('Rent Limits'!K245-'Rent Limits'!K244)*(1-$E$4))/$E$3) -> 311523.7843 | D151: =+$B$2+PV($C$3/12,$D$3,-(('Rent Limits'!L245-'Rent Limits'!L244)*(1-$E$4))/$E$3) -> 313828.5411 | E151: =+$B$2+PV($C$3/12,$D$3,-(('Rent Limits'!M245-'Rent Limits'!M244)*(1-$E$4))/$E$3) -> 315989.2507 | F151: =+$B$2+PV($C$3/12,$D$3,-(('Rent Limits'!N245-'Rent Limits'!N244)*(1-$E$4))/$E$3) -> 317861.8656
A152: INYO50% | B152: =+$B$2+PV($C$3/12,$D$3,-(('Rent Limits'!J245-'Rent Limits'!J243)*(1-$E$4))/$E$3) -> 321607.0955 | C152: =+$B$2+PV($C$3/12,$D$3,-(('Rent Limits'!K245-'Rent Limits'!K243)*(1-$E$4))/$E$3) -> 323047.5685 | D152: =+$B$2+PV($C$3/12,$D$3,-(('Rent Limits'!L245-'Rent Limits'!L243)*(1-$E$4))/$E$3) -> 327657.0822 | E152: =+$B$2+PV($C$3/12,$D$3,-(('Rent Limits'!M245-'Rent Limits'!M243)*(1-$E$4))/$E$3) -> 331978.5013 | F152: =+$B$2+PV($C$3/12,$D$3,-(('Rent Limits'!N245-'Rent Limits'!N243)*(1-$E$4))/$E$3) -> 335723.7312
A153: INYO45% | B153: =+$B$2+PV($C$3/12,$D$3,-(('Rent Limits'!J245-'Rent Limits'!J242)*(1-$E$4))/$E$3) -> 332410.6433 | C153: =+$B$2+PV($C$3/12,$D$3,-(('Rent Limits'!K245-'Rent Limits'!K242)*(1-$E$4))/$E$3) -> 334571.3528 | D153: =+$B$2+PV($C$3/12,$D$3,-(('Rent Limits'!L245-'Rent Limits'!L242)*(1-$E$4))/$E$3) -> 341485.6234 | E153: =+$B$2+PV($C$3/12,$D$3,-(('Rent Limits'!M245-'Rent Limits'!M242)*(1-$E$4))/$E$3) -> 347967.752 | F153: =+$B$2+PV($C$3/12,$D$3,-(('Rent Limits'!N245-'Rent Limits'!N242)*(1-$E$4))/$E$3) -> 353585.5968
A154: INYO40% | B154: =+$B$2+PV($C$3/12,$D$3,-(('Rent Limits'!J245-'Rent Limits'!J241)*(1-$E$4))/$E$3) -> 343070.1437 | C154: =+$B$2+PV($C$3/12,$D$3,-(('Rent Limits'!K245-'Rent Limits'!K241)*(1-$E$4))/$E$3) -> 346095.1371 | D154: =+$B$2+PV($C$3/12,$D$3,-(('Rent Limits'!L245-'Rent Limits'!L241)*(1-$E$4))/$E$3) -> 355314.1645 | E154: =+$B$2+PV($C$3/12,$D$3,-(('Rent Limits'!M245-'Rent Limits'!M241)*(1-$E$4))/$E$3) -> 363957.0027 | F154: =+$B$2+PV($C$3/12,$D$3,-(('Rent Limits'!N245-'Rent Limits'!N241)*(1-$E$4))/$E$3) -> 371303.4152
A155: INYO35% | B155: =+$B$2+PV($C$3/12,$D$3,-(('Rent Limits'!J245-'Rent Limits'!J240)*(1-$E$4))/$E$3) -> 353873.6914 | C155: =+$B$2+PV($C$3/12,$D$3,-(('Rent Limits'!K245-'Rent Limits'!K240)*(1-$E$4))/$E$3) -> 357762.9686 | D155: =+$B$2+PV($C$3/12,$D$3,-(('Rent Limits'!L245-'Rent Limits'!L240)*(1-$E$4))/$E$3) -> 369286.7529 | E155: =+$B$2+PV($C$3/12,$D$3,-(('Rent Limits'!M245-'Rent Limits'!M240)*(1-$E$4))/$E$3) -> 379946.2534 | F155: =+$B$2+PV($C$3/12,$D$3,-(('Rent Limits'!N245-'Rent Limits'!N240)*(1-$E$4))/$E$3) -> 389165.2808
A156: INYO30% | B156: =+$B$2+PV($C$3/12,$D$3,-(('Rent Limits'!J245-'Rent Limits'!J239)*(1-$E$4))/$E$3) -> 364677.2392 | C156: =+$B$2+PV($C$3/12,$D$3,-(('Rent Limits'!K245-'Rent Limits'!K239)*(1-$E$4))/$E$3) -> 369286.7529 | D156: =+$B$2+PV($C$3/12,$D$3,-(('Rent Limits'!L245-'Rent Limits'!L239)*(1-$E$4))/$E$3) -> 383115.294 | E156: =+$B$2+PV($C$3/12,$D$3,-(('Rent Limits'!M245-'Rent Limits'!M239)*(1-$E$4))/$E$3) -> 395935.504 | F156: =+$B$2+PV($C$3/12,$D$3,-(('Rent Limits'!N245-'Rent Limits'!N239)*(1-$E$4))/$E$3) -> 407027.1464
A157: INYO25% | B157: =+$B$2+PV($C$3/12,$D$3,-(('Rent Limits'!J245-'Rent Limits'!J238)*(1-$E$4))/$E$3) -> 375480.7869 | C157: =+$B$2+PV($C$3/12,$D$3,-(('Rent Limits'!K245-'Rent Limits'!K238)*(1-$E$4))/$E$3) -> 380810.5372 | D157: =+$B$2+PV($C$3/12,$D$3,-(('Rent Limits'!L245-'Rent Limits'!L238)*(1-$E$4))/$E$3) -> 396943.8351 | E157: =+$B$2+PV($C$3/12,$D$3,-(('Rent Limits'!M245-'Rent Limits'!M238)*(1-$E$4))/$E$3) -> 411924.7547 | F157: =+$B$2+PV($C$3/12,$D$3,-(('Rent Limits'!N245-'Rent Limits'!N238)*(1-$E$4))/$E$3) -> 424889.012
A158: INYO20% | B158: =+$B$2+PV($C$3/12,$D$3,-(('Rent Limits'!J245-'Rent Limits'!J237)*(1-$E$4))/$E$3) -> 386140.2874 | C158: =+$B$2+PV($C$3/12,$D$3,-(('Rent Limits'!K245-'Rent Limits'!K237)*(1-$E$4))/$E$3) -> 392334.3214 | D158: =+$B$2+PV($C$3/12,$D$3,-(('Rent Limits'!L245-'Rent Limits'!L237)*(1-$E$4))/$E$3) -> 410772.3763 | E158: =+$B$2+PV($C$3/12,$D$3,-(('Rent Limits'!M245-'Rent Limits'!M237)*(1-$E$4))/$E$3) -> 427914.0054 | F158: =+$B$2+PV($C$3/12,$D$3,-(('Rent Limits'!N245-'Rent Limits'!N237)*(1-$E$4))/$E$3) -> 442750.8776
A159: INYO15% | B159: =+$B$2+PV($C$3/12,$D$3,-(('Rent Limits'!J245-'Rent Limits'!J236)*(1-$E$4))/$E$3) -> 396943.8351 | C159: =+$B$2+PV($C$3/12,$D$3,-(('Rent Limits'!K245-'Rent Limits'!K236)*(1-$E$4))/$E$3) -> 403858.1057 | D159: =+$B$2+PV($C$3/12,$D$3,-(('Rent Limits'!L245-'Rent Limits'!L236)*(1-$E$4))/$E$3) -> 424600.9174 | E159: =+$B$2+PV($C$3/12,$D$3,-(('Rent Limits'!M245-'Rent Limits'!M236)*(1-$E$4))/$E$3) -> 443903.256 | F159: =+$B$2+PV($C$3/12,$D$3,-(('Rent Limits'!N245-'Rent Limits'!N236)*(1-$E$4))/$E$3) -> 460612.7432
A160: KERN
A161: KERN60% | B161: 300000 | C161: 302000 | D161: 304000 | E161: 306000 | F161: 308000
A162: KERN55% | B162: =+$D$2+PV($C$3/12,$D$3,-(('Rent Limits'!J263-'Rent Limits'!J262)*(1-$E$4))/$E$3) -> 310515.4531 | C162: =+$D$2+PV($C$3/12,$D$3,-(('Rent Limits'!K263-'Rent Limits'!K262)*(1-$E$4))/$E$3) -> 311091.6424 | D162: =+$D$2+PV($C$3/12,$D$3,-(('Rent Limits'!L263-'Rent Limits'!L262)*(1-$E$4))/$E$3) -> 313396.3992 | E162: =+$D$2+PV($C$3/12,$D$3,-(('Rent Limits'!M263-'Rent Limits'!M262)*(1-$E$4))/$E$3) -> 315557.1088 | F162: =+$D$2+PV($C$3/12,$D$3,-(('Rent Limits'!N263-'Rent Limits'!N262)*(1-$E$4))/$E$3) -> 317285.6764
A163: KERN50% | B163: =+$D$2+PV($C$3/12,$D$3,-(('Rent Limits'!J263-'Rent Limits'!J261)*(1-$E$4))/$E$3) -> 320886.859 | C163: =+$D$2+PV($C$3/12,$D$3,-(('Rent Limits'!K263-'Rent Limits'!K261)*(1-$E$4))/$E$3) -> 322327.332 | D163: =+$D$2+PV($C$3/12,$D$3,-(('Rent Limits'!L263-'Rent Limits'!L261)*(1-$E$4))/$E$3) -> 326792.7984 | E163: =+$D$2+PV($C$3/12,$D$3,-(('Rent Limits'!M263-'Rent Limits'!M261)*(1-$E$4))/$E$3) -> 330970.1702 | F163: =+$D$2+PV($C$3/12,$D$3,-(('Rent Limits'!N263-'Rent Limits'!N261)*(1-$E$4))/$E$3) -> 334427.3055
A164: KERN45% | B164: =+$D$2+PV($C$3/12,$D$3,-(('Rent Limits'!J263-'Rent Limits'!J260)*(1-$E$4))/$E$3) -> 331258.2648 | C164: =+$D$2+PV($C$3/12,$D$3,-(('Rent Limits'!K263-'Rent Limits'!K260)*(1-$E$4))/$E$3) -> 333418.9744 | D164: =+$D$2+PV($C$3/12,$D$3,-(('Rent Limits'!L263-'Rent Limits'!L260)*(1-$E$4))/$E$3) -> 340189.1976 | E164: =+$D$2+PV($C$3/12,$D$3,-(('Rent Limits'!M263-'Rent Limits'!M260)*(1-$E$4))/$E$3) -> 346383.2317 | F164: =+$D$2+PV($C$3/12,$D$3,-(('Rent Limits'!N263-'Rent Limits'!N260)*(1-$E$4))/$E$3) -> 351712.9819
A165: KERN40% | B165: =+$D$2+PV($C$3/12,$D$3,-(('Rent Limits'!J263-'Rent Limits'!J259)*(1-$E$4))/$E$3) -> 341629.6707 | C165: =+$D$2+PV($C$3/12,$D$3,-(('Rent Limits'!K263-'Rent Limits'!K259)*(1-$E$4))/$E$3) -> 344510.6167 | D165: =+$D$2+PV($C$3/12,$D$3,-(('Rent Limits'!L263-'Rent Limits'!L259)*(1-$E$4))/$E$3) -> 353441.5495 | E165: =+$D$2+PV($C$3/12,$D$3,-(('Rent Limits'!M263-'Rent Limits'!M259)*(1-$E$4))/$E$3) -> 361796.2931 | F165: =+$D$2+PV($C$3/12,$D$3,-(('Rent Limits'!N263-'Rent Limits'!N259)*(1-$E$4))/$E$3) -> 368854.611
A166: KERN35% | B166: =+$D$2+PV($C$3/12,$D$3,-(('Rent Limits'!J263-'Rent Limits'!J258)*(1-$E$4))/$E$3) -> 352145.1238 | C166: =+$D$2+PV($C$3/12,$D$3,-(('Rent Limits'!K263-'Rent Limits'!K258)*(1-$E$4))/$E$3) -> 355746.3064 | D166: =+$D$2+PV($C$3/12,$D$3,-(('Rent Limits'!L263-'Rent Limits'!L258)*(1-$E$4))/$E$3) -> 366837.9487 | E166: =+$D$2+PV($C$3/12,$D$3,-(('Rent Limits'!M263-'Rent Limits'!M258)*(1-$E$4))/$E$3) -> 377353.4019 | F166: =+$D$2+PV($C$3/12,$D$3,-(('Rent Limits'!N263-'Rent Limits'!N258)*(1-$E$4))/$E$3) -> 386140.2874
A167: KERN30% | B167: =+$D$2+PV($C$3/12,$D$3,-(('Rent Limits'!J263-'Rent Limits'!J257)*(1-$E$4))/$E$3) -> 362516.5296 | C167: =+$D$2+PV($C$3/12,$D$3,-(('Rent Limits'!K263-'Rent Limits'!K257)*(1-$E$4))/$E$3) -> 366837.9487 | D167: =+$D$2+PV($C$3/12,$D$3,-(('Rent Limits'!L263-'Rent Limits'!L257)*(1-$E$4))/$E$3) -> 380234.348 | E167: =+$D$2+PV($C$3/12,$D$3,-(('Rent Limits'!M263-'Rent Limits'!M257)*(1-$E$4))/$E$3) -> 392766.4634 | F167: =+$D$2+PV($C$3/12,$D$3,-(('Rent Limits'!N263-'Rent Limits'!N257)*(1-$E$4))/$E$3) -> 403425.9638
A168: KERN25% | B168: =+$D$2+PV($C$3/12,$D$3,-(('Rent Limits'!J263-'Rent Limits'!J256)*(1-$E$4))/$E$3) -> 372887.9355 | C168: =+$D$2+PV($C$3/12,$D$3,-(('Rent Limits'!K263-'Rent Limits'!K256)*(1-$E$4))/$E$3) -> 378073.6384 | D168: =+$D$2+PV($C$3/12,$D$3,-(('Rent Limits'!L263-'Rent Limits'!L256)*(1-$E$4))/$E$3) -> 393630.7472 | E168: =+$D$2+PV($C$3/12,$D$3,-(('Rent Limits'!M263-'Rent Limits'!M256)*(1-$E$4))/$E$3) -> 408179.5248 | F168: =+$D$2+PV($C$3/12,$D$3,-(('Rent Limits'!N263-'Rent Limits'!N256)*(1-$E$4))/$E$3) -> 420567.5929
A169: KERN20% | B169: =+$D$2+PV($C$3/12,$D$3,-(('Rent Limits'!J263-'Rent Limits'!J255)*(1-$E$4))/$E$3) -> 383259.3413 | C169: =+$D$2+PV($C$3/12,$D$3,-(('Rent Limits'!K263-'Rent Limits'!K255)*(1-$E$4))/$E$3) -> 389165.2808 | D169: =+$D$2+PV($C$3/12,$D$3,-(('Rent Limits'!L263-'Rent Limits'!L255)*(1-$E$4))/$E$3) -> 407027.1464 | E169: =+$D$2+PV($C$3/12,$D$3,-(('Rent Limits'!M263-'Rent Limits'!M255)*(1-$E$4))/$E$3) -> 423592.5863 | F169: =+$D$2+PV($C$3/12,$D$3,-(('Rent Limits'!N263-'Rent Limits'!N255)*(1-$E$4))/$E$3) -> 437853.2693
A170: KERN15% | B170: =+$D$2+PV($C$3/12,$D$3,-(('Rent Limits'!J263-'Rent Limits'!J254)*(1-$E$4))/$E$3) -> 393774.7945 | C170: =+$D$2+PV($C$3/12,$D$3,-(('Rent Limits'!K263-'Rent Limits'!K254)*(1-$E$4))/$E$3) -> 400256.9231 | D170: =+$D$2+PV($C$3/12,$D$3,-(('Rent Limits'!L263-'Rent Limits'!L254)*(1-$E$4))/$E$3) -> 420423.5456 | E170: =+$D$2+PV($C$3/12,$D$3,-(('Rent Limits'!M263-'Rent Limits'!M254)*(1-$E$4))/$E$3) -> 439149.695 | F170: =+$D$2+PV($C$3/12,$D$3,-(('Rent Limits'!N263-'Rent Limits'!N254)*(1-$E$4))/$E$3) -> 455138.9457
A171: KINGS
A172: KINGS60% | B172: 300000 | C172: 302000 | D172: 304000 | E172: 306000 | F172: 308000
A173: KINGS55% | B173: =+$D$2+PV($C$3/12,$D$3,-(('Rent Limits'!J281-'Rent Limits'!J280)*(1-$E$4))/$E$3) -> 310515.4531 | C173: =+$D$2+PV($C$3/12,$D$3,-(('Rent Limits'!K281-'Rent Limits'!K280)*(1-$E$4))/$E$3) -> 311091.6424 | D173: =+$D$2+PV($C$3/12,$D$3,-(('Rent Limits'!L281-'Rent Limits'!L280)*(1-$E$4))/$E$3) -> 313396.3992 | E173: =+$D$2+PV($C$3/12,$D$3,-(('Rent Limits'!M281-'Rent Limits'!M280)*(1-$E$4))/$E$3) -> 315557.1088 | F173: =+$D$2+PV($C$3/12,$D$3,-(('Rent Limits'!N281-'Rent Limits'!N280)*(1-$E$4))/$E$3) -> 317285.6764
A174: KINGS50% | B174: =+$D$2+PV($C$3/12,$D$3,-(('Rent Limits'!J281-'Rent Limits'!J279)*(1-$E$4))/$E$3) -> 320886.859 | C174: =+$D$2+PV($C$3/12,$D$3,-(('Rent Limits'!K281-'Rent Limits'!K279)*(1-$E$4))/$E$3) -> 322327.332 | D174: =+$D$2+PV($C$3/12,$D$3,-(('Rent Limits'!L281-'Rent Limits'!L279)*(1-$E$4))/$E$3) -> 326792.7984 | E174: =+$D$2+PV($C$3/12,$D$3,-(('Rent Limits'!M281-'Rent Limits'!M279)*(1-$E$4))/$E$3) -> 330970.1702 | F174: =+$D$2+PV($C$3/12,$D$3,-(('Rent Limits'!N281-'Rent Limits'!N279)*(1-$E$4))/$E$3) -> 334427.3055
A175: KINGS45% | B175: =+$D$2+PV($C$3/12,$D$3,-(('Rent Limits'!J281-'Rent Limits'!J278)*(1-$E$4))/$E$3) -> 331258.2648 | C175: =+$D$2+PV($C$3/12,$D$3,-(('Rent Limits'!K281-'Rent Limits'!K278)*(1-$E$4))/$E$3) -> 333418.9744 | D175: =+$D$2+PV($C$3/12,$D$3,-(('Rent Limits'!L281-'Rent Limits'!L278)*(1-$E$4))/$E$3) -> 340189.1976 | E175: =+$D$2+PV($C$3/12,$D$3,-(('Rent Limits'!M281-'Rent Limits'!M278)*(1-$E$4))/$E$3) -> 346383.2317 | F175: =+$D$2+PV($C$3/12,$D$3,-(('Rent Limits'!N281-'Rent Limits'!N278)*(1-$E$4))/$E$3) -> 351712.9819
A176: KINGS40% | B176: =+$D$2+PV($C$3/12,$D$3,-(('Rent Limits'!J281-'Rent Limits'!J277)*(1-$E$4))/$E$3) -> 341629.6707 | C176: =+$D$2+PV($C$3/12,$D$3,-(('Rent Limits'!K281-'Rent Limits'!K277)*(1-$E$4))/$E$3) -> 344510.6167 | D176: =+$D$2+PV($C$3/12,$D$3,-(('Rent Limits'!L281-'Rent Limits'!L277)*(1-$E$4))/$E$3) -> 353441.5495 | E176: =+$D$2+PV($C$3/12,$D$3,-(('Rent Limits'!M281-'Rent Limits'!M277)*(1-$E$4))/$E$3) -> 361796.2931 | F176: =+$D$2+PV($C$3/12,$D$3,-(('Rent Limits'!N281-'Rent Limits'!N277)*(1-$E$4))/$E$3) -> 368854.611
A177: KINGS35% | B177: =+$D$2+PV($C$3/12,$D$3,-(('Rent Limits'!J281-'Rent Limits'!J276)*(1-$E$4))/$E$3) -> 352145.1238 | C177: =+$D$2+PV($C$3/12,$D$3,-(('Rent Limits'!K281-'Rent Limits'!K276)*(1-$E$4))/$E$3) -> 355746.3064 | D177: =+$D$2+PV($C$3/12,$D$3,-(('Rent Limits'!L281-'Rent Limits'!L276)*(1-$E$4))/$E$3) -> 366837.9487 | E177: =+$D$2+PV($C$3/12,$D$3,-(('Rent Limits'!M281-'Rent Limits'!M276)*(1-$E$4))/$E$3) -> 377353.4019 | F177: =+$D$2+PV($C$3/12,$D$3,-(('Rent Limits'!N281-'Rent Limits'!N276)*(1-$E$4))/$E$3) -> 386140.2874
A178: KINGS30% | B178: =+$D$2+PV($C$3/12,$D$3,-(('Rent Limits'!J281-'Rent Limits'!J275)*(1-$E$4))/$E$3) -> 362516.5296 | C178: =+$D$2+PV($C$3/12,$D$3,-(('Rent Limits'!K281-'Rent Limits'!K275)*(1-$E$4))/$E$3) -> 366837.9487 | D178: =+$D$2+PV($C$3/12,$D$3,-(('Rent Limits'!L281-'Rent Limits'!L275)*(1-$E$4))/$E$3) -> 380234.348 | E178: =+$D$2+PV($C$3/12,$D$3,-(('Rent Limits'!M281-'Rent Limits'!M275)*(1-$E$4))/$E$3) -> 392766.4634 | F178: =+$D$2+PV($C$3/12,$D$3,-(('Rent Limits'!N281-'Rent Limits'!N275)*(1-$E$4))/$E$3) -> 403425.9638
A179: KINGS25% | B179: =+$D$2+PV($C$3/12,$D$3,-(('Rent Limits'!J281-'Rent Limits'!J274)*(1-$E$4))/$E$3) -> 372887.9355 | C179: =+$D$2+PV($C$3/12,$D$3,-(('Rent Limits'!K281-'Rent Limits'!K274)*(1-$E$4))/$E$3) -> 378073.6384 | D179: =+$D$2+PV($C$3/12,$D$3,-(('Rent Limits'!L281-'Rent Limits'!L274)*(1-$E$4))/$E$3) -> 393630.7472 | E179: =+$D$2+PV($C$3/12,$D$3,-(('Rent Limits'!M281-'Rent Limits'!M274)*(1-$E$4))/$E$3) -> 408179.5248 | F179: =+$D$2+PV($C$3/12,$D$3,-(('Rent Limits'!N281-'Rent Limits'!N274)*(1-$E$4))/$E$3) -> 420567.5929
A180: KINGS20% | B180: =+$D$2+PV($C$3/12,$D$3,-(('Rent Limits'!J281-'Rent Limits'!J273)*(1-$E$4))/$E$3) -> 383259.3413 | C180: =+$D$2+PV($C$3/12,$D$3,-(('Rent Limits'!K281-'Rent Limits'!K273)*(1-$E$4))/$E$3) -> 389165.2808 | D180: =+$D$2+PV($C$3/12,$D$3,-(('Rent Limits'!L281-'Rent Limits'!L273)*(1-$E$4))/$E$3) -> 407027.1464 | E180: =+$D$2+PV($C$3/12,$D$3,-(('Rent Limits'!M281-'Rent Limits'!M273)*(1-$E$4))/$E$3) -> 423592.5863 | F180: =+$D$2+PV($C$3/12,$D$3,-(('Rent Limits'!N281-'Rent Limits'!N273)*(1-$E$4))/$E$3) -> 437853.2693
A181: KINGS15% | B181: =+$D$2+PV($C$3/12,$D$3,-(('Rent Limits'!J281-'Rent Limits'!J272)*(1-$E$4))/$E$3) -> 393774.7945 | C181: =+$D$2+PV($C$3/12,$D$3,-(('Rent Limits'!K281-'Rent Limits'!K272)*(1-$E$4))/$E$3) -> 400256.9231 | D181: =+$D$2+PV($C$3/12,$D$3,-(('Rent Limits'!L281-'Rent Limits'!L272)*(1-$E$4))/$E$3) -> 420423.5456 | E181: =+$D$2+PV($C$3/12,$D$3,-(('Rent Limits'!M281-'Rent Limits'!M272)*(1-$E$4))/$E$3) -> 439149.695 | F181: =+$D$2+PV($C$3/12,$D$3,-(('Rent Limits'!N281-'Rent Limits'!N272)*(1-$E$4))/$E$3) -> 455138.9457
A182: LAKE
A183: LAKE60% | B183: 300000 | C183: 302000 | D183: 304000 | E183: 306000 | F183: 308000
A184: LAKE55% | B184: =+$B$2+PV($C$3/12,$D$3,-(('Rent Limits'!J299-'Rent Limits'!J298)*(1-$E$4))/$E$3) -> 309363.0747 | C184: =+$B$2+PV($C$3/12,$D$3,-(('Rent Limits'!K299-'Rent Limits'!K298)*(1-$E$4))/$E$3) -> 309939.2639 | D184: =+$B$2+PV($C$3/12,$D$3,-(('Rent Limits'!L299-'Rent Limits'!L298)*(1-$E$4))/$E$3) -> 312099.9735 | E184: =+$B$2+PV($C$3/12,$D$3,-(('Rent Limits'!M299-'Rent Limits'!M298)*(1-$E$4))/$E$3) -> 313972.5884 | F184: =+$B$2+PV($C$3/12,$D$3,-(('Rent Limits'!N299-'Rent Limits'!N298)*(1-$E$4))/$E$3) -> 315413.0615
A185: LAKE50% | B185: =+$B$2+PV($C$3/12,$D$3,-(('Rent Limits'!J299-'Rent Limits'!J297)*(1-$E$4))/$E$3) -> 318726.1494 | C185: =+$B$2+PV($C$3/12,$D$3,-(('Rent Limits'!K299-'Rent Limits'!K297)*(1-$E$4))/$E$3) -> 320022.5752 | D185: =+$B$2+PV($C$3/12,$D$3,-(('Rent Limits'!L299-'Rent Limits'!L297)*(1-$E$4))/$E$3) -> 324199.947 | E185: =+$B$2+PV($C$3/12,$D$3,-(('Rent Limits'!M299-'Rent Limits'!M297)*(1-$E$4))/$E$3) -> 327801.1295 | F185: =+$B$2+PV($C$3/12,$D$3,-(('Rent Limits'!N299-'Rent Limits'!N297)*(1-$E$4))/$E$3) -> 330970.1702
A186: LAKE45% | B186: =+$B$2+PV($C$3/12,$D$3,-(('Rent Limits'!J299-'Rent Limits'!J296)*(1-$E$4))/$E$3) -> 328089.2242 | C186: =+$B$2+PV($C$3/12,$D$3,-(('Rent Limits'!K299-'Rent Limits'!K296)*(1-$E$4))/$E$3) -> 330105.8864 | D186: =+$B$2+PV($C$3/12,$D$3,-(('Rent Limits'!L299-'Rent Limits'!L296)*(1-$E$4))/$E$3) -> 336155.8731 | E186: =+$B$2+PV($C$3/12,$D$3,-(('Rent Limits'!M299-'Rent Limits'!M296)*(1-$E$4))/$E$3) -> 341773.718 | F186: =+$B$2+PV($C$3/12,$D$3,-(('Rent Limits'!N299-'Rent Limits'!N296)*(1-$E$4))/$E$3) -> 346527.279
A187: LAKE40% | B187: =+$B$2+PV($C$3/12,$D$3,-(('Rent Limits'!J299-'Rent Limits'!J295)*(1-$E$4))/$E$3) -> 337452.2989 | C187: =+$B$2+PV($C$3/12,$D$3,-(('Rent Limits'!K299-'Rent Limits'!K295)*(1-$E$4))/$E$3) -> 340045.1503 | D187: =+$B$2+PV($C$3/12,$D$3,-(('Rent Limits'!L299-'Rent Limits'!L295)*(1-$E$4))/$E$3) -> 348255.8466 | E187: =+$B$2+PV($C$3/12,$D$3,-(('Rent Limits'!M299-'Rent Limits'!M295)*(1-$E$4))/$E$3) -> 355602.2591 | F187: =+$B$2+PV($C$3/12,$D$3,-(('Rent Limits'!N299-'Rent Limits'!N295)*(1-$E$4))/$E$3) -> 361940.3404
A188: LAKE35% | B188: =+$B$2+PV($C$3/12,$D$3,-(('Rent Limits'!J299-'Rent Limits'!J294)*(1-$E$4))/$E$3) -> 346815.3736 | C188: =+$B$2+PV($C$3/12,$D$3,-(('Rent Limits'!K299-'Rent Limits'!K294)*(1-$E$4))/$E$3) -> 350128.4616 | D188: =+$B$2+PV($C$3/12,$D$3,-(('Rent Limits'!L299-'Rent Limits'!L294)*(1-$E$4))/$E$3) -> 360211.7728 | E188: =+$B$2+PV($C$3/12,$D$3,-(('Rent Limits'!M299-'Rent Limits'!M294)*(1-$E$4))/$E$3) -> 369574.8475 | F188: =+$B$2+PV($C$3/12,$D$3,-(('Rent Limits'!N299-'Rent Limits'!N294)*(1-$E$4))/$E$3) -> 377497.4492
A189: LAKE30% | B189: =+$B$2+PV($C$3/12,$D$3,-(('Rent Limits'!J299-'Rent Limits'!J293)*(1-$E$4))/$E$3) -> 356178.4483 | C189: =+$B$2+PV($C$3/12,$D$3,-(('Rent Limits'!K299-'Rent Limits'!K293)*(1-$E$4))/$E$3) -> 360211.7728 | D189: =+$B$2+PV($C$3/12,$D$3,-(('Rent Limits'!L299-'Rent Limits'!L293)*(1-$E$4))/$E$3) -> 372311.7463 | E189: =+$B$2+PV($C$3/12,$D$3,-(('Rent Limits'!M299-'Rent Limits'!M293)*(1-$E$4))/$E$3) -> 383403.3886 | F189: =+$B$2+PV($C$3/12,$D$3,-(('Rent Limits'!N299-'Rent Limits'!N293)*(1-$E$4))/$E$3) -> 393054.558
A190: LAKE25% | B190: =+$B$2+PV($C$3/12,$D$3,-(('Rent Limits'!J299-'Rent Limits'!J292)*(1-$E$4))/$E$3) -> 365541.523 | C190: =+$B$2+PV($C$3/12,$D$3,-(('Rent Limits'!K299-'Rent Limits'!K292)*(1-$E$4))/$E$3) -> 370151.0367 | D190: =+$B$2+PV($C$3/12,$D$3,-(('Rent Limits'!L299-'Rent Limits'!L292)*(1-$E$4))/$E$3) -> 384411.7198 | E190: =+$B$2+PV($C$3/12,$D$3,-(('Rent Limits'!M299-'Rent Limits'!M292)*(1-$E$4))/$E$3) -> 397375.9771 | F190: =+$B$2+PV($C$3/12,$D$3,-(('Rent Limits'!N299-'Rent Limits'!N292)*(1-$E$4))/$E$3) -> 408467.6194
A191: LAKE20% | B191: =+$B$2+PV($C$3/12,$D$3,-(('Rent Limits'!J299-'Rent Limits'!J291)*(1-$E$4))/$E$3) -> 374904.5977 | C191: =+$B$2+PV($C$3/12,$D$3,-(('Rent Limits'!K299-'Rent Limits'!K291)*(1-$E$4))/$E$3) -> 380234.348 | D191: =+$B$2+PV($C$3/12,$D$3,-(('Rent Limits'!L299-'Rent Limits'!L291)*(1-$E$4))/$E$3) -> 396367.6459 | E191: =+$B$2+PV($C$3/12,$D$3,-(('Rent Limits'!M299-'Rent Limits'!M291)*(1-$E$4))/$E$3) -> 411204.5182 | F191: =+$B$2+PV($C$3/12,$D$3,-(('Rent Limits'!N299-'Rent Limits'!N291)*(1-$E$4))/$E$3) -> 424024.7282
A192: LAKE15% | B192: =+$B$2+PV($C$3/12,$D$3,-(('Rent Limits'!J299-'Rent Limits'!J290)*(1-$E$4))/$E$3) -> 384267.6725 | C192: =+$B$2+PV($C$3/12,$D$3,-(('Rent Limits'!K299-'Rent Limits'!K290)*(1-$E$4))/$E$3) -> 390317.6592 | D192: =+$B$2+PV($C$3/12,$D$3,-(('Rent Limits'!L299-'Rent Limits'!L290)*(1-$E$4))/$E$3) -> 408467.6194 | E192: =+$B$2+PV($C$3/12,$D$3,-(('Rent Limits'!M299-'Rent Limits'!M290)*(1-$E$4))/$E$3) -> 425177.1066 | F192: =+$B$2+PV($C$3/12,$D$3,-(('Rent Limits'!N299-'Rent Limits'!N290)*(1-$E$4))/$E$3) -> 439581.8369
A193: LASSEN
A194: LASSEN60% | B194: 300000 | C194: 302000 | D194: 304000 | E194: 306000 | F194: 308000
A195: LASSEN55% | B195: =+$B$2+PV($C$3/12,$D$3,-(('Rent Limits'!J317-'Rent Limits'!J316)*(1-$E$4))/$E$3) -> 310515.4531 | C195: =+$B$2+PV($C$3/12,$D$3,-(('Rent Limits'!K317-'Rent Limits'!K316)*(1-$E$4))/$E$3) -> 311379.737 | D195: =+$B$2+PV($C$3/12,$D$3,-(('Rent Limits'!L317-'Rent Limits'!L316)*(1-$E$4))/$E$3) -> 313540.4465 | E195: =+$B$2+PV($C$3/12,$D$3,-(('Rent Limits'!M317-'Rent Limits'!M316)*(1-$E$4))/$E$3) -> 315701.1561 | F195: =+$B$2+PV($C$3/12,$D$3,-(('Rent Limits'!N317-'Rent Limits'!N316)*(1-$E$4))/$E$3) -> 317573.771
A196: LASSEN50% | B196: =+$B$2+PV($C$3/12,$D$3,-(('Rent Limits'!J317-'Rent Limits'!J315)*(1-$E$4))/$E$3) -> 321174.9536 | C196: =+$B$2+PV($C$3/12,$D$3,-(('Rent Limits'!K317-'Rent Limits'!K315)*(1-$E$4))/$E$3) -> 322615.4266 | D196: =+$B$2+PV($C$3/12,$D$3,-(('Rent Limits'!L317-'Rent Limits'!L315)*(1-$E$4))/$E$3) -> 327224.9403 | E196: =+$B$2+PV($C$3/12,$D$3,-(('Rent Limits'!M317-'Rent Limits'!M315)*(1-$E$4))/$E$3) -> 331402.3121 | F196: =+$B$2+PV($C$3/12,$D$3,-(('Rent Limits'!N317-'Rent Limits'!N315)*(1-$E$4))/$E$3) -> 335003.4947
A197: LASSEN45% | B197: =+$B$2+PV($C$3/12,$D$3,-(('Rent Limits'!J317-'Rent Limits'!J314)*(1-$E$4))/$E$3) -> 331690.4067 | C197: =+$B$2+PV($C$3/12,$D$3,-(('Rent Limits'!K317-'Rent Limits'!K314)*(1-$E$4))/$E$3) -> 333995.1636 | D197: =+$B$2+PV($C$3/12,$D$3,-(('Rent Limits'!L317-'Rent Limits'!L314)*(1-$E$4))/$E$3) -> 340765.3868 | E197: =+$B$2+PV($C$3/12,$D$3,-(('Rent Limits'!M317-'Rent Limits'!M314)*(1-$E$4))/$E$3) -> 347103.4682 | F197: =+$B$2+PV($C$3/12,$D$3,-(('Rent Limits'!N317-'Rent Limits'!N314)*(1-$E$4))/$E$3) -> 352577.2657
A198: LASSEN40% | B198: =+$B$2+PV($C$3/12,$D$3,-(('Rent Limits'!J317-'Rent Limits'!J313)*(1-$E$4))/$E$3) -> 342205.8599 | C198: =+$B$2+PV($C$3/12,$D$3,-(('Rent Limits'!K317-'Rent Limits'!K313)*(1-$E$4))/$E$3) -> 345230.8532 | D198: =+$B$2+PV($C$3/12,$D$3,-(('Rent Limits'!L317-'Rent Limits'!L313)*(1-$E$4))/$E$3) -> 354305.8334 | E198: =+$B$2+PV($C$3/12,$D$3,-(('Rent Limits'!M317-'Rent Limits'!M313)*(1-$E$4))/$E$3) -> 362804.6243 | F198: =+$B$2+PV($C$3/12,$D$3,-(('Rent Limits'!N317-'Rent Limits'!N313)*(1-$E$4))/$E$3) -> 370006.9894
A199: LASSEN35% | B199: =+$B$2+PV($C$3/12,$D$3,-(('Rent Limits'!J317-'Rent Limits'!J312)*(1-$E$4))/$E$3) -> 352865.3603 | C199: =+$B$2+PV($C$3/12,$D$3,-(('Rent Limits'!K317-'Rent Limits'!K312)*(1-$E$4))/$E$3) -> 356610.5902 | D199: =+$B$2+PV($C$3/12,$D$3,-(('Rent Limits'!L317-'Rent Limits'!L312)*(1-$E$4))/$E$3) -> 367990.3272 | E199: =+$B$2+PV($C$3/12,$D$3,-(('Rent Limits'!M317-'Rent Limits'!M312)*(1-$E$4))/$E$3) -> 378505.7803 | F199: =+$B$2+PV($C$3/12,$D$3,-(('Rent Limits'!N317-'Rent Limits'!N312)*(1-$E$4))/$E$3) -> 387580.7604
A200: LASSEN30% | B200: =+$B$2+PV($C$3/12,$D$3,-(('Rent Limits'!J317-'Rent Limits'!J311)*(1-$E$4))/$E$3) -> 363380.8135 | C200: =+$B$2+PV($C$3/12,$D$3,-(('Rent Limits'!K317-'Rent Limits'!K311)*(1-$E$4))/$E$3) -> 367990.3272 | D200: =+$B$2+PV($C$3/12,$D$3,-(('Rent Limits'!L317-'Rent Limits'!L311)*(1-$E$4))/$E$3) -> 381530.7737 | E200: =+$B$2+PV($C$3/12,$D$3,-(('Rent Limits'!M317-'Rent Limits'!M311)*(1-$E$4))/$E$3) -> 394206.9364 | F200: =+$B$2+PV($C$3/12,$D$3,-(('Rent Limits'!N317-'Rent Limits'!N311)*(1-$E$4))/$E$3) -> 405154.5314
... 443 more rows

Sheet Drop Down (hidden)
A1: Contacts | B1: Contacts | C1: Site & Units | D1: Alameda | E1: Bay Area | F1: Rents | G1: Dev Sources | H1: Dev Sources | I1: Dev Sources | J1: Target Population
A2: FORM OF ENTITY | B2: Partner or Member Role | C2: Site Control | D2: Alpine | E2: Balance of State | F2: Income Limit | G2: Required Payment | H2: Repayment Terms Type | I2: Interest Rate Type | J2: At-Risk of Homelessness | K2: City | L2: Federally Recognized Tribe
A3: Yet to be formed L.P. | B3: Managing General Partner of Owner | C3: Fee Title | D3: Amador | E3: Balance of State | F3: None | G3: Interest Only | H3: Fully Amortized | I3: Fixed for Term | J3: Homeless | K3: County | L3: Indian Health Organization
A4: Yet to be formed LLC | B4: General Partner of Owner | C4: Purchase Option | D4: Butte | E4: Balance of State | F4: 0.15 | G4: Deferred | H4: Amortized with Call | I4: Fixed with Reset | J4: Homeless Youth or Youth at Risk of Homelessness | K4: Council of Governement | L4: Non-Federally Recognized Tribe
A5: Limited Partnership | B5: Administrative General Partner of Owner | C5: Lease | D5: Calaveras | E5: Balance of State | F5: 0.2 | G5: None | H5: Residual Receipts | I5: Fixed, then Variable | J5: Seniors | K5: Metropolitan Planning Organization | L5: Tribally Designated Housing Entity
A6: Limited Liability Company | B6: Managing Member | C6: Lease Option | D6: Colusa | E6: Balance of State | F6: 0.25 | G6: Other | H6: Deferred | I6: Variable | J6: Transition-Aged Youth | K6: Regional Transportation Planning Agency | L6: Urban Indian Organization
A7: Non-profit Corporation | B7: Other | C7: DDA | D7: Contra Costa | E7: Bay Area | F7: 0.3 | H7: Interest Only | I7: Other | K7: Public Housing Authority (PHA) | L7: City
A8: Non-profit Public Benefit Corporation | C8: Eminent Domain | D8: Del Norte | E8: Balance of State | F8: 0.35 | H8: Fixed to Float | K8: Other local public entity | L8: City and County
A9: For-profit Corporation | C9: Other -specify in Applicant Notes | D9: El Dorado | E9: Sacramento Area | F9: 0.4 | H9: Partial Int. Only | K9: Tribal Entity | L9: County
A10: Tribal Government | D10: Fresno | E10: San Joaquin Valley | F10: 0.45 | K10: Nonprofit Corporation | L10: Housing Authority
A11: Public Agency | D11: Glenn | E11: Balance of State | F11: 0.5 | K11: For-profit Corporation | L11: Nonprofit Corporation
A12: Joint Powers Authority | C12: New Construction of a Rental Housing Development | D12: Humboldt | E12: Balance of State | F12: 0.55 | L12: For-profit Corporation
A13: Individual(s) | C13: Rehabilitation of a Rental Housing Development | D13: Imperial | E13: Southern California | F13: 0.6 | L13: Other Public Agency
A14: Other | C14: Conversion of a nonresidential structure to a Rental Housing Development | D14: Inyo | E14: Balance of State | F14: 0.65 | J14: i. Acquisition or rehabilitation, or acquisition and rehabilitation, of motels, hotels, hostels, or other sites and assets, including apartments or homes, adult residential facilities, residential care facilities for the elderly, manufactured housing, commercial properties, and other buildings with existing uses that could be converted to permanent or interim housing.
C15: Other describe below | D15: Kern | E15: San Joaquin Valley | F15: 0.7 | J15: ii. Master leasing of properties for non-congregant housing. If Yes, provide a recent market study and/or rent roll, and/or other supporting documentation.
D16: Kings | E16: San Joaquin Valley | F16: 0.75 | J16: iii. Conversion of units from nonresidential to residential.
D17: Lake | E17: Balance of State | F17: 0.8 | J17: iv. New construction of dwelling units.
C18: a. Fee title which, for tribal trust land, may be evidenced by a title status report or an attorney’s opinion regarding chain of title and current title status. | D18: Lassen | E18: Balance of State | F18: 0.9 | J18: v. The purchase of affordability covenants and restrictions for units. If Yes, provide a recent market study and/or rent roll, and/or other supporting documentation.
C19: b. Leasehold interest on the property with provisions that enable the lessee to make improvements on and encumber the property | D19: Los Angeles | E19: Los Angeles County | F19: 1 | J19: vi. Relocation costs for individuals who are being displaced as a result of your Homekey Project.
C20: c. Leasehold estate held by a Tribal Entity in federal tribal trust lands property, or a valid sublease thereof approved by the Bureau of Indian Affairs | D20: Madera | E20: San Joaquin Valley | F20: 1.1 | J20: vii. Capitalized operating subsidies for units purchased, converted, constructed, or altered with funds provided pursuant to HSC §50675.1.3.
C21: d. An executed disposition and development agreement, or irrevocable offer of dedication to a public agency | D21: Marin | E21: Bay Area | F21: 1.2
C22: e. A sales contract, or other enforceable agreement for the acquisition of the property | D22: Mariposa | E22: Balance of State
C23: f. A letter of intent, executed by a sufficiently authorized signatory of the Eligible Applicant, that expressly represents to the Department | D23: Mendocino | E23: Balance of State
C24: g. Other forms of site control that give the Department assurance (equivalent to items a. through f.) (describe in cell A69 below) | D24: Merced | E24: San Joaquin Valley | J24: Sustained source
D25: Modoc | E25: Balance of State | J25: Subsidy carried by the tenant or participant
D26: Mono | E26: Balance of State | J26: Intent to pursue funding
D27: Monterey | E27: Central Coast
D28: Napa | E28: Bay Area | J28: Operating Subsidy Enforceable Funding Commitment (EFC)
D29: Nevada | E29: Balance of State | J29: Intent to Pursue Funding
D30: Orange | E30: Southern California
D31: Placer | E31: Sacramento Area | J31: within 1/2 mile radius of project
D32: Plumas | E32: Balance of State | J32: within 1 mile radius of project
D33: Riverside | E33: Southern California | J33: within 2 miles radius of project
D34: Sacramento | E34: Sacramento Area
D35: San Benito | E35: Central Coast
D36: San Bernardino | E36: Southern California | J36: 1. Acquisition
D37: San Diego | E37: San Diego County | J37: 1. Rehabilitation
D38: San Francisco | E38: Bay Area | J38: 1. Acquisition & Rehabilitation
D39: San Joaquin | E39: San Joaquin Valley | J39: 1. New Construction & Acq/Rehab
D40: San Luis Obispo | E40: Central Coast | J40: 2. Conversion of units from nonresidential to residential
D41: San Mateo | E41: Bay Area | J41: 3. New construction of dwelling units
D42: Santa Barbara | E42: Central Coast
D43: Santa Clara | E43: Bay Area
D44: Santa Cruz | E44: Central Coast
D45: Shasta | E45: Balance of State
D46: Sierra | E46: Balance of State
D47: Siskiyou | E47: Balance of State
D48: Solano | E48: Bay Area
D49: Sonoma | E49: Bay Area
D50: Stanislaus | E50: San Joaquin Valley
D51: Sutter | E51: Sacramento Area
D52: Tehama | E52: Balance of State
D53: Trinity | E53: Balance of State
D54: Tulare | E54: San Joaquin Valley
D55: Tuolumne | E55: Balance of State
D56: Ventura | E56: Southern California
D57: Yolo | E57: Sacramento Area
D58: Yuba | E58: Sacramento Area

Sheet Operating
A1: =IF(Overview!E20="","",Overview!E20) ->  | O1: Feedback/Comments
A2: =Overview!AJ1 -> 2023-08-10 | C2: Year 1 Annual Income and Expenses
A4: Employee Information | F4: Comments
A5: No. | B5: FTE | C5: Employee Job Title | D5: Salary/Wages | E5: Value of Free Rent
C6: On-Site Manager(s) | D6: 0 | E6: 0
C7: On-Site Assistant Manager(s) | D7: 0 | E7: 0
C8: Supportive Services Staff Supervisor(s) | D8: 0
C9: Supportive Services Coordinator, On-Site | D9: 0
C10: Other Supportive Services Staff (inc. Case Manager) | D10: 0
C11: On-Site Maintenance Employee(s) | D11: 0 | E11: 0
C12: On-Site Leasing Agent/Administrative Employee(s) | D12: 0 | E12: 0
C13: On-Site Security Employee(s) | D13: 0 | E13: 0
C14: Other Supportive Services Costs: (specify) | D14: 0 | E14: 0
C15: Other Supportive Services Costs: (specify) | D15: 0 | E15: 0
C16: Other Supportive Services Costs: (specify) | D16: 0 | E16: 0
C17: Other Supportive Services Costs: (specify) | D17: 0 | E17: 0
A18: Acct. No. | C18: Total Salaries and Value of Free Rent Units | D18: =SUM($D$6:$D$17) -> 0 | E18: =SUM(E6:E17) -> 0
A19: 6711 | C19: Payroll Taxes | E19: Show free rent as an expense?
A20: 6722 | C20: Workers Compensation | H20: Count free rent as an
A21: 6723 | C21: Employee Benefits | H21: expense?
C22: Employee(s) Payroll Taxes, Workers Comp. & Benefits | D22: =SUM(D19:D21) -> 0 | H22: =IF($E$21="Yes",1,0) -> 0
C23: Total Employee(s) Expenses | D23: =D22+D18 -> 0
A26: Employee Units
A27: Income Limit | C27: Job Title(s) of Employee(s) Living On-Site | D27: Unit Type (No. of bdrms.) | E27: Square Footage | G27: Income Limit | H27: Job Title(s) of Employee(s) Living On-Site
G28: 0.6 | H28: On-Site Manager(s)
G29: 0.55 | H29: On-Site Assistant Manager(s)
G30: 0.5 | H30: On-Site Maintenance Employee(s)
A31: Total Square Footage | E31: =SUM(E28:E30) -> 0 | G31: None | H31: On-Site Leasing Agent/Administrative Employee(s)
A32: Year 1 Annual Operating Budget | G32: Other | H32: On-Site Security Employee(s)
A33: Acct. No. | C33: Revenue - Income | D33: Residential | E33: Commercial | F33: Comments | H33: Services Coordinator
A34: 5120/5140 | C34: Rent Revenue - Gross Potential | E34: 0
C35: Restricted Unit Rents | D35: ='Cash Flow'!$D$5 -> 0
C36: Unrestricted Unit Rents | D36: ='Cash Flow'!$D$6 -> 0
A37: 5121 | C37: Tenant Assistance Payments
C38: =IF(Overview!$S$28="Interim Housing","",'Unit Mix'!J3) -> Rental Subsidy Program #1 Name | D38: ='Unit Mix'!K16 -> 0
C39: =IF(Overview!$S$28="Interim Housing","",'Unit Mix'!L3) -> Rental Subsidy Program #2 Name | D39: ='Unit Mix'!M16 -> 0
C40: ='Award and Match'!C20 -> 0 | D40: ='Award and Match'!D25 -> 0 | E40: 0
C41: ='Award and Match'!C22 -> 0 | D41: ='Award and Match'!D26 -> 0 | E41: 0
A42: 5910 | C42: Laundry and Vending Revenue | D42: 0
A43: 5170 | C43: Garage and Parking Spaces | D43: 0 | E43: 0
A44: 5990 | C44: Interim Housing Revenue | D44: 0 | E44: 0
A45: Gross Potential Income (GPI) | D45: =SUM(D34:D44) -> 0 | E45: =SUM(E34:E44) -> 0
C47: Vacancy Rate: Restricted Units | D47: 0.05
C48: Vacancy Rate: Unrestricted Units | D48: 0.05
C49: Vacancy Rate: Tenant Assistance Payments | D49: 0.05
C50: Vacancy Rate: Laundry & Vending & Other Income | D50: 0.05
C51: Vacancy Rate: Commercial Income | E51: 0.5
A52: 5220/5240 | C52: Vacancy Loss(es) | D52: =(D35*D47)+(D36*D48)+(SUM(D38,D39)*D49)+(SUM(D42,D43,D44)*D50) -> 0 | E52: =+E45*E51 -> 0
A53: Effective Gross Income (EGI) | C53: Effective Gross Income (EGI) | D53: =+D45-D52 -> 0 | E53: =+E45-E52 -> 0
A54: Acct. No. | C54: Expenses | D54: Residential | E54: Commercial | F54: Comments
C55: Administrative Expenses: 6200/6300
A56: 6203 | C56: Conventions and Meetings | D56: 0 | E56: 0
A57: 6210 | C57: Advertising and Marketing | D57: 0 | E57: 0
A58: 6250 | C58: Other Renting Expenses | D58: 0 | E58: 0
A59: 6310 | C59: Office/Administrative Salaries -- from above | D59: =D12 -> 0 | E59: 0
A60: 6311 | C60: Office Expenses | D60: 0 | E60: 0
A61: 6312 | C61: Office or Model Apartment Rent | D61: 0 | E61: 0
A62: 6320 | C62: Management Fee | D62: 0 | E62: 0
A63: 6330 | C63: Site/Resident Manager(s) Salaries -- from above | D63: =D6+D7 -> 0 | E63: 0
A64: 6331 | C64: Administrative Free Rent Unit -- from above | D64: =IF(H22=1,E6+E7+E12,0) -> 0 | E64: 0
A65: 6340 | C65: Legal Expense -- Project | D65: 0 | E65: 0
A66: 6350 | C66: Audit Expense | D66: 0 | E66: 0
A67: 6351 | C67: Bookkeeping Fees/Accounting Services | D67: 0 | E67: 0
A68: 6390 | C68: Miscellaneous Administrative Expenses | D68: 0 | E68: 0
A69: 6263T | C69: Total Administrative Expenses | D69: =SUM(D56:D68) -> 0 | E69: =SUM(E56:E68) -> 0
A70: Acct. No. | C70: Expenses | D70: Residential | E70: Commercial | F70: Comments
C71: Utilities Expenses: 6400
A72: 6450 | C72: Electricity | D72: 0 | E72: 0
A73: 6451 | C73: Water | D73: 0 | E73: 0
A74: 6452 | C74: Gas | D74: 0 | E74: 0
A75: 6453 | C75: Sewer | D75: 0 | E75: 0
C76: Other Utilities: (specify) | D76: 0 | E76: 0
A77: 6400T | C77: Total Utilities Expenses | D77: =SUM(D72:D76) -> 0 | E77: =SUM(E72:E76) -> 0
C78: Operating and Maintenance Expenses: 6500 | F78: Comments
A79: 6510 | C79: Payroll -- from above | D79: =$D$11+$D$13+$D$16+$D$17+$D$14+$D$15 -> 0 | E79: 0
A80: 6515 | C80: Supplies | D80: 0 | E80: 0
A81: 6520 | C81: Contracts | D81: 0 | E81: 0
A82: 6521 | C82: Operating & Maintenance Free Rent Unit -- from above | D82: =IF($H$22=1,$E$11+$E$16+$E$17+$E$15+$E$14,0) -> 0 | E82: 0
A83: 6525 | C83: Garbage and Trash Removal | D83: 0 | E83: 0
A84: 6530 | C84: Security Contract | D84: 0 | E84: 0
A85: 6531 | C85: Security Free Rent Unit -- from above | D85: =IF($H$22=1,$E$13,0) -> 0 | E85: 0
A86: 6546 | C86: Heating/Cooling Repairs and Maintenance | D86: 0 | E86: 0
A87: 6548 | C87: Snow Removal | D87: 0 | E87: 0
A88: 6570 | C88: Vehicle & Maintenance Equipment Operation/Reports | D88: 0 | E88: 0
A89: 6590 | C89: Miscellaneous Operating and Maintenance Expenses | D89: 0 | E89: 0
A90: 6500T | C90: Total Operating & Maintenance Expenses | D90: =SUM(D79:D89) -> 0 | E90: =SUM(E79:E89) -> 0
C91: Taxes and Insurance: 6700 | F91: Comments
A92: 6710 | C92: Real Estate Taxes | D92: 0 | E92: 0
A93: 6711 | C93: Payroll Taxes (Project's Share) -- from above | D93: =$D$19 -> 0 | E93: 0
A94: 6720 | C94: Property and Liability Insurance (Hazard) | D94: 0 | E94: 0
A95: 6729 | C95: Other Insurance (e.g. Earthquake) | D95: 0 | E95: 0
A96: 6721 | C96: Fidelity Bond Insurance | D96: 0 | E96: 0
A97: 6722 | C97: Worker's Compensation -- from above | D97: =$D$20 -> 0 | E97: 0
A98: 6723 | C98: Health Insurance/Other Employee Benefits--from above | D98: =$D$21 -> 0 | E98: 0
A99: 6790 | C99: Miscellaneous Taxes, Licenses, Permits & Insurance | D99: 0 | E99: 0
A100: 6700T | C100: Total Taxes and Insurance | D100: =SUM(D92:D99) -> 0 | E100: =SUM(E92:E99) -> 0
C101: Supportive Services Costs: 6900 | F101: Comments
A102: 6990 | C102: Staff Supervisor(s) Salaries - from above | D102: =$D$8 -> 0 | E102: 0
A103: 6990 | C103: Services Coordinator Salaries, On-Site - from above | D103: =$D$9 -> 0 | E103: 0
A104: 6990 | C104: Other Supportive Services Staff Salaries - from above | D104: =$D$10 -> 0 | E104: 0
A105: 6990 | C105: Supportive Services Admin Overhead | D105: 0 | E105: 0
A106: 6990 | C106: Tenant Transportation (per SSP) | D106: 0 | E106: 0
A107: 6990 | C107: Staff training (per SSP) | D107: 0 | E107: 0
A108: 6990 | C108: Equipment | D108: 0 | E108: 0
A109: 6990 | C109: Supplies | D109: 0 | E109: 0
A110: 6990 | C110: Travel | D110: 0 | E110: 0
A111: 6990 | C111: Office Rent/Occupancy Costs (don't include rent/leasing costs for SH units) | D111: 0 | E111: 0
A112: 6990 | C112: Training | D112: 0 | E112: 0
A113: 6990 | C113: Other Supportive Services Costs: (specify) | D113: 0 | E113: 0
A114: 6990 | C114: Other Supportive Services Costs: (specify) | D114: 0 | E114: 0
A115: 6900T | C115: Total Supportive Services Costs | D115: =SUM(D102:D114) -> 0 | E115: =SUM(E102:E114) -> 0
C117: Total Operating Expenses | D117: =D69+D77+D90+D100+D115 -> 0 | E117: =E69+E77+E90+E100+E115 -> 0 | F117: Comments
C118: Funded Reserves: 7200 | D118: Residential | E118: Commercial
A119: 7210 | C119: Required Replacement Reserve Deposits | D119: 0 | E119: 0
A120: 7220 | C120: Other Reserves: (specify) | D120: 0 | E120: 0
A121: 7230 | C121: Other Reserves: (specify) | D121: 0 | E121: 0
A122: 7240 | C122: Other Reserves: (specify) | D122: 0 | E122: 0
C123: Total Reserves | D123: =SUM(D119:D122) -> 0 | E123: =SUM(E119:E122) -> 0
C124: Ground Lease | D124: Residential | E124: Commercial
C125: Ground Lease | D125: 0 | E125: 0
A126: Total Ground Lease | D126: =SUM(D125:D125) -> 0 | E126: =SUM(E125:E125) -> 0
A127: Net Operating Income | D127: =D53-D117-D123-D126 -> 0 | E127: =E53-E117-E123-E126 -> 0
C129: Financial Expenses: 6800 | F129: Comments
A130: 6820 | C130: 1st Mortgage Debt Service | D130: 0 | E130: 0
A131: 6830 | C131: 2nd Mortgage Debt Service | D131: 0 | E131: 0
A132: 6840 | C132: 3rd Mortgage Debt Service | D132: 0 | E132: 0
A133: 6890 | C133: Misc. Financial Expenses: (specify) | D133: 0 | E133: 0
A134: 6890 | C134: Misc. Financial Expenses: (specify) | D134: 0 | E134: 0
A135: 6890 | C135: Misc. Financial Expenses: (specify) | D135: 0 | E135: 0
A136: 6890 | C136: Misc. Financial Expenses: (specify) | D136: 0 | E136: 0
A137: 6800T | C137: Total Financial Expenses | D137: =SUM(D130:D136) -> 0 | E137: =SUM(E130:E136) -> 0
A138: Cash Flow | D138: =+D127-D137 -> 0 | E138: =+E127-E137 -> 0
A140: 7190 | C140: Asset Management/Similar Fees | D140: 0 | E140: 0
A142: Applicant Comments

Sheet Cash Flow
A1: Cash Flow Analysis | U1: Feedback/Comments
A2: =IF(Overview!E20="","",Overview!E20) ->  | R2: =Overview!AJ1 -> 2023-08-10
A3: Income from Restricted Units will be based on Proposed Rents. | I3: Proposed Rents | K3: =IF(I3<>"Proposed Rents",1,0) -> 0
A4: Income From Housing Units | C4: Inflation | D4: Year 1 | E4: Year 2 | F4: Year 3 | G4: Year 4 | H4: Year 5 | I4: Year 6 | J4: Year 7 | K4: Year 8 | L4: Year 9 | M4: Year 10 | N4: Year 11 | O4: Year 12 | P4: Year 13 | Q4: Year 14 | R4: Year 15
A5: Restricted Unit Rents | C5: 0.025 | D5: =IF(K3=1,'Unit Mix'!F16,'Unit Mix'!G16) -> 0 | E5: =D5*(1+$C$5) -> 0 | F5: 0 | G5: 0 | H5: 0 | I5: 0 | J5: 0 | K5: 0 | L5: 0 | M5: 0 | N5: 0 | O5: 0 | P5: 0 | Q5: 0 | R5: =Q5*(1+$C$5) -> 0
A6: Unrestricted Unit Rents | C6: 0.025 | D6: ='Unit Mix'!H16 -> 0 | E6: =D6*(1+$C$6) -> 0 | F6: 0 | G6: 0 | H6: 0 | I6: 0 | J6: 0 | K6: 0 | L6: 0 | M6: 0 | N6: 0 | O6: 0 | P6: 0 | Q6: 0 | R6: =Q6*(1+$C$6) -> 0
A7: Tenant Assistance Payments
A8: =Operating!C38 -> Rental Subsidy Program #1 Name | C8: 0.025 | D8: =Operating!D38 -> 0 | E8: 0
A9: =Operating!C39 -> Rental Subsidy Program #2 Name | C9: 0.025 | D9: =Operating!D39 -> 0 | E9: 0
A10: Operating Subsidies
A11: =IF(Operating!C40="","",Operating!C40) -> 0 | D11: =Operating!D40 -> 0 | E11: ='Award and Match'!E25 -> 0 | F11: ='Award and Match'!F25 -> 0 | G11: ='Award and Match'!G25 -> 0 | H11: ='Award and Match'!H25 -> 0 | I11: ='Award and Match'!I25 -> 0 | J11: ='Award and Match'!J25 -> 0 | K11: ='Award and Match'!K25 -> 0 | L11: ='Award and Match'!L25 -> 0 | M11: ='Award and Match'!M25 -> 0 | N11: ='Award and Match'!N25 -> 0 | O11: ='Award and Match'!O25 -> 0 | P11: ='Award and Match'!P25 -> 0 | Q11: ='Award and Match'!Q25 -> 0 | R11: ='Award and Match'!R25 -> 0
A12: =IF(Operating!C41="","",Operating!C41) -> 0 | D12: =Operating!D41 -> 0 | E12: ='Award and Match'!E26 -> 0 | F12: ='Award and Match'!F26 -> 0 | G12: ='Award and Match'!G26 -> 0 | H12: ='Award and Match'!H26 -> 0 | I12: ='Award and Match'!I26 -> 0 | J12: ='Award and Match'!J26 -> 0 | K12: ='Award and Match'!K26 -> 0 | L12: ='Award and Match'!L26 -> 0 | M12: ='Award and Match'!M26 -> 0 | N12: ='Award and Match'!N26 -> 0 | O12: ='Award and Match'!O26 -> 0 | P12: ='Award and Match'!P26 -> 0 | Q12: ='Award and Match'!Q26 -> 0 | R12: ='Award and Match'!R26 -> 0
A13: Gross Potential Income - Housing | D13: =SUM(D5:D12) -> 0 | E13: 0 | F13: 0 | G13: 0 | H13: 0 | I13: 0 | J13: 0 | K13: 0 | L13: 0 | M13: 0 | N13: 0 | O13: 0 | P13: 0 | Q13: 0 | R13: 0
A15: Other Income
A16: Laundry & Vending | C16: 0.025 | D16: =Operating!D42 -> 0 | E16: =D16*(1+$C$16) -> 0 | F16: 0 | G16: 0 | H16: 0 | I16: 0 | J16: 0 | K16: 0 | L16: 0 | M16: 0 | N16: 0 | O16: 0 | P16: 0 | Q16: 0 | R16: =Q16*(1+$C$16) -> 0
A17: Other Income | C17: 0.025 | D17: =Operating!D43+Operating!D44 -> 0 | E17: =D17*(1+$C$17) -> 0 | F17: =E17*(1+$C$17) -> 0 | G17: 0 | H17: 0 | I17: 0 | J17: 0 | K17: 0 | L17: 0 | M17: 0 | N17: 0 | O17: 0 | P17: 0 | Q17: 0 | R17: =Q17*(1+$C$17) -> 0
A18: Commercial Income | C18: 0.025 | D18: =Operating!E45 -> 0 | E18: =D18*(1+$C$18) -> 0 | F18: 0 | G18: 0 | H18: 0 | I18: 0 | J18: 0 | K18: 0 | L18: 0 | M18: 0 | N18: 0 | O18: 0 | P18: 0 | Q18: 0 | R18: =Q18*(1+$C$18) -> 0
A19: Gross Potential Income - Other | D19: =SUM(D16:D18) -> 0 | E19: =SUM(E16:E18) -> 0 | F19: 0 | G19: 0 | H19: 0 | I19: 0 | J19: 0 | K19: 0 | L19: 0 | M19: 0 | N19: 0 | O19: 0 | P19: 0 | Q19: 0 | R19: 0
A21: Gross Potential Income - Total | D21: =D13+D19 -> 0 | E21: =E13+E19 -> 0 | F21: 0 | G21: 0 | H21: 0 | I21: 0 | J21: 0 | K21: 0 | L21: 0 | M21: 0 | N21: 0 | O21: 0 | P21: 0 | Q21: 0 | R21: 0
A22: Vacancy Assumptions
A23: Restricted Units | C23: =Operating!$D$47 -> 0.05 | D23: =$C23*D5 -> 0 | E23: 0 | F23: 0 | G23: 0 | H23: 0 | I23: 0 | J23: 0 | K23: 0 | L23: 0 | M23: 0 | N23: 0 | O23: 0 | P23: 0 | Q23: 0 | R23: 0
A24: Unrestricted Units | C24: =Operating!$D$48 -> 0.05 | D24: =$C24*D6 -> 0 | E24: 0 | F24: 0 | G24: 0 | H24: 0 | I24: 0 | J24: 0 | K24: 0 | L24: 0 | M24: 0 | N24: 0 | O24: 0 | P24: 0 | Q24: 0 | R24: 0
A25: Tenant Assistance Payments | C25: =Operating!$D$49 -> 0.05 | D25: =$C25*(D8+D9) -> 0 | E25: 0 | F25: 0 | G25: 0 | H25: 0 | I25: 0 | J25: 0 | K25: 0 | L25: 0 | M25: 0 | N25: 0 | O25: 0 | P25: 0 | Q25: 0 | R25: 0
A26: Laundry/Vending/Other Income | C26: =Operating!$D$50 -> 0.05 | D26: =$C26*(D16+D17) -> 0 | E26: =$C26*(E16+E17) -> 0 | F26: 0 | G26: 0 | H26: 0 | I26: 0 | J26: 0 | K26: 0 | L26: 0 | M26: 0 | N26: 0 | O26: 0 | P26: 0 | Q26: 0 | R26: 0
A27: Commercial Income | C27: =Operating!$E$51 -> 0.5 | D27: =$C27*D18 -> 0 | E27: =$C27*E18 -> 0 | F27: 0 | G27: 0 | H27: 0 | I27: 0 | J27: 0 | K27: 0 | L27: 0 | M27: 0 | N27: 0 | O27: 0 | P27: 0 | Q27: 0 | R27: 0
A28: Total Vacancy Loss | D28: =SUM(D23:D27) -> 0 | E28: 0 | F28: 0 | G28: 0 | H28: 0 | I28: 0 | J28: 0 | K28: 0 | L28: 0 | M28: 0 | N28: 0 | O28: 0 | P28: 0 | Q28: 0 | R28: 0
A30: Effective Gross Income | D30: =D21-D28 -> 0 | E30: =E21-E28 -> 0 | F30: 0 | G30: 0 | H30: 0 | I30: 0 | J30: 0 | K30: 0 | L30: 0 | M30: 0 | N30: 0 | O30: 0 | P30: 0 | Q30: 0 | R30: 0
A32: Operating Expenses & Reserve Deposits
A33: Residential Exp. (w/o Real Estate Taxes & Sup. Services) | C33: 0.035 | D33: =Operating!D117-Operating!D100-Operating!D115 -> 0 | E33: =(1+$C$33)*D33 -> 0 | F33: 0 | G33: 0 | H33: 0 | I33: 0 | J33: 0 | K33: 0 | L33: 0 | M33: 0 | N33: 0 | O33: 0 | P33: 0 | Q33: 0 | R33: =(1+$C$33)*Q33 -> 0
A34: Real Estate Taxes | C34: 0.035 | D34: =Operating!D100 -> 0 | E34: =(1+$C$34)*D34 -> 0 | F34: =(1+$C$34)*E34 -> 0 | G34: 0 | H34: 0 | I34: 0 | J34: 0 | K34: 0 | L34: 0 | M34: 0 | N34: 0 | O34: 0 | P34: 0 | Q34: 0 | R34: =(1+$C$34)*Q34 -> 0
A35: Supportive Services Costs | C35: 0.035 | D35: =Operating!D115 -> 0 | E35: =(1+$C$35)*D35 -> 0 | F35: =(1+$C$35)*E35 -> 0 | G35: =(1+$C$35)*F35 -> 0 | H35: 0 | I35: 0 | J35: 0 | K35: 0 | L35: 0 | M35: 0 | N35: 0 | O35: 0 | P35: 0 | Q35: 0 | R35: 0
A36: Replacement Reserve | C36: 0 | D36: =Operating!D119 -> 0 | E36: =(1+$C$36)*D36 -> 0 | F36: =(1+$C$36)*E36 -> 0 | G36: =(1+$C$36)*F36 -> 0 | H36: =(1+$C$36)*G36 -> 0 | I36: =(1+$C$36)*H36 -> 0 | J36: =(1+$C$36)*I36 -> 0 | K36: =(1+$C$36)*J36 -> 0 | L36: =(1+$C$36)*K36 -> 0 | M36: 0 | N36: =Operating!$D$119 -> 0 | O36: =(1+$C$36)*N36 -> 0 | P36: 0 | Q36: 0 | R36: =(1+$C$36)*Q36 -> 0
A37: Other Reserves | C37: 0.035 | D37: =Operating!D120+Operating!D121+Operating!D122+Operating!E120+Operating!E121+Operating!E122 -> 0 | E37: =(1+$C$37)*D37 -> 0 | F37: =(1+$C$37)*E37 -> 0 | G37: 0 | H37: 0 | I37: 0 | J37: 0 | K37: 0 | L37: 0 | M37: 0 | N37: 0 | O37: 0 | P37: 0 | Q37: 0 | R37: =(1+$C$37)*Q37 -> 0
A38: Ground Lease | C38: 0.035 | D38: =Operating!D125+Operating!E125 -> 0 | E38: =(1+$C$38)*D38 -> 0 | F38: =(1+$C$38)*E38 -> 0 | G38: 0 | H38: 0 | I38: 0 | J38: 0 | K38: 0 | L38: 0 | M38: 0 | N38: 0 | O38: 0 | P38: 0 | Q38: 0 | R38: =(1+$C$38)*Q38 -> 0
A39: Commercial Expenses | C39: 0.035 | D39: =Operating!E117 -> 0 | E39: =(1+$C$39)*D39 -> 0 | F39: 0 | G39: 0 | H39: 0 | I39: 0 | J39: 0 | K39: 0 | L39: 0 | M39: 0 | N39: 0 | O39: 0 | P39: 0 | Q39: 0 | R39: =(1+$C$39)*Q39 -> 0
A40: Total Expenses & Reserves | D40: =SUM(D33:D39) -> 0 | E40: =SUM(E33:E39) -> 0 | F40: 0 | G40: 0 | H40: 0 | I40: 0 | J40: 0 | K40: 0 | L40: 0 | M40: 0 | N40: 0 | O40: 0 | P40: 0 | Q40: 0 | R40: 0
A42: Net Operating Income | D42: =D30-D40 -> 0 | E42: =E30-E40 -> 0 | F42: =F30-F40 -> 0 | G42: 0 | H42: 0 | I42: 0 | J42: 0 | K42: 0 | L42: 0 | M42: 0 | N42: 0 | O42: 0 | P42: 0 | Q42: 0 | R42: 0
A44: Debt Service
A45: =Operating!$C$130 -> 1st Mortgage Debt Service | D45: =Operating!$D$130 -> 0 | E45: =$D$45 -> 0 | F45: =$D$45 -> 0 | G45: =$D$45 -> 0 | H45: =$D$45 -> 0 | I45: 0 | J45: 0 | K45: 0 | L45: 0 | M45: 0 | N45: 0 | O45: 0 | P45: 0 | Q45: 0 | R45: 0
A46: Bridge Loan (repaid from Investor equity) | D46: 0 | E46: 0 | F46: 0 | G46: 0 | H46: 0
A47: =Operating!$C$131 -> 2nd Mortgage Debt Service | D47: =Operating!D131+Operating!E131 -> 0 | E47: =$D$47 -> 0 | F47: =$D$47 -> 0 | G47: 0 | H47: 0 | I47: 0 | J47: 0 | K47: 0 | L47: 0 | M47: 0 | N47: 0 | O47: 0 | P47: 0 | Q47: 0 | R47: 0
A48: =Operating!$C$132 -> 3rd Mortgage Debt Service | D48: =Operating!D132+Operating!E132 -> 0 | E48: =$D$48 -> 0 | F48: 0 | G48: 0 | H48: 0 | I48: 0 | J48: 0 | K48: 0 | L48: 0 | M48: 0 | N48: 0 | O48: 0 | P48: 0 | Q48: 0 | R48: 0
A49: =Operating!$C$133 -> Misc. Financial Expenses: (specify) | C49: 0.03 | D49: =Operating!D133+Operating!E133 -> 0 | E49: =(1+C49)*D49 -> 0 | F49: =(1+$C$49)*E49 -> 0 | G49: =(1+$C$49)*F49 -> 0 | H49: 0 | I49: 0 | J49: 0 | K49: 0 | L49: 0 | M49: 0 | N49: 0 | O49: 0 | P49: 0 | Q49: 0 | R49: =(1+$C$49)*Q49 -> 0
A50: =Operating!$C$134 -> Misc. Financial Expenses: (specify) | C50: 0.03 | D50: =Operating!D134+Operating!E134 -> 0 | E50: =(1+$C$50)*D50 -> 0 | F50: 0 | G50: 0 | H50: 0 | I50: 0 | J50: 0 | K50: 0 | L50: 0 | M50: 0 | N50: 0 | O50: 0 | P50: 0 | Q50: 0 | R50: 0
A51: =Operating!$C$135 -> Misc. Financial Expenses: (specify) | C51: 0.03 | D51: =Operating!D135+Operating!E135 -> 0 | E51: =(1+$C$51)*D51 -> 0 | F51: 0 | G51: 0 | H51: 0 | I51: 0 | J51: 0 | K51: 0 | L51: 0 | M51: 0 | N51: 0 | O51: 0 | P51: 0 | Q51: 0 | R51: 0
A52: =Operating!$C$136 -> Misc. Financial Expenses: (specify) | C52: 0.03 | D52: =Operating!D136+Operating!E136 -> 0 | E52: =(1+$CT$52)*D52 -> 0 | F52: 0 | G52: 0 | H52: 0 | I52: 0 | J52: 0 | K52: 0 | L52: 0 | M52: 0 | N52: 0 | O52: 0 | P52: 0 | Q52: 0 | R52: =(1+$C$52)*Q52 -> 0
A53: Total Required Debt Service | D53: =SUM(D45:D52)-D46 -> 0 | E53: 0 | F53: 0 | G53: 0 | H53: 0 | I53: 0 | J53: 0 | K53: 0 | L53: 0 | M53: 0 | N53: 0 | O53: 0 | P53: 0 | Q53: 0 | R53: 0
A55: Cash Flow after all debt service | D55: =D42-D53 -> 0 | E55: 0 | F55: 0 | G55: 0 | H55: 0 | I55: 0 | J55: 0 | K55: 0 | L55: 0 | M55: 0 | N55: 0 | O55: 0 | P55: 0 | Q55: 0 | R55: 0
A57: Debt Service Coverage Ratio (DSCR) | D57: =IF(D53<=0,0,((D42/D53))) -> 0 | E57: 0 | F57: 0 | G57: 0 | H57: 0 | I57: 0 | J57: 0 | K57: 0 | L57: 0 | M57: 0 | N57: 0 | O57: 0 | P57: 0 | Q57: 0 | R57: 0
A59: Cash Flow After Debt Service - HCD Projects
A60: Asset Mgmt./ Similar Fees | D60: =IF(D55>=D61,D61,MAX(0,D55)) -> 0 | E60: =IF(E55>=E61,E61,MAX(0,E55)) -> 0 | F60: 0 | G60: 0 | H60: 0 | I60: 0 | J60: 0 | K60: 0 | L60: 0 | M60: 0 | N60: 0 | O60: 0 | P60: 0 | Q60: 0 | R60: 0
A61: Max Asset Mgmt/Similar Fees | C61: 0.03 | D61: =Operating!$D$140 -> 0 | E61: =(1+$C$61)*D61 -> 0 | F61: =(1+$C$61)*E61 -> 0 | G61: =(1+$C$61)*F61 -> 0 | H61: 0 | I61: 0 | J61: 0 | K61: 0 | L61: 0 | M61: 0 | N61: 0 | O61: 0 | P61: 0 | Q61: 0 | R61: =(1+$C$61)*Q61 -> 0
A62: Target NOI to get to 1.1 DSCR | D62: =$D$53*1.1 -> 0
A63: Subsidy needed to get to 1.1 DSCR | D63: =-$D$62+$D$42 -> 0
A65: Reserves & Debt (not payable by HK Op Subsidy)
A66: Reserve Expenses | D66: =D36+D37 -> 0 | E66: 0 | F66: 0 | G66: 0 | H66: 0 | I66: 0 | J66: 0 | K66: 0 | L66: 0 | M66: 0 | N66: 0 | O66: 0 | P66: 0 | Q66: 0 | R66: 0
A67: Required Debt Service | D67: =D53 -> 0 | E67: =E53 -> 0 | F67: 0 | G67: 0 | H67: 0 | I67: =I53 -> 0 | J67: 0 | K67: 0 | L67: 0 | M67: 0 | N67: 0 | O67: 0 | P67: 0 | Q67: 0 | R67: 0
A68: Total Reserve Expenses and Debt | D68: =D66+D67 -> 0 | E68: =E66+E67 -> 0 | F68: =F66+F67 -> 0 | G68: =G66+G67 -> 0 | H68: 0 | I68: 0 | J68: 0 | K68: 0 | L68: 0 | M68: 0 | N68: 0 | O68: 0 | P68: 0 | Q68: 0 | R68: 0
A69: Reserve Exp. and Debt unpaid | D69: =D68 -> 0 | E69: =E68 -> 0 | F69: 0 | G69: 0 | H69: 0 | I69: 0 | J69: 0 | K69: 0 | L69: 0 | M69: 0 | N69: 0 | O69: 0 | P69: 0 | Q69: 0 | R69: 0
A72: Homekey Operating Subsidy amount | D72: ='Award and Match'!$U$10 -> 0
A73: Homekey Operating Subsidy Draw* | D73: =IF(D42>=0,0,-MAX(D42,-D72)) -> 0 | E73: =IF(E42>=0,0,-MAX(E42,-D77)) -> 0 | F73: =IF(F42>=0,0,-MAX(F42,-E77)) -> 0 | G73: =IF(G42>=0,0,-MAX(G42,-F77)) -> 0 | H73: =IF(H42>=0,0,-MAX(H42,-G77)) -> 0
A74: Cash Flow after HK Op Subsidy draw | D74: =D42+D73 -> 0 | E74: 0 | F74: 0 | G74: 0 | H74: 0 | I74: 0 | J74: 0 | K74: 0 | L74: 0 | M74: 0 | N74: 0 | O74: 0 | P74: 0 | Q74: 0 | R74: 0
A75: NOI after all draws | D75: =D42+D73 -> 0 | E75: 0 | F75: 0 | G75: 0 | H75: 0 | I75: 0 | J75: 0 | K75: 0 | L75: 0 | M75: 0 | N75: 0 | O75: 0 | P75: 0 | Q75: 0 | R75: 0
A76: DSCR with Homekey draws | D76: =IF(D53<=0,0,(D75/D53)) -> 0 | E76: =IF(E53<=0,0,(E75/E53)) -> 0 | F76: 0 | G76: 0 | H76: 0 | I76: 0 | J76: 0 | K76: 0 | L76: 0 | M76: 0 | N76: 0 | O76: 0 | P76: 0 | Q76: 0 | R76: 0
A77: *HK Op Subsidy balance after draws | D77: =D72-D73 -> 0 | E77: =D77-E73 -> 0 | F77: 0 | G77: 0 | H77: 0 | I77: 0 | J77: 0 | K77: 0 | L77: 0 | M77: 0 | N77: 0 | O77: 0 | P77: 0 | Q77: 0 | R77: 0
A79: Applicant Comments:

Sheet Supportive Services Plan
A1: §300(A)(11) Supportive Services Plan (SSP) | AJ1: =Overview!AJ1 -> 2023-08-10
A2: Part I. Plan Narrative
A3: Tribal communities encompass the expertise on designing and implementing Supportive Services that provides culturally responsive solutions to their communities. Given the unique needs of Tribes, Homekey Tribal NOFA supports tribal self-determined community-need based supportive services. Applicants shall submit a concise and detailed Supportive Services Plan narrative to demonstrate its consideration of, and early engagement of Target Population and sub-populations to be served by the project. At a minimum, supportive services assistance narrative shall include: 1) Provide details of early engage or planned engagement with the Target Population to inform the design of the Supportive Services. 2) A description of the services to be offered, how frequently each service will be offered or provided depending on the nature of the service, who is anticipated to be providing the services, and the location, whether on or off-site, and general hours of availability of the services. 3) Description of the Target Population to be served, and identification of any additional subpopulation target or occupancy preference for the Homekey Project that the Applicant wishes to undertake beyond what is permitted under the Target Population. (all sub-population targeting must be approved by HCD prior to standard agreement issuance and must be consistent with federal and state fair housing requirements) 4) A tenant and participant engagement plan including a description of tenant/participant outreach, engagement and retention strategies to be used. 5) For services provided off-site, the plan must describe what public or private transportation options will be available to tenants and participants in order to provide them reasonable access to these services. Reasonable access is access that does not require walking more than one-half mile. 6) A staffing plan with staffing levels sufficient to reasonably meet the needs of the Target Population. 7) If a service provider has been selected, Commitment letter(s) or MOU(s) documenting how the complete development and management team (which may include the Applicant, developer, property manager, lead service provider, etc.) are connected and will work together on the Project. 8) Supportive Services applicant eligibility and screening standards. Must include confidentiality policy and substance abuse policy. 9) Appeal and Grievance Procedures 10) Policies and practices to facilitate Voluntary Moving On strategies
A4: File Name | D4: SSP Narrative | L4: Submit Supportive Services Plan Narrative | AE4: Uploaded to HCD?
A5: Part II. Tenant Selection
A6: Section 1: Tenant Selection Criteria
A7: Target Population and Eligibility Criteria
A8: a. Describe the criteria that will be used to ensure that tenants are eligible to occupy the Homekey Assisted Units and include a detail description of how proposed supportive services will align with tenant needs.
A10: d. Describe any additional eligibility criteria other than those indicated above, i.e., information needed to determine if the tenant can comply with lease terms. NOTE: Selection criteria designed to assess anything other than the ability to comply with lease terms generally run afoul of fair housing laws designed to protect equal access to housing for people with disabilities. See Between the Lines, A Question and Answer Guide on Legal Issues in Supportive Housing Chapter 4.
A12: e. Identify all disclosures that will be provided to applicants/tenants. Example: Megan's Law disclosures, HMIS reporting, etc.
A14: Section 2: Referrals
A15: a. Describe how the local CES will be used to fill Homekey Assisted Units based on the use of a standardized assessment tool which prioritizes those with the highest need and the most barriers to housing retention. Include the CES agency’s name, primary staff person’s name, and contact information. If the local CES is not yet operational, describe when it'll be established and the plan to use it.
A17: b. If using a separate comparable prioritization system than CES to refer persons At Risk of Homelessness describe that system. All referral protocols for Homekey Assisted Units must be developed in collaboration with the local CoC and implemented consistent with the requirements set forth in the Homekey Tribal NOFA.
A19: Section 3: Housing First Certification §501
A20: The Eligible Applicant shall certify to employ the core components of Housing First, as set forth at Welfare and Institutions Code §8255, subdivision (b), in its property management and tenant selection practices. Complete the checklist below to certify compliance with Housing First.
A21: Tenant Screening
A22: 1. If the program cannot serve someone, it works through the coordinated entry process to ensure that those individuals or families have access to housing and services elsewhere.
A23: 2. The supportive services and project does everything possible not to reject an individual or family based on poor credit or financial history, poor or lack of rental history, minor criminal convictions, or behaviors that are interpreted as indicating a lack of “housing readiness.”
A24: 3. Access to the project supportive services will not be contingent on sobriety, minimum income requirements, lack of a criminal record, completion of treatment, participation in services, or any other unnecessary condition not imposed by the terms of the funding itself.
A25: 4. People with disabilities are offered clear opportunities to request reasonable accommodations within applications and screening processes and during tenancy. Building and units include physical features that accommodate disabilities.
A26: Housing-Based Voluntary Services
A27: 1. If serving youth experiencing homelessness, services use a positive youth development model and culturally competent services to engage with tenants.
A28: 2. Services are informed by a harm-reduction philosophy that recognizes that substance use/ addiction are a part of some tenants’ lives. Tenants are engaged in non-judgmental communication regarding substance use and are offered education regarding safer practices and how to avoid risky behaviors.
A29: 3. Case managers and service coordinators who are trained in and actively employ evidence-based practices for client engagement, including, but not limited to, motivational interviewing and client-centered counseling.
A30: 4. Participation in services or compliance with service plans are not conditions of tenancy but are reviewed with tenants and regularly offered as a resource to tenants. Housing and service goals and plans are highly tenant driven.
A31: 5. Supportive services emphasize engagement and problem-solving over therapeutic goals.
A32: Housing Permanency
A33: 1. Substance use in and of itself, without other lease violations, is not considered a reason for eviction.
A34: 2. Tenants in supportive housing are given reasonable flexibility in paying their share of rent on time and offered special payment arrangements for rent arrears and/or assistance with financial management, including representative payee arrangements.
A35: 3. Every effort is made to provide a tenant the opportunity to transfer from one housing situation, program, or project to another if tenancy is in jeopardy. Whenever possible, eviction back into homelessness is avoided.
A36: 4. Program Requires Housing Providers to Provide Tenants with Leases and Reflects Tenants’ Rights & Responsibilities Of Tenancy Under CA Law (including eviction protections).
A37: Describe any known conflicts and/or the mitigation strategy for when Homekey funding or other program requirements conflict with Housing First practices, as applicable.
A39: Part III. Supportive Services Detail
A40: Section 1: Supportive Services Provider Information
A41: If already identified, list the supportive service provider (s) for the Target Population and any proposed sub-populations to be served by the Project. If more than one Provider will be offering services, describe how services will be coordinated.
A42: Provider Name | K42: Populations the Provider will serve | Y42: Services Provider will offer
A50: Describe any known conflicts and/or the mitigation strategy for when Homekey Tribal funding or other program requirements conflict with Housing First practices, as applicable.
A52: If your tenants and participants include minor children and/or adult dependents of Homekey Tenants, describe any additional criteria that will be used to ensure applicants are eligible to occupy the Homekey Assisted Units.
A54: Section 2: Supportive Services Chart
A55: Required Services: List and describe all services as required in §300 to be offered to tenants of the Homekey Assisted Units.
A56: Resident Service | F56: Service Description | Q56: Frequency | U56: Hours | X56: Service Provider | AC56: Off-site Service Location
A57: List each service separately | F57: Describe service, including the degree to which services are provided. | Q57: Frequency of services provided | U57: Provide the hours of availability | X57: Provider's Name | AC57: If service is on-site, leave blank. Enter distance, in miles, to off-site service and list resident commuting options. Reasonable access is access that does not require walking more that one-half mile.
A58: Case management
A59: Peer support activities
A60: Substance use services
A61: Behavioral health services
A62: Physical health services
A63: Assistance obtaining benefits and essential documentation
A64: Education and employment services
A65: Other services, such as housing retention skills, legal assistance, family connection services, etc.
A66: Other Residential Services (specify)
A67: Other Residential Services (specify)
A68: Part IV. Staffing
A69: Section 1a: Staffing Description
A70: Describe the overall staffing pattern, including the roles and responsibilities for each position listed in the Staffing Chart below. List the target populations served through each position.
A72: Section 1b: Staffing Chart
A73: List all staff positions that will provide services to the tenants of the Homekey Assisted Units. Include any staff positions of partnering organizations who have committed time to the Project. Include the services coordination staff. For each position, list the position title, minimum requirements, the full-time equivalent (FTE), the organization under which the position resides, and the location of the position (on-site or off-site). Do not include staff which serve non-Homekey Units and supervisors, peer support positions, or HMIS Administration positions. If a staff position serves both tenants in Homekey and non-Homekey units, include only that portion (i.e., % FTE) of the staff position dedicated to Homekey Assisted Units. Attach a copy of each positions duty statement, if these documents are available.
A74: NOTE: Indicate which staff position will be responsible for Homeless Management Information System data entry and CoC coordination.
A75: Title | E75: Minimum requirements | Z75: Total FTE: | AB75: =SUM(Z77:AC88) -> 0 | AD75: Employing Organization | AJ75: Location
A76: List each staff position | E76: List minimum required staff preparation include (education & experience). | Z76: Indicate FTE staff positions for Homekey units (half-time is 0.5) | AD76: List which organization will employ each staff position | AJ76: Select "On-Site" or "Off-Site"
A89: Section 2: Staffing Ratios
A90: 1. Complete case manager staffing ratio chart to show how many staff are assigned per client (for example 2:1, 3:1, etc.). Include all case management. Provide only the number of ongoing direct service staff positions that will provide services to the tenants of the Homekey Assisted Units, (for example, case manager, psychiatric nurse, services coordinator, etc.). Do not include supervisors, peer support positions, or HMIS Administration positions. Describe staffing ratio special circumstances below.
A91: Population Type: | I91: Homeless (cannot exceed 25 to 1 ratio) | Q91: At-Risk of Homelessness (cannot exceed 40 to 1 ratio) | Y91: Homeless Youth, or Youth at Risk of Homelessness (cannot exceed 15 to 1 ratio) | AG91: Totals
A92: Units Serving Subpopulation | I92: ='Unit Mix'!O15 -> 0 | Q92: ='Unit Mix'!N15 -> 0 | Y92: ='Unit Mix'!Q15 -> 0 | AG92: =SUM(AE92,I92,Q92,Y92) -> 0
A93: Staff Serving Subpopulation | AG93: =SUM(AE93,I93,Q93,Y93) -> 0
A94: Case Manager Ratio | I94: =IFERROR(I92/I93,"") ->  | Q94: =IFERROR(Q92/Q93,"") ->  | Y94: =IFERROR(Y92/Y93,"") ->  | AG94: =IFERROR(AG92/AG93,"") -> 
A96: Part V. Supportive Services Budget
A97: Provide a line item supportive services budget for the Project using the format below. Complete both income and expense portions of the budget on a yearly basis. Include all costs associated with implementing your SSP, including any in-kind services. Include income and expenses for all staff positions and partnering organizations who have committed time to the Project. Total expenses should equal total income. Add expense item categories & lines as necessary. Don't include costs associated with providing services in non-Homekey Assisted Units. If costs are associated with both Homekey & non-Homekey Assisted Units, include only the Homekey Assisted Units portion.
A98: Income Source/Program Name | L98: Amount | P98: Type | Y98: Funding Status | AH98: % of Total Budget
A99: =IF('Award and Match'!$C$20="","",'Award and Match'!$C$20) ->  | AH99: =IF($L$104=0,0,L99/$L$104) -> 0
A100: =IF('Award and Match'!$C$22="","",'Award and Match'!$C$22) ->  | AH100: =IF($L$104=0,0,L100/$L$104) -> 0
A101: Operating Subsidy (Homekey Tribal) | AH101: =IF($L$104=0,0,L101/$L$104) -> 0
AH102: =IF($L$104=0,0,L102/$L$104) -> 0
AH103: =IF($L$104=0,0,L103/$L$104) -> 0
A104: Total Revenue | L104: =SUM(L99:O103) -> 0 | AH104: =IF($L$104=0,0,L104/$L$104) -> 0
A105: Expense Item | L105: Amount | P105: Type | Y105: Funding Status | AH105: % of Total Budget
A106: Staff Salaries: List by title of position. (This list must match the Staffing Chart above.)
A107: =A77 -> 0 | I107: FTE: | J107: =Z77 -> 0 | AH107: =IF($L$133=0,0,L107/$L$133) -> 0
A108: =A78 -> 0 | I108: FTE: | J108: =Z78 -> 0 | AH108: 0
A109: 0 | I109: FTE: | J109: 0 | AH109: 0
A110: 0 | I110: FTE: | J110: 0 | AH110: 0
A111: 0 | I111: FTE: | J111: 0 | AH111: 0
A112: 0 | I112: FTE: | J112: 0 | AH112: 0
A113: 0 | I113: FTE: | J113: 0 | AH113: 0
A114: 0 | I114: FTE: | J114: 0 | AH114: 0
A115: 0 | I115: FTE: | J115: 0 | AH115: 0
A116: 0 | I116: FTE: | J116: 0 | AH116: 0
A117: 0 | I117: FTE: | J117: 0 | AH117: 0
A118: 0 | I118: FTE: | J118: 0 | AH118: 0
A119: Supportive Services Staff Supervisor(s) | I119: FTE: | L119: 0 | AH119: 0
A120: Supportive Services Coordinator, On-Site | I120: FTE: | L120: 0 | AH120: 0
A121: Other Supportive Services Staff (inc. Case Manager) | I121: FTE: | L121: 0 | AH121: 0
A122: Fringe Benefits | AH122: 0
A123: Total Staff Expenses | L123: =SUM(L107:O122) -> 0 | AH123: 0
A124: Tenant Transportation (per SSP) | L124: 0 | AH124: 0
A125: Staff training (per SSP) | L125: 0 | AH125: 0
A126: Equipment | L126: 0 | AH126: 0
A127: Supplies | L127: 0 | AH127: 0
A128: Travel | L128: 0 | AH128: 0
A129: Office Rent/Occupancy Costs (don't include rent/leasing costs for SH units) | L129: 0 | AH129: 0
A130: Training | L130: 0 | AH130: 0
A131: Other Supportive Services Costs: (specify) | L131: 0 | AH131: 0
A132: Other Supportive Services Costs: (specify) | L132: 0 | AH132: 0
A133: Total Expenses | L133: =SUM(L123:O132) -> 0 | AH133: 0
A134: Part VI. Measurable Outcomes and Plan for Evaluation
A135: Specific target populations will likely have varying outcomes and evaluation strategies. List outcomes and evaluations plans specific to each target population.
A136: Section 1: Measurable Outcomes
A137: Outcomes are what you expect to happen for the people served by your Project. Outcomes are sometimes called results. Outcome objectives are time-specific measurable goals that identify how you know if you are achieving your desired results. Outcome objectives are sometimes called outcome benchmarks or indicators. Categorize the outcomes for your Project into the following three categories:
A138: Category | M138: Outcomes | Z138: Outcome Objectives
A139: Residential Stability: Tenants maintain permanent housing (see examples in cell comments to the right)
A140: Increased Skills and/or Income: Tenants gain job-related skills, participate in job-related training and/or education, gain stipend part-time or full-time supported employment, gain access to mainstream service/income support Programs for which they are eligible (see examples in cell comments to the right)
A141: Greater Self- Determination: Tenants gain daily living skills and ability to plan and advocate for themselves to maximize independence and self-sufficiency (see examples in cell comments to the right)
A142: Other (specify)
A143: Section 2: Plan for Evaluation
A144: Describe your evaluation plan, including how you intend to collect, track and analyze data on the effectiveness of your Project, including the outcomes Projected above. Indicate who will analyze the data and perform your Program evaluation. (e.g., staff, consultant, etc.).
A147: Applicant Comments

Sheet Supportive Services Plan1 (hidden)
A1: §300(iii) Supportive Services Plan (SSP) | AJ1: =Overview!AJ1 -> 2023-08-10 | AQ1: Feedback/Comments
A2: Part I. Tenant Selection
A3: §502 asks for a detailed description of the Tenant Selection process. Using the titled sections below, the narrative should be as specific as possible, delineating the roles of property management and the support service provider and how these functions will be coordinated. Your description should clearly and conclusively document processes to ensure compliance with the Homekey Round 3 NOFA for Tenant Selection and Housing First Practices.
A4: Section 1: Tenant Selection Criteria
A5: Target Population and Eligibility Criteria
A6: a. Do you use Housing First Practices?
A7: b. Describe the criteria that will be used to ensure that tenants are eligible to occupy the Homekey Assisted Units.
A9: c. Description of the Target Population to be served, and identification of any additional subpopulation target or occupancy preference for the Project. (all sub-population targeting must be approved by HCD prior to standard agreement issuance and must be consistent with federal and state fair housing requirements).
A11: d. Describe any additional eligibility criteria other than those indicated above, i.e., information needed to determine if the tenant can comply with lease terms. NOTE: Selection criteria designed to assess anything other than the ability to comply with lease terms generally run afoul of fair housing laws designed to protect equal access to housing for people with disabilities. See Between the Lines, A Question and Answer Guide on Legal Issues in Supportive Housing Chapter 4.
A13: e. Identify all disclosures that will be provided to applicants/tenants. Example: Megan's Law disclosures, HMIS reporting, etc.
A15: Section 2: Referrals
A16: The following addresses the required use of the Coordinated Entry System (CES) for all referrals into Homekey Assisted Units or an alternate comparable prioritization system for those At Risk of Homelessness based on greatest need. Note that use of standard waiting lists is prohibited, in that both of these systems must prioritize referrals based on highest acuity needs, rather than first-come first served.
A17: a. Describe how the local CES will be used to fill Homekey Assisted Units based on the use of a standardized assessment tool which prioritizes those with the highest need and the most barriers to housing retention. Include the CES agency’s name, primary staff person’s name, and contact information. If the local CES is not yet operational, describe when it'll be established and the plan to use it.
A19: b. If using a separate comparable prioritization system than CES to refer persons At Risk of Homelessness describe that system. All referral protocols for Homekey Assisted Units must be developed in collaboration with the local CoC and implemented consistent with the requirements set forth in the Homekey NOFA.
A21: Section 3: Housing First Certification §501
A22: The Eligible Applicant shall certify to employ the core components of Housing First, as set forth at Welfare and Institutions Code §8255, subdivision (b), in its property management and tenant selection practices. Complete the checklist below to certify compliance with Housing First.
A23: Tenant Screening
A24: 1. If the project cannot serve someone, it works through the coordinated entry process to ensure that those individuals or families have access to housing and services elsewhere.
A25: 2. The project does everything possible not to reject an individual or family based on poor credit or financial history, poor or lack of rental history, minor criminal convictions, or behaviors that are interpreted as indicating a lack of “housing readiness.”
A26: 3. Access to the project is not contingent on sobriety, minimum income requirements, lack of a criminal record, completion of treatment, participation in services, or any other unnecessary condition not imposed by the terms of the funding itself.
A27: 4. People with disabilities are offered clear opportunities to request reasonable accommodations within applications and screening processes and during tenancy. Building and units include physical features that accommodate disabilities.
A28: Housing-Based Voluntary Services
A29: 1. If serving youth experiencing homelessness, services use a positive youth development model and culturally competent services to engage with tenants.
A30: 2. Services are informed by a harm-reduction philosophy that recognizes that substance use/ addiction are a part of some tenants’ lives. Tenants are engaged in non-judgmental communication regarding substance use and are offered education regarding safer practices and how to avoid risky behaviors.
A31: 3. Case managers and service coordinators who are trained in and actively employ evidence-based practices for client engagement, including, but not limited to, motivational interviewing and client-centered counseling.
A32: 4. Participation in services or compliance with service plans are not conditions of tenancy but are reviewed with tenants and regularly offered as a resource to tenants. Housing and service goals and plans are highly tenant driven.
A33: 5. Supportive services emphasize engagement and problem-solving over therapeutic goals.
A34: Housing Permanency
A35: 1. Substance use in and of itself, without other lease violations, is not considered a reason for eviction.
A36: 2. Tenants in supportive housing are given reasonable flexibility in paying their share of rent on time and offered special payment arrangements for rent arrears and/or assistance with financial management, including representative payee arrangements.
A37: 3. Every effort is made to provide a tenant the opportunity to transfer from one housing situation, program, or project to another if tenancy is in jeopardy. Whenever possible, eviction back into homelessness is avoided.
A38: 4. Program Requires Housing Providers to Provide Tenants with Leases and Reflects Tenants’ Rights & Responsibilities Of Tenancy Under CA Law (including eviction protections).
A39: Part II. Supportive Services Detail
A40: Section 1: Supportive Services Provider Information
A41: If already identified, list the supportive service provider (s) for the Target Population and any proposed sub-populations to be served by the Project. If more than one Provider will be offering services, describe how services will be coordinated.
A42: Provider Name | K42: Populations the Provider will serve | Y42: Services Provider will offer
A50: Describe any known conflicts and/or the mitigation strategy for when Homekey funding or other program requirements conflict with Housing First practices, as applicable.
A52: If your tenants and participants include minor children and/or adult dependents of Homekey Tenants, describe any additional criteria that will be used to ensure applicants are eligible to occupy the Homekey Assisted Units.
A54: Section 2: Supportive Services Chart
A55: Required Services: List and describe all services as required in §300 to be offered to tenants of the Homekey Assisted Units.
A56: Resident Service | F56: Service Description | Q56: Frequency | U56: Hours | X56: Service Provider | AC56: Off-site Service Location
A57: List each service separately | F57: Describe service, including the degree to which services are provided. | Q57: Frequency of services provided | U57: Provide the hours of availability | X57: Provider's Name | AC57: If service is on-site, leave blank. Enter distance, in miles, to off-site service and list resident commuting options. Reasonable access is access that does not require walking more that one-half mile.
A58: Case management
A59: Peer support activities
A60: Mental health care
A61: Substance use services
A62: Behavioral health services
